Workbook

Sheet MATRIZ DE INDICADORES
D2: MACROPROCESO ESTRATÉGICO | N2: CÓDIGO: ESGr027
D3: PROCESO GESTIÓN SISTEMAS INTEGRADOS | N3: VERSIÓN: 7
D4: MATRIZ DE MEDICIÓN Y SEGUIMIENTO A LOS PROCESOS DE GESTIÓN | N4: VIGENCIA: 2020-03-31
N5: PÁGINA: 1 de 1
L7: FECHA DE ACTUALIZACIÓN: | N7: AÑO | O7: MES | P7: DÍA
N8: 2020 | O8: 6 | P8: 1
B10: ALINEACIÓN DE LOS INDICADORES CON LOS DOCUMENTOS ESTRATÉGICOS Y LOS OBJETIVOS DE CALIDAD
B12: FRENTES DEL PLAN ESTRATÉGICO | C12: LINEAMIENTOS DE LA POLÍTICA DE CALIDAD | D12: OBJETIVOS DE CALIDAD | E12: PROCESO GESTIÓN | F12: ¿QUÉ SE VA A HACER? | G12: ¿QUÉ RECURSOS SE REQUIEREN? | H12: ¿CUÁNDO FINALIZARÁ? | I12: NOMBRE INDICADOR | J12: FÓRMULA | K12: TIPO DE INDICADOR | L12: SEGUIMIENTO MEDICIÓN | M12: META ANUAL | N12: RESULTADO | O12: NIVEL OBTENIDO | P12: ACCESO
B13: Frente Estratégico I: Institución Translocal del siglo 21: Desde la acreditación de programas a la acreditación institucional | C13: La Universidad guía su comportamiento y mejora continua a través de cumplimiento de requisitos definidos en buenas prácticas administrativas que soportan su quehacer diario redundando en la calidad de los procesos y logrando la acreditación de los programas y la acreditación institucional. | D13: 6. Consolidar y visibilizar a la Universidad de Cundinamarca como Institución consistente logrando la acreditación de programas y la acreditación institucional. | E13: Formación y Aprendizaje | F13: Ruta institucional de mejoramiento de resultados SABER PRO Plan de mejoramiento por programa académico | G13: Recursos financieros Recursos tecnológicos e informáticos Medios publicitarios Información documentada Talento Humano | H13: Diciembre 2020 | I13: Saber PRO | J13: Promedio global de resultados saber pro superior a la media nacional | K13: Acreditación | L13: Anual | M13: 147 + 6 PUNTOS | P13: MFA-10
E14: Formación y Aprendizaje | F14: Acorde con la asignación de aulas virtuales a los programas académicos, se validara la oportunidad en términos de tiempo frente a la notificación de entrega de los mismos. | G14: Talento Humano (Profesionales asignados) Información Documentada (Cronograma) Recursos tecnológicos | H14: Diciembre 2020 | I14: Oportunidad en la asignación de las aulas virtuales | J14: (Fecha de inicio de actividad académica - Promedio de fecha de entrega de aula virtual) + 5 | K14: Acreditación | L14: Semestral | M14: Todo valor relativo mayor o igual a 5 | P14: MFA-12
E15: Formación y Aprendizaje | F15: Se revisaran las bases de datos de talento humano frente a los docente contratados en la vigencia con dedicación de tiempo completo en cada uno de los programas académicos con miras a la acreditación | G15: Recursos financieros (Contratación) Talento Humano (Profesores) Información documentada (Perfiles docentes, actividades asignadas) | H15: Diciembre 2020 | I15: Número de profesores con dedicación de tiempo completo | J15: N° de profesores tiempo completo | K15: Acreditación | L15: Semestral | M15: 391 - 490 | P15: MFA-13
E16: Formación y Aprendizaje | F16: Se validara la relación del número de estudiantes frente a los profesores contratados en la vigencia con el fin de dar cumplimiento a las condiciones de acreditación del CNA para los programas posgraduales (Maestrías) | G16: Talento Humano Información documentada y recursos electrónicos (Bases de datos de Admisiones y Registro, Talento Humano y Desarrollo Académico) | H16: Diciembre 2020 | I16: Relación profesor - estudiante (Maestrías) | J16: N° de estudiantes por programa académico / Total de profesores que prestan servicio al programa | K16: Acreditación | L16: Semestral | M16: 1 / 20 | P16: MFA-14
E17: Formación y Aprendizaje | F17: Se validara la relación del número de estudiantes frente a los profesores contratados en la vigencia con el fin de dar cumplimiento a las condiciones de acreditación del CNA para los programas de pregrado y postgrado (Especializaciones) | G17: Talento Humano Información documentada y recursos electrónicos (Bases de datos de Admisiones y Registro, Talento Humano y Desarrollo Académico) | H17: Diciembre 2020 | I17: Relación profesor - estudiante | J17: N° de estudiantes por programa académico / Total de profesores que prestan servicio al programa | K17: Acreditación | L17: Semestral | M17: 1 / 30 | P17: MFA-15
E18: Formación y Aprendizaje | F18: Verificar el impacto de los resultados de aprendizaje por cada uno de los programas académicos | G18: Talento Humano Información documentada (Bases de datos de Admisiones y Registro) | H18: Diciembre 2020 | I18: Resultados de aprendizaje | J18: N° de estudiantes promovidos / N° total de estudiantes matriculados * 100 | K18: Acreditación | L18: Semestral | M18: 0.75 | P18: MFA-16
E19: Bienes y Servicios - Recursos Físicos | F19: *Creación del cronograma de Mantenimiento a la infraestructura física de espacios académicos *Creación formato reporte de mantenimiento y alimentación del cronograma de Mantenimiento a la infraestructura física de espacios académicos frente a las actividades realizadas y las reprogramadas | G19: Talento Humano calificado para realizar las actividades de mantenimiento a la infraestructura física Documental con la aplicación del procedimiento ABSP09 según se requiera Presupuesto rubro de mantenimiento para asegurar la realización de actividades necesarias Presupuesto rubro materiales y suministros para completar la operación de mantenimiento a la infraestructura física | H19: Diciembre 2020 | I19: Mantenimiento a infraestructura física de espacios académicos | J19: (Actividades ejecutadas / Actividades planificadas) * 100 | K19: Acreditación | L19: Semestral | M19: 0.7 | P19: ABS-6
E20: Bienes y Servicios | F20: Aplicación de las políticas de inclusión en el desarrollo de proyectos de infraestructura física, buscando beneficiar a los miembros de la Comunidad Universitaria que requieren facilidades en el acceso a las Instalaciones | G20: Talento Humano especializado como Arquitectos, Ingenieros Civiles y de obra Tecnológico por medio de herramientas digitales que permitan diagramar planos que incluyan aspectos inclusivos Presupuesto rubro de Planta Física para la ejecución de éstos proyectos | H20: Diciembre 2020 | I20: Renovación y actualización de obras con enfoque inclusivo (eliminación de barreras arquitectónicas) | J20: (Recursos ejecutados relacionados a inclusión / Recursos viabilizados relacionados a inclusión) * 100 | K20: Acreditación | L20: Semestral | M20: 0.7 | P20: ABS-7
E21: Interacción Universitaria | F21: Evaluar el estado de los convenios vigentes entre la Universidad y las distintas partes interesadas externas, con el fin de dinamizar los convenios producto de la interacción con la sociedad, propendiendo por el mejoramiento de la calidad de vida de las comunidades | G21: Talento Humano dedicado al seguimiento de Convenios y su mejoramiento continuo Tecnológicos apoyados en herramientas como Office o plataforma Institucional para la custodia y análisis de los convenios establecidos Financieros al establecer convenios que generen recursos para el funcionamiento del proceso | H21: Diciembre 2020 | I21: Vinculación efectiva con la comunidad y el sector productivo | J21: (#convenios en uso / # total de convenios vigentes) * 100 | K21: Acreditación | L21: Semestral | M21: 0.8 | P21: MIU-5
E22: Bienestar Universitario | F22: Convocatorias por distintos medios de divulgación (página web. perifoneo, correo electrónico, pantallas digitales) a actividades propuestas en el cronograma institucional, así como actividades internas y externas donde participe la Institución, planteadas a través de la oficina de Bienestar Universitario | G22: Talento Humano para el desarrollo de las actividades propuestas en los cronograma de actividades Financieros como recursos para implementar las distintas jornadas de participación para la Comunidad Universitaria Soporte Documental de las asistencias a los eventos organizados por Bienestar | H22: Diciembre 2020 | I22: Participación de la Comunidad Universitaria | J22: No. de integrantes de la comunidad universitaria (estudiantes, docentes y administrativos) que participan en las actividades desarrolladas por Bienestar Universitario * 100 / No. de participantes totales de la comunidad universitaria propuestos en el Plan de Acción para la vigencia | K22: Acreditación | L22: Semestral | M22: 0.9 | P22: MBU-9
E23: Planeación Institucional | F23: Trimestralmente se realizan seguimientos al plan de acción, mediante la plataforma institucional, este seguimiento se socializa vía correo electrónico con el rector, vicerrectores, secretaria general y con los órganos consultivos que los requieran | G23: Talento Humano que realice el seguimiento al cumplimiento de las metas del Plan de Acción y que gestione los resultados ante la Alta Dirección Comunicaciones que se realicen por medios electrónicos y que permitan la consecución de los datos requeridos para la medición | H23: Diciembre 2020 | I23: Cumplimiento del desempeño, evaluación y seguimiento a los documentos estratégicos | J23: % de Cumplimiento acumulado del Plan de Acción * 100 / % Esperado de Plan de Acción | K23: Eficacia | L23: Semestral | M23: 0.9 | P23: EPI-3
E24: Autoevaluación y Acreditación | F24: *Cronograma (Planeación) *Aplicación de la normatividad decreto 1330 de 2019 *Implementación del sistema SACES UDEC (en desarrollo) *Radicación en plataforma SACES *Visita de pares colaborativos *Visita de pares por parte del MEN | G24: Recurso financiero Talento Humano Sistemas de información Recursos tecnológicos Información documentada (estudios de mercado, procedimientos y guías) | H24: Diciembre 2020 | I24: Eficacia en la obtención de registros calificados | J24: Número de registros calificados otorgados / Total de solicitudes de registros calificados * 100 | K24: Eficacia | L24: Semestral | M24: 1 | P24: EAA-1
E25: Autoevaluación y Acreditación | F25: Proceso de autoevaluación: 1. Socialización y apertura de la autoevaluación 2. Ponderación 3. Recolección de información estadística y documental 4. Aplicación de instrumentos de percepción 5. Emisión de juicio de calidad 6. Documento Informe de Autoevaluación 7. Formulación y aprobación del plan de mejoramiento 8. Ejecución del plan de mejoramiento 9. Socialización de resultados | G25: Recursos financieros Recursos tecnológicos (aplicativo institucional Modulo de aseguramiento de la calidad educativa) Información documentada (Acta de consejo de facultad, acta del consejo académico y procedimientos del SGC) Talento Humano | H25: Diciembre 2020 | I25: Cumplimiento de los planes de mejoramiento producto de la autoevaluación | J25: Nivel de avance de los planes de mejoramiento derivados de la autoevaluación | K25: Eficacia | L25: Semestral | M25: 0.8 | P25: EAA-2
E26: Autoevaluación y Acreditación | F26: *Realizar proceso de condiciones iniciales en coherencia a los lineamientos del CNA *Recibir visita por parte del consejero del CNA *Proceso de autoevaluación: 1. Socialización y apertura 2. Ponderación 3. Recolección de información estadística y documental 4. Aplicación de instrumentos de percepción 5. Emisión de juicio de calidad 6. Documento Informe de Autoevaluación 7. Formulación y aprobación del plan de mejoramiento 8. Ejecución 9. Socialización de resultados 10. Radicación ante el CNA 11. Recibir visita de pares CNA (Responsable pares del CNA) 12. Informe de visita de pares (Responsable pares del CNA) | G26: Recursos financieros Talento Humano Recursos tecnológicos (Aplicativo SACES UDEC-en desarrollo) Información documentada (Procedimientos del proceso EAA) | H26: Diciembre 2020 | I26: Acreditación de programas en alta calidad | J26: Número de acreditaciones otorgadas / Total de resoluciones emitidas por el MEN * 100 | K26: Eficacia | L26: Semestral | M26: 1 | P26: EAA-3
E27: Autoevaluación y Acreditación | F27: Se realizará una sensibilización sobre el proceso de autoevaluación Se parametrizara la encuesta en el modulo de aseguramiento de la calidad educativa | G27: Tecnológicos (Modulo de aseguramiento de la calidad educativa) Comunicaciones - Difusión de la información | H27: Diciembre 2020 | I27: Participación de estudiantes en la autoevaluación de los programas académicos | J27: N° de estudiantes que participaron en la autoevaluación / Total de estudiantes del programa *100 (Aplica solo para programas que presenten autoevaluación durante el desarrollo de la vigencia) | K27: Acreditación | L27: Anual | M27: 0.4 | P27: EAA-4
E28: Autoevaluación y Acreditación | F28: Se realizará una sensibilización sobre el proceso de autoevaluación Se parametrizara la encuesta en el modulo de aseguramiento de la calidad educativa | G28: Tecnológicos (Modulo de aseguramiento de la calidad educativa) Comunicaciones - Difusión de la información | H28: Diciembre 2020 | I28: Participación de docentes en la autoevaluación de los programas académicos | J28: N° de docentes que participaron en la autoevaluación / Total de docentes vinculados en el programa * 100 (Aplica solo para programas que presenten autoevaluación durante el desarrollo de la vigencia) | K28: Acreditación | L28: Anual | M28: 0.4 | P28: EAA-5
E29: Autoevaluación y Acreditación | F29: Se realizará una sensibilización sobre el proceso de autoevaluación Se parametrizara la encuesta en el modulo de aseguramiento de la calidad educativa | G29: Tecnológicos (Modulo de aseguramiento de la calidad educativa) Comunicaciones - Difusión de la información | H29: Diciembre 2020 | I29: Participación de graduados en la autoevaluación de los programas académicos | J29: N° de graduados que participaron en la autoevaluación / Total de graduados del programa * 100 (Aplica solo para programas que presenten autoevaluación durante el desarrollo de la vigencia) | K29: Acreditación | L29: Anual | M29: 0.2 | P29: EAA-6
E30: Autoevaluación y Acreditación | F30: Se realizará seguimiento al cumplimiento del cronograma de autoevaluación acorde con sus fases: 1.Ponderación 2.Recolección de información 3.Aplicación de instrumentos de percepción 4.Emisión de juicios de calidad 5.Plan de mejoramiento 6.Informe de autoevaluación | G30: Tecnológicos (Modulo de aseguramiento de la calidad educativa) Talento Humano (Profesionales asignados) | H30: Diciembre 2020 | I30: Oportunidad en el cumplimiento del cronograma de autoevaluación | J30: N° de actividades ejecutadas oportunamente / Total de actividades * 100 | K30: Acreditación | L30: Trimestral | M30: 1 | N30: 0.5 | O30: 5 | P30: EAA-7
E31: Autoevaluación y Acreditación | F31: Se llevara a cabo la verificación de evidencias donde se identifique el nivel de cumplimiento de los planes de contingencia de las licenciaturas que perdieron el registro calificado hasta su culminación | G31: Talento Humano (Profesionales asignados) Información documentada (Evidencias, soportes de actividades y cronograma) | H31: Diciembre 2020 | I31: Cumplimiento de los planes de contingencia | J31: Total de actividades ejecutadas oportunamente / Total de actividades programadas | K31: Eficiencia | L31: Trimestral | M31: 1 | N31: 61 | O31: 5 | P31: EAA-8
B32: Frente Estratégico II: Cultura Académica, Científica y Formativa | C32: Satisface las necesidades y expectativas de la comunidad académica mediante procesos de formación y aprendizaje, ciencia, tecnología e investigación e interacción social universitaria. | D32: 2. Asegurar una cultura académica que privilegie el saber, el conocimiento y la formación para la vida con seres humanos integrales, responsables, solidarios y tolerantes. | E32: Interacción Universitaria | F32: Informe del impacto de las actividades de educación continuada Estadísticas con base a los resultados obtenidos en las actividades de educación continuada | G32: Talento Humano que analice y realice los informes requeridos Organización de Funciones al interior del Proceso Tecnológicos apoyados en las herramientas digitales con las que cuenta la Universidad Económicos a fin de garantizar convenios de asociación | H32: Diciembre 2020 | I32: Evaluación de las actividades desarrolladas - Educación Continuada | J32: (# Evaluaciones Calificadas ≥ 4) * 100 / Total Evaluaciones | K32: Eficiencia | L32: Semestral | M32: 0.8 | P32: MIU-1
E33: Interacción Universitaria | F33: Medir el impacto que tienen las pasantías y las practicas que realizan los estudiantes de los diferentes programas académicos, por medio de la aplicación de encuestas de satisfacción, que permitan establecer acciones de mejora en caso de ser necesarias | G33: Talento Humano del proceso que recopile las encuestas y determine el impacto de los resultados obtenidos Tecnológicos como herramientas ofimáticas que permitan presentar informes a la Alta Dirección | H33: Diciembre 2020 | I33: Evaluación de la percepción de las empresas | J33: (# Evaluaciones Calificadas ≥ 4) * 100 / Total Evaluaciones | K33: Eficiencia | L33: Semestral | M33: 0.8 | P33: MIU-2
E34: Interacción Universitaria | F34: Medir la percepción que tiene la Institución o la Empresa hacia las actividades que desarrollan los estudiantes de los diferentes programas académicos, por medio de la aplicación de encuestas de satisfacción, que permitan establecer acciones de mejora en caso de ser necesarias | G34: Talento Humano del proceso que recopile las encuestas y determine el impacto de los resultados obtenidos Tecnológicos como herramientas ofimáticas que permitan presentar informes a la Alta Dirección | H34: Diciembre 2020 | I34: Evaluación de la Institución o Empresa hacia el pasante o practicante | J34: (# Evaluaciones Calificadas ≥ 4) * 100 / Total Evaluaciones | K34: Eficiencia | L34: Semestral | M34: 0.8 | P34: MIU-3
E35: Interacción Universitaria | F35: Determinar los impactos de las actividades de Proyección Social en la región Medir los impactos de los proyectos, programas y actividades realizados por los distintos programas frente a la Comunidad | G35: Talento Humano del proceso que recopile las encuestas y determine el impacto de los resultados obtenidos Tecnológicos como herramientas ofimáticas que permitan presentar informes a la Alta Dirección Financieros por medio de proyectos de inversión o asignación de recursos para ejecutar en la Comunidad | H35: Diciembre 2020 | I35: Evaluación de las actividades de Proyección Social | J35: (# Evaluaciones Calificadas ≥ 4) * 100 / Total Evaluaciones | K35: Eficiencia | L35: Semestral | M35: 0.8 | P35: MIU-4
B36: Frente Estratégico III: Educación para la vida, los valores democráticos, la civilidad y la libertad | C36: La Universidad de Cundinamarca se compromete con una formación para la vida, valores democráticos, civilidad y libertad | D36: 1. Ofrecer formación educadora para la vida, los valores democráticos, la civilidad y libertad | E36: Apoyo Académico | F36: * Tener al día el inventario de Software académico. * Validar los Software que fueron aprobados para su adquisición y renovación con recursos asignados. (Banco Universitario de Proyectos) | G36: Financieros (presupuesto aprobado), talento humano (administrativo), tecnológico, red (acceso a internet), información documentada (procedimientos de contratación ABSP01-ABSP15). | H36: Diciembre 2020 | I36: Disponibilidad de Softwares Académicos | J36: Total de softwares disponibles de los requeridos por la academia/Total de Softwares requeridos por la academia (pregrado y posgrado) * 100 | K36: Eficacia | L36: Semestral | M36: 1 | P36: AAA-1
E37: Apoyo Académico | F37: *Solicitar a la dirección de Investigación con frecuencia anual los equipos que requieren calibración. *Solicitar el presupuesto de cuerdo a las solicitudes recibidas. *Priorizar las solicitudes y determinar los equipos reportados por investigación. *Gestionar ABS - tramité precontractual y contractual *Entregar los equipos calibrados al docente cuando se requiera, de lo contrario, se coloca directamente en el espacio académico de la UCundinamarca. | G37: Financieros (presupuesto aprobado), talento humano (AAA-MCT-PROVEEDOR), tecnológico, red (acceso a internet), información documentada (procedimientos de contratación ABSP01-ABSP15). | H37: Diciembre 2020 | I37: Calibración de Equipos y elementos educativos de investigación | J37: Total de equipos con calibración realizada / 100% de total de equipos reportados por la Dirección de Investigación y con presupuesto asignado. | K37: Eficiencia | L37: Semestral | M37: 1 | P37: AAA-2
E38: Apoyo Académico | F38: *Reportar las necesidades de mantenimiento preventivo y correctivo de los elementos educativos de cada uno de los espacios académicos adscritos a la Unidad de Apoyo Académico. *Solicitar presupuesto para la ejecución de los mantenimientos. *Ejecutar de acuerdo al PAA. *Tramite precontractual y contractual. | G38: Financieros (presupuesto aprobado), talento humano (administrativo), tecnológico, red (acceso a internet), información documentada (procedimientos de contratación ABSP01-ABSP15). | H38: Diciembre 2020 | I38: Mantenimiento a Elementos Educativos | J38: Total de Elementos Educativos Con Mantenimiento Realizado/ Total de Elementos Educativos que Requieren Mantenimiento | K38: Acreditación | L38: Semestral | M38: 1 | P38: AAA-5
E39: Apoyo Académico | F39: * Verificar la disponibilidad y funcionamiento del acceso a las bases de datos. * Validar los recursos electrónicos que fueron aprobados para su adquisición y/o renovación con recursos asignados (Banco Universitario de Proyectos) | G39: Talento humano (administrativo), tecnológico: plataforma - SIS "Gestión Apoyo Académico", red (acceso a internet), información documentada: procedimientos (AAAP01 - AAAP05) | H39: Diciembre 2020 | I39: Disponibilidad de recursos electrónicos | J39: Total de recursos electrónicos disponibles de los requeridos por la academia/Total de recursos electrónico requeridos por la academia (pregrado y posgrado) * 100 | K39: Acreditación | L39: Semestral | M39: 1 | P39: AAA-6
E40: Apoyo Académico | F40: * Verificar el listado de espacios académicos (total) en el aplicativo Gestión Apoyo Académico. * Estado actual de los espacios académicos | G40: Talento humano (administrativo), tecnológico: plataforma - SIS "Gestión Apoyo Académico", red (acceso a internet), información documentada: procedimientos (AAAP01 - AAAP05) | H40: Diciembre 2020 | I40: Disponibilidad de espacios académicos | J40: Espacios académicos disponibles (condiciones aptas para su uso) requeridos por la academia / total de espacios académicos requeridos por la academia * 100 | K40: Acreditación | L40: Semestral | M40: 1 | P40: AAA-7
E41: Apoyo Académico | F41: * Verificación de la disponibilidad del Material bibliográfico en las bibliotecas. * Validar los recursos asignados para la compra de nuevo material, contra el material bibliográfico aprobado por los coordinadores de programa. (Banco Universitario de proyectos - Aplicativo Gestión Apoyo Académico- Solicitud Material bibliográfico). | G41: Talento humano (administrativo), tecnológico: plataforma - SIS "Gestión Apoyo Académico", red (acceso a internet), información documentada: procedimientos (AAAP01 - AAAP05) | H41: Diciembre 2020 | I41: Disponibilidad de material bibliográfico | J41: Total de material bibliográfico disponibles de los requeridos por la academia/Total de material bibliográfico requeridos por la academia (pregrado y posgrado) * 100 | K41: Acreditación | L41: Semestral | M41: 1 | P41: AAA-8
E42: Apoyo Académico | F42: * Validación del estado de los elementos educativos por medio del formato AAAr054 y verificar su estado. * Validación de la disponibilidad de los espacios académicos por medio del aplicativo gestión Apoyo Académico, versus las solicitudes realizadas por los coordinadores de programa. | G42: Talento humano (administrativo), tecnológico: plataforma - SIS "Gestión Apoyo Académico", red (acceso a internet), información documentada: procedimientos (AAAP01 - AAAP05) | H42: Diciembre 2020 | I42: Suficiencia de elementos educativos | J42: Elementos educativos suficientes de los requeridos por la academia/ total de elementos educativos requeridos por la academia (pregrado y posgrado) * 100 | K42: Acreditación | L42: Semestral | M42: 1 | P42: AAA-9
E43: Apoyo Académico | F43: * Validación de la disponibilidad de los espacios académicos por medio del aplicativo gestión Apoyo Académico, versus las solicitudes realizadas por los coordinadores de programa. | G43: Talento humano, tecnológico: plataforma - SIS "Gestión Apoyo Académico", red (acceso a internet), información documentada: procedimientos (AAAP01 - AAA+G20:G21P05) | H43: Diciembre 2020 | I43: Suficiencia de espacios académicos | J43: Total de espacios académicos suficientes de los requeridos por la academia/Total de espacio académicos requeridos por la academia (pregrado y posgrado) * 100 | K43: Acreditación | L43: Semestral | M43: 1 | P43: AAA-10
E44: Bienestar Universitario | F44: Realización de actividades Culturales y Deportivas, por medio de jornadas programadas con el fin de asegurar la participación de la Comunidad Universitaria, así como el Control de asistencias a los grupos de formación cultural y deportiva | G44: Talento Humano que presten los servicios en los grupos culturales y deportivos Financieros por medio de contratación de profesionales que dirijan los grupos culturales y deportivos Soporte Documental de las asistencias a estos grupos culturales y deportivos | H44: Diciembre 2020 | I44: Aumento de la participación en los grupos culturales y deportivos | J44: 1- (# de participantes en el semestre actual * 100) / # de participantes en el semestre anterior | K44: Eficacia | L44: Semestral | M44: 0.15 | P44: MBU-7
E45: Bienestar Universitario | F45: Acompañamiento interdisciplinar antes, durante y después de las actividades planificadas, a los miembros de la Comunidad Universitaria que participan en procesos de formación | G45: Talento Humano capacitado que brinde acompañamiento integral a los participantes Financieros por medio de consecución de profesionales (fisioterapeutas, psicólogos u enfermeras) Soporte Documental Elementos terapéuticos para el desarrollo de las actividades de acompañamiento | H45: Diciembre 2020 | I45: Mejoramiento de la calidad de vida | J45: (# de personas que mejoraron su calidad de vida / # total de personas encuestadas) *100 | K45: Eficiencia | L45: Semestral | M45: 0.7 | P45: MBU-8
E46: Bienes y Servicios - Almacén | F46: *Elaboración de Cronograma de Tomas físicas de inventario *Publicación del Cronograma para conocimiento de la Comunidad Universitaria *Toma física de inventarios en las distintas dependencias de la Universidad, en su sede, seccionales y extensiones | G46: Talento Humano competente para la realización de las tomas físicas de inventario y elaboración de cronogramas de cumplimiento Tecnológico para la consolidación de información de inventarios y actualización de inventarios de la Institución | H46: Diciembre 2020 | I46: Toma física de inventarios | J46: (Toma Física ejecutada + Toma Física reprogramada con Justificación) + Extras / (Toma Física programada) + Extras | K46: Eficacia | L46: Trimestral | M46: 0.95 | N46: 0.5 | O46: 1 | P46: ABS-1
E47: Bienes y Servicios - Almacén | F47: *Consolidación del histórico de consumos *Gestionar la adquisición de suministros de papelería *Controlar el consumo de los suministros de papelería | G47: Talento Humano para la gestión y entrega de los suministros Tecnológico que permita mantener en tiempo real información de los stocks disponibles de papelería Infraestructura para asegurar el buen estado de los suministros | H47: Diciembre 2020 | I47: Oportunidad en la entrega de suministros de papelería | J47: (# Pedidos entregados ≤ 15 días * 100) / # Total de Pedidos | K47: Eficiencia | L47: Trimestral | M47: 0.95 | N47: 1 | O47: 5 | P47: ABS-2
E48: Bienes y Servicios - Recursos Físicos | F48: Medir la prestación de los servicios que realizan los funcionarios de Recursos Físicos en la atención de solicitudes que se realizan por medio de la plataforma Institucional, con el fin de determinar acciones de mejora posteriores que aumenten la satisfacción de las partes interesadas | G48: Tecnológicos por medio de la Plataforma Institucional para recopilar las necesidades y estado de satisfacción del usuario Talento Humano para la consolidación de informe, análisis de necesidades e informes a la Alta Dirección | H48: Diciembre 2020 | I48: Evaluación de los servicios prestados por Recursos Físicos y Servicios Generales | J48: (Promedio de calificación del servicio/Máxima calificación esperada) * 100 | K48: Eficacia | L48: Semestral | M48: 0.95 | P48: ABS-5
B49: Frente Estratégico IV: Ciencia, Tecnología, Investigación, Innovación | C49: Satisface las necesidades y expectativas de la comunidad académica mediante procesos de formación y aprendizaje, ciencia, tecnología e investigación e interacción social universitaria. | D49: 3. Generar Investigación aplicada, sistemática y de impacto | E49: Ciencia, Tecnología e Innovación | F49: 1.MTC Informa a los investigadores la apertura de las convocatorias para categorización ante Colciencias ( se apertura cada 2 Años), 2. Los docentes se presenten a la convocatoria. 3. Realizar consolidado de los investigadores categorizados. 4. Realizar seguimiento a los investigadores categorizados los cuales deben estar vinculados a la UDEC. 5. Reportar el indicador. | G49: Talento Humano (Profesionales asignados), Tecnológicos: software y hardware , Correo electrónico, Herramientas de ofimática, PC, Material de oficina | H49: Diciembre 2020 | I49: Investigadores de la universidad reconocidos ante Colciencias | J49: Número ponderado de investigadores de la universidad sujeto a convocatoria de Colciencias | K49: Eficacia | L49: Semestral | M49: 55 | P49: MCT-2
E50: Ciencia, Tecnología e Innovación | F50: 1.MTC Informa a los grupos la apertura de las convocatorias para categorización ante Colciencias ( se apertura cada 2 Años), 2. Los dGruposse presenten a la convocatoria. 3. Realizar consolidado de los Grupos categorizados. 4. Realizar seguimiento a nuevos grupos categorizados que se vinculen a la UDEC . 5. reportar el indicador. | G50: Recursos Human Tecnológicos: software y hardware, Herramientas de ofimática, PC, Material de oficina | H50: Diciembre 2020 | I50: Grupos de investigación avalados institucionalmente y registrados ante Colciencias | J50: Numero de Grupos de investigación avalados institucionalmente sujeto a convocatoria de Colciencias | K50: Eficacia | L50: Semestral | M50: 30 | P50: MCT-3
E51: Ciencia, Tecnología e Innovación | F51: 1. Realizar solicitudes a los lideres de grupos de investigación para registrar la producción el GrupLAC. 2. Registro de los producción por parte de los lideres de grupo. 3. Verificación de producción a través del instuLAC de Colciencias. 4. Generar reporte de indicadores. | G51: Recursos Humanos (Profesionales asignados), Tecnológicos: software y hardware, Correo electrónico, Herramientas de ofimática, PC, Material de oficina | H51: Diciembre 2020 | I51: Publicación de Capítulos de libro | J51: Número de capítulos de libros publicados en el periodo | K51: Eficiencia | L51: Semestral | M51: 35 | P51: MCT-4
E52: Ciencia, Tecnología e Innovación | F52: 1. Realizar solicitudes a los lideres de semilleros de investigación para registrar los resultados de investigación por programa 2. Generar reporte de indicadores. | G52: Recursos Humanos (Profesionales asignados), Tecnológicos, Correo electrónico, Herramientas de ofimática, PC, Material de oficina | H52: Diciembre 2020 | I52: Resultados de investigación del programa | J52: Resultados de investigación del programa / Total de Resultados de investigación propuestos * 100 | K52: Eficiencia (Acreditación) | L52: Semestral | M52: 1 | P52: MCT-5
E53: Ciencia, Tecnología e Innovación | F53: 1. Realizar solicitudes a los lideres de semilleros de investigación 2. Generar reporte de indicadores. | G53: Recursos Humanos (Profesión Tecnológicos: software y hardware Tecnológicos, Correo electrónico, Herramientas de ofimática, PC, Material de oficina | H53: Diciembre 2020 | I53: Participación de estudiantes en Estrategias para la Formación en Investigación e Innovación | J53: Estudiantes que participen en estrategias para la formación en investigación del programa / total de estudiantes del programa * 100. | K53: Eficiencia (Acreditación) | L53: Semestral | M53: 1 | P53: MCT-6
B54: Frente Estratégico V: Internacionalización: Dialogar con el mundo. | C54: Fundamenta su operación con lineamientos de emprendimiento, alta calidad de los programas, Translocalidad y con la posibilidad de generar una cultura de paz. | D54: 4. Propiciar la gestión de la internacionalización: dialogar con el mundo. | E54: Dialogando con el Mundo | F54: 1. Resultados de la convocatoria. 2. seguir lineamientos establecidos en la información documentada del SGC. 3. Solicitar listado de estudiantes a las facultados. 4. Realizar la medición del indicador. Enviar a la oficina de calidad para publicación | G54: 1. Recursos financieros Rubro presupuestal. 2. Recurso Humano: Personal administrativo. 3.Tecnológicos: software y hardware: Plataforma digital. | H54: Diciembre 2020 | I54: Estudiantes beneficiados con la implementación de la acción estratégica de movilidad académica y alianzas correspondiente a la política Dialogando con el mundo | J54: Estudiantes de 6 a 10 semestre beneficiados de políticas de gestión institucional y bienestar / total de estudiantes de 6 a 10 semestre | K54: Eficacia Acreditación | L54: Semestral | M54: 30 | P54: MDM-1
E55: Dialogando con el Mundo | F55: 1. Resultados de la convocatoria. 2. seguir lineamientos establecidos en la información documentada del SGC. 3. Solicitar listado de estudiantes a las facultados. 4. Realizar la medición del indicador. Enviar a la oficina de calidad para publicación | G55: 1. Recursos financieros Rubro presupuestal. 2. Recurso Humano: Personal administrativo. 3.Tecnológicos: software y hardware: Plataforma digital. | H55: Diciembre 2020 | I55: Estudiantes beneficiados con la implementación de la acción estratégica de: dialogo común curricular, diálogo con funciones misionales de la u. Cundinamarca, apoyo al CADI de segunda lengua. Correspondiente a la política Dialogando con el mundo. | J55: Estrategias de internacionalización de los programa programas académicos donde participan estudiantes de 1 a 10 semestre /# de estrategias en las participaron los estudiantes de 1 a 10 semestre | K55: Eficacia Acreditación | L55: Semestral | M55: 1000 | P55: MDM-2
E56: Dialogando con el Mundo | F56: 1. Resultados de la convocatoria. 2. seguir lineamientos establecidos en la información documentada del SGC. 3. Solicitar listado de estudiantes a las facultados. 4. Realizar la medición del indicador. Enviar a la oficina de calidad para publicación | G56: 1. Recursos financieros Rubro presupuestal. 2. Recurso Humano: Personal administrativo. 3.Tecnológicos: software y hardware: Plataforma digital. | H56: Diciembre 2020 | I56: Dinamizar convenios | J56: Numero de convenios dinamizados/ Numero de convenios establecidos en la UDEC | K56: Eficacia Calidad | L56: Semestral | M56: 20 | P56: MDM-3
B57: Frente Estratégico VI: Gobierno Universitario Digital | C57: La Universidad guía su comportamiento y mejora continua a través de cumplimiento de requisitos definidos en buenas prácticas administrativas que soportan su quehacer diario redundando en la calidad de los procesos y logrando la acreditación de los programas y la acreditación institucional. | D57: 5. Instituir un Gobierno Universitario Digital, Caracterizado por el autocontrol, el control social, las buenas practicas y el control social universitario | E57: Admisiones y Registro | F57: *Actualizar el instructivo de acompañamiento del proceso de inscripción, el cual se publica en el enlace "admisiones" de la página institucional. *Solicitar a la Oficina de Comunicaciones la publicación de las fechas de inscripción. *Asesorar a los estudiantes vía telefónica y presencial (ventanilla - oficina de Admisiones y Registro) | G57: Tecnológico: Plataforma digital - enlace de admisiones en página institucional Líneas telefónicas Talento Humano (administrativos) Documentación: modelo de operación digital procedimiento MARP02 / MARC01 | H57: Diciembre 2020 | I57: Inscripciones efectivas | J57: (Inscritos efectivos/total de aspirantes inscritos por seccional y extensión) *100 | K57: Eficacia | L57: Semestral | M57: 0.95 | P57: MAR-2
E58: Admisiones y Registro | F58: *Renovar el paso a paso como guía para el diligenciamiento del formulario de inscripción, publicado en nuestro portal web – Admisiones. *Realizar las respectivas publicaciones con antelación a dicho proceso, solicitud directa a Comunicaciones. *Gestionar el debido acompañamiento a las partes interesadas por nuestros variados canales de comunicación, e-mail, telefónico; entre otros. | G58: Tecnología: WebSite – Admisiones Red (acceso a internet) E-mail - Correo electrónico institucional Talento Humano (administrativo) Líneas telefónicas Documentación: Modelo de Operación Digital – Procedimiento MARP02 / MARC01 | H58: Diciembre 2020 | I58: Índice de selectividad | J58: Número de admitidos / número de inscritos * 100 | K58: Acreditación | L58: Semestral | M58: 0.5 | P58: MAR-4
E59: Admisiones y Registro | F59: “*Actualizar la información con respecto al pago de matrícula, beneficios, financiación, descuentos, entre otros, en nuestro Portal Web. Apoyo, Pagaduría (recibo pago matricula) y Tesorería. Fechas para pago de liquidación de matrícula para cada periodo académico 2020 *Publicar las fechas estimadas para el periodo de facturación vigente, Calendario Académico – Admisiones y Registro, Pagaduría, Tesorería. *Gestionar los horarios (matricula) por Programa, Sede, Extensiones y Seccionales a los aspirantes – Admisiones y Registro. *Ejecutar dichas propuestas en apoyo con el área de Comunicaciones y partes pertinentes. | G59: Tecnológico: Portal Web – Admisiones Red (acceso a internet) Talento Humano (Administrativo) Líneas telefónicas E-mail - Correo electrónico institucional Documentación: Modelo de Operación Digital – Procedimiento MARP03 / MARC01 | H59: Diciembre 2020 | I59: Requisitos de matricula | J59: Número de matriculados efectivos/ total de número de admitidos * 100 | K59: Acreditación | L59: Semestral | M59: 0.9 | P59: MAR-5
E60: Admisiones y Registro | F60: “*Garantizar el seguimiento a los estudiantes en su proceso académico, laborando mancomunadamente con las Facultades, Directores, Coordinadores de Programa, Admisiones y registro, Unidad de Apoyo Académico. *Realizar seguimiento al proceso de aprendizaje y cumplimiento del tiempo estimado de duración para cada programa académico. *(Complementario: Considerar semestralmente la curva de deserción y sus causales, hacer el debido seguimiento - Bienestar Universitario). *Analizar el rendimiento académico de los estudiantes para no perder su calidad del mismo. | G60: Tecnológico: Plataforma digital (Servicios: Aulas Virtuales, Plataforma Institucional en nuestro Portal Web) Red (acceso a internet) Líneas telefónicas, Correo electrónico Institucional, Talento Humano (Facultades, Sede, Extensiones y Seccionales). Procedimientos del modelo de operación digital - MARP05 / MARP010 / MARC01 | H60: Diciembre 2020 | I60: Tasa de graduación efectiva | J60: Número de graduados oportunos (plan de estudios + 1 semestre)/ total de estudiantes inscritos de cada programa académico * 100 | K60: Acreditación | L60: Semestral | M60: 0.9 | P60: MAR-6
E61: Admisiones y Registro | F61: *Analizar la información suministrada en relación con los planes de consejería académica y psicológica en pro del bienestar del estudiante y su desarrollo académico, por Programa, Sede, Extensiones y Seccionales a la comunidad estudiantil – Bienestar Universitario / Desarrollo Académico. *Indagar sobre los factores que repercuten a la hora de reprobar alguna asignatura y bajo rendimiento académico por falta de recursos, incentivos e inconvenientes que afectan el desarrollo del cumplimiento de las actividades estimadas para cada Programa académico. *Revisar y analizar los resultados obtenidos en el desarrollo del ejercicio. | G61: Tecnológico: Plataforma digital (enlace de Servicios: Unidad de Apoyo Académico, Aulas Virtuales, Plataforma Institucional en nuestro Portal Web) Líneas telefónicas, Correo electrónico Institucional, Talento Humano (Facultades, Sede, Extensiones y Seccionales). Procedimientos del modelo de operación digital - MARP05 / MARP010 / MARF002 / MARF006 / MARC01 | H61: Diciembre 2020 | I61: Perdida de Calidad de estudiante (no renovación de matricula, sanciones académicas y disciplinarias, motivos graves de salud, promedio acumulado inferior 3.0) | J61: Número de estudiantes que pierden calidad de estudiante / total de estudiantes * 100 | K61: Acreditación | L61: Semestral | M61: 0.3 | P61: MAR-7
E62: Admisiones y Registro | F62: *Actualizar el formulario de inscripción en articulación con la dirección de Sistemas y Tecnología. *Actualizar el instructivo de acompañamiento, paso a paso como guía para el diligenciamiento del formulario de inscripción, en donde se requiere anexar dentro de los datos personales la especificación como estudiante incluyente; publicado en nuestro portal web – Admisiones, haciendo referencia a la Inclusión Educativa. *Solicitar con antelación a la Oficina de Comunicaciones la publicación de las fechas de inscripción y demás procesos que engloba el ingreso a la Universidad. *Guiar a las partes interesadas, vía telefónica, por medio de e-mail, información en general en nuestro sitio web y demás variados canales informativos, con respecto a su proceso de gestión, documentación requerida y pago de su matrícula, efectivamente. *Realizar seguimiento periódico a los estudiantes en condición de discapacidad, inclusión Social y Grupo étnico; con respecto a su rendimiento académico y permanencia en la UDEC, con el apoyo de Bienestar Universitario. *Mantener acompañamiento, social y psicológico de los estudiantes en mención de inclusión educativa, en trabajo conjunto con Bienestar Universitario. | G62: Tecnológico: Plataforma digital - Academusoft (enlace de admisiones en página institucional), red (Acceso a internet) Líneas telefónicas, Talento Humano (administrativo), Correo electrónico institucional, Enlace de Servicios: Unidad de Apoyo Académico, Aulas Virtuales, Plataforma Institucional en nuestro Portal Web Procedimientos del modelo de operación digital - MARP02 / MARP03 / MARC01 | H62: Diciembre 2020 | I62: Condiciones de accesibilidad (inclusión) | J62: Número de aspirantes en condiciones de discapacidad y vulneración matriculados efectivos / total de numero inscritos efectivos (condiciones de discapacidad y vulneración) * 100 | K62: Acreditación | L62: Semestral | M62: 0.9 | P62: MAR-8
E63: Planeación Institucional | F63: Aplicación de encuestas dirigidas a estudiantes, docentes, graduados y administrativos, con el fin de conocer la satisfacción de la comunidad universitaria frente a los servicios ofrecidos y establecer mecanismos institucionales que permitan fortalecer los resultados obtenidos | G63: * Talento Humano que consolide la información y genere las estadísticas necesarias para presentar a la Alta Dirección * Comunicaciones para dar a conocer a la Comunidad Universitaria por medio de la página web, las encuestas de satisfacción | H63: Diciembre 2020 | I63: Medición de satisfacción del cliente | J63: (Total encuestas calificación mayor a 4/Total encuestas) * 100 | K63: Eficacia | L63: Anual | M63: 0.82 | P63: EPI-1
E64: Planeación Institucional | F64: Se realizan los reportes de información poblacional y financiera emitida por la dependencias de la institución, es revisada y consolidada por la Dirección de Planeación Institucional, de manera semestral atendiendo la Resolución No. 19591 de 2017 y la Resolución No. 20434 de 2016 emitidas por Ministerio de Educación Nacional. | G64: Talento Humano que solicite y gestione ante las distintas áreas, la información que se requiere reportar Tecnológicos por medio de plataformas digitales del MEN donde se deben reportar los datos obtenidos por la Institución | H64: Diciembre 2020 | I64: Oportunidad en los Reportes Externos | J64: (# reportes SNIES en la fecha establecida / # Total de reportes SNIES) * 100 | K64: Eficiencia | L64: Semestral | M64: 0.9 | P64: EPI-2
E65: Proyectos Especiales y Relaciones Interinstitucionales | F65: 1. Verificación de los pasos a seguir en el procedimiento Gestión de Convenios Interinstitucionales. 2. Revisión periódica de las páginas SECOP. 3. Revisar y analizar las invitaciones que llegan de otras entidades, con el fin de dar una respuesta efectiva. | G65: Recurso humano dedicado al seguimiento de Convenios y su mejoramiento continuo, Recursos informáticos (Aplicativo CRM para centralizar todas las interacciones de Proyectos Especiales con sus clientes), Información documentada (Procedimientos EPRP01, EPRP02, EPRP03, cronograma de actividades de los contratos, soportes de actividades y evidencias), Infraestructura física. | H65: Diciembre 2020 | I65: Evaluación del No. de alianzas estratégicas mediante convenios empresariales | J65: (No. de alianzas estratégicas mediante convenios empresariales/No. de alianzas estratégicas proyectadas por año) * 100 | K65: Eficiencia | L65: Trimestral | M65: 1 | N65: 0 | O65: 1 | P65: EPR-1
E66: Proyectos Especiales y Relaciones Interinstitucionales | F66: 1. Seguimiento periódico al cronograma de actividades de cada contrato suscrito. 2. Verificación de los informes periódicos elaborados por los cooperantes, por parte de apoyo a la supervisión. | G66: Recurso humano dedicado al seguimiento de Convenios y su mejoramiento continuo, Recursos informáticos (Aplicativo CRM para centralizar todas las interacciones de Proyectos Especiales con sus clientes), Información documentada (Procedimientos EPRP01, EPRP02, EPRP03, cronograma de actividades de los contratos, soportes de actividades y evidencias), Infraestructura física. | H66: Diciembre 2020 | I66: Evaluación del No. de actividades desarrolladas de los contratos suscritos | J66: (No. de actividades desarrolladas de los contratos suscritos en el tiempo planeado/No. Total de actividades planificadas de los contratos suscritos) * 100 | K66: Eficiencia | L66: Trimestral | M66: 1 | N66: 0 | O66: 1 | P66: EPR-2
E67: Control Disciplinario | F67: 1. Emisión de una nueva circular para definir el término de evaluación de la queja. 2. Gestión de la queja a través de los procedimientos SCDP01, SCDP03, SCDP04. 3. Seguimiento mensual a los expedientes. | G67: Recurso humano (Profesionales en derecho) Recursos informáticos (Actualizar el aplicativo de Control Disciplinario, de acuerdo con los requerimientos técnicos del proceso) Información documentada (Procedimientos del proceso SCD, normograma, conceptos jurídicos solicitados a los entes externos) Infraestructura física (Se requiere un espacio adecuado para adelantar las audiencias públicas de los procesos verbales, así como las declaraciones y versiones libres) | H67: Diciembre 2020 | I67: Término para evaluar quejas e informes | J67: (Número de quejas e informes atendidos en el tiempo meta/Número de quejas e informes recepcionados) * 100 | K67: Eficiencia | L67: Trimestral | M67: 0.8 | N67: 0.2 | O67: 1 | P67: SCD-1
E68: Sistemas y Tecnología | F68: Contribuir al frente estratégico ORGANIZACIÓN UNIVERSITARIA DIGITAL realizando constante renovación en los servicios de la plataforma institucional, apoyando a todos los procesos del modelo de operación digital de la universidad, imperando en una sistematización y digitalización de los tramites en la comunidad universitaria en general | G68: - Equipos de computo especializado - Analistas de Sistemas - Desarrolladores de Software - Administrador de Base de Datos - Administrador de infraestructura de servidores - Tester y/o Ingenieros en calidad de Software - Licencias y soporte en las tecnologías utilizadas - Mesa de ayuda - Canal dedicado al ambiente de Desarrollo y Pruebas - Ingenieros de implementación - Capacitación constante en temas relacionados en Desarrollo de Software, Bases de Datos, Calidad de Software y Metodologías de Desarrollo de Software | H68: Diciembre 2020 | I68: Sistemas de Información implementados | J68: Sistemas de Información Implementados | K68: Eficacia | L68: Trimestral | M68: 35 | N68: 8 | O68: 4 | P68: ASI-1
E69: Sistemas Integrados de Gestión | F69: *Elaboración de Cronograma de Mantenimiento por funcionario en Trello *Seguimiento a la ejecución por medio de reuniones periódicas | G69: Talento Humano competente que realice actividades de acompañamiento a los procesos Tecnológicos por medio de la Plataforma SAD para actualización de Documentos e Integradoc para el desarrollo de trámites administrativos Información Documentada por medio de los procedimientos ESGP01, ESGP03, ESGP05 y ESGP07 Financieros a través del Proyecto de Inversión | H69: Diciembre 2020 | I69: Cumplimiento en el cronograma de mantenimiento ISO 9001:2015 | J69: (Total actividades ejecutadas/Total de actividades planificadas) * 100 | K69: Eficacia | L69: Trimestral | M69: 0.95 | N69: 0.63 | O69: 5 | P69: ESG-1
E70: Sistemas Integrados de Gestión | F70: *Distribución de procesos entre los gestores de la oficina de Calidad *Cronograma de Actividades y listado de tareas *Seguimiento a los resultados de la medición | G70: Talento Humano competente que realice actividades de acompañamiento a los procesos Tecnológicos por medio de Integradoc como optimizador de trámites y procesos Información Documentada a través del procedimiento ESP01, ESGP03, ESGP05 y ESGP07 Financieros por medio de caja menor para desplazamientos a Seccionales, Extensiones y Oficina de Bogotá | H70: Diciembre 2020 | I70: Acompañamientos por Proceso | J70: Número de Acompañamientos / Número Total de Procesos | K70: Eficiencia | L70: Trimestral | M70: 7 | N70: 4.8 | O70: 2 | P70: ESG-2
E71: Jurídica | F71: *Acatar las disposiciones del estatuto de contratación de la Universidad de Cundinamarca y demás normas internas complementarias. *Designar las solicitudes a los abogados de forma expedita. *Informar oportunamente al solicitante los resultados de la revisión mediante la plataforma. *Realizar control de las respuestas mediante formato DE SOLICITUD Y SEGUIMIENTO TRAMITES AJUF007. | G71: Tecnológico (plataforma) Talento humano Materiales de papelería Información Documentada: Solicitud y seguimiento trámites - AJUF007 Procedimientos del modelo de operación digital - AJUP01 , estatuto de contratación | H71: Diciembre 2020 | I71: Tiempo de respuesta en término de contratación (OPS) | J71: Total de solicitudes en término de contratación (OPS) contestadas a tiempo / Total de solicitudes en término de contratación (OPS) recibidas | K71: Eficiencia | L71: Semestral | M71: 1 | P71: AJU-3
E72: Jurídica | F72: *Acatar las disposiciones del estatuto de contratación de la Universidad de Cundinamarca y demás normas internas complementarias. *Designar las solicitudes a los abogados de forma expedita. *Informar oportunamente al solicitante los resultados de la revisión mediante la plataforma institucional e INTEGRADOC *Realizar control de las respuestas a través de los reportes de la plataforma y el aplicativo INTEGRADOC. | G72: Tecnológico (plataforma) Talento humano Materiales de papelería Información Documentada: Solicitud y seguimiento trámites - Procedimientos del modelo de operación digital - AJUP06, estatuto de contratación | H72: Diciembre 2020 | I72: Oportunidad de respuesta en solicitudes contractuales (Directa) | J72: # de solicitudes atendidas oportunamente / # de solicitudes recibidas * 100 | K72: Eficiencia | L72: Trimestral | M72: 1 | N72: 0.74 | O72: 2 | P72: AJU-4
E73: Jurídica | F73: *Acatar las disposiciones del estatuto de contratación de la Universidad de Cundinamarca y demás normas internas complementarias. *Designar las solicitudes a los abogados de forma expedita. *Informar oportunamente al solicitante los resultados de la revisión mediante la plataforma institucional e INTEGRADOC *Realizar control de las respuestas a través de los reportes de la plataforma y el aplicativo INTEGRADOC. | G73: Tecnológico (plataforma) Talento humano Materiales de papelería Información Documentada: Solicitud y seguimiento trámites - Procedimientos del modelo de operación digital - AJUP06, estatuto de contratación | H73: Diciembre 2020 | I73: Oportunidad de respuesta en solicitudes contractuales (Publico-Privada) | J73: # de solicitudes atendidas oportunamente / # de solicitudes recibidas * 100 | K73: Eficiencia | L73: Trimestral | M73: 1 | N73: 1 | O73: 4 | P73: AJU-5
E74: Financiera | F74: 1. Realizar consolidad de información de cuentas . 2.Supervision a los resultados de cada corte. 3. generar reporte del indicador | G74: Recursos Humanos (Profesionales asignados), Tecnológicos: software y hardware , Correo electrónico, Herramientas de ofimática, PC, Material de oficina | H74: Diciembre 2020 | I74: Oportunidad en pagos | J74: (Total cuentas pagadas fechas establecidas/total cuentas pagadas) * 100 | K74: Eficiencia | L74: Trimestral | M74: 0.95 | N74: 0.65 | O74: 1 | P74: AFI-1
E75: Financiera | F75: 1. Bases de datos de los beneficiadas. 2. Discriminado de cuotas según el tipo de fraccionamiento. 3. Realizar cruce de la información con la oficina de admisiones y tesorería . 4. Reportar la medición. 5. Se comienza proceso de cobro coactivo. | G75: Recursos Humanos (Profesionales asignados), Tecnológicos: software y hardware, Correo electrónico, Herramientas de ofimática, PC, Material de oficina | H75: Diciembre 2020 | I75: Recuperación de cartera | J75: (Total cartera recuperada/Total cartera por matriculas) * 100 | K75: Eficacia | L75: Semestral | M75: 0.9 | P75: AFI-2
E76: Financiera | F76: 1.Realizar consolidado de facturas pagadas 2.Presentar solicitud de devolución del IVA a l DIAN. 3. Entregar soportes anexos a la solicitud según los requerimientos de la DIAN. 4.Reportar el indicador | G76: Recursos Humanos (Profesionales asignados), Tecnológicos: software y hardware, Correo electrónico, Herramientas de ofimática, PC, Material de oficina | H76: Diciembre 2020 | I76: Recuperación de IVA | J76: Total IVA recuperado/Total IVA cobrado*100 | K76: Eficacia | L76: Bimensual | M76: 0.97 | N76: 0.98 | O76: 5 | P76: AFI-3
E77: Financiera | F77: 1.Realizar consolidado de cuentas para causar 2.Verificar requisitos de pagos. 3.Si cumple, se causa la cuenta. 5 No cumple se devuelve la cuenta al supervisor del contrato. 5.Reportar el indicador | G77: Recursos Humanos, Tecnológicos: software y hardware, Correo electrónico, Herramientas de ofimática, PC, Material de oficina | H77: Diciembre 2020 | I77: Tramites de cuentas para causación | J77: Numero Tramites de cuentas para causación devueltas /Numero Tramites de cuentas para causación *100 | K77: Eficacia | L77: Mensual | M77: 0.2 | N77: 0.37 | O77: 5 | P77: AFI-4
E78: Comunicaciones | F78: Establecimiento de cronogramas de trabajo Asignación de responsabilidad en el equipo de trabajo Seguimiento y medición al indicador de oportunidad de atención a solicitudes | G78: Recursos tecnológicos Recursos financieros (Material P.O.P) Talento Humano (Profesionales) Equipo audiovisual Información documentada (ECOM001, ECOP01) | H78: Diciembre 2020 | I78: Oportunidad de atención a solicitudes (análisis según tipología) | J78: Total de solicitudes atendidas oportunamente / Total de solicitudes * 100 | K78: Eficiencia | L78: Trimestral | M78: 0.8 | N78: 0.91 | O78: 5 | P78: ECO-1
E79: Comunicaciones | F79: Articulación de consenso entre el solicitante y la oficina asesora de comunicaciones con el objetivo de dar trámite a la solicitud Etapa de revisión y aprobación de producción de contenido (gráfico, audiovisual, texto y/o radial) con el usuario previo al cierre de la solicitud generada mediante el SIS Cierre de la solicitud Medición de la satisfacción por parte del usuario | G79: Recursos tecnológicos (Equipos) Equipo audiovisual Talento Humano (Profesionales) Información documentada (ECOM001) Recursos financieros (Material P.O.P) | H79: Diciembre 2020 | I79: Nivel de satisfacción del usuario | J79: Número de solicitudes con calificación buenas y/o excelentes / Número de solicitudes calificadas * 100 | K79: Eficiencia | L79: Trimestral | M79: 0.88 | N79: 0.99 | O79: 5 | P79: ECO-2
E80: Documental | F80: Organización y clasificación del archivo acorde con las TRD cumpliendo con el manual de gestión documental ADOM001 Asignación de responsabilidades en seccionales y extensiones Seguimiento y medición al indicador de oportunidad en la atención de solicitudes | G80: Talento Humano Recursos Electrónicos Información documentada (Registros, oficios, manuales, procedimientos) | H80: Diciembre 2020 | I80: Oportunidad en la atención de solicitudes | J80: Número de solicitudes gestionadas oportunamente / Total de solicitudes * 100 | K80: Eficiencia | L80: Trimestral | M80: 0.8 | N80: 0.73 | O80: 4 | P80: ADO-1
E81: Bienes y Servicios - Compras | F81: Asegurar los criterios necesarios para realizar la Reevaluación de Proveedores de la Universidad de Cundinamarca (ABSF 049 / ABSF084) Coordinar con los Supervisores de Contrato, por medio de la herramienta Integradoc, los seguimientos necesarios a los contratos u Ordenes contractuales, para que oportunamente carguen la respectiva reevaluación de los proveedores en la plataforma | G81: Talento Humano para el cargue de información actualizada en el Banco de Proveedores Documental para la actualización y uso de los formatos de Reevaluación de Proveedores de Servicios y de Bienes Tecnológicos para la consolidación de información en la Base de datos de Proveedores y la presentación de informes a la Alta Dirección | H81: Diciembre 2020 | I81: Reevaluación de proveedores | J81: (Total proveedores calificados mayor a 70/Total proveedores) *100 | K81: Eficacia | L81: Semestral | M81: 0.9 | P81: ABS-3
E82: Bienes y Servicios - Compras | F82: Sistematización y actualización del procedimiento de Contratación Directa Actualizar ABSr097 y su posterior sistematización | G82: Talento Humano que actualice en tiempo real las instancias en las que va el proceso contractual Documental con el fin de mantener la información actualizada de los procesos contractuales Tecnológicos que permitan monitorear la contratación Directa, por medio de INTEGRADOC o la Plataforma Institucional | H82: Diciembre 2020 | I82: Oportunidad de la compra | J82: (Total compras de contratación directa atendidas en tiempo menor a 25 días/Total de compras de contratación directa) * 100 | K82: Eficiencia | L82: Trimestral | M82: 0.8 | N82: 0.83 | O82: 5 | P82: ABS-4
E83: Talento Humano | F83: 1. Identificar necesidad de capacitación. 2. Establecer cronograma de capacitaciones con fechas y responsables. 3. Cumplir con el programa de capacitación vigencia 2019. 4. verificación de cumplimiento de cronograma de actividades. 5. Reportar indicador | G83: Recursos Humanos (Profesionales asignados), Tecnológicos: software y hardware, Correo electrónico, Herramientas de ofimática, PC, Material de oficina | H83: Diciembre 2020 | I83: Cobertura de la capacitación | J83: (Número de personas capacitadas/Número total de empleados) * 100 | K83: Eficacia | L83: Trimestral | M83: 0.4 | N83: 0 | O83: 1 | P83: ATH-1
E84: Talento Humano | F84: 1. Resección de las necesidades de contratación. 2. realizar proceso de contratación. 3. Solicitar a lideres de proceso que realicen al inducción a puestos de trabajo. 4. Recepcionar los registros de inducción al puesto de trabajo. 5. envío de correo electrónico a los lideres del proceso recordando el compromiso que se tiene con este procedimiento. 6. Reportar indicador. | G84: Recursos Humanos (Profesionales asignados), Tecnológicos: software y hardware, Correo electrónico, Herramientas de ofimática, PC, Material de oficina | H84: Diciembre 2020 | I84: Cobertura capacitaciones Puesto de trabajo | J84: (Inducciones realizadas puestos de trabajo/Número de funcionarios vinculados en el periodo) * 100 | K84: Eficacia | L84: Semestral | M84: 0.9 | P84: ATH-2
E85: Talento Humano(SG-SST) | F85: 1. Verificar cumplimiento plan de trabajo SST 2. Garantizando que antes de la contratación la persona realice esta actividad. 3. Verificar en plataforma la realización de la inducción. 4. Validar datos en plataforma. 5 Reportar indicador. | G85: Recursos Humanos (Profesionales asignados),Tecnológicos: software y hardware, Correo electrónico, Herramientas de ofimática, PC, Material de oficina | H85: Diciembre 2020 | I85: Cumplimiento Plan de Trabajo anual de SST. | J85: Actividades realizadas/ actividades programadas *100 | K85: Eficacia | L85: Trimestral | M85: 0.9 | N85: 0.33 | O85: 5 | P85: ATH-4
E86: Talento Humano(SG-SST) | F86: 1. Verificar solicitudes de publicación de campañas. 2. Garantizando que antes de la contratación la persona realice esta actividad. 3. Verificar en plataforma la realización de la inducción. 4. Validar datos en plataforma. 5 Reportar indicador. | G86: Recursos Humanos (Profesionales asignados), Tecnológicos: software y hardware, Correo electrónico, Herramientas de ofimática, PC, Material de oficina | H86: Diciembre 2020 | I86: proyección de publicación campañas anuales | J86: Proyección de publicación campañas anuales | K86: Eficacia | L86: Semestral | M86: 5 | P86: ATH-5
E87: Control Interno | F87: 1. Envío de pre informes de auditoria. 2. Recepción de Controversia si aplica durante los 2 días siguientes a la entrega del pre informe. 3. Determinar si se presentaron controversias. 4.Relacionar numero de controversias. 5.Reportar indicador. | G87: Recursos Humanos (Profesionales asignados), Tecnológicos: software y hardware, Correo electrónico, Herramientas de ofimática, PC, Material de oficina | H87: Diciembre 2020 | I87: Controversias resultantes de auditoría | J87: (Número de controversias aceptadas*objetividad de criterios/Total de controversias presentadas) * 100 | K87: Eficiencia | L87: Semestral | M87: 0.2 | P87: SCI-3
E88: Control Interno | F88: 1. Dar cumplimiento a los tiempos establecidos para entregar Pre Informe (15 días) 2. Estimar tiempos de entrega de per Informes. Reportar Indicador. | G88: Recursos Humanos (Profesionales asignados), Tecnológicos, Correo electrónico, Herramientas de ofimática, PC, Material de oficina | H88: Diciembre 2020 | I88: Oportunidad en la entrega de pre- informes de auditoria | J88: Informes de auditoria entregados a tiempo/Total procesos auditados | K88: Eficiencia | L88: Semestral | M88: 0.9 | P88: SCI-6
E89: Servicio de Atención al Ciudadano | F89: *Recepcionar las PQRS por parte de la comunidad general. *Tramitar las PQRS recibidas, designándolas a cada responsable. *Enviar alertas a los funcionarios a través del aplicativo SAIC (parametrizado por la Oficina de Servicio de Atención al Ciudadano) *Notificar a los funcionarios cada tercer día vía correo electrónico, recordándoles que tienen pendientes solicitudes por contestar. *Enviar cuadros de seguimiento vía correo electrónico a los funcionarios responsables. | G89: Tecnológico- Software (plataforma SAIC) Correo electrónico Talento Humano, información documentada, procedimiento modelo de operación digital (SACP01 - SACP02) | H89: Diciembre 2020 | I89: Control de Términos a las PQR | J89: (Total PQR con ampliación de términos/Total PQR atendidas)*100 | K89: Eficiencia | L89: Trimestral | M89: 0.1 | N89: 0.1 | O89: 4 | P89: SAC-1
E90: Servicio de Atención al Ciudadano | F90: *Recepcionar las PQRS por parte de la comunidad general. *Tramitar las PQRS recibidas, designándolas a cada responsable. *Descargar reporte general de las PQRS trimestralmente. Realizar análisis desde los reportes generados desde el aplicativo SAIC de las PQRS | G90: Tecnológico- Software (plataforma SAIC) Correo electrónico Talento Humano, información documentada, procedimiento modelo de operación digital (SACP01 - SACP02) Informes trimestrales | H90: Diciembre 2020 | I90: Disminución de causas de las PQRS | J90: Número de causas de PQRS que disminuyeron en su recurrencia en el periodo igual al de la vigencia anterior / Total causas de las PQRS recibidas y analizadas * 100 | K90: Eficacia | L90: Trimestral | M90: 0.3 | N90: 0.38 | O90: 5 | P90: SAC-2
E91: Servicio de Atención al Ciudadano | F91: *Recepcionar las PQRS por parte de la comunidad general. *Tramitar las PQRS recibidas, designándolas a cada responsable. *Descargar reporte general de las PQRS trimestralmente. Realizar análisis desde los reportes generados desde el aplicativo SAIC de las PQRS | G91: Tecnológico- Software (plataforma SAIC) Correo electrónico Talento Humano, información documentada, procedimiento modelo de operación digital (SACP01 - SACP02) Informes trimestrales | H91: Diciembre 2020 | I91: Disminución de quejas sobre las oficinas, facultades y programas académicos | J91: N° de quejas que disminuyeron frente a las oficinas, facultades y/o programas académicos en relación al periodo igual de la vigencia anterior / Total de quejas recibidas y analizadas * 100 | K91: Eficacia | L91: Trimestral | M91: 0.3 | N91: 0.25 | O91: 2 | P91: SAC-3
E92: Institucionales | F92: Semestralmente se realizan seguimientos al plan operativo anual de inversiones, con respecto a 3 fuentes de información certificaciones emitidas por el banco de proyectos, CDP y RP, este seguimiento se socializa vía correo electrónico con el rector, vicerrectores, secretaria general y con los órganos consultivos que los requieran | G92: Comunicación, para la gestión mediante la pagina web, Mantenimiento de la plataforma Institucional, Talento Humano para el análisis de información | H92: Diciembre 2020 | I92: Cumplimiento ejecución presupuestal POAI | J92: (Vr. Total ejecutado / Vr. Total Proyectos)*100 | K92: Eficacia | L92: Semestral | M92: 0.6 | P92: INS-1
D93: 7. Garantizar la mejora continua a través de la gestión de los riesgos y las oportunidades en la Universidad de Cundinamarca. | E93: Institucionales | F93: 1. Reportes de aplicativo de control interno. 2. Matriz de seguimiento planes de mejoramiento contraloría. 3. Reporte de Indicadores | G93: Recursos Humanos (Profesionales asignados), Tecnológicos: software y hardware, Correo electrónico, Herramientas de ofimática, PC, Material de oficina | H93: Diciembre 2020 | I93: Nivel de mejoramiento | J93: Mejoras cerradas/Total de mejoras por proceso | L93: Trimestral | M93: 0.8 | N93: 0.55 | O93: 1 | P93: INS-2
E94: Institucionales | F94: 1. Realizar seguimiento a los Riesgos identificados en los procesos 2. Resultado de los seguimientos a los controles establecidos 3. Reportar el Indicador | G94: Recursos Humanos (Profesionales asignados), Tecnológicos: software y hardware, Correo electrónico, Herramientas de ofimática, PC, Material de oficina | H94: Diciembre 2020 | I94: Eficacia en el control de riesgos | J94: No. de riesgos residuales (A - E) residuales operativos institucionales controlados/Total de riesgos Altos y Extremos residuales operativos institucionales | K94: Eficacia | L94: Semestral | M94: 0.4 | P94: INS-5
E95: Institucionales | F95: *Determinación de indicadores por proceso *Recolección y consolidación de resultados *Presentación de resultados ante entes colegiados *Reporte a Control Interno para tomar acciones que se requieran | G95: Talento Humano competente para la consolidación de información Tecnológico para análisis de datos y gestión de gráficos Información Documentada por parte de los procesos como soporte a las mediciones realizadas | H95: Diciembre 2020 | I95: Cumplimiento en indicadores | J95: (Sumatoria de los niveles de cumplimiento de los indicadores de los procesos/Máximo nivel de cumplimiento) *100 | K95: Eficacia | L95: Semestral | M95: 0.8 | P95: INS-4

Sheet EPI-1
B2: REGRESAR
E5: MACROPROCESO ESTRATÉGICO | M5: CÓDIGO: ESGr027
E6: PROCESO GESTIÓN SISTEMAS INTEGRADOS | M6: VERSIÓN: 7
E7: MATRIZ DE MEDICIÓN Y SEGUIMIENTO A LOS PROCESOS DE GESTIÓN | M7: VIGENCIA: 2020-03-31
M8: PÁGINA: 1 de 1
C10: FICHA DE INDICADOR
C12: MACROPROCESO | E12: Estratégico | I12: NOMBRE DEL INDICADOR | K12: Medición de satisfacción del cliente
C13: PROCESO GESTIÓN | E13: Planeación Institucional
C14: RESPONSABLE DE MEDICIÓN | E14: Director de Planeación Institucional
C16: 1. COMPORTAMIENTO DE INDICADOR
C17: CLASIFICACIÓN DE LA MEDICIÓN | E17: 1 | H17: TIPO DE INDICADOR | J17: Eficacia | L17: META ANUAL | N17: 0.82
C18: FORMULA | E18: NUMERADOR | G18: # Total encuestas con calificación mayor a 4 | L18: UNIDAD DE MEDIDA | N18: Porcentual
E19: DENOMINADOR | G19: (# Total encuestas) * 100
C20: TENDENCIA | E20: Positiva | H20: NIVEL DE SEGREGACIÓN * | J20: No Aplica | L20: ESCALA
L21: Deficiente | M21: Aceptable | N21: Bueno | O21: Excelente
L22: 0 - 59,9% | M22: 60% - 69,9% | N22: 70% - 82% | O22: 82,1% - 100%
C23: ORIGEN DE DATOS NUMERADOR | E23: Encuestas Satisfacción al Cliente | H23: FRECUENCIA DE LA MEDICIÓN | J23: ANUAL | L23: FRECUENCIA DE RESULTADO | N23: ANUAL
C24: ORIGEN DE DATOS DENOMINADOR | E24: Encuestas Satisfacción al Cliente
C26: RESULTADOS
J27: ANÁLISIS DE DATOS
J34: ACCIÓN FORMULADA
J41: RESPONSABLE
J42: =E14 -> Director de Planeación Institucional
C45: PERIODO DE EVALUACIÓN
C46: MES | D46: =IF(J23="MENSUAL","ENERO",IF(J23="TRIMESTRAL","MARZO",IF(J23="SEMESTRAL","JUNIO",IF(J23="ANUAL",YEAR(TODAY()),"")))) -> 2020 | E46: =IF(J23="MENSUAL","FEBRERO",IF(J23="TRIMESTRAL","JUNIO",IF(J23="SEMESTRAL","DICIEMBRE",""))) ->  | F46: =IF(J23="MENSUAL","MARZO",IF(J23="TRIMESTRAL","SEPTIEMBRE","")) ->  | G46: =IF(J23="MENSUAL","ABRIL",IF(J23="TRIMESTRAL","DICIEMBRE","")) ->  | H46: =IF(J23="MENSUAL","MAYO","") ->  | I46: =IF(J23="MENSUAL","JUNIO","") ->  | J46: =IF(J23="MENSUAL","JULIO","") ->  | K46: =IF(J23="MENSUAL","AGOSTO","") ->  | L46: =IF(J23="MENSUAL","SEPTIEMBRE","") ->  | M46: =IF(J23="MENSUAL","OCTUBRE","") ->  | N46: =IF(J23="MENSUAL","NOVIEMBRE","") ->  | O46: =IF(J23="MENSUAL","DICIEMBRE","") -> 
C47: =G18 -> # Total encuestas con calificación mayor a 4
C48: =G19 -> (# Total encuestas) * 100
C49: VALOR | D49: =IFERROR(IF($E$17=1,D47/D48,IF($E$17=2,D47,"")),"") ->  | E49: =IFERROR(IF($E$17=1,E47/E48,IF($E$17=2,E47,"")),"") -> 
C50: META PONDERADA | D50: =IF(AND(N23="ANUAL",J23="MENSUAL"),N17/12,IF(AND(N23="ANUAL",J23="TRIMESTRAL"),N17/4,IF(AND(N23="ANUAL",J23="SEMESTRAL"),N17/2,IF(AND(N23="ANUAL",J23="ANUAL"),N17,IF(AND(N23="SEMESTRAL",J23="MENSUAL"),N17/6,IF(AND(N23="SEMESTRAL",J23="TRIMESTRAL"),N17/2,IF(AND(N23="SEMESTRAL",J23="SEMESTRAL"),N17,IF(AND(N23="SEMESTRAL",J23="ANUAL"),"REVISAR FRECUENCIAS",IF(AND(N23="TRIMESTRAL",J23="MENSUAL"),N17/3,IF(AND(N23="TRIMESTRAL",J23="TRIMESTRAL"),N17,IF(AND(N23="TRIMESTRAL",J23="SEMESTRAL"),"REVISAR FRECUENCIAS",IF(AND(N23="TRIMESTRAL",J23="ANUAL"),"REVISAR FRECUENCIAS",IF(AND(N23="MENSUAL",J23="MENSUAL"),N17,IF(AND(N23="MENSUAL",J23="TRIMESTRAL"),"REVISAR FRECUENCIAS",IF(AND(N23="MENSUAL",J23="SEMESTRAL"),"REVISAR FRECUENCIAS",IF(AND(N23="MENSUAL",J23="ANUAL"),"REVISAR FRECUENCIAS","")))))))))))))))) -> 0.82 | E50: =IF(AND(N23="ANUAL",J23="MENSUAL"),N17/12+D50,IF(AND(N23="ANUAL",J23="TRIMESTRAL"),N17/4+D50,IF(AND(N23="ANUAL",J23="SEMESTRAL"),N17/2+D50,IF(AND(N23="SEMESTRAL",J23="MENSUAL"),N17/6+D50,IF(AND(N23="SEMESTRAL",J23="TRIMESTRAL"),N17/2+D50,IF(AND(N23="SEMESTRAL",J23="SEMESTRAL"),N17,IF(AND(N23="TRIMESTRAL",J23="MENSUAL"),N17/3+D50,IF(AND(N23="TRIMESTRAL",J23="TRIMESTRAL"),N17,IF(AND(N23="MENSUAL",J23="MENSUAL"),N17,""))))))))) ->  | F50: =IF(AND(N23="ANUAL",J23="MENSUAL"),N17/12+E50,IF(AND(N23="ANUAL",J23="TRIMESTRAL"),N17/4+E50,IF(AND(N23="SEMESTRAL",J23="MENSUAL"),N17/6+E50,IF(AND(N23="SEMESTRAL",J23="TRIMESTRAL"),N17/2,IF(AND(N23="TRIMESTRAL",J23="MENSUAL"),N17/3+E50,IF(AND(N23="TRIMESTRAL",J23="TRIMESTRAL"),N17,IF(AND(N23="MENSUAL",J23="MENSUAL"),N17,""))))))) ->  | G50: =IF(AND(N23="ANUAL",J23="MENSUAL"),N17/12+F50,IF(AND(N23="ANUAL",J23="TRIMESTRAL"),N17/4+F50,IF(AND(N23="SEMESTRAL",J23="MENSUAL"),N17/6+F50,IF(AND(N23="SEMESTRAL",J23="TRIMESTRAL"),N17/2+F50,IF(AND(N23="TRIMESTRAL",J23="MENSUAL"),N17/3,IF(AND(N23="TRIMESTRAL",J23="TRIMESTRAL"),N17,IF(AND(N23="MENSUAL",J23="MENSUAL"),N17,""))))))) ->  | H50: =IF(AND($N$23="ANUAL",$J$23="MENSUAL"),$N$17/12+G50,IF(AND(N23="SEMESTRAL",J23="MENSUAL"),N17/6+G50,IF(AND(N23="TRIMESTRAL",J23="MENSUAL"),N17/3+G50,IF(AND(N23="MENSUAL",J23="MENSUAL"),N17,"")))) ->  | I50: =IF(AND($N$23="ANUAL",$J$23="MENSUAL"),$N$17/12+H50,IF(AND(N23="SEMESTRAL",J23="MENSUAL"),N17/6+H50,IF(AND(N23="TRIMESTRAL",J23="MENSUAL"),N17/3+H50,IF(AND(N23="MENSUAL",J23="MENSUAL"),N17,"")))) ->  | J50: =IF(AND($N$23="ANUAL",$J$23="MENSUAL"),$N$17/12+I50,IF(AND(N23="SEMESTRAL",J23="MENSUAL"),N17/6,IF(AND(N23="TRIMESTRAL",J23="MENSUAL"),N17/3,IF(AND(N23="MENSUAL",J23="MENSUAL"),N17,"")))) ->  | K50: =IF(AND($N$23="ANUAL",$J$23="MENSUAL"),$N$17/12+J50,IF(AND(N23="SEMESTRAL",J23="MENSUAL"),N17/6+J50,IF(AND(N23="TRIMESTRAL",J23="MENSUAL"),N17/3+J50,IF(AND(N23="MENSUAL",J23="MENSUAL"),N17,"")))) ->  | L50: =IF(AND($N$23="ANUAL",$J$23="MENSUAL"),$N$17/12+K50,IF(AND(N23="SEMESTRAL",J23="MENSUAL"),N17/6+K50,IF(AND(N23="TRIMESTRAL",J23="MENSUAL"),N17/3+K50,IF(AND(N23="MENSUAL",J23="MENSUAL"),N17,"")))) ->  | M50: =IF(AND($N$23="ANUAL",$J$23="MENSUAL"),$N$17/12+L50,IF(AND(N23="SEMESTRAL",J23="MENSUAL"),N17/6+L50,IF(AND(N23="TRIMESTRAL",J23="MENSUAL"),N17/3,IF(AND(N23="MENSUAL",J23="MENSUAL"),N17,"")))) ->  | N50: =IF(AND($N$23="ANUAL",$J$23="MENSUAL"),$N$17/12+M50,IF(AND(N23="SEMESTRAL",J23="MENSUAL"),N17/6+M50,IF(AND(N23="TRIMESTRAL",J23="MENSUAL"),N17/3+M50,IF(AND(N23="MENSUAL",J23="MENSUAL"),N17,"")))) ->  | O50: =IF(AND($N$23="ANUAL",$J$23="MENSUAL"),$N$17/12+N50,IF(AND(N23="SEMESTRAL",J23="MENSUAL"),N17/6+N50,IF(AND(N23="TRIMESTRAL",J23="MENSUAL"),N17/3+N50,IF(AND(N23="MENSUAL",J23="MENSUAL"),N17,"")))) -> 
C52: NIVEL DE SEGREGACIÓN *
C53: UNIDAD SEGREGADA (Ej. Facultad, Programa Académico, Área) | G53: RESULTADO | K53: ANALISIS DE DATOS SEGREGADO
G72: Estratégico | J72: Eficacia
G73: Misional | J73: Eficiencia
G74: Apoyo | J74: Acreditación
G75: Seguimiento, Medición, Análisis y Evaluación | J75: Positiva
G76: Direccionamiento Estratégico | J76: Negativa
G77: Planeación Institucional | J77: Por Unidad Regional
G78: Proyectos Especiales y Relaciones Interinstitucionales | J78: Por Facultad
G79: Sistemas Integrados | J79: Por Programa Académico
G80: Autoevaluación y Acreditación | J80: Por área
G81: Comunicaciones | J81: Por Laboratorio
G82: Formación y Aprendizaje | J82: Otros
G83: Ciencia, Tecnología e Innovación | J83: No Aplica
G84: Interacción Social Universitaria
G85: Bienestar Universitario
G86: Admisiones y Registro
G87: Graduados
G88: Dialogando con el Mundo
G89: Talento Humano
G90: Jurídica
G91: Financiera
G92: Sistemas y Tecnología
G93: Bienes y Servicios
G94: Documental
G95: Apoyo Académico
G96: Control Interno
G97: Control Disciplinario
G98: Servicio de Atención al Ciudadano

Sheet EPI-2
B2: REGRESAR
E5: MACROPROCESO ESTRATÉGICO | M5: CÓDIGO: ESGr027
E6: PROCESO GESTIÓN SISTEMAS INTEGRADOS | M6: VERSIÓN: 7
E7: MATRIZ DE MEDICIÓN Y SEGUIMIENTO A LOS PROCESOS DE GESTIÓN | M7: VIGENCIA: 2020-03-31
M8: PÁGINA: 1 de 1
C10: FICHA DE INDICADOR
C12: MACROPROCESO | E12: Estratégico | I12: NOMBRE DEL INDICADOR | K12: Oportunidad en los Reportes Externos
C13: PROCESO GESTIÓN | E13: Planeación Institucional
C14: RESPONSABLE DE MEDICIÓN | E14: Director de Planeación Institucional
C16: 1. COMPORTAMIENTO DE INDICADOR
C17: CLASIFICACIÓN DE LA MEDICIÓN | E17: 1 | H17: TIPO DE INDICADOR | J17: Eficiencia | L17: META ANUAL | N17: 0.9
C18: FORMULA | E18: NUMERADOR | G18: # reportes SNIES en la fecha establecida | L18: UNIDAD DE MEDIDA | N18: Porcentual
E19: DENOMINADOR | G19: (# Total de reportes SNIES) * 100
C20: TENDENCIA | E20: Positiva | H20: NIVEL DE SEGREGACIÓN * | J20: No Aplica | L20: ESCALA
L21: Deficiente | M21: Aceptable | N21: Bueno | O21: Excelente
L22: 0 - 59,9% | M22: 60% - 79,9% | N22: 80% - 90% | O22: 90,1% - 100%
C23: ORIGEN DE DATOS NUMERADOR | E23: Reportes SNIES por sistema | H23: FRECUENCIA DE LA MEDICIÓN | J23: SEMESTRAL | L23: FRECUENCIA DE RESULTADO | N23: SEMESTRAL
C24: ORIGEN DE DATOS DENOMINADOR | E24: Reportes SNIES por sistema
C26: RESULTADOS
J27: ANÁLISIS DE DATOS
J34: ACCIÓN FORMULADA
J41: RESPONSABLE
J42: =E14 -> Director de Planeación Institucional
C45: PERIODO DE EVALUACIÓN
C46: MES | D46: =IF(J23="MENSUAL","ENERO",IF(J23="TRIMESTRAL","MARZO",IF(J23="SEMESTRAL","JUNIO",IF(J23="ANUAL",YEAR(TODAY()),"")))) -> JUNIO | E46: =IF(J23="MENSUAL","FEBRERO",IF(J23="TRIMESTRAL","JUNIO",IF(J23="SEMESTRAL","DICIEMBRE",""))) -> DICIEMBRE | F46: =IF(J23="MENSUAL","MARZO",IF(J23="TRIMESTRAL","SEPTIEMBRE","")) ->  | G46: =IF(J23="MENSUAL","ABRIL",IF(J23="TRIMESTRAL","DICIEMBRE","")) ->  | H46: =IF(J23="MENSUAL","MAYO","") ->  | I46: =IF(J23="MENSUAL","JUNIO","") ->  | J46: =IF(J23="MENSUAL","JULIO","") ->  | K46: =IF(J23="MENSUAL","AGOSTO","") ->  | L46: =IF(J23="MENSUAL","SEPTIEMBRE","") ->  | M46: =IF(J23="MENSUAL","OCTUBRE","") ->  | N46: =IF(J23="MENSUAL","NOVIEMBRE","") ->  | O46: =IF(J23="MENSUAL","DICIEMBRE","") -> 
C47: =G18 -> # reportes SNIES en la fecha establecida
C48: =G19 -> (# Total de reportes SNIES) * 100
C49: VALOR | D49: =IFERROR(IF($E$17=1,D47/D48,IF($E$17=2,D47,"")),"") ->  | E49: =IFERROR(IF($E$17=1,E47/E48,IF($E$17=2,E47,"")),"") -> 
C50: META PONDERADA | D50: =IF(AND(N23="ANUAL",J23="MENSUAL"),N17/12,IF(AND(N23="ANUAL",J23="TRIMESTRAL"),N17/4,IF(AND(N23="ANUAL",J23="SEMESTRAL"),N17/2,IF(AND(N23="ANUAL",J23="ANUAL"),N17,IF(AND(N23="SEMESTRAL",J23="MENSUAL"),N17/6,IF(AND(N23="SEMESTRAL",J23="TRIMESTRAL"),N17/2,IF(AND(N23="SEMESTRAL",J23="SEMESTRAL"),N17,IF(AND(N23="SEMESTRAL",J23="ANUAL"),"REVISAR FRECUENCIAS",IF(AND(N23="TRIMESTRAL",J23="MENSUAL"),N17/3,IF(AND(N23="TRIMESTRAL",J23="TRIMESTRAL"),N17,IF(AND(N23="TRIMESTRAL",J23="SEMESTRAL"),"REVISAR FRECUENCIAS",IF(AND(N23="TRIMESTRAL",J23="ANUAL"),"REVISAR FRECUENCIAS",IF(AND(N23="MENSUAL",J23="MENSUAL"),N17,IF(AND(N23="MENSUAL",J23="TRIMESTRAL"),"REVISAR FRECUENCIAS",IF(AND(N23="MENSUAL",J23="SEMESTRAL"),"REVISAR FRECUENCIAS",IF(AND(N23="MENSUAL",J23="ANUAL"),"REVISAR FRECUENCIAS","")))))))))))))))) -> 0.9 | E50: =IF(AND(N23="ANUAL",J23="MENSUAL"),N17/12+D50,IF(AND(N23="ANUAL",J23="TRIMESTRAL"),N17/4+D50,IF(AND(N23="ANUAL",J23="SEMESTRAL"),N17/2+D50,IF(AND(N23="SEMESTRAL",J23="MENSUAL"),N17/6+D50,IF(AND(N23="SEMESTRAL",J23="TRIMESTRAL"),N17/2+D50,IF(AND(N23="SEMESTRAL",J23="SEMESTRAL"),N17,IF(AND(N23="TRIMESTRAL",J23="MENSUAL"),N17/3+D50,IF(AND(N23="TRIMESTRAL",J23="TRIMESTRAL"),N17,IF(AND(N23="MENSUAL",J23="MENSUAL"),N17,""))))))))) -> 0.9 | F50: =IF(AND(N23="ANUAL",J23="MENSUAL"),N17/12+E50,IF(AND(N23="ANUAL",J23="TRIMESTRAL"),N17/4+E50,IF(AND(N23="SEMESTRAL",J23="MENSUAL"),N17/6+E50,IF(AND(N23="SEMESTRAL",J23="TRIMESTRAL"),N17/2,IF(AND(N23="TRIMESTRAL",J23="MENSUAL"),N17/3+E50,IF(AND(N23="TRIMESTRAL",J23="TRIMESTRAL"),N17,IF(AND(N23="MENSUAL",J23="MENSUAL"),N17,""))))))) ->  | G50: =IF(AND(N23="ANUAL",J23="MENSUAL"),N17/12+F50,IF(AND(N23="ANUAL",J23="TRIMESTRAL"),N17/4+F50,IF(AND(N23="SEMESTRAL",J23="MENSUAL"),N17/6+F50,IF(AND(N23="SEMESTRAL",J23="TRIMESTRAL"),N17/2+F50,IF(AND(N23="TRIMESTRAL",J23="MENSUAL"),N17/3,IF(AND(N23="TRIMESTRAL",J23="TRIMESTRAL"),N17,IF(AND(N23="MENSUAL",J23="MENSUAL"),N17,""))))))) ->  | H50: =IF(AND($N$23="ANUAL",$J$23="MENSUAL"),$N$17/12+G50,IF(AND(N23="SEMESTRAL",J23="MENSUAL"),N17/6+G50,IF(AND(N23="TRIMESTRAL",J23="MENSUAL"),N17/3+G50,IF(AND(N23="MENSUAL",J23="MENSUAL"),N17,"")))) ->  | I50: =IF(AND($N$23="ANUAL",$J$23="MENSUAL"),$N$17/12+H50,IF(AND(N23="SEMESTRAL",J23="MENSUAL"),N17/6+H50,IF(AND(N23="TRIMESTRAL",J23="MENSUAL"),N17/3+H50,IF(AND(N23="MENSUAL",J23="MENSUAL"),N17,"")))) ->  | J50: =IF(AND($N$23="ANUAL",$J$23="MENSUAL"),$N$17/12+I50,IF(AND(N23="SEMESTRAL",J23="MENSUAL"),N17/6,IF(AND(N23="TRIMESTRAL",J23="MENSUAL"),N17/3,IF(AND(N23="MENSUAL",J23="MENSUAL"),N17,"")))) ->  | K50: =IF(AND($N$23="ANUAL",$J$23="MENSUAL"),$N$17/12+J50,IF(AND(N23="SEMESTRAL",J23="MENSUAL"),N17/6+J50,IF(AND(N23="TRIMESTRAL",J23="MENSUAL"),N17/3+J50,IF(AND(N23="MENSUAL",J23="MENSUAL"),N17,"")))) ->  | L50: =IF(AND($N$23="ANUAL",$J$23="MENSUAL"),$N$17/12+K50,IF(AND(N23="SEMESTRAL",J23="MENSUAL"),N17/6+K50,IF(AND(N23="TRIMESTRAL",J23="MENSUAL"),N17/3+K50,IF(AND(N23="MENSUAL",J23="MENSUAL"),N17,"")))) ->  | M50: =IF(AND($N$23="ANUAL",$J$23="MENSUAL"),$N$17/12+L50,IF(AND(N23="SEMESTRAL",J23="MENSUAL"),N17/6+L50,IF(AND(N23="TRIMESTRAL",J23="MENSUAL"),N17/3,IF(AND(N23="MENSUAL",J23="MENSUAL"),N17,"")))) ->  | N50: =IF(AND($N$23="ANUAL",$J$23="MENSUAL"),$N$17/12+M50,IF(AND(N23="SEMESTRAL",J23="MENSUAL"),N17/6+M50,IF(AND(N23="TRIMESTRAL",J23="MENSUAL"),N17/3+M50,IF(AND(N23="MENSUAL",J23="MENSUAL"),N17,"")))) ->  | O50: =IF(AND($N$23="ANUAL",$J$23="MENSUAL"),$N$17/12+N50,IF(AND(N23="SEMESTRAL",J23="MENSUAL"),N17/6+N50,IF(AND(N23="TRIMESTRAL",J23="MENSUAL"),N17/3+N50,IF(AND(N23="MENSUAL",J23="MENSUAL"),N17,"")))) -> 
C52: NIVEL DE SEGREGACIÓN *
C53: UNIDAD SEGREGADA (Ej. Facultad, Programa Académico, Área) | G53: RESULTADO | K53: ANALISIS DE DATOS SEGREGADO
G72: Estratégico | J72: Eficacia
G73: Misional | J73: Eficiencia
G74: Apoyo | J74: Acreditación
G75: Seguimiento, Medición, Análisis y Evaluación | J75: Positiva
G76: Direccionamiento Estratégico | J76: Negativa
G77: Planeación Institucional | J77: Por Unidad Regional
G78: Proyectos Especiales y Relaciones Interinstitucionales | J78: Por Facultad
G79: Sistemas Integrados | J79: Por Programa Académico
G80: Autoevaluación y Acreditación | J80: Por área
G81: Comunicaciones | J81: Por Laboratorio
G82: Formación y Aprendizaje | J82: Otros
G83: Ciencia, Tecnología e Innovación | J83: No Aplica
G84: Interacción Social Universitaria
G85: Bienestar Universitario
G86: Admisiones y Registro
G87: Graduados
G88: Dialogando con el Mundo
G89: Talento Humano
G90: Jurídica
G91: Financiera
G92: Sistemas y Tecnología
G93: Bienes y Servicios
G94: Documental
G95: Apoyo Académico
G96: Control Interno
G97: Control Disciplinario
G98: Servicio de Atención al Ciudadano

Sheet EPI-3
B2: REGRESAR
E5: MACROPROCESO ESTRATÉGICO | M5: CÓDIGO: ESGr027
E6: PROCESO GESTIÓN SISTEMAS INTEGRADOS | M6: VERSIÓN: 7
E7: MATRIZ DE MEDICIÓN Y SEGUIMIENTO A LOS PROCESOS DE GESTIÓN | M7: VIGENCIA: 2020-03-31
M8: PÁGINA: 1 de 1
C10: FICHA DE INDICADOR
C12: MACROPROCESO | E12: Estratégico | I12: NOMBRE DEL INDICADOR | K12: Cumplimiento del desempeño, evaluación y seguimiento a los documentos estratégicos
C13: PROCESO GESTIÓN | E13: Planeación Institucional
C14: RESPONSABLE DE MEDICIÓN | E14: Director de Planeación Institucional
C16: 1. COMPORTAMIENTO DE INDICADOR
C17: CLASIFICACIÓN DE LA MEDICIÓN | E17: 1 | H17: TIPO DE INDICADOR | J17: Eficacia | L17: META ANUAL | N17: 0.9
C18: FORMULA | E18: NUMERADOR | G18: (% de Cumplimiento acumulado del Plan de Acción) * 100 | L18: UNIDAD DE MEDIDA | N18: Porcentual
E19: DENOMINADOR | G19: % Esperado de Plan de Acción
C20: TENDENCIA | E20: Positiva | H20: NIVEL DE SEGREGACIÓN * | J20: Otros | L20: ESCALA
L21: Deficiente | M21: Aceptable | N21: Bueno | O21: Excelente
L22: 0 - 59,9% | M22: 60% - 79,9% | N22: 80% - 90% | O22: 90,1% - 100%
C23: ORIGEN DE DATOS NUMERADOR | E23: Informe seguimiento Plan de Acción | H23: FRECUENCIA DE LA MEDICIÓN | J23: SEMESTRAL | L23: FRECUENCIA DE RESULTADO | N23: SEMESTRAL
C24: ORIGEN DE DATOS DENOMINADOR | E24: Documento Plan de acción
C26: RESULTADOS
J27: ANÁLISIS DE DATOS
J34: ACCIÓN FORMULADA
J41: RESPONSABLE
J42: =E14 -> Director de Planeación Institucional
C45: PERIODO DE EVALUACIÓN
C46: MES | D46: =IF(J23="MENSUAL","ENERO",IF(J23="TRIMESTRAL","MARZO",IF(J23="SEMESTRAL","JUNIO",IF(J23="ANUAL",YEAR(TODAY()),"")))) -> JUNIO | E46: =IF(J23="MENSUAL","FEBRERO",IF(J23="TRIMESTRAL","JUNIO",IF(J23="SEMESTRAL","DICIEMBRE",""))) -> DICIEMBRE | F46: =IF(J23="MENSUAL","MARZO",IF(J23="TRIMESTRAL","SEPTIEMBRE","")) ->  | G46: =IF(J23="MENSUAL","ABRIL",IF(J23="TRIMESTRAL","DICIEMBRE","")) ->  | H46: =IF(J23="MENSUAL","MAYO","") ->  | I46: =IF(J23="MENSUAL","JUNIO","") ->  | J46: =IF(J23="MENSUAL","JULIO","") ->  | K46: =IF(J23="MENSUAL","AGOSTO","") ->  | L46: =IF(J23="MENSUAL","SEPTIEMBRE","") ->  | M46: =IF(J23="MENSUAL","OCTUBRE","") ->  | N46: =IF(J23="MENSUAL","NOVIEMBRE","") ->  | O46: =IF(J23="MENSUAL","DICIEMBRE","") -> 
C47: =G18 -> (% de Cumplimiento acumulado del Plan de Acción) * 100
C48: =G19 -> % Esperado de Plan de Acción
C49: VALOR | D49: =IFERROR(IF($E$17=1,D47/D48,IF($E$17=2,D47,"")),"") ->  | E49: =IFERROR(IF($E$17=1,E47/E48,IF($E$17=2,E47,"")),"") -> 
C50: META PONDERADA | D50: =IF(AND(N23="ANUAL",J23="MENSUAL"),N17/12,IF(AND(N23="ANUAL",J23="TRIMESTRAL"),N17/4,IF(AND(N23="ANUAL",J23="SEMESTRAL"),N17/2,IF(AND(N23="ANUAL",J23="ANUAL"),N17,IF(AND(N23="SEMESTRAL",J23="MENSUAL"),N17/6,IF(AND(N23="SEMESTRAL",J23="TRIMESTRAL"),N17/2,IF(AND(N23="SEMESTRAL",J23="SEMESTRAL"),N17,IF(AND(N23="SEMESTRAL",J23="ANUAL"),"REVISAR FRECUENCIAS",IF(AND(N23="TRIMESTRAL",J23="MENSUAL"),N17/3,IF(AND(N23="TRIMESTRAL",J23="TRIMESTRAL"),N17,IF(AND(N23="TRIMESTRAL",J23="SEMESTRAL"),"REVISAR FRECUENCIAS",IF(AND(N23="TRIMESTRAL",J23="ANUAL"),"REVISAR FRECUENCIAS",IF(AND(N23="MENSUAL",J23="MENSUAL"),N17,IF(AND(N23="MENSUAL",J23="TRIMESTRAL"),"REVISAR FRECUENCIAS",IF(AND(N23="MENSUAL",J23="SEMESTRAL"),"REVISAR FRECUENCIAS",IF(AND(N23="MENSUAL",J23="ANUAL"),"REVISAR FRECUENCIAS","")))))))))))))))) -> 0.9 | E50: =IF(AND(N23="ANUAL",J23="MENSUAL"),N17/12+D50,IF(AND(N23="ANUAL",J23="TRIMESTRAL"),N17/4+D50,IF(AND(N23="ANUAL",J23="SEMESTRAL"),N17/2+D50,IF(AND(N23="SEMESTRAL",J23="MENSUAL"),N17/6+D50,IF(AND(N23="SEMESTRAL",J23="TRIMESTRAL"),N17/2+D50,IF(AND(N23="SEMESTRAL",J23="SEMESTRAL"),N17,IF(AND(N23="TRIMESTRAL",J23="MENSUAL"),N17/3+D50,IF(AND(N23="TRIMESTRAL",J23="TRIMESTRAL"),N17,IF(AND(N23="MENSUAL",J23="MENSUAL"),N17,""))))))))) -> 0.9 | F50: =IF(AND(N23="ANUAL",J23="MENSUAL"),N17/12+E50,IF(AND(N23="ANUAL",J23="TRIMESTRAL"),N17/4+E50,IF(AND(N23="SEMESTRAL",J23="MENSUAL"),N17/6+E50,IF(AND(N23="SEMESTRAL",J23="TRIMESTRAL"),N17/2,IF(AND(N23="TRIMESTRAL",J23="MENSUAL"),N17/3+E50,IF(AND(N23="TRIMESTRAL",J23="TRIMESTRAL"),N17,IF(AND(N23="MENSUAL",J23="MENSUAL"),N17,""))))))) ->  | G50: =IF(AND(N23="ANUAL",J23="MENSUAL"),N17/12+F50,IF(AND(N23="ANUAL",J23="TRIMESTRAL"),N17/4+F50,IF(AND(N23="SEMESTRAL",J23="MENSUAL"),N17/6+F50,IF(AND(N23="SEMESTRAL",J23="TRIMESTRAL"),N17/2+F50,IF(AND(N23="TRIMESTRAL",J23="MENSUAL"),N17/3,IF(AND(N23="TRIMESTRAL",J23="TRIMESTRAL"),N17,IF(AND(N23="MENSUAL",J23="MENSUAL"),N17,""))))))) ->  | H50: =IF(AND($N$23="ANUAL",$J$23="MENSUAL"),$N$17/12+G50,IF(AND(N23="SEMESTRAL",J23="MENSUAL"),N17/6+G50,IF(AND(N23="TRIMESTRAL",J23="MENSUAL"),N17/3+G50,IF(AND(N23="MENSUAL",J23="MENSUAL"),N17,"")))) ->  | I50: =IF(AND($N$23="ANUAL",$J$23="MENSUAL"),$N$17/12+H50,IF(AND(N23="SEMESTRAL",J23="MENSUAL"),N17/6+H50,IF(AND(N23="TRIMESTRAL",J23="MENSUAL"),N17/3+H50,IF(AND(N23="MENSUAL",J23="MENSUAL"),N17,"")))) ->  | J50: =IF(AND($N$23="ANUAL",$J$23="MENSUAL"),$N$17/12+I50,IF(AND(N23="SEMESTRAL",J23="MENSUAL"),N17/6,IF(AND(N23="TRIMESTRAL",J23="MENSUAL"),N17/3,IF(AND(N23="MENSUAL",J23="MENSUAL"),N17,"")))) ->  | K50: =IF(AND($N$23="ANUAL",$J$23="MENSUAL"),$N$17/12+J50,IF(AND(N23="SEMESTRAL",J23="MENSUAL"),N17/6+J50,IF(AND(N23="TRIMESTRAL",J23="MENSUAL"),N17/3+J50,IF(AND(N23="MENSUAL",J23="MENSUAL"),N17,"")))) ->  | L50: =IF(AND($N$23="ANUAL",$J$23="MENSUAL"),$N$17/12+K50,IF(AND(N23="SEMESTRAL",J23="MENSUAL"),N17/6+K50,IF(AND(N23="TRIMESTRAL",J23="MENSUAL"),N17/3+K50,IF(AND(N23="MENSUAL",J23="MENSUAL"),N17,"")))) ->  | M50: =IF(AND($N$23="ANUAL",$J$23="MENSUAL"),$N$17/12+L50,IF(AND(N23="SEMESTRAL",J23="MENSUAL"),N17/6+L50,IF(AND(N23="TRIMESTRAL",J23="MENSUAL"),N17/3,IF(AND(N23="MENSUAL",J23="MENSUAL"),N17,"")))) ->  | N50: =IF(AND($N$23="ANUAL",$J$23="MENSUAL"),$N$17/12+M50,IF(AND(N23="SEMESTRAL",J23="MENSUAL"),N17/6+M50,IF(AND(N23="TRIMESTRAL",J23="MENSUAL"),N17/3+M50,IF(AND(N23="MENSUAL",J23="MENSUAL"),N17,"")))) ->  | O50: =IF(AND($N$23="ANUAL",$J$23="MENSUAL"),$N$17/12+N50,IF(AND(N23="SEMESTRAL",J23="MENSUAL"),N17/6+N50,IF(AND(N23="TRIMESTRAL",J23="MENSUAL"),N17/3+N50,IF(AND(N23="MENSUAL",J23="MENSUAL"),N17,"")))) -> 
C52: NIVEL DE SEGREGACIÓN *
C53: UNIDAD SEGREGADA (Ej. Facultad, Programa Académico, Área) | G53: RESULTADO | K53: ANALISIS DE DATOS SEGREGADO
G72: Estratégico | J72: Eficacia
G73: Misional | J73: Eficiencia
G74: Apoyo | J74: Acreditación
G75: Seguimiento, Medición, Análisis y Evaluación | J75: Positiva
G76: Direccionamiento Estratégico | J76: Negativa
G77: Planeación Institucional | J77: Por Unidad Regional
G78: Proyectos Especiales y Relaciones Interinstitucionales | J78: Por Facultad
G79: Sistemas Integrados | J79: Por Programa Académico
G80: Autoevaluación y Acreditación | J80: Por área
G81: Comunicaciones | J81: Por Laboratorio
G82: Formación y Aprendizaje | J82: Otros
G83: Ciencia, Tecnología e Innovación | J83: No Aplica
G84: Interacción Social Universitaria
G85: Bienestar Universitario
G86: Admisiones y Registro
G87: Graduados
G88: Dialogando con el Mundo
G89: Talento Humano
G90: Jurídica
G91: Financiera
G92: Sistemas y Tecnología
G93: Bienes y Servicios
G94: Documental
G95: Apoyo Académico
G96: Control Interno
G97: Control Disciplinario
G98: Servicio de Atención al Ciudadano

Sheet ESG-1
B2: REGRESAR
E5: MACROPROCESO ESTRATÉGICO | M5: CÓDIGO: ESGr027
E6: PROCESO GESTIÓN SISTEMAS INTEGRADOS | M6: VERSIÓN: 7
E7: MATRIZ DE MEDICIÓN Y SEGUIMIENTO A LOS PROCESOS DE GESTIÓN | M7: VIGENCIA: 2020-03-31
M8: PÁGINA: 1 de 1
C10: FICHA DE INDICADOR
C12: MACROPROCESO | E12: Estratégico | I12: NOMBRE DEL INDICADOR | K12: Cumplimiento en el cronograma de mantenimiento ISO 9001:2015
C13: PROCESO GESTIÓN | E13: Sistemas Integrados
C14: RESPONSABLE DE MEDICIÓN | E14: Coordinador de Calidad
C16: 1. COMPORTAMIENTO DE INDICADOR
C17: CLASIFICACIÓN DE LA MEDICIÓN | E17: 1 | H17: TIPO DE INDICADOR | J17: Eficacia | L17: META ANUAL | N17: 0.95
C18: FORMULA | E18: NUMERADOR | G18: # Total actividades ejecutadas | L18: UNIDAD DE MEDIDA | N18: Porcentual
E19: DENOMINADOR | G19: (# Total de actividades planificadas) * 100
C20: TENDENCIA | E20: Positiva | H20: NIVEL DE SEGREGACIÓN * | J20: No Aplica | L20: ESCALA
L21: Deficiente | M21: Aceptable | N21: Bueno | O21: Excelente
L22: 0 - 69,9% | M22: 70% - 84,9% | N22: 85% - 95% | O22: 95,1% - 100%
C23: ORIGEN DE DATOS NUMERADOR | E23: Base de Datos herramienta Trello | H23: FRECUENCIA DE LA MEDICIÓN | J23: TRIMESTRAL | L23: FRECUENCIA DE RESULTADO | N23: SEMESTRAL
C24: ORIGEN DE DATOS DENOMINADOR | E24: Base de Datos herramienta Trello
C26: RESULTADOS
J27: ANÁLISIS DE DATOS
J28: Durante el primer trimestre de 2020 se realizaron actividades como inducciones, actualización de contexto, riesgos, oportunidades, partes interesadas y estructura documental de los procesos. Igualmente, se han realizado actividades como el acompañamiento al reporte de gestión del cambio y salidas no conformes entre otras actividades, esto se ve reflejado en el cumplimiento del indicador con corte a marzo, es de aclarar, que estas actividades responden al alistamiento para auditoria interna y auditoria externa con el ente certificador ICONTEC.
J34: ACCIÓN FORMULADA
J35: No aplica
J40: RESPONSABLE
J41: =E14 -> Coordinador de Calidad
C44: PERIODO DE EVALUACIÓN
C45: MES | D45: =IF(J23="MENSUAL","ENERO",IF(J23="TRIMESTRAL","MARZO",IF(J23="SEMESTRAL","JUNIO",IF(J23="ANUAL",YEAR(TODAY()),"")))) -> MARZO | E45: =IF(J23="MENSUAL","FEBRERO",IF(J23="TRIMESTRAL","JUNIO",IF(J23="SEMESTRAL","DICIEMBRE",""))) -> JUNIO | F45: =IF(J23="MENSUAL","MARZO",IF(J23="TRIMESTRAL","SEPTIEMBRE","")) -> SEPTIEMBRE | G45: =IF(J23="MENSUAL","ABRIL",IF(J23="TRIMESTRAL","DICIEMBRE","")) -> DICIEMBRE | H45: =IF(J23="MENSUAL","MAYO","") ->  | I45: =IF(J23="MENSUAL","JUNIO","") ->  | J45: =IF(J23="MENSUAL","JULIO","") ->  | K45: =IF(J23="MENSUAL","AGOSTO","") ->  | L45: =IF(J23="MENSUAL","SEPTIEMBRE","") ->  | M45: =IF(J23="MENSUAL","OCTUBRE","") ->  | N45: =IF(J23="MENSUAL","NOVIEMBRE","") ->  | O45: =IF(J23="MENSUAL","DICIEMBRE","") -> 
C46: =G18 -> # Total actividades ejecutadas | D46: 773
C47: =G19 -> (# Total de actividades planificadas) * 100 | D47: 1228
C48: VALOR | D48: =IFERROR(IF($E$17=1,D46/D47,IF($E$17=2,D46,"")),"") -> 0.6294788274 | E48: =IFERROR(IF($E$17=1,E46/E47,IF($E$17=2,E46,"")),"") -> 
C49: META PONDERADA | D49: =IF(AND(N23="ANUAL",J23="MENSUAL"),N17/12,IF(AND(N23="ANUAL",J23="TRIMESTRAL"),N17/4,IF(AND(N23="ANUAL",J23="SEMESTRAL"),N17/2,IF(AND(N23="ANUAL",J23="ANUAL"),N17,IF(AND(N23="SEMESTRAL",J23="MENSUAL"),N17/6,IF(AND(N23="SEMESTRAL",J23="TRIMESTRAL"),N17/2,IF(AND(N23="SEMESTRAL",J23="SEMESTRAL"),N17,IF(AND(N23="SEMESTRAL",J23="ANUAL"),"REVISAR FRECUENCIAS",IF(AND(N23="TRIMESTRAL",J23="MENSUAL"),N17/3,IF(AND(N23="TRIMESTRAL",J23="TRIMESTRAL"),N17,IF(AND(N23="TRIMESTRAL",J23="SEMESTRAL"),"REVISAR FRECUENCIAS",IF(AND(N23="TRIMESTRAL",J23="ANUAL"),"REVISAR FRECUENCIAS",IF(AND(N23="MENSUAL",J23="MENSUAL"),N17,IF(AND(N23="MENSUAL",J23="TRIMESTRAL"),"REVISAR FRECUENCIAS",IF(AND(N23="MENSUAL",J23="SEMESTRAL"),"REVISAR FRECUENCIAS",IF(AND(N23="MENSUAL",J23="ANUAL"),"REVISAR FRECUENCIAS","")))))))))))))))) -> 0.475 | E49: =IF(AND(N23="ANUAL",J23="MENSUAL"),N17/12+D49,IF(AND(N23="ANUAL",J23="TRIMESTRAL"),N17/4+D49,IF(AND(N23="ANUAL",J23="SEMESTRAL"),N17/2+D49,IF(AND(N23="SEMESTRAL",J23="MENSUAL"),N17/6+D49,IF(AND(N23="SEMESTRAL",J23="TRIMESTRAL"),N17/2+D49,IF(AND(N23="SEMESTRAL",J23="SEMESTRAL"),N17,IF(AND(N23="TRIMESTRAL",J23="MENSUAL"),N17/3+D49,IF(AND(N23="TRIMESTRAL",J23="TRIMESTRAL"),N17,IF(AND(N23="MENSUAL",J23="MENSUAL"),N17,""))))))))) -> 0.95 | F49: =IF(AND(N23="ANUAL",J23="MENSUAL"),N17/12+E49,IF(AND(N23="ANUAL",J23="TRIMESTRAL"),N17/4+E49,IF(AND(N23="SEMESTRAL",J23="MENSUAL"),N17/6+E49,IF(AND(N23="SEMESTRAL",J23="TRIMESTRAL"),N17/2,IF(AND(N23="TRIMESTRAL",J23="MENSUAL"),N17/3+E49,IF(AND(N23="TRIMESTRAL",J23="TRIMESTRAL"),N17,IF(AND(N23="MENSUAL",J23="MENSUAL"),N17,""))))))) -> 0.475 | G49: =IF(AND(N23="ANUAL",J23="MENSUAL"),N17/12+F49,IF(AND(N23="ANUAL",J23="TRIMESTRAL"),N17/4+F49,IF(AND(N23="SEMESTRAL",J23="MENSUAL"),N17/6+F49,IF(AND(N23="SEMESTRAL",J23="TRIMESTRAL"),N17/2+F49,IF(AND(N23="TRIMESTRAL",J23="MENSUAL"),N17/3,IF(AND(N23="TRIMESTRAL",J23="TRIMESTRAL"),N17,IF(AND(N23="MENSUAL",J23="MENSUAL"),N17,""))))))) -> 0.95 | H49: =IF(AND($N$23="ANUAL",$J$23="MENSUAL"),$N$17/12+G49,IF(AND(N23="SEMESTRAL",J23="MENSUAL"),N17/6+G49,IF(AND(N23="TRIMESTRAL",J23="MENSUAL"),N17/3+G49,IF(AND(N23="MENSUAL",J23="MENSUAL"),N17,"")))) ->  | I49: =IF(AND($N$23="ANUAL",$J$23="MENSUAL"),$N$17/12+H49,IF(AND(N23="SEMESTRAL",J23="MENSUAL"),N17/6+H49,IF(AND(N23="TRIMESTRAL",J23="MENSUAL"),N17/3+H49,IF(AND(N23="MENSUAL",J23="MENSUAL"),N17,"")))) ->  | J49: =IF(AND($N$23="ANUAL",$J$23="MENSUAL"),$N$17/12+I49,IF(AND(N23="SEMESTRAL",J23="MENSUAL"),N17/6,IF(AND(N23="TRIMESTRAL",J23="MENSUAL"),N17/3,IF(AND(N23="MENSUAL",J23="MENSUAL"),N17,"")))) ->  | K49: =IF(AND($N$23="ANUAL",$J$23="MENSUAL"),$N$17/12+J49,IF(AND(N23="SEMESTRAL",J23="MENSUAL"),N17/6+J49,IF(AND(N23="TRIMESTRAL",J23="MENSUAL"),N17/3+J49,IF(AND(N23="MENSUAL",J23="MENSUAL"),N17,"")))) ->  | L49: =IF(AND($N$23="ANUAL",$J$23="MENSUAL"),$N$17/12+K49,IF(AND(N23="SEMESTRAL",J23="MENSUAL"),N17/6+K49,IF(AND(N23="TRIMESTRAL",J23="MENSUAL"),N17/3+K49,IF(AND(N23="MENSUAL",J23="MENSUAL"),N17,"")))) ->  | M49: =IF(AND($N$23="ANUAL",$J$23="MENSUAL"),$N$17/12+L49,IF(AND(N23="SEMESTRAL",J23="MENSUAL"),N17/6+L49,IF(AND(N23="TRIMESTRAL",J23="MENSUAL"),N17/3,IF(AND(N23="MENSUAL",J23="MENSUAL"),N17,"")))) ->  | N49: =IF(AND($N$23="ANUAL",$J$23="MENSUAL"),$N$17/12+M49,IF(AND(N23="SEMESTRAL",J23="MENSUAL"),N17/6+M49,IF(AND(N23="TRIMESTRAL",J23="MENSUAL"),N17/3+M49,IF(AND(N23="MENSUAL",J23="MENSUAL"),N17,"")))) ->  | O49: =IF(AND($N$23="ANUAL",$J$23="MENSUAL"),$N$17/12+N49,IF(AND(N23="SEMESTRAL",J23="MENSUAL"),N17/6+N49,IF(AND(N23="TRIMESTRAL",J23="MENSUAL"),N17/3+N49,IF(AND(N23="MENSUAL",J23="MENSUAL"),N17,"")))) -> 
C51: NIVEL DE SEGREGACIÓN *
C52: UNIDAD SEGREGADA (Ej. Facultad, Programa Académico, Área) | G52: RESULTADO | K52: ANALISIS DE DATOS SEGREGADO
G71: Estratégico | J71: Eficacia
G72: Misional | J72: Eficiencia
G73: Apoyo | J73: Acreditación
G74: Seguimiento, Medición, Análisis y Evaluación | J74: Positiva
G75: Direccionamiento Estratégico | J75: Negativa
G76: Planeación Institucional | J76: Por Unidad Regional
G77: Proyectos Especiales y Relaciones Interinstitucionales | J77: Por Facultad
G78: Sistemas Integrados | J78: Por Programa Académico
G79: Autoevaluación y Acreditación | J79: Por área
G80: Comunicaciones | J80: Por Laboratorio
G81: Formación y Aprendizaje | J81: Otros
G82: Ciencia, Tecnología e Innovación | J82: No Aplica
G83: Interacción Social Universitaria
G84: Bienestar Universitario
G85: Admisiones y Registro
G86: Graduados
G87: Dialogando con el Mundo
G88: Talento Humano
G89: Jurídica
G90: Financiera
G91: Sistemas y Tecnología
G92: Bienes y Servicios
G93: Documental
G94: Apoyo Académico
G95: Control Interno
G96: Control Disciplinario
G97: Servicio de Atención al Ciudadano

Sheet ESG-2
B2: REGRESAR
E5: MACROPROCESO ESTRATÉGICO | M5: CÓDIGO: ESGr027
E6: PROCESO GESTIÓN SISTEMAS INTEGRADOS | M6: VERSIÓN: 7
E7: MATRIZ DE MEDICIÓN Y SEGUIMIENTO A LOS PROCESOS DE GESTIÓN | M7: VIGENCIA: 2020-03-31
M8: PÁGINA: 1 de 1
C10: FICHA DE INDICADOR
C12: MACROPROCESO | E12: Estratégico | I12: NOMBRE DEL INDICADOR | K12: Acompañamientos por proceso
C13: PROCESO GESTIÓN | E13: Sistemas Integrados
C14: RESPONSABLE DE MEDICIÓN | E14: Coordinador de Calidad
C16: 1. COMPORTAMIENTO DE INDICADOR
C17: CLASIFICACIÓN DE LA MEDICIÓN | E17: 3 | H17: TIPO DE INDICADOR | J17: Eficacia | L17: META ANUAL | N17: 7
C18: FORMULA | E18: NUMERADOR | G18: # Total de Acompañamientos | L18: UNIDAD DE MEDIDA | N18: Número de Acompañamientos por Proceso
E19: DENOMINADOR | G19: # Total de Total de Procesos
C20: TENDENCIA | E20: Positiva | H20: NIVEL DE SEGREGACIÓN * | J20: No Aplica | L20: ESCALA
L21: Deficiente | M21: Aceptable | N21: Bueno | O21: Excelente
L22: 0 - 3,9 | M22: 4 - 4,9 | N22: 5 - 7,0 | O22: 7,1 - En adelante
C23: ORIGEN DE DATOS NUMERADOR | E23: Listados de Asistencia | H23: FRECUENCIA DE LA MEDICIÓN | J23: TRIMESTRAL | L23: FRECUENCIA DE RESULTADO | N23: TRIMESTRAL
C24: ORIGEN DE DATOS DENOMINADOR | E24: Modelo de Operación
C26: RESULTADOS
J27: ANÁLISIS DE DATOS
J28: Entendiendo la actual contingencia (COVID 19), el presente reporte se encuentra justificado con los registros digitales del calendario de Outlook, por lo cual, se estima que la presente medición no cuenta con la información a completitud dado que no se cuenta con el archivo físico y bajo el presente aislamiento obligatorio no se puede acceder al mismo; por ende, los 100 acompañamientos reportados estarán sujetos a modificaciones en cuanto se pueda entregar un dato real. Es importante aclarar, que estos acompañamientos responden a actividades como trámites por medio de INTEGRADOC, acompañamientos y asesoramientos a los 21 procesos de la Universidad de Cundinamarca.
J35: ACCIÓN FORMULADA
J36: Dado la actual contingencia, el presente indicador estará sujeto a modificaciones en cuanto se pueda acceder a todas las fuentes de información lo cual permitirá reportar un dato real.
J41: RESPONSABLE
J42: =E14 -> Coordinador de Calidad
C45: PERIODO DE EVALUACIÓN
C46: MES | D46: =IF(J23="MENSUAL","ENERO",IF(J23="TRIMESTRAL","MARZO",IF(J23="SEMESTRAL","JUNIO",IF(J23="ANUAL",YEAR(TODAY()),"")))) -> MARZO | E46: =IF(J23="MENSUAL","FEBRERO",IF(J23="TRIMESTRAL","JUNIO",IF(J23="SEMESTRAL","DICIEMBRE",""))) -> JUNIO | F46: =IF(J23="MENSUAL","MARZO",IF(J23="TRIMESTRAL","SEPTIEMBRE","")) -> SEPTIEMBRE | G46: =IF(J23="MENSUAL","ABRIL",IF(J23="TRIMESTRAL","DICIEMBRE","")) -> DICIEMBRE | H46: =IF(J23="MENSUAL","MAYO","") ->  | I46: =IF(J23="MENSUAL","JUNIO","") ->  | J46: =IF(J23="MENSUAL","JULIO","") ->  | K46: =IF(J23="MENSUAL","AGOSTO","") ->  | L46: =IF(J23="MENSUAL","SEPTIEMBRE","") ->  | M46: =IF(J23="MENSUAL","OCTUBRE","") ->  | N46: =IF(J23="MENSUAL","NOVIEMBRE","") ->  | O46: =IF(J23="MENSUAL","DICIEMBRE","") -> 
C47: =G18 -> # Total de Acompañamientos | D47: 100
C48: =G19 -> # Total de Total de Procesos | D48: 21
C49: VALOR | D49: =IFERROR(IF($E$17=3,D47/D48,IF($E$17=2,D47,"")),"") -> 4.761904762 | E49: =IFERROR(IF($E$17=3,E47/E48,IF($E$17=2,E47,"")),"") ->  | F49: =IFERROR(IF($E$17=3,F47/F48,IF($E$17=2,F47,"")),"") ->  | G49: =IFERROR(IF($E$17=3,G47/G48,IF($E$17=2,G47,"")),"") ->  | H49: =IFERROR(IF($E$17=1,H47/H48,IF($E$17=2,H47,"")),"") -> 
C50: META PONDERADA | D50: =IF(AND(N23="ANUAL",J23="MENSUAL"),N17/12,IF(AND(N23="ANUAL",J23="TRIMESTRAL"),N17/4,IF(AND(N23="ANUAL",J23="SEMESTRAL"),N17/2,IF(AND(N23="ANUAL",J23="ANUAL"),N17,IF(AND(N23="SEMESTRAL",J23="MENSUAL"),N17/6,IF(AND(N23="SEMESTRAL",J23="TRIMESTRAL"),N17/2,IF(AND(N23="SEMESTRAL",J23="SEMESTRAL"),N17,IF(AND(N23="SEMESTRAL",J23="ANUAL"),"REVISAR FRECUENCIAS",IF(AND(N23="TRIMESTRAL",J23="MENSUAL"),N17/3,IF(AND(N23="TRIMESTRAL",J23="TRIMESTRAL"),N17,IF(AND(N23="TRIMESTRAL",J23="SEMESTRAL"),"REVISAR FRECUENCIAS",IF(AND(N23="TRIMESTRAL",J23="ANUAL"),"REVISAR FRECUENCIAS",IF(AND(N23="MENSUAL",J23="MENSUAL"),N17,IF(AND(N23="MENSUAL",J23="TRIMESTRAL"),"REVISAR FRECUENCIAS",IF(AND(N23="MENSUAL",J23="SEMESTRAL"),"REVISAR FRECUENCIAS",IF(AND(N23="MENSUAL",J23="ANUAL"),"REVISAR FRECUENCIAS","")))))))))))))))) -> 7 | E50: =IF(AND(N23="ANUAL",J23="MENSUAL"),N17/12+D50,IF(AND(N23="ANUAL",J23="TRIMESTRAL"),N17/4+D50,IF(AND(N23="ANUAL",J23="SEMESTRAL"),N17/2+D50,IF(AND(N23="SEMESTRAL",J23="MENSUAL"),N17/6+D50,IF(AND(N23="SEMESTRAL",J23="TRIMESTRAL"),N17/2+D50,IF(AND(N23="SEMESTRAL",J23="SEMESTRAL"),N17,IF(AND(N23="TRIMESTRAL",J23="MENSUAL"),N17/3+D50,IF(AND(N23="TRIMESTRAL",J23="TRIMESTRAL"),N17,IF(AND(N23="MENSUAL",J23="MENSUAL"),N17,""))))))))) -> 7 | F50: =IF(AND(N23="ANUAL",J23="MENSUAL"),N17/12+E50,IF(AND(N23="ANUAL",J23="TRIMESTRAL"),N17/4+E50,IF(AND(N23="SEMESTRAL",J23="MENSUAL"),N17/6+E50,IF(AND(N23="SEMESTRAL",J23="TRIMESTRAL"),N17/2,IF(AND(N23="TRIMESTRAL",J23="MENSUAL"),N17/3+E50,IF(AND(N23="TRIMESTRAL",J23="TRIMESTRAL"),N17,IF(AND(N23="MENSUAL",J23="MENSUAL"),N17,""))))))) -> 7 | G50: =IF(AND(N23="ANUAL",J23="MENSUAL"),N17/12+F50,IF(AND(N23="ANUAL",J23="TRIMESTRAL"),N17/4+F50,IF(AND(N23="SEMESTRAL",J23="MENSUAL"),N17/6+F50,IF(AND(N23="SEMESTRAL",J23="TRIMESTRAL"),N17/2+F50,IF(AND(N23="TRIMESTRAL",J23="MENSUAL"),N17/3,IF(AND(N23="TRIMESTRAL",J23="TRIMESTRAL"),N17,IF(AND(N23="MENSUAL",J23="MENSUAL"),N17,""))))))) -> 7 | H50: =IF(AND($N$23="ANUAL",$J$23="MENSUAL"),$N$17/12+G50,IF(AND(N23="SEMESTRAL",J23="MENSUAL"),N17/6+G50,IF(AND(N23="TRIMESTRAL",J23="MENSUAL"),N17/3+G50,IF(AND(N23="MENSUAL",J23="MENSUAL"),N17,"")))) ->  | I50: =IF(AND($N$23="ANUAL",$J$23="MENSUAL"),$N$17/12+H50,IF(AND(N23="SEMESTRAL",J23="MENSUAL"),N17/6+H50,IF(AND(N23="TRIMESTRAL",J23="MENSUAL"),N17/3+H50,IF(AND(N23="MENSUAL",J23="MENSUAL"),N17,"")))) ->  | J50: =IF(AND($N$23="ANUAL",$J$23="MENSUAL"),$N$17/12+I50,IF(AND(N23="SEMESTRAL",J23="MENSUAL"),N17/6,IF(AND(N23="TRIMESTRAL",J23="MENSUAL"),N17/3,IF(AND(N23="MENSUAL",J23="MENSUAL"),N17,"")))) ->  | K50: =IF(AND($N$23="ANUAL",$J$23="MENSUAL"),$N$17/12+J50,IF(AND(N23="SEMESTRAL",J23="MENSUAL"),N17/6+J50,IF(AND(N23="TRIMESTRAL",J23="MENSUAL"),N17/3+J50,IF(AND(N23="MENSUAL",J23="MENSUAL"),N17,"")))) ->  | L50: =IF(AND($N$23="ANUAL",$J$23="MENSUAL"),$N$17/12+K50,IF(AND(N23="SEMESTRAL",J23="MENSUAL"),N17/6+K50,IF(AND(N23="TRIMESTRAL",J23="MENSUAL"),N17/3+K50,IF(AND(N23="MENSUAL",J23="MENSUAL"),N17,"")))) ->  | M50: =IF(AND($N$23="ANUAL",$J$23="MENSUAL"),$N$17/12+L50,IF(AND(N23="SEMESTRAL",J23="MENSUAL"),N17/6+L50,IF(AND(N23="TRIMESTRAL",J23="MENSUAL"),N17/3,IF(AND(N23="MENSUAL",J23="MENSUAL"),N17,"")))) ->  | N50: =IF(AND($N$23="ANUAL",$J$23="MENSUAL"),$N$17/12+M50,IF(AND(N23="SEMESTRAL",J23="MENSUAL"),N17/6+M50,IF(AND(N23="TRIMESTRAL",J23="MENSUAL"),N17/3+M50,IF(AND(N23="MENSUAL",J23="MENSUAL"),N17,"")))) ->  | O50: =IF(AND($N$23="ANUAL",$J$23="MENSUAL"),$N$17/12+N50,IF(AND(N23="SEMESTRAL",J23="MENSUAL"),N17/6+N50,IF(AND(N23="TRIMESTRAL",J23="MENSUAL"),N17/3+N50,IF(AND(N23="MENSUAL",J23="MENSUAL"),N17,"")))) -> 
C52: NIVEL DE SEGREGACIÓN *
C53: UNIDAD SEGREGADA (Ej. Facultad, Programa Académico, Área) | G53: RESULTADO | K53: ANALISIS DE DATOS SEGREGADO
G72: Estratégico | J72: Eficacia
G73: Misional | J73: Eficiencia
G74: Apoyo | J74: Acreditación
G75: Seguimiento, Medición, Análisis y Evaluación | J75: Positiva
G76: Direccionamiento Estratégico | J76: Negativa
G77: Planeación Institucional | J77: Por Unidad Regional
G78: Proyectos Especiales y Relaciones Interinstitucionales | J78: Por Facultad
G79: Sistemas Integrados | J79: Por Programa Académico
G80: Autoevaluación y Acreditación | J80: Por área
G81: Comunicaciones | J81: Por Laboratorio
G82: Formación y Aprendizaje | J82: Otros
G83: Ciencia, Tecnología e Innovación | J83: No Aplica
G84: Interacción Social Universitaria
G85: Bienestar Universitario
G86: Admisiones y Registro
G87: Graduados
G88: Dialogando con el Mundo
G89: Talento Humano
G90: Jurídica
G91: Financiera
G92: Sistemas y Tecnología
G93: Bienes y Servicios
G94: Documental
G95: Apoyo Académico
G96: Control Interno
G97: Control Disciplinario
G98: Servicio de Atención al Ciudadano

Sheet EPR-1
B2: REGRESAR
E5: MACROPROCESO ESTRATÉGICO | M5: CÓDIGO: ESGr027
E6: PROCESO GESTIÓN SISTEMAS INTEGRADOS | M6: VERSIÓN: 7
E7: MATRIZ DE MEDICIÓN Y SEGUIMIENTO A LOS PROCESOS DE GESTIÓN | M7: VIGENCIA: 2020-03-20
M8: PÁGINA: 1 de 1
C10: FICHA DE INDICADOR
C12: MACROPROCESO | E12: Estratégico | I12: NOMBRE DEL INDICADOR | K12: Evaluación del No. de alianzas estratégicas mediante convenios empresariales
C13: PROCESO GESTIÓN | E13: Proyectos Especiales y Relaciones Interinstitucionales
C14: RESPONSABLE DE MEDICIÓN | E14: Director(a) Proyectos Especiales y Relaciones Interinstitucionales
C16: 1. COMPORTAMIENTO DE INDICADOR
C17: CLASIFICACIÓN DE LA MEDICIÓN | E17: 1 | H17: TIPO DE INDICADOR | J17: Eficiencia | L17: META ANUAL | N17: 1
C18: FÓRMULA | E18: NUMERADOR | G18: No. de alianzas estratégicas mediante convenios empresariales * 100 | L18: UNIDAD DE MEDIDA | N18: Porcentual
E19: DENOMINADOR | G19: No. de alianzas estratégicas proyectadas por año
C20: TENDENCIA | E20: Positiva | H20: NIVEL DE SEGREGACIÓN * | J20: No aplica | L20: ESCALA
L21: Deficiente | M21: Aceptable | N21: Bueno | O21: Excelente
L22: 0% - 33% | M22: 34% - 66% | N22: 67% - 100% | O22: Superior a 100%
C23: ORIGEN DE DATOS NUMERADOR | E23: Cronograma de Actividades | H23: FRECUENCIA DE LA MEDICIÓN | J23: TRIMESTRAL | L23: FRECUENCIA DE RESULTADO | N23: ANUAL
C24: ORIGEN DE DATOS DENOMINADOR | E24: Plan de Acción
C26: RESULTADOS
J27: ANÁLISIS DE DATOS
J28: I TRIMESTRE: Para el primer trimestre del año 2020 no se han suscrito Convenios Empresariales, se espera poder cumplir en los siguientes trimestres con la meta establecida para la vigencia 2020
J34: ACCIÓN FORMULADA
J35: I TRIMESTRE: En el primer trimestre del año 2020 se han presentado propuesta a entidades públicas (Alcaldía - Superintendencia), así como también se han realizado consultas en diferentes páginas para licitar. Se harán mesas de trabajo con el equipo de Proyectos Especiales para establecer las estrategias y actividades necesarias para alcanzar la meta propuesta, analizando aquellos factores que afectan la gestión por la actual situación de pandemia.
J41: RESPONSABLE
J42: =E14 -> Director(a) Proyectos Especiales y Relaciones Interinstitucionales
C45: PERIODO DE EVALUACIÓN
C46: MES | D46: =IF(J23="MENSUAL","ENERO",IF(J23="TRIMESTRAL","MARZO",IF(J23="SEMESTRAL","JUNIO",IF(J23="ANUAL",YEAR(TODAY()),"")))) -> MARZO | E46: =IF(J23="MENSUAL","FEBRERO",IF(J23="TRIMESTRAL","JUNIO",IF(J23="SEMESTRAL","DICIEMBRE",""))) -> JUNIO | F46: =IF(J23="MENSUAL","MARZO",IF(J23="TRIMESTRAL","SEPTIEMBRE","")) -> SEPTIEMBRE | G46: =IF(J23="MENSUAL","ABRIL",IF(J23="TRIMESTRAL","DICIEMBRE","")) -> DICIEMBRE | H46: =IF(J23="MENSUAL","MAYO","") ->  | I46: =IF(J23="MENSUAL","JUNIO","") ->  | J46: =IF(J23="MENSUAL","JULIO","") ->  | K46: =IF(J23="MENSUAL","AGOSTO","") ->  | L46: =IF(J23="MENSUAL","SEPTIEMBRE","") ->  | M46: =IF(J23="MENSUAL","OCTUBRE","") ->  | N46: =IF(J23="MENSUAL","NOVIEMBRE","") ->  | O46: =IF(J23="MENSUAL","DICIEMBRE","") -> 
C47: =G18 -> No. de alianzas estratégicas mediante convenios empresariales * 100 | D47: 0
C48: =G19 -> No. de alianzas estratégicas proyectadas por año | D48: 3
C49: VALOR | D49: =IFERROR(IF($E$17=1,D47/D48,IF($E$17=2,D47,"")),"") -> 0 | E49: =IFERROR(IF($E$17=1,E47/E48,IF($E$17=2,E47,"")),"") -> 
C50: META PONDERADA | D50: =IF(AND(N23="ANUAL",J23="MENSUAL"),N17/12,IF(AND(N23="ANUAL",J23="TRIMESTRAL"),N17/4,IF(AND(N23="ANUAL",J23="SEMESTRAL"),N17/2,IF(AND(N23="ANUAL",J23="ANUAL"),N17,IF(AND(N23="SEMESTRAL",J23="MENSUAL"),N17/6,IF(AND(N23="SEMESTRAL",J23="TRIMESTRAL"),N17/2,IF(AND(N23="SEMESTRAL",J23="SEMESTRAL"),N17,IF(AND(N23="SEMESTRAL",J23="ANUAL"),"REVISAR FRECUENCIAS",IF(AND(N23="TRIMESTRAL",J23="MENSUAL"),N17/3,IF(AND(N23="TRIMESTRAL",J23="TRIMESTRAL"),N17,IF(AND(N23="TRIMESTRAL",J23="SEMESTRAL"),"REVISAR FRECUENCIAS",IF(AND(N23="TRIMESTRAL",J23="ANUAL"),"REVISAR FRECUENCIAS",IF(AND(N23="MENSUAL",J23="MENSUAL"),N17,IF(AND(N23="MENSUAL",J23="TRIMESTRAL"),"REVISAR FRECUENCIAS",IF(AND(N23="MENSUAL",J23="SEMESTRAL"),"REVISAR FRECUENCIAS",IF(AND(N23="MENSUAL",J23="ANUAL"),"REVISAR FRECUENCIAS","")))))))))))))))) -> 0.25 | E50: =IF(AND(N23="ANUAL",J23="MENSUAL"),N17/12+D50,IF(AND(N23="ANUAL",J23="TRIMESTRAL"),N17/4+D50,IF(AND(N23="ANUAL",J23="SEMESTRAL"),N17/2+D50,IF(AND(N23="SEMESTRAL",J23="MENSUAL"),N17/6+D50,IF(AND(N23="SEMESTRAL",J23="TRIMESTRAL"),N17/2+D50,IF(AND(N23="SEMESTRAL",J23="SEMESTRAL"),N17,IF(AND(N23="TRIMESTRAL",J23="MENSUAL"),N17/3+D50,IF(AND(N23="TRIMESTRAL",J23="TRIMESTRAL"),N17,IF(AND(N23="MENSUAL",J23="MENSUAL"),N17,""))))))))) -> 0.5 | F50: =IF(AND(N23="ANUAL",J23="MENSUAL"),N17/12+E50,IF(AND(N23="ANUAL",J23="TRIMESTRAL"),N17/4+E50,IF(AND(N23="SEMESTRAL",J23="MENSUAL"),N17/6+E50,IF(AND(N23="SEMESTRAL",J23="TRIMESTRAL"),N17/2,IF(AND(N23="TRIMESTRAL",J23="MENSUAL"),N17/3+E50,IF(AND(N23="TRIMESTRAL",J23="TRIMESTRAL"),N17,IF(AND(N23="MENSUAL",J23="MENSUAL"),N17,""))))))) -> 0.75 | G50: =IF(AND(N23="ANUAL",J23="MENSUAL"),N17/12+F50,IF(AND(N23="ANUAL",J23="TRIMESTRAL"),N17/4+F50,IF(AND(N23="SEMESTRAL",J23="MENSUAL"),N17/6+F50,IF(AND(N23="SEMESTRAL",J23="TRIMESTRAL"),N17/2+F50,IF(AND(N23="TRIMESTRAL",J23="MENSUAL"),N17/3,IF(AND(N23="TRIMESTRAL",J23="TRIMESTRAL"),N17,IF(AND(N23="MENSUAL",J23="MENSUAL"),N17,""))))))) -> 1 | H50: =IF(AND($N$23="ANUAL",$J$23="MENSUAL"),$N$17/12+G50,IF(AND(N23="SEMESTRAL",J23="MENSUAL"),N17/6+G50,IF(AND(N23="TRIMESTRAL",J23="MENSUAL"),N17/3+G50,IF(AND(N23="MENSUAL",J23="MENSUAL"),N17,"")))) ->  | I50: =IF(AND($N$23="ANUAL",$J$23="MENSUAL"),$N$17/12+H50,IF(AND(N23="SEMESTRAL",J23="MENSUAL"),N17/6+H50,IF(AND(N23="TRIMESTRAL",J23="MENSUAL"),N17/3+H50,IF(AND(N23="MENSUAL",J23="MENSUAL"),N17,"")))) ->  | J50: =IF(AND($N$23="ANUAL",$J$23="MENSUAL"),$N$17/12+I50,IF(AND(N23="SEMESTRAL",J23="MENSUAL"),N17/6,IF(AND(N23="TRIMESTRAL",J23="MENSUAL"),N17/3,IF(AND(N23="MENSUAL",J23="MENSUAL"),N17,"")))) ->  | K50: =IF(AND($N$23="ANUAL",$J$23="MENSUAL"),$N$17/12+J50,IF(AND(N23="SEMESTRAL",J23="MENSUAL"),N17/6+J50,IF(AND(N23="TRIMESTRAL",J23="MENSUAL"),N17/3+J50,IF(AND(N23="MENSUAL",J23="MENSUAL"),N17,"")))) ->  | L50: =IF(AND($N$23="ANUAL",$J$23="MENSUAL"),$N$17/12+K50,IF(AND(N23="SEMESTRAL",J23="MENSUAL"),N17/6+K50,IF(AND(N23="TRIMESTRAL",J23="MENSUAL"),N17/3+K50,IF(AND(N23="MENSUAL",J23="MENSUAL"),N17,"")))) ->  | M50: =IF(AND($N$23="ANUAL",$J$23="MENSUAL"),$N$17/12+L50,IF(AND(N23="SEMESTRAL",J23="MENSUAL"),N17/6+L50,IF(AND(N23="TRIMESTRAL",J23="MENSUAL"),N17/3,IF(AND(N23="MENSUAL",J23="MENSUAL"),N17,"")))) ->  | N50: =IF(AND($N$23="ANUAL",$J$23="MENSUAL"),$N$17/12+M50,IF(AND(N23="SEMESTRAL",J23="MENSUAL"),N17/6+M50,IF(AND(N23="TRIMESTRAL",J23="MENSUAL"),N17/3+M50,IF(AND(N23="MENSUAL",J23="MENSUAL"),N17,"")))) ->  | O50: =IF(AND($N$23="ANUAL",$J$23="MENSUAL"),$N$17/12+N50,IF(AND(N23="SEMESTRAL",J23="MENSUAL"),N17/6+N50,IF(AND(N23="TRIMESTRAL",J23="MENSUAL"),N17/3+N50,IF(AND(N23="MENSUAL",J23="MENSUAL"),N17,"")))) -> 
C52: NIVEL DE SEGREGACIÓN *
C53: UNIDAD SEGREGADA (Ej. Facultad, Programa Académico, Área) | G53: RESULTADO | K53: ANALISIS DE DATOS SEGREGADO
G72: Estratégico | J72: Eficacia
G73: Misional | J73: Eficiencia
G74: Apoyo | J74: Acreditación
G75: Seguimiento, Medición, Análisis y Evaluación | J75: Positiva
G76: Direccionamiento Estratégico | J76: Negativa
G77: Planeación Institucional | J77: Por Unidad Regional
G78: Proyectos Especiales y Relaciones Interinstitucionales | J78: Por Facultad
G79: Sistemas Integrados | J79: Por Programa Académico
G80: Autoevaluación y Acreditación | J80: Por área
G81: Comunicaciones | J81: Por Laboratorio
G82: Formación y Aprendizaje | J82: Otros
G83: Ciencia, Tecnología e Innovación | J83: No Aplica
G84: Interacción Social Universitaria
G85: Bienestar Universitario
G86: Admisiones y Registro
G87: Graduados
G88: Dialogando con el Mundo
G89: Talento Humano
G90: Jurídica
G91: Financiera
G92: Sistemas y Tecnología
G93: Bienes y Servicios
G94: Documental
G95: Apoyo Académico
G96: Control Interno
G97: Control Disciplinario
G98: Servicio de Atención al Ciudadano

Sheet EPR-2
B2: REGRESAR
E5: MACROPROCESO ESTRATÉGICO | M5: CÓDIGO: ESGr027
E6: PROCESO GESTIÓN SISTEMAS INTEGRADOS | M6: VERSIÓN: 7
E7: MATRIZ DE MEDICIÓN Y SEGUIMIENTO A LOS PROCESOS DE GESTIÓN | M7: VIGENCIA: 2020-03-20
M8: PÁGINA: 1 de 1
C10: FICHA DE INDICADOR
C12: MACROPROCESO | E12: Estratégico | I12: NOMBRE DEL INDICADOR | K12: Evaluación del No. de actividades desarrolladas de los contratos suscritos
C13: PROCESO GESTIÓN | E13: Proyectos Especiales y Relaciones Interinstitucionales
C14: RESPONSABLE DE MEDICIÓN | E14: Director(a) de Proyectos Especiales y Relaciones Interinstitucionales
C16: 1. COMPORTAMIENTO DE INDICADOR
C17: CLASIFICACIÓN DE LA MEDICIÓN | E17: 1 | H17: TIPO DE INDICADOR | J17: Eficiencia | L17: META ANUAL | N17: 1
C18: FÓRMULA | E18: NUMERADOR | G18: No. de actividades desarrolladas de los contratos suscritos * 100 | L18: UNIDAD DE MEDIDA | N18: Porcentual
E19: DENOMINADOR | G19: No. total de actividades planificadas de los contratos suscritos
C20: TENDENCIA | E20: Positiva | H20: NIVEL DE SEGREGACIÓN * | J20: No Aplica | L20: ESCALA
L21: Deficiente | M21: Aceptable | N21: Bueno | O21: Excelente
L22: 0% - 50% | M22: 51% - 80% | N22: 81% - 100% | O22: Superior a 100%
C23: ORIGEN DE DATOS NUMERADOR | E23: Cronograma de Actividades | H23: FRECUENCIA DE LA MEDICIÓN | J23: TRIMESTRAL | L23: FRECUENCIA DE RESULTADO | N23: ANUAL
C24: ORIGEN DE DATOS DENOMINADOR | E24: Contrato Suscrito
C26: RESULTADOS
J27: ANÁLISIS DE DATOS Los datos indican un crecimiento en los acompañamientos entre el primer trimestre y el segundo trimestre de mas del 100%, por la contratación del personal de la oficina En el tercer trimestre se muestra un decrecimiento con respecto al periodo anterior por las vacaciones a mitad de año, las personas se reintegraron entre julio y agosto.
J28: I TRIMESTRE: En razón a que no se han suscrito alianzas empresarias durante el primer trimestre no se puede establecer el cronograma de actividades a desarrollar.
J34: ACCIÓN FORMULADA Reformular la meta para el próximo año dependiendo de los recursos asignados.
J35: I TRIMESTRE: Una vez se suscriban Convenios de Cooperación y se establezcan las actividades se hará la verificación de cumplimiento de las mismas. Se harán mesas de trabajo con el equipo de Proyectos Especiales para establecer las estrategias y actividades necesarias para alcanzar la meta propuesta, analizando aquellos factores que afectan la gestión por la actual situación de pandemia.
J41: RESPONSABLE
J42: =E14 -> Director(a) de Proyectos Especiales y Relaciones Interinstitucionales
C45: PERIODO DE EVALUACIÓN
C46: MES | D46: =IF(J23="MENSUAL","ENERO",IF(J23="TRIMESTRAL","MARZO",IF(J23="SEMESTRAL","JUNIO",IF(J23="ANUAL",YEAR(TODAY()),"")))) -> MARZO | E46: =IF(J23="MENSUAL","FEBRERO",IF(J23="TRIMESTRAL","JUNIO",IF(J23="SEMESTRAL","DICIEMBRE",""))) -> JUNIO | F46: =IF(J23="MENSUAL","MARZO",IF(J23="TRIMESTRAL","SEPTIEMBRE","")) -> SEPTIEMBRE | G46: =IF(J23="MENSUAL","ABRIL",IF(J23="TRIMESTRAL","DICIEMBRE","")) -> DICIEMBRE | H46: =IF(J23="MENSUAL","MAYO","") ->  | I46: =IF(J23="MENSUAL","JUNIO","") ->  | J46: =IF(J23="MENSUAL","JULIO","") ->  | K46: =IF(J23="MENSUAL","AGOSTO","") ->  | L46: =IF(J23="MENSUAL","SEPTIEMBRE","") ->  | M46: =IF(J23="MENSUAL","OCTUBRE","") ->  | N46: =IF(J23="MENSUAL","NOVIEMBRE","") ->  | O46: =IF(J23="MENSUAL","DICIEMBRE","") -> 
C47: =G18 -> No. de actividades desarrolladas de los contratos suscritos * 100 | D47: 0
C48: =G19 -> No. total de actividades planificadas de los contratos suscritos | D48: 0
C49: VALOR | D49: 0 | E49: =IFERROR(IF($E$17=1,E47/E48,IF($E$17=2,E47,"")),"") -> 
C50: META PONDERADA | D50: =IF(AND(N23="ANUAL",J23="MENSUAL"),N17/12,IF(AND(N23="ANUAL",J23="TRIMESTRAL"),N17/4,IF(AND(N23="ANUAL",J23="SEMESTRAL"),N17/2,IF(AND(N23="ANUAL",J23="ANUAL"),N17,IF(AND(N23="SEMESTRAL",J23="MENSUAL"),N17/6,IF(AND(N23="SEMESTRAL",J23="TRIMESTRAL"),N17/2,IF(AND(N23="SEMESTRAL",J23="SEMESTRAL"),N17,IF(AND(N23="SEMESTRAL",J23="ANUAL"),"REVISAR FRECUENCIAS",IF(AND(N23="TRIMESTRAL",J23="MENSUAL"),N17/3,IF(AND(N23="TRIMESTRAL",J23="TRIMESTRAL"),N17,IF(AND(N23="TRIMESTRAL",J23="SEMESTRAL"),"REVISAR FRECUENCIAS",IF(AND(N23="TRIMESTRAL",J23="ANUAL"),"REVISAR FRECUENCIAS",IF(AND(N23="MENSUAL",J23="MENSUAL"),N17,IF(AND(N23="MENSUAL",J23="TRIMESTRAL"),"REVISAR FRECUENCIAS",IF(AND(N23="MENSUAL",J23="SEMESTRAL"),"REVISAR FRECUENCIAS",IF(AND(N23="MENSUAL",J23="ANUAL"),"REVISAR FRECUENCIAS","")))))))))))))))) -> 0.25 | E50: =IF(AND(N23="ANUAL",J23="MENSUAL"),N17/12+D50,IF(AND(N23="ANUAL",J23="TRIMESTRAL"),N17/4+D50,IF(AND(N23="ANUAL",J23="SEMESTRAL"),N17/2+D50,IF(AND(N23="SEMESTRAL",J23="MENSUAL"),N17/6+D50,IF(AND(N23="SEMESTRAL",J23="TRIMESTRAL"),N17/2+D50,IF(AND(N23="SEMESTRAL",J23="SEMESTRAL"),N17,IF(AND(N23="TRIMESTRAL",J23="MENSUAL"),N17/3+D50,IF(AND(N23="TRIMESTRAL",J23="TRIMESTRAL"),N17,IF(AND(N23="MENSUAL",J23="MENSUAL"),N17,""))))))))) -> 0.5 | F50: =IF(AND(N23="ANUAL",J23="MENSUAL"),N17/12+E50,IF(AND(N23="ANUAL",J23="TRIMESTRAL"),N17/4+E50,IF(AND(N23="SEMESTRAL",J23="MENSUAL"),N17/6+E50,IF(AND(N23="SEMESTRAL",J23="TRIMESTRAL"),N17/2,IF(AND(N23="TRIMESTRAL",J23="MENSUAL"),N17/3+E50,IF(AND(N23="TRIMESTRAL",J23="TRIMESTRAL"),N17,IF(AND(N23="MENSUAL",J23="MENSUAL"),N17,""))))))) -> 0.75 | G50: =IF(AND(N23="ANUAL",J23="MENSUAL"),N17/12+F50,IF(AND(N23="ANUAL",J23="TRIMESTRAL"),N17/4+F50,IF(AND(N23="SEMESTRAL",J23="MENSUAL"),N17/6+F50,IF(AND(N23="SEMESTRAL",J23="TRIMESTRAL"),N17/2+F50,IF(AND(N23="TRIMESTRAL",J23="MENSUAL"),N17/3,IF(AND(N23="TRIMESTRAL",J23="TRIMESTRAL"),N17,IF(AND(N23="MENSUAL",J23="MENSUAL"),N17,""))))))) -> 1 | H50: =IF(AND($N$23="ANUAL",$J$23="MENSUAL"),$N$17/12+G50,IF(AND(N23="SEMESTRAL",J23="MENSUAL"),N17/6+G50,IF(AND(N23="TRIMESTRAL",J23="MENSUAL"),N17/3+G50,IF(AND(N23="MENSUAL",J23="MENSUAL"),N17,"")))) ->  | I50: =IF(AND($N$23="ANUAL",$J$23="MENSUAL"),$N$17/12+H50,IF(AND(N23="SEMESTRAL",J23="MENSUAL"),N17/6+H50,IF(AND(N23="TRIMESTRAL",J23="MENSUAL"),N17/3+H50,IF(AND(N23="MENSUAL",J23="MENSUAL"),N17,"")))) ->  | J50: =IF(AND($N$23="ANUAL",$J$23="MENSUAL"),$N$17/12+I50,IF(AND(N23="SEMESTRAL",J23="MENSUAL"),N17/6,IF(AND(N23="TRIMESTRAL",J23="MENSUAL"),N17/3,IF(AND(N23="MENSUAL",J23="MENSUAL"),N17,"")))) ->  | K50: =IF(AND($N$23="ANUAL",$J$23="MENSUAL"),$N$17/12+J50,IF(AND(N23="SEMESTRAL",J23="MENSUAL"),N17/6+J50,IF(AND(N23="TRIMESTRAL",J23="MENSUAL"),N17/3+J50,IF(AND(N23="MENSUAL",J23="MENSUAL"),N17,"")))) ->  | L50: =IF(AND($N$23="ANUAL",$J$23="MENSUAL"),$N$17/12+K50,IF(AND(N23="SEMESTRAL",J23="MENSUAL"),N17/6+K50,IF(AND(N23="TRIMESTRAL",J23="MENSUAL"),N17/3+K50,IF(AND(N23="MENSUAL",J23="MENSUAL"),N17,"")))) ->  | M50: =IF(AND($N$23="ANUAL",$J$23="MENSUAL"),$N$17/12+L50,IF(AND(N23="SEMESTRAL",J23="MENSUAL"),N17/6+L50,IF(AND(N23="TRIMESTRAL",J23="MENSUAL"),N17/3,IF(AND(N23="MENSUAL",J23="MENSUAL"),N17,"")))) ->  | N50: =IF(AND($N$23="ANUAL",$J$23="MENSUAL"),$N$17/12+M50,IF(AND(N23="SEMESTRAL",J23="MENSUAL"),N17/6+M50,IF(AND(N23="TRIMESTRAL",J23="MENSUAL"),N17/3+M50,IF(AND(N23="MENSUAL",J23="MENSUAL"),N17,"")))) ->  | O50: =IF(AND($N$23="ANUAL",$J$23="MENSUAL"),$N$17/12+N50,IF(AND(N23="SEMESTRAL",J23="MENSUAL"),N17/6+N50,IF(AND(N23="TRIMESTRAL",J23="MENSUAL"),N17/3+N50,IF(AND(N23="MENSUAL",J23="MENSUAL"),N17,"")))) -> 
C52: NIVEL DE SEGREGACIÓN *
C53: UNIDAD SEGREGADA (Ej. Facultad, Programa Académico, Área) | G53: RESULTADO | K53: ANALISIS DE DATOS SEGREGADO
G73: Estratégico | J73: Eficacia
G74: Misional | J74: Eficiencia
G75: Apoyo | J75: Acreditación
G76: Seguimiento, Medición, Análisis y Evaluación | J76: Positiva
G77: Direccionamiento Estratégico | J77: Negativa
G78: Planeación Institucional | J78: Por Unidad Regional
G79: Proyectos Especiales y Relaciones Interinstitucionales | J79: Por Facultad
G80: Sistemas Integrados | J80: Por Programa Académico
G81: Autoevaluación y Acreditación | J81: Por área
G82: Comunicaciones | J82: Por Laboratorio
G83: Formación y Aprendizaje | J83: Otros
G84: Ciencia, Tecnología e Innovación | J84: No Aplica
G85: Interacción Social Universitaria
G86: Bienestar Universitario
G87: Admisiones y Registro
G88: Graduados
G89: Dialogando con el Mundo
G90: Talento Humano
G91: Jurídica
G92: Financiera
G93: Sistemas y Tecnología
G94: Bienes y Servicios
G95: Documental
G96: Apoyo Académico
G97: Control Interno
G98: Control Disciplinario
G99: Servicio de Atención al Ciudadano

Sheet EAA-1
B2: REGRESAR
E5: MACROPROCESO ESTRATÉGICO | M5: CÓDIGO: ESGr027
E6: PROCESO GESTIÓN SISTEMAS INTEGRADOS | M6: VERSIÓN: 7
E7: MATRIZ DE MEDICIÓN Y SEGUIMIENTO A LOS PROCESOS DE GESTIÓN | M7: VIGENCIA: 2020-03-20
M8: PÁGINA: 1 de 1
C10: FICHA DE INDICADOR
C12: MACROPROCESO | E12: Estratégico | I12: NOMBRE DEL INDICADOR | K12: Eficacia en la obtención de registros calificados
C13: PROCESO GESTIÓN | E13: Autoevaluación y Acreditación
C14: RESPONSABLE DE MEDICIÓN | E14: Director de Autoevaluación y Acreditación
C16: 1. COMPORTAMIENTO DE INDICADOR
C17: CLASIFICACIÓN DE LA MEDICIÓN | E17: 1 | H17: TIPO DE INDICADOR | J17: Eficacia | L17: META ANUAL | N17: 1
C18: FORMULA | E18: NUMERADOR | G18: Número de registros calificados otorgados *100 | L18: UNIDAD DE MEDIDA | N18: Porcentual
E19: DENOMINADOR | G19: Número de registros calificados emitidos por el MEN
C20: TENDENCIA | E20: Positiva | H20: NIVEL DE SEGREGACIÓN * | J20: Por Programa Académico | L20: ESCALA
L21: Deficiente | M21: Aceptable | N21: Bueno | O21: Excelente
L22: 0% - 99% | M22: N/A | N22: 1 | O22: N/A
C23: ORIGEN DE DATOS NUMERADOR | E23: Acto administrativo emitido por el MEN | H23: FRECUENCIA DE LA MEDICIÓN | J23: SEMESTRAL | L23: FRECUENCIA DE RESULTADO | N23: ANUAL
C24: ORIGEN DE DATOS DENOMINADOR | E24: Acto administrativo emitido por el MEN
C26: RESULTADOS
J27: ANÁLISIS DE DATOS
J34: ACCIÓN FORMULADA
J41: RESPONSABLE
J42: =E14 -> Director de Autoevaluación y Acreditación
C45: PERIODO DE EVALUACIÓN
C46: MES | D46: =IF(J23="MENSUAL","ENERO",IF(J23="TRIMESTRAL","MARZO",IF(J23="SEMESTRAL","JUNIO",IF(J23="ANUAL",YEAR(TODAY()),"")))) -> JUNIO | E46: =IF(J23="MENSUAL","FEBRERO",IF(J23="TRIMESTRAL","JUNIO",IF(J23="SEMESTRAL","DICIEMBRE",""))) -> DICIEMBRE | F46: =IF(J23="MENSUAL","MARZO",IF(J23="TRIMESTRAL","SEPTIEMBRE","")) ->  | G46: =IF(J23="MENSUAL","ABRIL",IF(J23="TRIMESTRAL","DICIEMBRE","")) ->  | H46: =IF(J23="MENSUAL","MAYO","") ->  | I46: =IF(J23="MENSUAL","JUNIO","") ->  | J46: =IF(J23="MENSUAL","JULIO","") ->  | K46: =IF(J23="MENSUAL","AGOSTO","") ->  | L46: =IF(J23="MENSUAL","SEPTIEMBRE","") ->  | M46: =IF(J23="MENSUAL","OCTUBRE","") ->  | N46: =IF(J23="MENSUAL","NOVIEMBRE","") ->  | O46: =IF(J23="MENSUAL","DICIEMBRE","") -> 
C47: =G18 -> Número de registros calificados otorgados *100
C48: =G19 -> Número de registros calificados emitidos por el MEN
C49: VALOR | D49: =IFERROR(IF($E$17=1,D47/D48,IF($E$17=2,D47,"")),"") ->  | E49: =IFERROR(IF($E$17=1,E47/E48,IF($E$17=2,E47,"")),"") -> 
C50: META PONDERADA | D50: =IF(AND(N23="ANUAL",J23="MENSUAL"),N17/12,IF(AND(N23="ANUAL",J23="TRIMESTRAL"),N17/4,IF(AND(N23="ANUAL",J23="SEMESTRAL"),N17/2,IF(AND(N23="ANUAL",J23="ANUAL"),N17,IF(AND(N23="SEMESTRAL",J23="MENSUAL"),N17/6,IF(AND(N23="SEMESTRAL",J23="TRIMESTRAL"),N17/2,IF(AND(N23="SEMESTRAL",J23="SEMESTRAL"),N17,IF(AND(N23="SEMESTRAL",J23="ANUAL"),"REVISAR FRECUENCIAS",IF(AND(N23="TRIMESTRAL",J23="MENSUAL"),N17/3,IF(AND(N23="TRIMESTRAL",J23="TRIMESTRAL"),N17,IF(AND(N23="TRIMESTRAL",J23="SEMESTRAL"),"REVISAR FRECUENCIAS",IF(AND(N23="TRIMESTRAL",J23="ANUAL"),"REVISAR FRECUENCIAS",IF(AND(N23="MENSUAL",J23="MENSUAL"),N17,IF(AND(N23="MENSUAL",J23="TRIMESTRAL"),"REVISAR FRECUENCIAS",IF(AND(N23="MENSUAL",J23="SEMESTRAL"),"REVISAR FRECUENCIAS",IF(AND(N23="MENSUAL",J23="ANUAL"),"REVISAR FRECUENCIAS","")))))))))))))))) -> 0.5 | E50: =IF(AND(N23="ANUAL",J23="MENSUAL"),N17/12+D50,IF(AND(N23="ANUAL",J23="TRIMESTRAL"),N17/4+D50,IF(AND(N23="ANUAL",J23="SEMESTRAL"),N17/2+D50,IF(AND(N23="SEMESTRAL",J23="MENSUAL"),N17/6+D50,IF(AND(N23="SEMESTRAL",J23="TRIMESTRAL"),N17/2+D50,IF(AND(N23="SEMESTRAL",J23="SEMESTRAL"),N17,IF(AND(N23="TRIMESTRAL",J23="MENSUAL"),N17/3+D50,IF(AND(N23="TRIMESTRAL",J23="TRIMESTRAL"),N17,IF(AND(N23="MENSUAL",J23="MENSUAL"),N17,""))))))))) -> 1 | F50: =IF(AND(N23="ANUAL",J23="MENSUAL"),N17/12+E50,IF(AND(N23="ANUAL",J23="TRIMESTRAL"),N17/4+E50,IF(AND(N23="SEMESTRAL",J23="MENSUAL"),N17/6+E50,IF(AND(N23="SEMESTRAL",J23="TRIMESTRAL"),N17/2,IF(AND(N23="TRIMESTRAL",J23="MENSUAL"),N17/3+E50,IF(AND(N23="TRIMESTRAL",J23="TRIMESTRAL"),N17,IF(AND(N23="MENSUAL",J23="MENSUAL"),N17,""))))))) ->  | G50: =IF(AND(N23="ANUAL",J23="MENSUAL"),N17/12+F50,IF(AND(N23="ANUAL",J23="TRIMESTRAL"),N17/4+F50,IF(AND(N23="SEMESTRAL",J23="MENSUAL"),N17/6+F50,IF(AND(N23="SEMESTRAL",J23="TRIMESTRAL"),N17/2+F50,IF(AND(N23="TRIMESTRAL",J23="MENSUAL"),N17/3,IF(AND(N23="TRIMESTRAL",J23="TRIMESTRAL"),N17,IF(AND(N23="MENSUAL",J23="MENSUAL"),N17,""))))))) ->  | H50: =IF(AND($N$23="ANUAL",$J$23="MENSUAL"),$N$17/12+G50,IF(AND(N23="SEMESTRAL",J23="MENSUAL"),N17/6+G50,IF(AND(N23="TRIMESTRAL",J23="MENSUAL"),N17/3+G50,IF(AND(N23="MENSUAL",J23="MENSUAL"),N17,"")))) ->  | I50: =IF(AND($N$23="ANUAL",$J$23="MENSUAL"),$N$17/12+H50,IF(AND(N23="SEMESTRAL",J23="MENSUAL"),N17/6+H50,IF(AND(N23="TRIMESTRAL",J23="MENSUAL"),N17/3+H50,IF(AND(N23="MENSUAL",J23="MENSUAL"),N17,"")))) ->  | J50: =IF(AND($N$23="ANUAL",$J$23="MENSUAL"),$N$17/12+I50,IF(AND(N23="SEMESTRAL",J23="MENSUAL"),N17/6,IF(AND(N23="TRIMESTRAL",J23="MENSUAL"),N17/3,IF(AND(N23="MENSUAL",J23="MENSUAL"),N17,"")))) ->  | K50: =IF(AND($N$23="ANUAL",$J$23="MENSUAL"),$N$17/12+J50,IF(AND(N23="SEMESTRAL",J23="MENSUAL"),N17/6+J50,IF(AND(N23="TRIMESTRAL",J23="MENSUAL"),N17/3+J50,IF(AND(N23="MENSUAL",J23="MENSUAL"),N17,"")))) ->  | L50: =IF(AND($N$23="ANUAL",$J$23="MENSUAL"),$N$17/12+K50,IF(AND(N23="SEMESTRAL",J23="MENSUAL"),N17/6+K50,IF(AND(N23="TRIMESTRAL",J23="MENSUAL"),N17/3+K50,IF(AND(N23="MENSUAL",J23="MENSUAL"),N17,"")))) ->  | M50: =IF(AND($N$23="ANUAL",$J$23="MENSUAL"),$N$17/12+L50,IF(AND(N23="SEMESTRAL",J23="MENSUAL"),N17/6+L50,IF(AND(N23="TRIMESTRAL",J23="MENSUAL"),N17/3,IF(AND(N23="MENSUAL",J23="MENSUAL"),N17,"")))) ->  | N50: =IF(AND($N$23="ANUAL",$J$23="MENSUAL"),$N$17/12+M50,IF(AND(N23="SEMESTRAL",J23="MENSUAL"),N17/6+M50,IF(AND(N23="TRIMESTRAL",J23="MENSUAL"),N17/3+M50,IF(AND(N23="MENSUAL",J23="MENSUAL"),N17,"")))) ->  | O50: =IF(AND($N$23="ANUAL",$J$23="MENSUAL"),$N$17/12+N50,IF(AND(N23="SEMESTRAL",J23="MENSUAL"),N17/6+N50,IF(AND(N23="TRIMESTRAL",J23="MENSUAL"),N17/3+N50,IF(AND(N23="MENSUAL",J23="MENSUAL"),N17,"")))) -> 
C52: NIVEL DE SEGREGACIÓN *
C53: UNIDAD SEGREGADA (Ej. Facultad, Programa Académico, Área) | G53: RESULTADO | K53: ANÁLISIS DE DATOS SEGREGADO
C54: Administración de Empresas - Chía
C55: Administración de Empresas - Girardot
C56: Administración de Empresas - Facatativá
C57: Zootecnia - Ubaté
C58: Ingeniería de Sistemas - Fusagasugá
C59: Ingeniería de Sistemas - Facatativá
C60: Ingeniería Ambiental - Facatativá
C61: Doctorado en Ciencias de la Educación - Fusagasugá
G72: Estratégico | J72: Eficacia
G73: Misional | J73: Eficiencia
G74: Apoyo | J74: Acreditación
G75: Seguimiento, Medición, Análisis y Evaluación | J75: Positiva
G76: Direccionamiento Estratégico | J76: Negativa
G77: Planeación Institucional | J77: Por Unidad Regional
G78: Proyectos Especiales y Relaciones Interinstitucionales | J78: Por Facultad
G79: Sistemas Integrados | J79: Por Programa Académico
G80: Autoevaluación y Acreditación | J80: Por área
G81: Comunicaciones | J81: Por Laboratorio
G82: Formación y Aprendizaje | J82: Otros
G83: Ciencia, Tecnología e Innovación | J83: No Aplica
G84: Interacción Social Universitaria
G85: Bienestar Universitario
G86: Admisiones y Registro
G87: Graduados
G88: Dialogando con el Mundo
G89: Talento Humano
G90: Jurídica
G91: Financiera
G92: Sistemas y Tecnología
G93: Bienes y Servicios
G94: Documental
G95: Apoyo Académico
G96: Control Interno
G97: Control Disciplinario
G98: Servicio de Atención al Ciudadano

Sheet EAA-2
B2: REGRESAR
E5: MACROPROCESO ESTRATÉGICO | M5: CÓDIGO: ESGr027
E6: PROCESO GESTIÓN SISTEMAS INTEGRADOS | M6: VERSIÓN: 7
E7: MATRIZ DE MEDICIÓN Y SEGUIMIENTO A LOS PROCESOS DE GESTIÓN | M7: VIGENCIA: 2020-03-20
M8: PÁGINA: 1 de 1
C10: FICHA DE INDICADOR
C12: MACROPROCESO | E12: Estratégico | I12: NOMBRE DEL INDICADOR | K12: Cumplimiento de los planes de mejoramiento producto de la autoevaluación
C13: PROCESO GESTIÓN | E13: Autoevaluación y Acreditación
C14: RESPONSABLE DE MEDICIÓN | E14: Director de Autoevaluación y Acreditación
C16: 1. COMPORTAMIENTO DE INDICADOR
C17: CLASIFICACIÓN DE LA MEDICIÓN | E17: 1 | H17: TIPO DE INDICADOR | J17: Eficacia | L17: META ANUAL | N17: 0.8
C18: FORMULA | E18: NUMERADOR | G18: Total de actividades ejecutadas *100 | L18: UNIDAD DE MEDIDA | N18: Porcentual
E19: DENOMINADOR | G19: Total de actividades establecidas
C20: TENDENCIA | E20: Positiva | H20: NIVEL DE SEGREGACIÓN * | J20: Por Programa Académico | L20: ESCALA
L21: Deficiente | M21: Aceptable | N21: Bueno | O21: Excelente
L22: 0% - 50% | M22: 51% - 75% | N22: 76% - 80% | O22: ≥81%
C23: ORIGEN DE DATOS NUMERADOR | E23: Reporte mediante plataforma del modulo de aseguramiento de la calidad educativa del estado de avance de los planes de mejoramiento | H23: FRECUENCIA DE LA MEDICIÓN | J23: SEMESTRAL | L23: FRECUENCIA DE RESULTADO | N23: ANUAL
C24: ORIGEN DE DATOS DENOMINADOR | E24: Reporte mediante plataforma del modulo de aseguramiento de la calidad educativa del estado de avance de los planes de mejoramiento
C26: RESULTADOS
J27: ANÁLISIS DE DATOS
J34: ACCIÓN FORMULADA
J41: RESPONSABLE
J42: =E14 -> Director de Autoevaluación y Acreditación
C45: PERIODO DE EVALUACIÓN
C46: MES | D46: =IF(J23="MENSUAL","ENERO",IF(J23="TRIMESTRAL","MARZO",IF(J23="SEMESTRAL","JUNIO",IF(J23="ANUAL",YEAR(TODAY()),"")))) -> JUNIO | E46: =IF(J23="MENSUAL","FEBRERO",IF(J23="TRIMESTRAL","JUNIO",IF(J23="SEMESTRAL","DICIEMBRE",""))) -> DICIEMBRE | F46: =IF(J23="MENSUAL","MARZO",IF(J23="TRIMESTRAL","SEPTIEMBRE","")) ->  | G46: =IF(J23="MENSUAL","ABRIL",IF(J23="TRIMESTRAL","DICIEMBRE","")) ->  | H46: =IF(J23="MENSUAL","MAYO","") ->  | I46: =IF(J23="MENSUAL","JUNIO","") ->  | J46: =IF(J23="MENSUAL","JULIO","") ->  | K46: =IF(J23="MENSUAL","AGOSTO","") ->  | L46: =IF(J23="MENSUAL","SEPTIEMBRE","") ->  | M46: =IF(J23="MENSUAL","OCTUBRE","") ->  | N46: =IF(J23="MENSUAL","NOVIEMBRE","") ->  | O46: =IF(J23="MENSUAL","DICIEMBRE","") -> 
C47: =G18 -> Total de actividades ejecutadas *100
C48: =G19 -> Total de actividades establecidas
C49: VALOR | D49: =IFERROR(IF($E$17=1,D47/D48,IF($E$17=2,D47,"")),"") ->  | E49: =IFERROR(IF($E$17=1,E47/E48,IF($E$17=2,E47,"")),"") -> 
C50: META PONDERADA | D50: =IF(AND(N23="ANUAL",J23="MENSUAL"),N17/12,IF(AND(N23="ANUAL",J23="TRIMESTRAL"),N17/4,IF(AND(N23="ANUAL",J23="SEMESTRAL"),N17/2,IF(AND(N23="ANUAL",J23="ANUAL"),N17,IF(AND(N23="SEMESTRAL",J23="MENSUAL"),N17/6,IF(AND(N23="SEMESTRAL",J23="TRIMESTRAL"),N17/2,IF(AND(N23="SEMESTRAL",J23="SEMESTRAL"),N17,IF(AND(N23="SEMESTRAL",J23="ANUAL"),"REVISAR FRECUENCIAS",IF(AND(N23="TRIMESTRAL",J23="MENSUAL"),N17/3,IF(AND(N23="TRIMESTRAL",J23="TRIMESTRAL"),N17,IF(AND(N23="TRIMESTRAL",J23="SEMESTRAL"),"REVISAR FRECUENCIAS",IF(AND(N23="TRIMESTRAL",J23="ANUAL"),"REVISAR FRECUENCIAS",IF(AND(N23="MENSUAL",J23="MENSUAL"),N17,IF(AND(N23="MENSUAL",J23="TRIMESTRAL"),"REVISAR FRECUENCIAS",IF(AND(N23="MENSUAL",J23="SEMESTRAL"),"REVISAR FRECUENCIAS",IF(AND(N23="MENSUAL",J23="ANUAL"),"REVISAR FRECUENCIAS","")))))))))))))))) -> 0.4 | E50: =IF(AND(N23="ANUAL",J23="MENSUAL"),N17/12+D50,IF(AND(N23="ANUAL",J23="TRIMESTRAL"),N17/4+D50,IF(AND(N23="ANUAL",J23="SEMESTRAL"),N17/2+D50,IF(AND(N23="SEMESTRAL",J23="MENSUAL"),N17/6+D50,IF(AND(N23="SEMESTRAL",J23="TRIMESTRAL"),N17/2+D50,IF(AND(N23="SEMESTRAL",J23="SEMESTRAL"),N17,IF(AND(N23="TRIMESTRAL",J23="MENSUAL"),N17/3+D50,IF(AND(N23="TRIMESTRAL",J23="TRIMESTRAL"),N17,IF(AND(N23="MENSUAL",J23="MENSUAL"),N17,""))))))))) -> 0.8 | F50: =IF(AND(N23="ANUAL",J23="MENSUAL"),N17/12+E50,IF(AND(N23="ANUAL",J23="TRIMESTRAL"),N17/4+E50,IF(AND(N23="SEMESTRAL",J23="MENSUAL"),N17/6+E50,IF(AND(N23="SEMESTRAL",J23="TRIMESTRAL"),N17/2,IF(AND(N23="TRIMESTRAL",J23="MENSUAL"),N17/3+E50,IF(AND(N23="TRIMESTRAL",J23="TRIMESTRAL"),N17,IF(AND(N23="MENSUAL",J23="MENSUAL"),N17,""))))))) ->  | G50: =IF(AND(N23="ANUAL",J23="MENSUAL"),N17/12+F50,IF(AND(N23="ANUAL",J23="TRIMESTRAL"),N17/4+F50,IF(AND(N23="SEMESTRAL",J23="MENSUAL"),N17/6+F50,IF(AND(N23="SEMESTRAL",J23="TRIMESTRAL"),N17/2+F50,IF(AND(N23="TRIMESTRAL",J23="MENSUAL"),N17/3,IF(AND(N23="TRIMESTRAL",J23="TRIMESTRAL"),N17,IF(AND(N23="MENSUAL",J23="MENSUAL"),N17,""))))))) ->  | H50: =IF(AND($N$23="ANUAL",$J$23="MENSUAL"),$N$17/12+G50,IF(AND(N23="SEMESTRAL",J23="MENSUAL"),N17/6+G50,IF(AND(N23="TRIMESTRAL",J23="MENSUAL"),N17/3+G50,IF(AND(N23="MENSUAL",J23="MENSUAL"),N17,"")))) ->  | I50: =IF(AND($N$23="ANUAL",$J$23="MENSUAL"),$N$17/12+H50,IF(AND(N23="SEMESTRAL",J23="MENSUAL"),N17/6+H50,IF(AND(N23="TRIMESTRAL",J23="MENSUAL"),N17/3+H50,IF(AND(N23="MENSUAL",J23="MENSUAL"),N17,"")))) ->  | J50: =IF(AND($N$23="ANUAL",$J$23="MENSUAL"),$N$17/12+I50,IF(AND(N23="SEMESTRAL",J23="MENSUAL"),N17/6,IF(AND(N23="TRIMESTRAL",J23="MENSUAL"),N17/3,IF(AND(N23="MENSUAL",J23="MENSUAL"),N17,"")))) ->  | K50: =IF(AND($N$23="ANUAL",$J$23="MENSUAL"),$N$17/12+J50,IF(AND(N23="SEMESTRAL",J23="MENSUAL"),N17/6+J50,IF(AND(N23="TRIMESTRAL",J23="MENSUAL"),N17/3+J50,IF(AND(N23="MENSUAL",J23="MENSUAL"),N17,"")))) ->  | L50: =IF(AND($N$23="ANUAL",$J$23="MENSUAL"),$N$17/12+K50,IF(AND(N23="SEMESTRAL",J23="MENSUAL"),N17/6+K50,IF(AND(N23="TRIMESTRAL",J23="MENSUAL"),N17/3+K50,IF(AND(N23="MENSUAL",J23="MENSUAL"),N17,"")))) ->  | M50: =IF(AND($N$23="ANUAL",$J$23="MENSUAL"),$N$17/12+L50,IF(AND(N23="SEMESTRAL",J23="MENSUAL"),N17/6+L50,IF(AND(N23="TRIMESTRAL",J23="MENSUAL"),N17/3,IF(AND(N23="MENSUAL",J23="MENSUAL"),N17,"")))) ->  | N50: =IF(AND($N$23="ANUAL",$J$23="MENSUAL"),$N$17/12+M50,IF(AND(N23="SEMESTRAL",J23="MENSUAL"),N17/6+M50,IF(AND(N23="TRIMESTRAL",J23="MENSUAL"),N17/3+M50,IF(AND(N23="MENSUAL",J23="MENSUAL"),N17,"")))) ->  | O50: =IF(AND($N$23="ANUAL",$J$23="MENSUAL"),$N$17/12+N50,IF(AND(N23="SEMESTRAL",J23="MENSUAL"),N17/6+N50,IF(AND(N23="TRIMESTRAL",J23="MENSUAL"),N17/3+N50,IF(AND(N23="MENSUAL",J23="MENSUAL"),N17,"")))) -> 
C52: NIVEL DE SEGREGACIÓN *
C53: UNIDAD SEGREGADA (Ej. Facultad, Programa Académico, Área) | G53: RESULTADO | K53: ANÁLISIS DE DATOS SEGREGADO
C54: Administración de empresas - Fusagasugá
C55: Administración de empresas - Girardot
C56: Administración de empresas - Ubaté
C57: Administración de empresas - Chía
C58: Administración de empresas - Facatativá
C59: Contaduría Pública- Fusagasugá
C60: Contaduría Pública - Facatativá
C61: Contaduría Pública Ubaté
C62: Contaduría Pública - Chía
C63: Tecnología en gestión Turística y Hotelera
C64: Ingeniería Agronómica - Fusagasugá
C65: Ingeniería Agronómica - Facatativá
C66: Ingeniería Ambiental - Girardot
C67: Ingeniería Ambiental - Facatativá
C68: Zootecnia - Fusagasugá
C69: Zootecnia - Ubaté
C70: Tecnología en Cartografía - Fusagasugá
C71: Profesional en Ciencias del Deporte y la Educación Física - Soacha
C72: Lic. en Ciencias Sociales - Fusagasugá
C73: Ingeniería Electrónica - Fusagasugá
C74: Ingeniería Industrial - Soacha
C75: Ingeniería de Sistemas - Fusagasugá
C76: Ingeniería de Sistemas - Ubaté
C77: Ingeniería de Sistemas - Chía
C78: Ingeniería de Sistemas - Facatativá
C79: Tecnología en Desarrollo de Software - Soacha
C80: Enfermería - Girardot
C81: Música - Zipaquirá
C82: Psicología - Facatativá
C83: Esp. en Gerencia para el Desarrollo Organizacional
C84: Esp. en Procesos Pedagógicos del Entrenamiento Deportivo
C85: Esp. en Educación Ambiental y Desarrollo de la Comunidad
C86: Esp. Negocios y Comercio Electrónico
C87: Esp. Gestión de Sistemas de Información Gerencial (Virtual)
C88: Maestría en Educación
C89: Maestría en Ciencias Ambientales
G100: Estratégico | J100: Eficacia
G101: Misional | J101: Eficiencia
G102: Apoyo | J102: Acreditación
G103: Seguimiento, Medición, Análisis y Evaluación | J103: Positiva
G104: Direccionamiento Estratégico | J104: Negativa
G105: Planeación Institucional | J105: Por Unidad Regional
G106: Proyectos Especiales y Relaciones Interinstitucionales | J106: Por Facultad
G107: Sistemas Integrados | J107: Por Programa Académico
G108: Autoevaluación y Acreditación | J108: Por área
G109: Comunicaciones | J109: Por Laboratorio
G110: Formación y Aprendizaje | J110: Otros
G111: Ciencia, Tecnología e Innovación | J111: No Aplica
G112: Interacción Social Universitaria
G113: Bienestar Universitario
G114: Admisiones y Registro
G115: Graduados
G116: Dialogando con el Mundo
G117: Talento Humano
G118: Jurídica
G119: Financiera
G120: Sistemas y Tecnología
G121: Bienes y Servicios
G122: Documental
G123: Apoyo Académico
G124: Control Interno
G125: Control Disciplinario
G126: Servicio de Atención al Ciudadano

Sheet EAA-3
B2: REGRESAR
E5: MACROPROCESO ESTRATÉGICO | M5: CÓDIGO: ESGr027
E6: PROCESO GESTIÓN SISTEMAS INTEGRADOS | M6: VERSIÓN: 7
E7: MATRIZ DE MEDICIÓN Y SEGUIMIENTO A LOS PROCESOS DE GESTIÓN | M7: VIGENCIA: 2020-03-20
M8: PÁGINA: 1 de 1
C10: FICHA DE INDICADOR
C12: MACROPROCESO | E12: Estratégico | I12: NOMBRE DEL INDICADOR | K12: Acreditación de programas en alta calidad
C13: PROCESO GESTIÓN | E13: Autoevaluación y Acreditación
C14: RESPONSABLE DE MEDICIÓN | E14: Director de Autoevaluación y Acreditación
C16: 1. COMPORTAMIENTO DE INDICADOR
C17: CLASIFICACIÓN DE LA MEDICIÓN | E17: 1 | H17: TIPO DE INDICADOR | J17: Eficacia | L17: META ANUAL | N17: 1
C18: FORMULA | E18: NUMERADOR | G18: Número de acreditaciones otorgadas *100 | L18: UNIDAD DE MEDIDA | N18: Porcentual
E19: DENOMINADOR | G19: Total de resoluciones emitidas por el MEN
C20: TENDENCIA | E20: Positiva | H20: NIVEL DE SEGREGACIÓN * | J20: Por Programa Académico | L20: ESCALA
L21: Deficiente | M21: Aceptable | N21: Bueno | O21: Excelente
L22: 0% - 20% | M22: 21% - 30% | N22: 31% - 100% | O22: N/A
C23: ORIGEN DE DATOS NUMERADOR | E23: Resoluciones expedidas por el MEN | H23: FRECUENCIA DE LA MEDICIÓN | J23: SEMESTRAL | L23: FRECUENCIA DE RESULTADO | N23: ANUAL
C24: ORIGEN DE DATOS DENOMINADOR | E24: Resoluciones expedidas por el MEN
C26: RESULTADOS
J27: ANÁLISIS DE DATOS
J34: ACCIÓN FORMULADA
J41: RESPONSABLE
J42: =E14 -> Director de Autoevaluación y Acreditación
C45: PERIODO DE EVALUACIÓN
C46: MES | D46: =IF(J23="MENSUAL","ENERO",IF(J23="TRIMESTRAL","MARZO",IF(J23="SEMESTRAL","JUNIO",IF(J23="ANUAL",YEAR(TODAY()),"")))) -> JUNIO | E46: =IF(J23="MENSUAL","FEBRERO",IF(J23="TRIMESTRAL","JUNIO",IF(J23="SEMESTRAL","DICIEMBRE",""))) -> DICIEMBRE | F46: =IF(J23="MENSUAL","MARZO",IF(J23="TRIMESTRAL","SEPTIEMBRE","")) ->  | G46: =IF(J23="MENSUAL","ABRIL",IF(J23="TRIMESTRAL","DICIEMBRE","")) ->  | H46: =IF(J23="MENSUAL","MAYO","") ->  | I46: =IF(J23="MENSUAL","JUNIO","") ->  | J46: =IF(J23="MENSUAL","JULIO","") ->  | K46: =IF(J23="MENSUAL","AGOSTO","") ->  | L46: =IF(J23="MENSUAL","SEPTIEMBRE","") ->  | M46: =IF(J23="MENSUAL","OCTUBRE","") ->  | N46: =IF(J23="MENSUAL","NOVIEMBRE","") ->  | O46: =IF(J23="MENSUAL","DICIEMBRE","") -> 
C47: =G18 -> Número de acreditaciones otorgadas *100
C48: =G19 -> Total de resoluciones emitidas por el MEN
C49: VALOR | D49: =IFERROR(IF($E$17=1,D47/D48,IF($E$17=2,D47,"")),"") ->  | E49: =IFERROR(IF($E$17=1,E47/E48,IF($E$17=2,E47,"")),"") -> 
C50: META PONDERADA | D50: =IF(AND(N23="ANUAL",J23="MENSUAL"),N17/12,IF(AND(N23="ANUAL",J23="TRIMESTRAL"),N17/4,IF(AND(N23="ANUAL",J23="SEMESTRAL"),N17/2,IF(AND(N23="ANUAL",J23="ANUAL"),N17,IF(AND(N23="SEMESTRAL",J23="MENSUAL"),N17/6,IF(AND(N23="SEMESTRAL",J23="TRIMESTRAL"),N17/2,IF(AND(N23="SEMESTRAL",J23="SEMESTRAL"),N17,IF(AND(N23="SEMESTRAL",J23="ANUAL"),"REVISAR FRECUENCIAS",IF(AND(N23="TRIMESTRAL",J23="MENSUAL"),N17/3,IF(AND(N23="TRIMESTRAL",J23="TRIMESTRAL"),N17,IF(AND(N23="TRIMESTRAL",J23="SEMESTRAL"),"REVISAR FRECUENCIAS",IF(AND(N23="TRIMESTRAL",J23="ANUAL"),"REVISAR FRECUENCIAS",IF(AND(N23="MENSUAL",J23="MENSUAL"),N17,IF(AND(N23="MENSUAL",J23="TRIMESTRAL"),"REVISAR FRECUENCIAS",IF(AND(N23="MENSUAL",J23="SEMESTRAL"),"REVISAR FRECUENCIAS",IF(AND(N23="MENSUAL",J23="ANUAL"),"REVISAR FRECUENCIAS","")))))))))))))))) -> 0.5 | E50: =IF(AND(N23="ANUAL",J23="MENSUAL"),N17/12+D50,IF(AND(N23="ANUAL",J23="TRIMESTRAL"),N17/4+D50,IF(AND(N23="ANUAL",J23="SEMESTRAL"),N17/2+D50,IF(AND(N23="SEMESTRAL",J23="MENSUAL"),N17/6+D50,IF(AND(N23="SEMESTRAL",J23="TRIMESTRAL"),N17/2+D50,IF(AND(N23="SEMESTRAL",J23="SEMESTRAL"),N17,IF(AND(N23="TRIMESTRAL",J23="MENSUAL"),N17/3+D50,IF(AND(N23="TRIMESTRAL",J23="TRIMESTRAL"),N17,IF(AND(N23="MENSUAL",J23="MENSUAL"),N17,""))))))))) -> 1 | F50: =IF(AND(N23="ANUAL",J23="MENSUAL"),N17/12+E50,IF(AND(N23="ANUAL",J23="TRIMESTRAL"),N17/4+E50,IF(AND(N23="SEMESTRAL",J23="MENSUAL"),N17/6+E50,IF(AND(N23="SEMESTRAL",J23="TRIMESTRAL"),N17/2,IF(AND(N23="TRIMESTRAL",J23="MENSUAL"),N17/3+E50,IF(AND(N23="TRIMESTRAL",J23="TRIMESTRAL"),N17,IF(AND(N23="MENSUAL",J23="MENSUAL"),N17,""))))))) ->  | G50: =IF(AND(N23="ANUAL",J23="MENSUAL"),N17/12+F50,IF(AND(N23="ANUAL",J23="TRIMESTRAL"),N17/4+F50,IF(AND(N23="SEMESTRAL",J23="MENSUAL"),N17/6+F50,IF(AND(N23="SEMESTRAL",J23="TRIMESTRAL"),N17/2+F50,IF(AND(N23="TRIMESTRAL",J23="MENSUAL"),N17/3,IF(AND(N23="TRIMESTRAL",J23="TRIMESTRAL"),N17,IF(AND(N23="MENSUAL",J23="MENSUAL"),N17,""))))))) ->  | H50: =IF(AND($N$23="ANUAL",$J$23="MENSUAL"),$N$17/12+G50,IF(AND(N23="SEMESTRAL",J23="MENSUAL"),N17/6+G50,IF(AND(N23="TRIMESTRAL",J23="MENSUAL"),N17/3+G50,IF(AND(N23="MENSUAL",J23="MENSUAL"),N17,"")))) ->  | I50: =IF(AND($N$23="ANUAL",$J$23="MENSUAL"),$N$17/12+H50,IF(AND(N23="SEMESTRAL",J23="MENSUAL"),N17/6+H50,IF(AND(N23="TRIMESTRAL",J23="MENSUAL"),N17/3+H50,IF(AND(N23="MENSUAL",J23="MENSUAL"),N17,"")))) ->  | J50: =IF(AND($N$23="ANUAL",$J$23="MENSUAL"),$N$17/12+I50,IF(AND(N23="SEMESTRAL",J23="MENSUAL"),N17/6,IF(AND(N23="TRIMESTRAL",J23="MENSUAL"),N17/3,IF(AND(N23="MENSUAL",J23="MENSUAL"),N17,"")))) ->  | K50: =IF(AND($N$23="ANUAL",$J$23="MENSUAL"),$N$17/12+J50,IF(AND(N23="SEMESTRAL",J23="MENSUAL"),N17/6+J50,IF(AND(N23="TRIMESTRAL",J23="MENSUAL"),N17/3+J50,IF(AND(N23="MENSUAL",J23="MENSUAL"),N17,"")))) ->  | L50: =IF(AND($N$23="ANUAL",$J$23="MENSUAL"),$N$17/12+K50,IF(AND(N23="SEMESTRAL",J23="MENSUAL"),N17/6+K50,IF(AND(N23="TRIMESTRAL",J23="MENSUAL"),N17/3+K50,IF(AND(N23="MENSUAL",J23="MENSUAL"),N17,"")))) ->  | M50: =IF(AND($N$23="ANUAL",$J$23="MENSUAL"),$N$17/12+L50,IF(AND(N23="SEMESTRAL",J23="MENSUAL"),N17/6+L50,IF(AND(N23="TRIMESTRAL",J23="MENSUAL"),N17/3,IF(AND(N23="MENSUAL",J23="MENSUAL"),N17,"")))) ->  | N50: =IF(AND($N$23="ANUAL",$J$23="MENSUAL"),$N$17/12+M50,IF(AND(N23="SEMESTRAL",J23="MENSUAL"),N17/6+M50,IF(AND(N23="TRIMESTRAL",J23="MENSUAL"),N17/3+M50,IF(AND(N23="MENSUAL",J23="MENSUAL"),N17,"")))) ->  | O50: =IF(AND($N$23="ANUAL",$J$23="MENSUAL"),$N$17/12+N50,IF(AND(N23="SEMESTRAL",J23="MENSUAL"),N17/6+N50,IF(AND(N23="TRIMESTRAL",J23="MENSUAL"),N17/3+N50,IF(AND(N23="MENSUAL",J23="MENSUAL"),N17,"")))) -> 
C52: NIVEL DE SEGREGACIÓN *
C53: UNIDAD SEGREGADA (Ej. Facultad, Programa Académico, Área) | G53: RESULTADO | K53: ANÁLISIS DE DATOS SEGREGADO
G71: Estratégico | J71: Eficacia
G72: Misional | J72: Eficiencia
G73: Apoyo | J73: Acreditación
G74: Seguimiento, Medición, Análisis y Evaluación | J74: Positiva
G75: Direccionamiento Estratégico | J75: Negativa
G76: Planeación Institucional | J76: Por Unidad Regional
G77: Proyectos Especiales y Relaciones Interinstitucionales | J77: Por Facultad
G78: Sistemas Integrados | J78: Por Programa Académico
G79: Autoevaluación y Acreditación | J79: Por área
G80: Comunicaciones | J80: Por Laboratorio
G81: Formación y Aprendizaje | J81: Otros
G82: Ciencia, Tecnología e Innovación | J82: No Aplica
G83: Interacción Social Universitaria
G84: Bienestar Universitario
G85: Admisiones y Registro
G86: Graduados
G87: Dialogando con el Mundo
G88: Talento Humano
G89: Jurídica
G90: Financiera
G91: Sistemas y Tecnología
G92: Bienes y Servicios
G93: Documental
G94: Apoyo Académico
G95: Control Interno
G96: Control Disciplinario
G97: Servicio de Atención al Ciudadano

Sheet EAA-4
B2: REGRESAR
E5: MACROPROCESO ESTRATÉGICO | M5: CÓDIGO: ESGr027
E6: PROCESO GESTIÓN SISTEMAS INTEGRADOS | M6: VERSIÓN: 7
E7: MATRIZ DE MEDICIÓN Y SEGUIMIENTO A LOS PROCESOS DE GESTIÓN | M7: VIGENCIA: 2020-03-20
M8: PÁGINA: 1 de 1
C10: FICHA DE INDICADOR
C12: MACROPROCESO | E12: Estratégico | I12: NOMBRE DEL INDICADOR | K12: Participación de estudiantes en la autoevaluación de los programas académicos
C13: PROCESO GESTIÓN | E13: Autoevaluación y Acreditación
C14: RESPONSABLE DE MEDICIÓN | E14: Director de Autoevaluación y Acreditación
C16: 1. COMPORTAMIENTO DE INDICADOR
C17: CLASIFICACIÓN DE LA MEDICIÓN | E17: 1 | H17: TIPO DE INDICADOR | J17: Acreditación | L17: META ANUAL | N17: 0.4
C18: FORMULA | E18: NUMERADOR | G18: N° de estudiantes que participaron en la autoevaluación *100 | L18: UNIDAD DE MEDIDA | N18: Porcentual
E19: DENOMINADOR | G19: Total de estudiantes del programa (Aplica solo para programas que presenten autoevaluación durante el desarrollo de la vigencia)
C20: TENDENCIA | E20: Positiva | H20: NIVEL DE SEGREGACIÓN * | J20: Por Programa Académico | L20: ESCALA
L21: Deficiente | M21: Aceptable | N21: Bueno | O21: Excelente
L22: 0% - 20% | M22: 21% - 30% | N22: 31% - 40% | O22: 41% - 100%
C23: ORIGEN DE DATOS NUMERADOR | E23: Modulo de aseguramiento de la calidad educativa | H23: FRECUENCIA DE LA MEDICIÓN | J23: ANUAL | L23: FRECUENCIA DE RESULTADO | N23: ANUAL
C24: ORIGEN DE DATOS DENOMINADOR | E24: Base de datos de admisiones y registro
C26: RESULTADOS
J27: ANÁLISIS DE DATOS
J34: ACCIÓN FORMULADA
J41: RESPONSABLE
J42: =E14 -> Director de Autoevaluación y Acreditación
C45: PERIODO DE EVALUACIÓN
C46: MES | D46: =IF(J23="MENSUAL","ENERO",IF(J23="TRIMESTRAL","MARZO",IF(J23="SEMESTRAL","JUNIO",IF(J23="ANUAL",YEAR(TODAY()),"")))) -> 2020 | E46: =IF(J23="MENSUAL","FEBRERO",IF(J23="TRIMESTRAL","JUNIO",IF(J23="SEMESTRAL","DICIEMBRE",""))) ->  | F46: =IF(J23="MENSUAL","MARZO",IF(J23="TRIMESTRAL","SEPTIEMBRE","")) ->  | G46: =IF(J23="MENSUAL","ABRIL",IF(J23="TRIMESTRAL","DICIEMBRE","")) ->  | H46: =IF(J23="MENSUAL","MAYO","") ->  | I46: =IF(J23="MENSUAL","JUNIO","") ->  | J46: =IF(J23="MENSUAL","JULIO","") ->  | K46: =IF(J23="MENSUAL","AGOSTO","") ->  | L46: =IF(J23="MENSUAL","SEPTIEMBRE","") ->  | M46: =IF(J23="MENSUAL","OCTUBRE","") ->  | N46: =IF(J23="MENSUAL","NOVIEMBRE","") ->  | O46: =IF(J23="MENSUAL","DICIEMBRE","") -> 
C47: =G18 -> N° de estudiantes que participaron en la autoevaluación *100
C48: =G19 -> Total de estudiantes del programa (Aplica solo para programas que presenten autoevaluación durante el desarrollo de la vigencia)
C49: VALOR | D49: =IFERROR(IF($E$17=1,D47/D48,IF($E$17=2,D47,"")),"") ->  | E49: =IFERROR(IF($E$17=1,E47/E48,IF($E$17=2,E47,"")),"") -> 
C50: META PONDERADA | D50: =IF(AND(N23="ANUAL",J23="MENSUAL"),N17/12,IF(AND(N23="ANUAL",J23="TRIMESTRAL"),N17/4,IF(AND(N23="ANUAL",J23="SEMESTRAL"),N17/2,IF(AND(N23="ANUAL",J23="ANUAL"),N17,IF(AND(N23="SEMESTRAL",J23="MENSUAL"),N17/6,IF(AND(N23="SEMESTRAL",J23="TRIMESTRAL"),N17/2,IF(AND(N23="SEMESTRAL",J23="SEMESTRAL"),N17,IF(AND(N23="SEMESTRAL",J23="ANUAL"),"REVISAR FRECUENCIAS",IF(AND(N23="TRIMESTRAL",J23="MENSUAL"),N17/3,IF(AND(N23="TRIMESTRAL",J23="TRIMESTRAL"),N17,IF(AND(N23="TRIMESTRAL",J23="SEMESTRAL"),"REVISAR FRECUENCIAS",IF(AND(N23="TRIMESTRAL",J23="ANUAL"),"REVISAR FRECUENCIAS",IF(AND(N23="MENSUAL",J23="MENSUAL"),N17,IF(AND(N23="MENSUAL",J23="TRIMESTRAL"),"REVISAR FRECUENCIAS",IF(AND(N23="MENSUAL",J23="SEMESTRAL"),"REVISAR FRECUENCIAS",IF(AND(N23="MENSUAL",J23="ANUAL"),"REVISAR FRECUENCIAS","")))))))))))))))) -> 0.4 | E50: =IF(AND(N23="ANUAL",J23="MENSUAL"),N17/12+D50,IF(AND(N23="ANUAL",J23="TRIMESTRAL"),N17/4+D50,IF(AND(N23="ANUAL",J23="SEMESTRAL"),N17/2+D50,IF(AND(N23="SEMESTRAL",J23="MENSUAL"),N17/6+D50,IF(AND(N23="SEMESTRAL",J23="TRIMESTRAL"),N17/2+D50,IF(AND(N23="SEMESTRAL",J23="SEMESTRAL"),N17,IF(AND(N23="TRIMESTRAL",J23="MENSUAL"),N17/3+D50,IF(AND(N23="TRIMESTRAL",J23="TRIMESTRAL"),N17,IF(AND(N23="MENSUAL",J23="MENSUAL"),N17,""))))))))) ->  | F50: =IF(AND(N23="ANUAL",J23="MENSUAL"),N17/12+E50,IF(AND(N23="ANUAL",J23="TRIMESTRAL"),N17/4+E50,IF(AND(N23="SEMESTRAL",J23="MENSUAL"),N17/6+E50,IF(AND(N23="SEMESTRAL",J23="TRIMESTRAL"),N17/2,IF(AND(N23="TRIMESTRAL",J23="MENSUAL"),N17/3+E50,IF(AND(N23="TRIMESTRAL",J23="TRIMESTRAL"),N17,IF(AND(N23="MENSUAL",J23="MENSUAL"),N17,""))))))) ->  | G50: =IF(AND(N23="ANUAL",J23="MENSUAL"),N17/12+F50,IF(AND(N23="ANUAL",J23="TRIMESTRAL"),N17/4+F50,IF(AND(N23="SEMESTRAL",J23="MENSUAL"),N17/6+F50,IF(AND(N23="SEMESTRAL",J23="TRIMESTRAL"),N17/2+F50,IF(AND(N23="TRIMESTRAL",J23="MENSUAL"),N17/3,IF(AND(N23="TRIMESTRAL",J23="TRIMESTRAL"),N17,IF(AND(N23="MENSUAL",J23="MENSUAL"),N17,""))))))) ->  | H50: =IF(AND($N$23="ANUAL",$J$23="MENSUAL"),$N$17/12+G50,IF(AND(N23="SEMESTRAL",J23="MENSUAL"),N17/6+G50,IF(AND(N23="TRIMESTRAL",J23="MENSUAL"),N17/3+G50,IF(AND(N23="MENSUAL",J23="MENSUAL"),N17,"")))) ->  | I50: =IF(AND($N$23="ANUAL",$J$23="MENSUAL"),$N$17/12+H50,IF(AND(N23="SEMESTRAL",J23="MENSUAL"),N17/6+H50,IF(AND(N23="TRIMESTRAL",J23="MENSUAL"),N17/3+H50,IF(AND(N23="MENSUAL",J23="MENSUAL"),N17,"")))) ->  | J50: =IF(AND($N$23="ANUAL",$J$23="MENSUAL"),$N$17/12+I50,IF(AND(N23="SEMESTRAL",J23="MENSUAL"),N17/6,IF(AND(N23="TRIMESTRAL",J23="MENSUAL"),N17/3,IF(AND(N23="MENSUAL",J23="MENSUAL"),N17,"")))) ->  | K50: =IF(AND($N$23="ANUAL",$J$23="MENSUAL"),$N$17/12+J50,IF(AND(N23="SEMESTRAL",J23="MENSUAL"),N17/6+J50,IF(AND(N23="TRIMESTRAL",J23="MENSUAL"),N17/3+J50,IF(AND(N23="MENSUAL",J23="MENSUAL"),N17,"")))) ->  | L50: =IF(AND($N$23="ANUAL",$J$23="MENSUAL"),$N$17/12+K50,IF(AND(N23="SEMESTRAL",J23="MENSUAL"),N17/6+K50,IF(AND(N23="TRIMESTRAL",J23="MENSUAL"),N17/3+K50,IF(AND(N23="MENSUAL",J23="MENSUAL"),N17,"")))) ->  | M50: =IF(AND($N$23="ANUAL",$J$23="MENSUAL"),$N$17/12+L50,IF(AND(N23="SEMESTRAL",J23="MENSUAL"),N17/6+L50,IF(AND(N23="TRIMESTRAL",J23="MENSUAL"),N17/3,IF(AND(N23="MENSUAL",J23="MENSUAL"),N17,"")))) ->  | N50: =IF(AND($N$23="ANUAL",$J$23="MENSUAL"),$N$17/12+M50,IF(AND(N23="SEMESTRAL",J23="MENSUAL"),N17/6+M50,IF(AND(N23="TRIMESTRAL",J23="MENSUAL"),N17/3+M50,IF(AND(N23="MENSUAL",J23="MENSUAL"),N17,"")))) ->  | O50: =IF(AND($N$23="ANUAL",$J$23="MENSUAL"),$N$17/12+N50,IF(AND(N23="SEMESTRAL",J23="MENSUAL"),N17/6+N50,IF(AND(N23="TRIMESTRAL",J23="MENSUAL"),N17/3+N50,IF(AND(N23="MENSUAL",J23="MENSUAL"),N17,"")))) -> 
C52: NIVEL DE SEGREGACIÓN *
C53: UNIDAD SEGREGADA (Ej. Facultad, Programa Académico, Área) | G53: RESULTADO | K53: ANÁLISIS DE DATOS SEGREGADO
C54: Administración de empresas - Fusagasugá
C55: Administración de empresas - Girardot
C56: Administración de empresas - Ubaté
C57: Administración de empresas - Chía
C58: Administración de empresas - Facatativá
C59: Contaduría Pública- Fusagasugá
C60: Contaduría Pública - Facatativá
C61: Contaduría Pública Ubaté
C62: Contaduría Pública - Chía
C63: Tecnología en gestión Turística y Hotelera
C64: Ingeniería Agronómica - Fusagasugá
C65: Ingeniería Agronómica - Facatativá
C66: Ingeniería Ambiental - Girardot
C67: Ingeniería Ambiental - Facatativá
C68: Zootecnia - Fusagasugá
C69: Zootecnia - Ubaté
C70: Tecnología en Cartografía - Fusagasugá
C71: Profesional en Ciencias del Deporte y la Educación Física - Soacha
C72: Lic. en Ciencias Sociales - Fusagasugá
C73: Ingeniería Electrónica - Fusagasugá
C74: Ingeniería Industrial - Soacha
C75: Ingeniería de Sistemas - Fusagasugá
C76: Ingeniería de Sistemas - Ubaté
C77: Ingeniería de Sistemas - Chía
C78: Ingeniería de Sistemas - Facatativá
C79: Tecnología en Desarrollo de Software - Soacha
C80: Enfermería - Girardot
C81: Música - Zipaquirá
C82: Psicología - Facatativá
C83: Esp. en Gerencia para el Desarrollo Organizacional
C84: Esp. en Procesos Pedagógicos del Entrenamiento Deportivo
C85: Esp. en Educación Ambiental y Desarrollo de la Comunidad
C86: Esp. Negocios y Comercio Electrónico
C87: Esp. Gestión de Sistemas de Información Gerencial (Virtual)
C88: Maestría en Educación
C89: Maestría en Ciencias Ambientales
G100: Estratégico | J100: Eficacia
G101: Misional | J101: Eficiencia
G102: Apoyo | J102: Acreditación
G103: Seguimiento, Medición, Análisis y Evaluación | J103: Positiva
G104: Direccionamiento Estratégico | J104: Negativa
G105: Planeación Institucional | J105: Por Unidad Regional
G106: Proyectos Especiales y Relaciones Interinstitucionales | J106: Por Facultad
G107: Sistemas Integrados | J107: Por Programa Académico
G108: Autoevaluación y Acreditación | J108: Por área
G109: Comunicaciones | J109: Por Laboratorio
G110: Formación y Aprendizaje | J110: Otros
G111: Ciencia, Tecnología e Innovación | J111: No Aplica
G112: Interacción Social Universitaria
G113: Bienestar Universitario
G114: Admisiones y Registro
G115: Graduados
G116: Dialogando con el Mundo
G117: Talento Humano
G118: Jurídica
G119: Financiera
G120: Sistemas y Tecnología
G121: Bienes y Servicios
G122: Documental
G123: Apoyo Académico
G124: Control Interno
G125: Control Disciplinario
G126: Servicio de Atención al Ciudadano

Sheet EAA-5
B2: REGRESAR
E5: MACROPROCESO ESTRATÉGICO | M5: CÓDIGO: ESGr027
E6: PROCESO GESTIÓN SISTEMAS INTEGRADOS | M6: VERSIÓN: 7
E7: MATRIZ DE MEDICIÓN Y SEGUIMIENTO A LOS PROCESOS DE GESTIÓN | M7: VIGENCIA: 2020-03-20
M8: PÁGINA: 1 de 1
C10: FICHA DE INDICADOR
C12: MACROPROCESO | E12: Estratégico | I12: NOMBRE DEL INDICADOR | K12: Participación de docentes en la autoevaluación de los programas académicos
C13: PROCESO GESTIÓN | E13: Autoevaluación y Acreditación
C14: RESPONSABLE DE MEDICIÓN | E14: Director de Autoevaluación y Acreditación
C16: 1. COMPORTAMIENTO DE INDICADOR
C17: CLASIFICACIÓN DE LA MEDICIÓN | E17: 1 | H17: TIPO DE INDICADOR | J17: Acreditación | L17: META ANUAL | N17: 0.4
C18: FORMULA | E18: NUMERADOR | G18: N° de docentes que participaron en la autoevaluación *100 | L18: UNIDAD DE MEDIDA | N18: Porcentual
E19: DENOMINADOR | G19: Total de docentes vinculados en el programa (Aplica solo para programas que presenten autoevaluación durante el desarrollo de la vigencia)
C20: TENDENCIA | E20: Positiva | H20: NIVEL DE SEGREGACIÓN * | J20: Por Programa Académico | L20: ESCALA
L21: Deficiente | M21: Aceptable | N21: Bueno | O21: Excelente
L22: 0% - 20% | M22: 21% - 30% | N22: 31% - 40% | O22: 41% - 100%
C23: ORIGEN DE DATOS NUMERADOR | E23: Modulo de aseguramiento de la calidad educativa | H23: FRECUENCIA DE LA MEDICIÓN | J23: ANUAL | L23: FRECUENCIA DE RESULTADO | N23: ANUAL
C24: ORIGEN DE DATOS DENOMINADOR | E24: Base de datos de Talento Humano
C26: RESULTADOS
J27: ANÁLISIS DE DATOS
J34: ACCIÓN FORMULADA
J41: RESPONSABLE
J42: =E14 -> Director de Autoevaluación y Acreditación
C45: PERIODO DE EVALUACIÓN
C46: MES | D46: =IF(J23="MENSUAL","ENERO",IF(J23="TRIMESTRAL","MARZO",IF(J23="SEMESTRAL","JUNIO",IF(J23="ANUAL",YEAR(TODAY()),"")))) -> 2020 | E46: =IF(J23="MENSUAL","FEBRERO",IF(J23="TRIMESTRAL","JUNIO",IF(J23="SEMESTRAL","DICIEMBRE",""))) ->  | F46: =IF(J23="MENSUAL","MARZO",IF(J23="TRIMESTRAL","SEPTIEMBRE","")) ->  | G46: =IF(J23="MENSUAL","ABRIL",IF(J23="TRIMESTRAL","DICIEMBRE","")) ->  | H46: =IF(J23="MENSUAL","MAYO","") ->  | I46: =IF(J23="MENSUAL","JUNIO","") ->  | J46: =IF(J23="MENSUAL","JULIO","") ->  | K46: =IF(J23="MENSUAL","AGOSTO","") ->  | L46: =IF(J23="MENSUAL","SEPTIEMBRE","") ->  | M46: =IF(J23="MENSUAL","OCTUBRE","") ->  | N46: =IF(J23="MENSUAL","NOVIEMBRE","") ->  | O46: =IF(J23="MENSUAL","DICIEMBRE","") -> 
C47: =G18 -> N° de docentes que participaron en la autoevaluación *100
C48: =G19 -> Total de docentes vinculados en el programa (Aplica solo para programas que presenten autoevaluación durante el desarrollo de la vigencia)
C49: VALOR | D49: =IFERROR(IF($E$17=1,D47/D48,IF($E$17=2,D47,"")),"") ->  | E49: =IFERROR(IF($E$17=1,E47/E48,IF($E$17=2,E47,"")),"") -> 
C50: META PONDERADA | D50: =IF(AND(N23="ANUAL",J23="MENSUAL"),N17/12,IF(AND(N23="ANUAL",J23="TRIMESTRAL"),N17/4,IF(AND(N23="ANUAL",J23="SEMESTRAL"),N17/2,IF(AND(N23="ANUAL",J23="ANUAL"),N17,IF(AND(N23="SEMESTRAL",J23="MENSUAL"),N17/6,IF(AND(N23="SEMESTRAL",J23="TRIMESTRAL"),N17/2,IF(AND(N23="SEMESTRAL",J23="SEMESTRAL"),N17,IF(AND(N23="SEMESTRAL",J23="ANUAL"),"REVISAR FRECUENCIAS",IF(AND(N23="TRIMESTRAL",J23="MENSUAL"),N17/3,IF(AND(N23="TRIMESTRAL",J23="TRIMESTRAL"),N17,IF(AND(N23="TRIMESTRAL",J23="SEMESTRAL"),"REVISAR FRECUENCIAS",IF(AND(N23="TRIMESTRAL",J23="ANUAL"),"REVISAR FRECUENCIAS",IF(AND(N23="MENSUAL",J23="MENSUAL"),N17,IF(AND(N23="MENSUAL",J23="TRIMESTRAL"),"REVISAR FRECUENCIAS",IF(AND(N23="MENSUAL",J23="SEMESTRAL"),"REVISAR FRECUENCIAS",IF(AND(N23="MENSUAL",J23="ANUAL"),"REVISAR FRECUENCIAS","")))))))))))))))) -> 0.4 | E50: =IF(AND(N23="ANUAL",J23="MENSUAL"),N17/12+D50,IF(AND(N23="ANUAL",J23="TRIMESTRAL"),N17/4+D50,IF(AND(N23="ANUAL",J23="SEMESTRAL"),N17/2+D50,IF(AND(N23="SEMESTRAL",J23="MENSUAL"),N17/6+D50,IF(AND(N23="SEMESTRAL",J23="TRIMESTRAL"),N17/2+D50,IF(AND(N23="SEMESTRAL",J23="SEMESTRAL"),N17,IF(AND(N23="TRIMESTRAL",J23="MENSUAL"),N17/3+D50,IF(AND(N23="TRIMESTRAL",J23="TRIMESTRAL"),N17,IF(AND(N23="MENSUAL",J23="MENSUAL"),N17,""))))))))) ->  | F50: =IF(AND(N23="ANUAL",J23="MENSUAL"),N17/12+E50,IF(AND(N23="ANUAL",J23="TRIMESTRAL"),N17/4+E50,IF(AND(N23="SEMESTRAL",J23="MENSUAL"),N17/6+E50,IF(AND(N23="SEMESTRAL",J23="TRIMESTRAL"),N17/2,IF(AND(N23="TRIMESTRAL",J23="MENSUAL"),N17/3+E50,IF(AND(N23="TRIMESTRAL",J23="TRIMESTRAL"),N17,IF(AND(N23="MENSUAL",J23="MENSUAL"),N17,""))))))) ->  | G50: =IF(AND(N23="ANUAL",J23="MENSUAL"),N17/12+F50,IF(AND(N23="ANUAL",J23="TRIMESTRAL"),N17/4+F50,IF(AND(N23="SEMESTRAL",J23="MENSUAL"),N17/6+F50,IF(AND(N23="SEMESTRAL",J23="TRIMESTRAL"),N17/2+F50,IF(AND(N23="TRIMESTRAL",J23="MENSUAL"),N17/3,IF(AND(N23="TRIMESTRAL",J23="TRIMESTRAL"),N17,IF(AND(N23="MENSUAL",J23="MENSUAL"),N17,""))))))) ->  | H50: =IF(AND($N$23="ANUAL",$J$23="MENSUAL"),$N$17/12+G50,IF(AND(N23="SEMESTRAL",J23="MENSUAL"),N17/6+G50,IF(AND(N23="TRIMESTRAL",J23="MENSUAL"),N17/3+G50,IF(AND(N23="MENSUAL",J23="MENSUAL"),N17,"")))) ->  | I50: =IF(AND($N$23="ANUAL",$J$23="MENSUAL"),$N$17/12+H50,IF(AND(N23="SEMESTRAL",J23="MENSUAL"),N17/6+H50,IF(AND(N23="TRIMESTRAL",J23="MENSUAL"),N17/3+H50,IF(AND(N23="MENSUAL",J23="MENSUAL"),N17,"")))) ->  | J50: =IF(AND($N$23="ANUAL",$J$23="MENSUAL"),$N$17/12+I50,IF(AND(N23="SEMESTRAL",J23="MENSUAL"),N17/6,IF(AND(N23="TRIMESTRAL",J23="MENSUAL"),N17/3,IF(AND(N23="MENSUAL",J23="MENSUAL"),N17,"")))) ->  | K50: =IF(AND($N$23="ANUAL",$J$23="MENSUAL"),$N$17/12+J50,IF(AND(N23="SEMESTRAL",J23="MENSUAL"),N17/6+J50,IF(AND(N23="TRIMESTRAL",J23="MENSUAL"),N17/3+J50,IF(AND(N23="MENSUAL",J23="MENSUAL"),N17,"")))) ->  | L50: =IF(AND($N$23="ANUAL",$J$23="MENSUAL"),$N$17/12+K50,IF(AND(N23="SEMESTRAL",J23="MENSUAL"),N17/6+K50,IF(AND(N23="TRIMESTRAL",J23="MENSUAL"),N17/3+K50,IF(AND(N23="MENSUAL",J23="MENSUAL"),N17,"")))) ->  | M50: =IF(AND($N$23="ANUAL",$J$23="MENSUAL"),$N$17/12+L50,IF(AND(N23="SEMESTRAL",J23="MENSUAL"),N17/6+L50,IF(AND(N23="TRIMESTRAL",J23="MENSUAL"),N17/3,IF(AND(N23="MENSUAL",J23="MENSUAL"),N17,"")))) ->  | N50: =IF(AND($N$23="ANUAL",$J$23="MENSUAL"),$N$17/12+M50,IF(AND(N23="SEMESTRAL",J23="MENSUAL"),N17/6+M50,IF(AND(N23="TRIMESTRAL",J23="MENSUAL"),N17/3+M50,IF(AND(N23="MENSUAL",J23="MENSUAL"),N17,"")))) ->  | O50: =IF(AND($N$23="ANUAL",$J$23="MENSUAL"),$N$17/12+N50,IF(AND(N23="SEMESTRAL",J23="MENSUAL"),N17/6+N50,IF(AND(N23="TRIMESTRAL",J23="MENSUAL"),N17/3+N50,IF(AND(N23="MENSUAL",J23="MENSUAL"),N17,"")))) -> 
C52: NIVEL DE SEGREGACIÓN *
C53: UNIDAD SEGREGADA (Ej. Facultad, Programa Académico, Área) | G53: RESULTADO | K53: ANÁLISIS DE DATOS SEGREGADO
C54: Administración de empresas - Fusagasugá
C55: Administración de empresas - Girardot
C56: Administración de empresas - Ubaté
C57: Administración de empresas - Chía
C58: Administración de empresas - Facatativá
C59: Contaduría Pública- Fusagasugá
C60: Contaduría Pública - Facatativá
C61: Contaduría Pública Ubaté
C62: Contaduría Pública - Chía
C63: Tecnología en gestión Turística y Hotelera
C64: Ingeniería Agronómica - Fusagasugá
C65: Ingeniería Agronómica - Facatativá
C66: Ingeniería Ambiental - Girardot
C67: Ingeniería Ambiental - Facatativá
C68: Zootecnia - Fusagasugá
C69: Zootecnia - Ubaté
C70: Tecnología en Cartografía - Fusagasugá
C71: Profesional en Ciencias del Deporte y la Educación Física - Soacha
C72: Lic. en Ciencias Sociales - Fusagasugá
C73: Ingeniería Electrónica - Fusagasugá
C74: Ingeniería Industrial - Soacha
C75: Ingeniería de Sistemas - Fusagasugá
C76: Ingeniería de Sistemas - Ubaté
C77: Ingeniería de Sistemas - Chía
C78: Ingeniería de Sistemas - Facatativá
C79: Tecnología en Desarrollo de Software - Soacha
C80: Enfermería - Girardot
C81: Música - Zipaquirá
C82: Psicología - Facatativá
C83: Esp. en Gerencia para el Desarrollo Organizacional
C84: Esp. en Procesos Pedagógicos del Entrenamiento Deportivo
C85: Esp. en Educación Ambiental y Desarrollo de la Comunidad
C86: Esp. Negocios y Comercio Electrónico
C87: Esp. Gestión de Sistemas de Información Gerencial (Virtual)
C88: Maestría en Educación
C89: Maestría en Ciencias Ambientales
G100: Estratégico | J100: Eficacia
G101: Misional | J101: Eficiencia
G102: Apoyo | J102: Acreditación
G103: Seguimiento, Medición, Análisis y Evaluación | J103: Positiva
G104: Direccionamiento Estratégico | J104: Negativa
G105: Planeación Institucional | J105: Por Unidad Regional
G106: Proyectos Especiales y Relaciones Interinstitucionales | J106: Por Facultad
G107: Sistemas Integrados | J107: Por Programa Académico
G108: Autoevaluación y Acreditación | J108: Por área
G109: Comunicaciones | J109: Por Laboratorio
G110: Formación y Aprendizaje | J110: Otros
G111: Ciencia, Tecnología e Innovación | J111: No Aplica
G112: Interacción Social Universitaria
G113: Bienestar Universitario
G114: Admisiones y Registro
G115: Graduados
G116: Dialogando con el Mundo
G117: Talento Humano
G118: Jurídica
G119: Financiera
G120: Sistemas y Tecnología
G121: Bienes y Servicios
G122: Documental
G123: Apoyo Académico
G124: Control Interno
G125: Control Disciplinario
G126: Servicio de Atención al Ciudadano

Sheet EAA-6
B2: REGRESAR
E5: MACROPROCESO ESTRATÉGICO | M5: CÓDIGO: ESGr027
E6: PROCESO GESTIÓN SISTEMAS INTEGRADOS | M6: VERSIÓN: 7
E7: MATRIZ DE MEDICIÓN Y SEGUIMIENTO A LOS PROCESOS DE GESTIÓN | M7: VIGENCIA: 2020-03-20
M8: PÁGINA: 1 de 1
C10: FICHA DE INDICADOR
C12: MACROPROCESO | E12: Estratégico | I12: NOMBRE DEL INDICADOR | K12: Participación de graduados en la autoevaluación de los programas académicos
C13: PROCESO GESTIÓN | E13: Autoevaluación y Acreditación
C14: RESPONSABLE DE MEDICIÓN | E14: Director de Autoevaluación y Acreditación
C16: 1. COMPORTAMIENTO DE INDICADOR
C17: CLASIFICACIÓN DE LA MEDICIÓN | E17: 1 | H17: TIPO DE INDICADOR | J17: Acreditación | L17: META ANUAL | N17: 0.2
C18: FORMULA | E18: NUMERADOR | G18: N° de graduados que participaron en la autoevaluación *100 | L18: UNIDAD DE MEDIDA | N18: Porcentual
E19: DENOMINADOR | G19: Total de graduados del programa (Aplica solo para programas que presenten autoevaluación durante el desarrollo de la vigencia)
C20: TENDENCIA | E20: Positiva | H20: NIVEL DE SEGREGACIÓN * | J20: Por Programa Académico | L20: ESCALA
L21: Deficiente | M21: Aceptable | N21: Bueno | O21: Excelente
L22: 0% - 5% | M22: 6% - 10% | N22: 11% - 20% | O22: 21% - 100%
C23: ORIGEN DE DATOS NUMERADOR | E23: Modulo de aseguramiento de la calidad educativa | H23: FRECUENCIA DE LA MEDICIÓN | J23: ANUAL | L23: FRECUENCIA DE RESULTADO | N23: ANUAL
C24: ORIGEN DE DATOS DENOMINADOR | E24: Base de datos de la oficina de Graduados
C26: RESULTADOS
J27: ANÁLISIS DE DATOS
J34: ACCIÓN FORMULADA
J41: RESPONSABLE
J42: =E14 -> Director de Autoevaluación y Acreditación
C45: PERIODO DE EVALUACIÓN
C46: MES | D46: =IF(J23="MENSUAL","ENERO",IF(J23="TRIMESTRAL","MARZO",IF(J23="SEMESTRAL","JUNIO",IF(J23="ANUAL",YEAR(TODAY()),"")))) -> 2020 | E46: =IF(J23="MENSUAL","FEBRERO",IF(J23="TRIMESTRAL","JUNIO",IF(J23="SEMESTRAL","DICIEMBRE",""))) ->  | F46: =IF(J23="MENSUAL","MARZO",IF(J23="TRIMESTRAL","SEPTIEMBRE","")) ->  | G46: =IF(J23="MENSUAL","ABRIL",IF(J23="TRIMESTRAL","DICIEMBRE","")) ->  | H46: =IF(J23="MENSUAL","MAYO","") ->  | I46: =IF(J23="MENSUAL","JUNIO","") ->  | J46: =IF(J23="MENSUAL","JULIO","") ->  | K46: =IF(J23="MENSUAL","AGOSTO","") ->  | L46: =IF(J23="MENSUAL","SEPTIEMBRE","") ->  | M46: =IF(J23="MENSUAL","OCTUBRE","") ->  | N46: =IF(J23="MENSUAL","NOVIEMBRE","") ->  | O46: =IF(J23="MENSUAL","DICIEMBRE","") -> 
C47: =G18 -> N° de graduados que participaron en la autoevaluación *100
C48: =G19 -> Total de graduados del programa (Aplica solo para programas que presenten autoevaluación durante el desarrollo de la vigencia)
C49: VALOR | D49: =IFERROR(IF($E$17=1,D47/D48,IF($E$17=2,D47,"")),"") ->  | E49: =IFERROR(IF($E$17=1,E47/E48,IF($E$17=2,E47,"")),"") -> 
C50: META PONDERADA | D50: =IF(AND(N23="ANUAL",J23="MENSUAL"),N17/12,IF(AND(N23="ANUAL",J23="TRIMESTRAL"),N17/4,IF(AND(N23="ANUAL",J23="SEMESTRAL"),N17/2,IF(AND(N23="ANUAL",J23="ANUAL"),N17,IF(AND(N23="SEMESTRAL",J23="MENSUAL"),N17/6,IF(AND(N23="SEMESTRAL",J23="TRIMESTRAL"),N17/2,IF(AND(N23="SEMESTRAL",J23="SEMESTRAL"),N17,IF(AND(N23="SEMESTRAL",J23="ANUAL"),"REVISAR FRECUENCIAS",IF(AND(N23="TRIMESTRAL",J23="MENSUAL"),N17/3,IF(AND(N23="TRIMESTRAL",J23="TRIMESTRAL"),N17,IF(AND(N23="TRIMESTRAL",J23="SEMESTRAL"),"REVISAR FRECUENCIAS",IF(AND(N23="TRIMESTRAL",J23="ANUAL"),"REVISAR FRECUENCIAS",IF(AND(N23="MENSUAL",J23="MENSUAL"),N17,IF(AND(N23="MENSUAL",J23="TRIMESTRAL"),"REVISAR FRECUENCIAS",IF(AND(N23="MENSUAL",J23="SEMESTRAL"),"REVISAR FRECUENCIAS",IF(AND(N23="MENSUAL",J23="ANUAL"),"REVISAR FRECUENCIAS","")))))))))))))))) -> 0.2 | E50: =IF(AND(N23="ANUAL",J23="MENSUAL"),N17/12+D50,IF(AND(N23="ANUAL",J23="TRIMESTRAL"),N17/4+D50,IF(AND(N23="ANUAL",J23="SEMESTRAL"),N17/2+D50,IF(AND(N23="SEMESTRAL",J23="MENSUAL"),N17/6+D50,IF(AND(N23="SEMESTRAL",J23="TRIMESTRAL"),N17/2+D50,IF(AND(N23="SEMESTRAL",J23="SEMESTRAL"),N17,IF(AND(N23="TRIMESTRAL",J23="MENSUAL"),N17/3+D50,IF(AND(N23="TRIMESTRAL",J23="TRIMESTRAL"),N17,IF(AND(N23="MENSUAL",J23="MENSUAL"),N17,""))))))))) ->  | F50: =IF(AND(N23="ANUAL",J23="MENSUAL"),N17/12+E50,IF(AND(N23="ANUAL",J23="TRIMESTRAL"),N17/4+E50,IF(AND(N23="SEMESTRAL",J23="MENSUAL"),N17/6+E50,IF(AND(N23="SEMESTRAL",J23="TRIMESTRAL"),N17/2,IF(AND(N23="TRIMESTRAL",J23="MENSUAL"),N17/3+E50,IF(AND(N23="TRIMESTRAL",J23="TRIMESTRAL"),N17,IF(AND(N23="MENSUAL",J23="MENSUAL"),N17,""))))))) ->  | G50: =IF(AND(N23="ANUAL",J23="MENSUAL"),N17/12+F50,IF(AND(N23="ANUAL",J23="TRIMESTRAL"),N17/4+F50,IF(AND(N23="SEMESTRAL",J23="MENSUAL"),N17/6+F50,IF(AND(N23="SEMESTRAL",J23="TRIMESTRAL"),N17/2+F50,IF(AND(N23="TRIMESTRAL",J23="MENSUAL"),N17/3,IF(AND(N23="TRIMESTRAL",J23="TRIMESTRAL"),N17,IF(AND(N23="MENSUAL",J23="MENSUAL"),N17,""))))))) ->  | H50: =IF(AND($N$23="ANUAL",$J$23="MENSUAL"),$N$17/12+G50,IF(AND(N23="SEMESTRAL",J23="MENSUAL"),N17/6+G50,IF(AND(N23="TRIMESTRAL",J23="MENSUAL"),N17/3+G50,IF(AND(N23="MENSUAL",J23="MENSUAL"),N17,"")))) ->  | I50: =IF(AND($N$23="ANUAL",$J$23="MENSUAL"),$N$17/12+H50,IF(AND(N23="SEMESTRAL",J23="MENSUAL"),N17/6+H50,IF(AND(N23="TRIMESTRAL",J23="MENSUAL"),N17/3+H50,IF(AND(N23="MENSUAL",J23="MENSUAL"),N17,"")))) ->  | J50: =IF(AND($N$23="ANUAL",$J$23="MENSUAL"),$N$17/12+I50,IF(AND(N23="SEMESTRAL",J23="MENSUAL"),N17/6,IF(AND(N23="TRIMESTRAL",J23="MENSUAL"),N17/3,IF(AND(N23="MENSUAL",J23="MENSUAL"),N17,"")))) ->  | K50: =IF(AND($N$23="ANUAL",$J$23="MENSUAL"),$N$17/12+J50,IF(AND(N23="SEMESTRAL",J23="MENSUAL"),N17/6+J50,IF(AND(N23="TRIMESTRAL",J23="MENSUAL"),N17/3+J50,IF(AND(N23="MENSUAL",J23="MENSUAL"),N17,"")))) ->  | L50: =IF(AND($N$23="ANUAL",$J$23="MENSUAL"),$N$17/12+K50,IF(AND(N23="SEMESTRAL",J23="MENSUAL"),N17/6+K50,IF(AND(N23="TRIMESTRAL",J23="MENSUAL"),N17/3+K50,IF(AND(N23="MENSUAL",J23="MENSUAL"),N17,"")))) ->  | M50: =IF(AND($N$23="ANUAL",$J$23="MENSUAL"),$N$17/12+L50,IF(AND(N23="SEMESTRAL",J23="MENSUAL"),N17/6+L50,IF(AND(N23="TRIMESTRAL",J23="MENSUAL"),N17/3,IF(AND(N23="MENSUAL",J23="MENSUAL"),N17,"")))) ->  | N50: =IF(AND($N$23="ANUAL",$J$23="MENSUAL"),$N$17/12+M50,IF(AND(N23="SEMESTRAL",J23="MENSUAL"),N17/6+M50,IF(AND(N23="TRIMESTRAL",J23="MENSUAL"),N17/3+M50,IF(AND(N23="MENSUAL",J23="MENSUAL"),N17,"")))) ->  | O50: =IF(AND($N$23="ANUAL",$J$23="MENSUAL"),$N$17/12+N50,IF(AND(N23="SEMESTRAL",J23="MENSUAL"),N17/6+N50,IF(AND(N23="TRIMESTRAL",J23="MENSUAL"),N17/3+N50,IF(AND(N23="MENSUAL",J23="MENSUAL"),N17,"")))) -> 
C52: NIVEL DE SEGREGACIÓN *
C53: UNIDAD SEGREGADA (Ej. Facultad, Programa Académico, Área) | G53: RESULTADO | K53: ANÁLISIS DE DATOS SEGREGADO
C54: Administración de empresas - Fusagasugá
C55: Administración de empresas - Girardot
C56: Administración de empresas - Ubaté
C57: Administración de empresas - Chía
C58: Administración de empresas - Facatativá
C59: Contaduría Pública- Fusagasugá
C60: Contaduría Pública - Facatativá
C61: Contaduría Pública Ubaté
C62: Contaduría Pública - Chía
C63: Tecnología en gestión Turística y Hotelera
C64: Ingeniería Agronómica - Fusagasugá
C65: Ingeniería Agronómica - Facatativá
C66: Ingeniería Ambiental - Girardot
C67: Ingeniería Ambiental - Facatativá
C68: Zootecnia - Fusagasugá
C69: Zootecnia - Ubaté
C70: Tecnología en Cartografía - Fusagasugá
C71: Profesional en Ciencias del Deporte y la Educación Física - Soacha
C72: Lic. en Ciencias Sociales - Fusagasugá
C73: Ingeniería Electrónica - Fusagasugá
C74: Ingeniería Industrial - Soacha
C75: Ingeniería de Sistemas - Fusagasugá
C76: Ingeniería de Sistemas - Ubaté
C77: Ingeniería de Sistemas - Chía
C78: Ingeniería de Sistemas - Facatativá
C79: Tecnología en Desarrollo de Software - Soacha
C80: Enfermería - Girardot
C81: Música - Zipaquirá
C82: Psicología - Facatativá
C83: Esp. en Gerencia para el Desarrollo Organizacional
C84: Esp. en Procesos Pedagógicos del Entrenamiento Deportivo
C85: Esp. en Educación Ambiental y Desarrollo de la Comunidad
C86: Esp. Negocios y Comercio Electrónico
C87: Esp. Gestión de Sistemas de Información Gerencial (Virtual)
C88: Maestría en Educación
C89: Maestría en Ciencias Ambientales
G100: Estratégico | J100: Eficacia
G101: Misional | J101: Eficiencia
G102: Apoyo | J102: Acreditación
G103: Seguimiento, Medición, Análisis y Evaluación | J103: Positiva
G104: Direccionamiento Estratégico | J104: Negativa
G105: Planeación Institucional | J105: Por Unidad Regional
G106: Proyectos Especiales y Relaciones Interinstitucionales | J106: Por Facultad
G107: Sistemas Integrados | J107: Por Programa Académico
G108: Autoevaluación y Acreditación | J108: Por área
G109: Comunicaciones | J109: Por Laboratorio
G110: Formación y Aprendizaje | J110: Otros
G111: Ciencia, Tecnología e Innovación | J111: No Aplica
G112: Interacción Social Universitaria
G113: Bienestar Universitario
G114: Admisiones y Registro
G115: Graduados
G116: Dialogando con el Mundo
G117: Talento Humano
G118: Jurídica
G119: Financiera
G120: Sistemas y Tecnología
G121: Bienes y Servicios
G122: Documental
G123: Apoyo Académico
G124: Control Interno
G125: Control Disciplinario
G126: Servicio de Atención al Ciudadano

Sheet EAA-7
B2: REGRESAR
E5: MACROPROCESO ESTRATÉGICO | M5: CÓDIGO: ESGr027
E6: PROCESO GESTIÓN SISTEMAS INTEGRADOS | M6: VERSIÓN: 7
E7: MATRIZ DE MEDICIÓN Y SEGUIMIENTO A LOS PROCESOS DE GESTIÓN | M7: VIGENCIA: 2020-03-20
M8: PÁGINA: 1 de 1
C10: FICHA DE INDICADOR
C12: MACROPROCESO | E12: Estratégico | I12: NOMBRE DEL INDICADOR | K12: Oportunidad en el cumplimiento del cronograma de autoevaluación
C13: PROCESO GESTIÓN | E13: Autoevaluación y Acreditación
C14: RESPONSABLE DE MEDICIÓN | E14: Director de Autoevaluación y Acreditación
C16: 1. COMPORTAMIENTO DE INDICADOR
C17: CLASIFICACIÓN DE LA MEDICIÓN | E17: 1 | H17: TIPO DE INDICADOR | J17: Eficiencia | L17: META ANUAL | N17: 1
C18: FORMULA | E18: NUMERADOR | G18: N° de actividades ejecutadas oportunamente *100 | L18: UNIDAD DE MEDIDA | N18: Porcentual
E19: DENOMINADOR | G19: Total de actividades
C20: TENDENCIA | E20: Positiva | H20: NIVEL DE SEGREGACIÓN * | J20: Por Programa Académico | L20: ESCALA
L21: Deficiente | M21: Aceptable | N21: Bueno | O21: Excelente
L22: 0% - 40% | M22: 41% - 84% | N22: 85% - 100% | O22: N/A
C23: ORIGEN DE DATOS NUMERADOR | E23: Módulo de aseguramiento de la calidad educativa | H23: FRECUENCIA DE LA MEDICIÓN | J23: TRIMESTRAL | L23: FRECUENCIA DE RESULTADO | N23: ANUAL
C24: ORIGEN DE DATOS DENOMINADOR | E24: Módulo de aseguramiento de la calidad educativa
C26: RESULTADOS
J27: ANÁLISIS DE DATOS
J28: Desde la Dirección de Autoevaluación y Acreditación se ha acompañado a todos los programas académicos de pregrado y posgrado de la Universidad de Cundinamarca durante el desarrollo del proceso de Autoevaluación, en el cual se han surtido a cabalidad las siguientes actividades del cronograma previsto: 1. Sensibilización y preparación del Proceso de Autoevaluación con la Comunidad Universitaria; 2. Recolección de Información (Documental); 3. Recolección de Información estadística e informes; Aplicación de instrumentos de percepción.
J34: ACCIÓN FORMULADA
J35: Para el efectivo cumplimiento de todo el cronograma de autoevaluación se llevarán a cabo las actividades faltantes: Emisión de Juicios de Calidad; Emisión de Planes de Mejoramiento; Informe de Autoevaluación y Socialización de resultados a la comunidad universitaria.
J41: RESPONSABLE
J42: =E14 -> Director de Autoevaluación y Acreditación
C45: PERIODO DE EVALUACIÓN
C46: MES | D46: =IF(J23="MENSUAL","ENERO",IF(J23="TRIMESTRAL","MARZO",IF(J23="SEMESTRAL","JUNIO",IF(J23="ANUAL",YEAR(TODAY()),"")))) -> MARZO | E46: =IF(J23="MENSUAL","FEBRERO",IF(J23="TRIMESTRAL","JUNIO",IF(J23="SEMESTRAL","DICIEMBRE",""))) -> JUNIO | F46: =IF(J23="MENSUAL","MARZO",IF(J23="TRIMESTRAL","SEPTIEMBRE","")) -> SEPTIEMBRE | G46: =IF(J23="MENSUAL","ABRIL",IF(J23="TRIMESTRAL","DICIEMBRE","")) -> DICIEMBRE | H46: =IF(J23="MENSUAL","MAYO","") ->  | I46: =IF(J23="MENSUAL","JUNIO","") ->  | J46: =IF(J23="MENSUAL","JULIO","") ->  | K46: =IF(J23="MENSUAL","AGOSTO","") ->  | L46: =IF(J23="MENSUAL","SEPTIEMBRE","") ->  | M46: =IF(J23="MENSUAL","OCTUBRE","") ->  | N46: =IF(J23="MENSUAL","NOVIEMBRE","") ->  | O46: =IF(J23="MENSUAL","DICIEMBRE","") -> 
C47: =G18 -> N° de actividades ejecutadas oportunamente *100 | D47: 144
C48: =G19 -> Total de actividades | D48: 288
C49: VALOR | D49: =IFERROR(IF($E$17=1,D47/D48,IF($E$17=2,D47,"")),"") -> 0.5 | E49: =IFERROR(IF($E$17=1,E47/E48,IF($E$17=2,E47,"")),"") -> 
C50: META PONDERADA | D50: =IF(AND(N23="ANUAL",J23="MENSUAL"),N17/12,IF(AND(N23="ANUAL",J23="TRIMESTRAL"),N17/4,IF(AND(N23="ANUAL",J23="SEMESTRAL"),N17/2,IF(AND(N23="ANUAL",J23="ANUAL"),N17,IF(AND(N23="SEMESTRAL",J23="MENSUAL"),N17/6,IF(AND(N23="SEMESTRAL",J23="TRIMESTRAL"),N17/2,IF(AND(N23="SEMESTRAL",J23="SEMESTRAL"),N17,IF(AND(N23="SEMESTRAL",J23="ANUAL"),"REVISAR FRECUENCIAS",IF(AND(N23="TRIMESTRAL",J23="MENSUAL"),N17/3,IF(AND(N23="TRIMESTRAL",J23="TRIMESTRAL"),N17,IF(AND(N23="TRIMESTRAL",J23="SEMESTRAL"),"REVISAR FRECUENCIAS",IF(AND(N23="TRIMESTRAL",J23="ANUAL"),"REVISAR FRECUENCIAS",IF(AND(N23="MENSUAL",J23="MENSUAL"),N17,IF(AND(N23="MENSUAL",J23="TRIMESTRAL"),"REVISAR FRECUENCIAS",IF(AND(N23="MENSUAL",J23="SEMESTRAL"),"REVISAR FRECUENCIAS",IF(AND(N23="MENSUAL",J23="ANUAL"),"REVISAR FRECUENCIAS","")))))))))))))))) -> 0.25 | E50: =IF(AND(N23="ANUAL",J23="MENSUAL"),N17/12+D50,IF(AND(N23="ANUAL",J23="TRIMESTRAL"),N17/4+D50,IF(AND(N23="ANUAL",J23="SEMESTRAL"),N17/2+D50,IF(AND(N23="SEMESTRAL",J23="MENSUAL"),N17/6+D50,IF(AND(N23="SEMESTRAL",J23="TRIMESTRAL"),N17/2+D50,IF(AND(N23="SEMESTRAL",J23="SEMESTRAL"),N17,IF(AND(N23="TRIMESTRAL",J23="MENSUAL"),N17/3+D50,IF(AND(N23="TRIMESTRAL",J23="TRIMESTRAL"),N17,IF(AND(N23="MENSUAL",J23="MENSUAL"),N17,""))))))))) -> 0.5 | F50: =IF(AND(N23="ANUAL",J23="MENSUAL"),N17/12+E50,IF(AND(N23="ANUAL",J23="TRIMESTRAL"),N17/4+E50,IF(AND(N23="SEMESTRAL",J23="MENSUAL"),N17/6+E50,IF(AND(N23="SEMESTRAL",J23="TRIMESTRAL"),N17/2,IF(AND(N23="TRIMESTRAL",J23="MENSUAL"),N17/3+E50,IF(AND(N23="TRIMESTRAL",J23="TRIMESTRAL"),N17,IF(AND(N23="MENSUAL",J23="MENSUAL"),N17,""))))))) -> 0.75 | G50: =IF(AND(N23="ANUAL",J23="MENSUAL"),N17/12+F50,IF(AND(N23="ANUAL",J23="TRIMESTRAL"),N17/4+F50,IF(AND(N23="SEMESTRAL",J23="MENSUAL"),N17/6+F50,IF(AND(N23="SEMESTRAL",J23="TRIMESTRAL"),N17/2+F50,IF(AND(N23="TRIMESTRAL",J23="MENSUAL"),N17/3,IF(AND(N23="TRIMESTRAL",J23="TRIMESTRAL"),N17,IF(AND(N23="MENSUAL",J23="MENSUAL"),N17,""))))))) -> 1 | H50: =IF(AND($N$23="ANUAL",$J$23="MENSUAL"),$N$17/12+G50,IF(AND(N23="SEMESTRAL",J23="MENSUAL"),N17/6+G50,IF(AND(N23="TRIMESTRAL",J23="MENSUAL"),N17/3+G50,IF(AND(N23="MENSUAL",J23="MENSUAL"),N17,"")))) ->  | I50: =IF(AND($N$23="ANUAL",$J$23="MENSUAL"),$N$17/12+H50,IF(AND(N23="SEMESTRAL",J23="MENSUAL"),N17/6+H50,IF(AND(N23="TRIMESTRAL",J23="MENSUAL"),N17/3+H50,IF(AND(N23="MENSUAL",J23="MENSUAL"),N17,"")))) ->  | J50: =IF(AND($N$23="ANUAL",$J$23="MENSUAL"),$N$17/12+I50,IF(AND(N23="SEMESTRAL",J23="MENSUAL"),N17/6,IF(AND(N23="TRIMESTRAL",J23="MENSUAL"),N17/3,IF(AND(N23="MENSUAL",J23="MENSUAL"),N17,"")))) ->  | K50: =IF(AND($N$23="ANUAL",$J$23="MENSUAL"),$N$17/12+J50,IF(AND(N23="SEMESTRAL",J23="MENSUAL"),N17/6+J50,IF(AND(N23="TRIMESTRAL",J23="MENSUAL"),N17/3+J50,IF(AND(N23="MENSUAL",J23="MENSUAL"),N17,"")))) ->  | L50: =IF(AND($N$23="ANUAL",$J$23="MENSUAL"),$N$17/12+K50,IF(AND(N23="SEMESTRAL",J23="MENSUAL"),N17/6+K50,IF(AND(N23="TRIMESTRAL",J23="MENSUAL"),N17/3+K50,IF(AND(N23="MENSUAL",J23="MENSUAL"),N17,"")))) ->  | M50: =IF(AND($N$23="ANUAL",$J$23="MENSUAL"),$N$17/12+L50,IF(AND(N23="SEMESTRAL",J23="MENSUAL"),N17/6+L50,IF(AND(N23="TRIMESTRAL",J23="MENSUAL"),N17/3,IF(AND(N23="MENSUAL",J23="MENSUAL"),N17,"")))) ->  | N50: =IF(AND($N$23="ANUAL",$J$23="MENSUAL"),$N$17/12+M50,IF(AND(N23="SEMESTRAL",J23="MENSUAL"),N17/6+M50,IF(AND(N23="TRIMESTRAL",J23="MENSUAL"),N17/3+M50,IF(AND(N23="MENSUAL",J23="MENSUAL"),N17,"")))) ->  | O50: =IF(AND($N$23="ANUAL",$J$23="MENSUAL"),$N$17/12+N50,IF(AND(N23="SEMESTRAL",J23="MENSUAL"),N17/6+N50,IF(AND(N23="TRIMESTRAL",J23="MENSUAL"),N17/3+N50,IF(AND(N23="MENSUAL",J23="MENSUAL"),N17,"")))) -> 
C52: NIVEL DE SEGREGACIÓN *
C53: UNIDAD SEGREGADA (Ej. Facultad, Programa Académico, Área) | G53: RESULTADO | K53: ANÁLISIS DE DATOS SEGREGADO
C54: Administración de empresas - Fusagasugá | G54: =50% -> 0.5 | K54: El programa académico ha desarrollado las actividades de: Sensibilización y preparación del Proceso de Autoevaluación con la Comunidad Universitaria; Recolección de Información (Documental); Recolección de Información estadística e informes y Aplicación de instrumentos de percepción; con el acompañamiento permanente de la Dirección de Autoevaluación y Acreditación para el efectivo cumplimiento de cada una de las actividades previstas.
C55: Administración de empresas - Girardot | G55: =50% -> 0.5 | K55: El programa académico ha desarrollado las actividades de: Sensibilización y preparación del Proceso de Autoevaluación con la Comunidad Universitaria; Recolección de Información (Documental); Recolección de Información estadística e informes y Aplicación de instrumentos de percepción; con el acompañamiento permanente de la Dirección de Autoevaluación y Acreditación para el efectivo cumplimiento de cada una de las actividades previstas.
C56: Administración de empresas - Ubaté | G56: =50% -> 0.5 | K56: El programa académico ha desarrollado las actividades de: Sensibilización y preparación del Proceso de Autoevaluación con la Comunidad Universitaria; Recolección de Información (Documental); Recolección de Información estadística e informes y Aplicación de instrumentos de percepción; con el acompañamiento permanente de la Dirección de Autoevaluación y Acreditación para el efectivo cumplimiento de cada una de las actividades previstas.
C57: Administración de empresas - Chía | G57: =50% -> 0.5 | K57: El programa académico ha desarrollado las actividades de: Sensibilización y preparación del Proceso de Autoevaluación con la Comunidad Universitaria; Recolección de Información (Documental); Recolección de Información estadística e informes y Aplicación de instrumentos de percepción; con el acompañamiento permanente de la Dirección de Autoevaluación y Acreditación para el efectivo cumplimiento de cada una de las actividades previstas.
C58: Administración de empresas - Facatativá | G58: 0.5 | K58: El programa académico ha desarrollado las actividades de: Sensibilización y preparación del Proceso de Autoevaluación con la Comunidad Universitaria; Recolección de Información (Documental); Recolección de Información estadística e informes y Aplicación de instrumentos de percepción; con el acompañamiento permanente de la Dirección de Autoevaluación y Acreditación para el efectivo cumplimiento de cada una de las actividades previstas.
C59: Contaduría Pública- Fusagasugá | G59: 0.5 | K59: El programa académico ha desarrollado las actividades de: Sensibilización y preparación del Proceso de Autoevaluación con la Comunidad Universitaria; Recolección de Información (Documental); Recolección de Información estadística e informes y Aplicación de instrumentos de percepción; con el acompañamiento permanente de la Dirección de Autoevaluación y Acreditación para el efectivo cumplimiento de cada una de las actividades previstas.
C60: Contaduría Pública - Facatativá | G60: 0.5 | K60: El programa académico ha desarrollado las actividades de: Sensibilización y preparación del Proceso de Autoevaluación con la Comunidad Universitaria; Recolección de Información (Documental); Recolección de Información estadística e informes y Aplicación de instrumentos de percepción; con el acompañamiento permanente de la Dirección de Autoevaluación y Acreditación para el efectivo cumplimiento de cada una de las actividades previstas.
C61: Contaduría Pública Ubaté | G61: 0.5 | K61: El programa académico ha desarrollado las actividades de: Sensibilización y preparación del Proceso de Autoevaluación con la Comunidad Universitaria; Recolección de Información (Documental); Recolección de Información estadística e informes y Aplicación de instrumentos de percepción; con el acompañamiento permanente de la Dirección de Autoevaluación y Acreditación para el efectivo cumplimiento de cada una de las actividades previstas.
C62: Contaduría Pública - Chía | G62: 0.5 | K62: El programa académico ha desarrollado las actividades de: Sensibilización y preparación del Proceso de Autoevaluación con la Comunidad Universitaria; Recolección de Información (Documental); Recolección de Información estadística e informes y Aplicación de instrumentos de percepción; con el acompañamiento permanente de la Dirección de Autoevaluación y Acreditación para el efectivo cumplimiento de cada una de las actividades previstas.
C63: Tecnología en gestión Turística y Hotelera | G63: 0.5 | K63: El programa académico ha desarrollado las actividades de: Sensibilización y preparación del Proceso de Autoevaluación con la Comunidad Universitaria; Recolección de Información (Documental); Recolección de Información estadística e informes y Aplicación de instrumentos de percepción; con el acompañamiento permanente de la Dirección de Autoevaluación y Acreditación para el efectivo cumplimiento de cada una de las actividades previstas.
C64: Ingeniería Agronómica - Fusagasugá | G64: 0.5 | K64: El programa académico ha desarrollado las actividades de: Sensibilización y preparación del Proceso de Autoevaluación con la Comunidad Universitaria; Recolección de Información (Documental); Recolección de Información estadística e informes y Aplicación de instrumentos de percepción; con el acompañamiento permanente de la Dirección de Autoevaluación y Acreditación para el efectivo cumplimiento de cada una de las actividades previstas.
C65: Ingeniería Agronómica - Facatativá | G65: 0.5 | K65: El programa académico ha desarrollado las actividades de: Sensibilización y preparación del Proceso de Autoevaluación con la Comunidad Universitaria; Recolección de Información (Documental); Recolección de Información estadística e informes y Aplicación de instrumentos de percepción; con el acompañamiento permanente de la Dirección de Autoevaluación y Acreditación para el efectivo cumplimiento de cada una de las actividades previstas.
C66: Ingeniería Ambiental - Girardot | G66: 0.5 | K66: El programa académico ha desarrollado las actividades de: Sensibilización y preparación del Proceso de Autoevaluación con la Comunidad Universitaria; Recolección de Información (Documental); Recolección de Información estadística e informes y Aplicación de instrumentos de percepción; con el acompañamiento permanente de la Dirección de Autoevaluación y Acreditación para el efectivo cumplimiento de cada una de las actividades previstas.
C67: Ingeniería Ambiental - Facatativá | G67: 0.5 | K67: El programa académico ha desarrollado las actividades de: Sensibilización y preparación del Proceso de Autoevaluación con la Comunidad Universitaria; Recolección de Información (Documental); Recolección de Información estadística e informes y Aplicación de instrumentos de percepción; con el acompañamiento permanente de la Dirección de Autoevaluación y Acreditación para el efectivo cumplimiento de cada una de las actividades previstas.
C68: Zootecnia - Fusagasugá | G68: 0.5 | K68: El programa académico ha desarrollado las actividades de: Sensibilización y preparación del Proceso de Autoevaluación con la Comunidad Universitaria; Recolección de Información (Documental); Recolección de Información estadística e informes y Aplicación de instrumentos de percepción; con el acompañamiento permanente de la Dirección de Autoevaluación y Acreditación para el efectivo cumplimiento de cada una de las actividades previstas.
C69: Zootecnia - Ubaté | G69: 0.5 | K69: El programa académico ha desarrollado las actividades de: Sensibilización y preparación del Proceso de Autoevaluación con la Comunidad Universitaria; Recolección de Información (Documental); Recolección de Información estadística e informes y Aplicación de instrumentos de percepción; con el acompañamiento permanente de la Dirección de Autoevaluación y Acreditación para el efectivo cumplimiento de cada una de las actividades previstas.
C70: Tecnología en Cartografía - Fusagasugá | G70: 0.5 | K70: El programa académico ha desarrollado las actividades de: Sensibilización y preparación del Proceso de Autoevaluación con la Comunidad Universitaria; Recolección de Información (Documental); Recolección de Información estadística e informes y Aplicación de instrumentos de percepción; con el acompañamiento permanente de la Dirección de Autoevaluación y Acreditación para el efectivo cumplimiento de cada una de las actividades previstas.
C71: Profesional en Ciencias del Deporte y la Educación Física - Soacha | G71: 0.5 | K71: El programa académico ha desarrollado las actividades de: Sensibilización y preparación del Proceso de Autoevaluación con la Comunidad Universitaria; Recolección de Información (Documental); Recolección de Información estadística e informes y Aplicación de instrumentos de percepción; con el acompañamiento permanente de la Dirección de Autoevaluación y Acreditación para el efectivo cumplimiento de cada una de las actividades previstas.
C72: Lic. en Ciencias Sociales - Fusagasugá | G72: 0.5 | K72: El programa académico ha desarrollado las actividades de: Sensibilización y preparación del Proceso de Autoevaluación con la Comunidad Universitaria; Recolección de Información (Documental); Recolección de Información estadística e informes y Aplicación de instrumentos de percepción; con el acompañamiento permanente de la Dirección de Autoevaluación y Acreditación para el efectivo cumplimiento de cada una de las actividades previstas.
C73: Ingeniería Electrónica - Fusagasugá | G73: 0.5 | K73: El programa académico ha desarrollado las actividades de: Sensibilización y preparación del Proceso de Autoevaluación con la Comunidad Universitaria; Recolección de Información (Documental); Recolección de Información estadística e informes y Aplicación de instrumentos de percepción; con el acompañamiento permanente de la Dirección de Autoevaluación y Acreditación para el efectivo cumplimiento de cada una de las actividades previstas.
C74: Ingeniería Industrial - Soacha | G74: 0.5 | K74: El programa académico ha desarrollado las actividades de: Sensibilización y preparación del Proceso de Autoevaluación con la Comunidad Universitaria; Recolección de Información (Documental); Recolección de Información estadística e informes y Aplicación de instrumentos de percepción; con el acompañamiento permanente de la Dirección de Autoevaluación y Acreditación para el efectivo cumplimiento de cada una de las actividades previstas.
C75: Ingeniería de Sistemas - Fusagasugá | G75: 0.5 | K75: El programa académico ha desarrollado las actividades de: Sensibilización y preparación del Proceso de Autoevaluación con la Comunidad Universitaria; Recolección de Información (Documental); Recolección de Información estadística e informes y Aplicación de instrumentos de percepción; con el acompañamiento permanente de la Dirección de Autoevaluación y Acreditación para el efectivo cumplimiento de cada una de las actividades previstas.
C76: Ingeniería de Sistemas - Ubaté | G76: 0.5 | K76: El programa académico ha desarrollado las actividades de: Sensibilización y preparación del Proceso de Autoevaluación con la Comunidad Universitaria; Recolección de Información (Documental); Recolección de Información estadística e informes y Aplicación de instrumentos de percepción; con el acompañamiento permanente de la Dirección de Autoevaluación y Acreditación para el efectivo cumplimiento de cada una de las actividades previstas.
C77: Ingeniería de Sistemas - Chía | G77: 0.5 | K77: El programa académico ha desarrollado las actividades de: Sensibilización y preparación del Proceso de Autoevaluación con la Comunidad Universitaria; Recolección de Información (Documental); Recolección de Información estadística e informes y Aplicación de instrumentos de percepción; con el acompañamiento permanente de la Dirección de Autoevaluación y Acreditación para el efectivo cumplimiento de cada una de las actividades previstas.
C78: Ingeniería de Sistemas - Facatativá | G78: 0.5 | K78: El programa académico ha desarrollado las actividades de: Sensibilización y preparación del Proceso de Autoevaluación con la Comunidad Universitaria; Recolección de Información (Documental); Recolección de Información estadística e informes y Aplicación de instrumentos de percepción; con el acompañamiento permanente de la Dirección de Autoevaluación y Acreditación para el efectivo cumplimiento de cada una de las actividades previstas.
C79: Tecnología en Desarrollo de Software - Soacha | G79: 0.5 | K79: El programa académico ha desarrollado las actividades de: Sensibilización y preparación del Proceso de Autoevaluación con la Comunidad Universitaria; Recolección de Información (Documental); Recolección de Información estadística e informes y Aplicación de instrumentos de percepción; con el acompañamiento permanente de la Dirección de Autoevaluación y Acreditación para el efectivo cumplimiento de cada una de las actividades previstas.
C80: Enfermería - Girardot | G80: 0.5 | K80: El programa académico ha desarrollado las actividades de: Sensibilización y preparación del Proceso de Autoevaluación con la Comunidad Universitaria; Recolección de Información (Documental); Recolección de Información estadística e informes y Aplicación de instrumentos de percepción; con el acompañamiento permanente de la Dirección de Autoevaluación y Acreditación para el efectivo cumplimiento de cada una de las actividades previstas.
C81: Música - Zipaquirá | G81: 0.5 | K81: El programa académico ha desarrollado las actividades de: Sensibilización y preparación del Proceso de Autoevaluación con la Comunidad Universitaria; Recolección de Información (Documental); Recolección de Información estadística e informes y Aplicación de instrumentos de percepción; con el acompañamiento permanente de la Dirección de Autoevaluación y Acreditación para el efectivo cumplimiento de cada una de las actividades previstas.
C82: Psicología - Facatativá | G82: 0.5 | K82: El programa académico ha desarrollado las actividades de: Sensibilización y preparación del Proceso de Autoevaluación con la Comunidad Universitaria; Recolección de Información (Documental); Recolección de Información estadística e informes y Aplicación de instrumentos de percepción; con el acompañamiento permanente de la Dirección de Autoevaluación y Acreditación para el efectivo cumplimiento de cada una de las actividades previstas.
C83: Esp. en Gerencia para el Desarrollo Organizacional | G83: 0.5 | K83: El programa académico ha desarrollado las actividades de: Sensibilización y preparación del Proceso de Autoevaluación con la Comunidad Universitaria; Recolección de Información (Documental); Recolección de Información estadística e informes y Aplicación de instrumentos de percepción; con el acompañamiento permanente de la Dirección de Autoevaluación y Acreditación para el efectivo cumplimiento de cada una de las actividades previstas.
C84: Esp. en Procesos Pedagógicos del Entrenamiento Deportivo | G84: 0.5 | K84: El programa académico ha desarrollado las actividades de: Sensibilización y preparación del Proceso de Autoevaluación con la Comunidad Universitaria; Recolección de Información (Documental); Recolección de Información estadística e informes y Aplicación de instrumentos de percepción; con el acompañamiento permanente de la Dirección de Autoevaluación y Acreditación para el efectivo cumplimiento de cada una de las actividades previstas.
C85: Esp. en Educación Ambiental y Desarrollo de la Comunidad | G85: 0.5 | K85: El programa académico ha desarrollado las actividades de: Sensibilización y preparación del Proceso de Autoevaluación con la Comunidad Universitaria; Recolección de Información (Documental); Recolección de Información estadística e informes y Aplicación de instrumentos de percepción; con el acompañamiento permanente de la Dirección de Autoevaluación y Acreditación para el efectivo cumplimiento de cada una de las actividades previstas.
C86: Esp. Negocios y Comercio Electrónico | G86: 0.5 | K86: El programa académico ha desarrollado las actividades de: Sensibilización y preparación del Proceso de Autoevaluación con la Comunidad Universitaria; Recolección de Información (Documental); Recolección de Información estadística e informes y Aplicación de instrumentos de percepción; con el acompañamiento permanente de la Dirección de Autoevaluación y Acreditación para el efectivo cumplimiento de cada una de las actividades previstas.
C87: Esp. Gestión de Sistemas de Información Gerencial (Virtual) | G87: 0.5 | K87: El programa académico ha desarrollado las actividades de: Sensibilización y preparación del Proceso de Autoevaluación con la Comunidad Universitaria; Recolección de Información (Documental); Recolección de Información estadística e informes y Aplicación de instrumentos de percepción; con el acompañamiento permanente de la Dirección de Autoevaluación y Acreditación para el efectivo cumplimiento de cada una de las actividades previstas.
C88: Maestría en Educación | G88: 0.5 | K88: El programa académico ha desarrollado las actividades de: Sensibilización y preparación del Proceso de Autoevaluación con la Comunidad Universitaria; Recolección de Información (Documental); Recolección de Información estadística e informes y Aplicación de instrumentos de percepción; con el acompañamiento permanente de la Dirección de Autoevaluación y Acreditación para el efectivo cumplimiento de cada una de las actividades previstas.
C89: Maestría en Ciencias Ambientales | G89: 0.5 | K89: El programa académico ha desarrollado las actividades de: Sensibilización y preparación del Proceso de Autoevaluación con la Comunidad Universitaria; Recolección de Información (Documental); Recolección de Información estadística e informes y Aplicación de instrumentos de percepción; con el acompañamiento permanente de la Dirección de Autoevaluación y Acreditación para el efectivo cumplimiento de cada una de las actividades previstas.
G101: Estratégico | J101: Eficacia
G102: Misional | J102: Eficiencia
G103: Apoyo | J103: Acreditación
G104: Seguimiento, Medición, Análisis y Evaluación | J104: Positiva
G105: Direccionamiento Estratégico | J105: Negativa
G106: Planeación Institucional | J106: Por Unidad Regional
G107: Proyectos Especiales y Relaciones Interinstitucionales | J107: Por Facultad
G108: Sistemas Integrados | J108: Por Programa Académico
G109: Autoevaluación y Acreditación | J109: Por área
G110: Comunicaciones | J110: Por Laboratorio
G111: Formación y Aprendizaje | J111: Otros
G112: Ciencia, Tecnología e Innovación | J112: No Aplica
G113: Interacción Social Universitaria
G114: Bienestar Universitario
G115: Admisiones y Registro
G116: Graduados
G117: Dialogando con el Mundo
G118: Talento Humano
G119: Jurídica
G120: Financiera
G121: Sistemas y Tecnología
G122: Bienes y Servicios
G123: Documental
G124: Apoyo Académico
G125: Control Interno
G126: Control Disciplinario
G127: Servicio de Atención al Ciudadano

Sheet EAA-8
B2: REGRESAR
E5: MACROPROCESO ESTRATÉGICO | M5: CÓDIGO: ESGr027
E6: PROCESO GESTIÓN SISTEMAS INTEGRADOS | M6: VERSIÓN: 7
E7: MATRIZ DE MEDICIÓN Y SEGUIMIENTO A LOS PROCESOS DE GESTIÓN | M7: VIGENCIA: 2020-03-20
M8: PÁGINA: 1 de 1
C10: FICHA DE INDICADOR
C12: MACROPROCESO | E12: Estratégico | I12: NOMBRE DEL INDICADOR | K12: Cumplimiento de los planes de contingencia
C13: PROCESO GESTIÓN | E13: Autoevaluación y Acreditación
C14: RESPONSABLE DE MEDICIÓN | E14: Director de Autoevaluación y Acreditación
C16: 1. COMPORTAMIENTO DE INDICADOR
C17: CLASIFICACIÓN DE LA MEDICIÓN | E17: 1 | H17: TIPO DE INDICADOR | J17: Eficiencia | L17: META ANUAL | N17: 1
C18: FORMULA | E18: NUMERADOR | G18: Total de actividades ejecutadas oportunamente *100 | L18: UNIDAD DE MEDIDA | N18: Porcentual
E19: DENOMINADOR | G19: Total de actividades programadas
C20: TENDENCIA | E20: Positiva | H20: NIVEL DE SEGREGACIÓN * | J20: Por Programa Académico | L20: ESCALA
L21: Deficiente | M21: Aceptable | N21: Bueno | O21: Excelente
L22: 0% - 49% | M22: 50% - 75% | N22: 76% - 100% | O22: N/A
C23: ORIGEN DE DATOS NUMERADOR | E23: Documento en ONE DRIVE | H23: FRECUENCIA DE LA MEDICIÓN | J23: TRIMESTRAL | L23: FRECUENCIA DE RESULTADO | N23: ANUAL
C24: ORIGEN DE DATOS DENOMINADOR | E24: Documento en ONE DRIVE
C26: RESULTADOS
J27: ANÁLISIS DE DATOS
J28: Los programas académicos en cumplimiento del cronograma planteado en cada uno de los tres (3) Planes de Contingencia han desarrollado oportunamente 28 de las 46 actividades formuladas, las cuales se distribuyen así: La Lic. En Educación Básica con énfasis en Educación Física, Recreación y Deportes ha cumplido con 12 de las 21 actividades previstas, la Lic. en educación básica con énfasis en lengua castellana e Ingles ha desarrollado oportunamente 10 de las 15 actividades plateadas y la Lic. en Matemáticas 6 de 10 actividades. Desde la Dirección de Autoevaluación y Acreditación se ha hecho seguimiento a la entrega de soportes por parte de los programas académicos que evidencian el cumplimiento de las actividades, lo cual ha permitido a la fecha un cumplimiento oportuno del 61% de las actividades formuladas en los cronogramas de los Planes de Contingencia.
J34: ACCIÓN FORMULADA
J35: Continuar con el seguimiento por parte de la Dirección de Autoevaluación y Acreditación al cumplimento de los Planes de Contingencia de las tres (3) Licenciaturas en el proceso, con el propósito de desarrollar oportunamente las 18 actividades faltantes a la fecha para alcanzar la meta del 100% de cumplimiento de cada una de las actividades de los cronogramas planteados en los Planes de Contingencia.
J41: RESPONSABLE
J42: =E14 -> Director de Autoevaluación y Acreditación
C45: PERIODO DE EVALUACIÓN
C46: MES | D46: =IF(J23="MENSUAL","ENERO",IF(J23="TRIMESTRAL","MARZO",IF(J23="SEMESTRAL","JUNIO",IF(J23="ANUAL",YEAR(TODAY()),"")))) -> MARZO | E46: =IF(J23="MENSUAL","FEBRERO",IF(J23="TRIMESTRAL","JUNIO",IF(J23="SEMESTRAL","DICIEMBRE",""))) -> JUNIO | F46: =IF(J23="MENSUAL","MARZO",IF(J23="TRIMESTRAL","SEPTIEMBRE","")) -> SEPTIEMBRE | G46: =IF(J23="MENSUAL","ABRIL",IF(J23="TRIMESTRAL","DICIEMBRE","")) -> DICIEMBRE | H46: =IF(J23="MENSUAL","MAYO","") ->  | I46: =IF(J23="MENSUAL","JUNIO","") ->  | J46: =IF(J23="MENSUAL","JULIO","") ->  | K46: =IF(J23="MENSUAL","AGOSTO","") ->  | L46: =IF(J23="MENSUAL","SEPTIEMBRE","") ->  | M46: =IF(J23="MENSUAL","OCTUBRE","") ->  | N46: =IF(J23="MENSUAL","NOVIEMBRE","") ->  | O46: =IF(J23="MENSUAL","DICIEMBRE","") -> 
C47: =G18 -> Total de actividades ejecutadas oportunamente *100 | D47: 28
C48: =G19 -> Total de actividades programadas | D48: 46
C49: VALOR | D49: =IFERROR(IF($E$17=1,D47/D48,IF($E$17=2,D47,"")),"") -> 0.6086956522 | E49: =IFERROR(IF($E$17=1,E47/E48,IF($E$17=2,E47,"")),"") -> 
C50: META PONDERADA | D50: =IF(AND(N23="ANUAL",J23="MENSUAL"),N17/12,IF(AND(N23="ANUAL",J23="TRIMESTRAL"),N17/4,IF(AND(N23="ANUAL",J23="SEMESTRAL"),N17/2,IF(AND(N23="ANUAL",J23="ANUAL"),N17,IF(AND(N23="SEMESTRAL",J23="MENSUAL"),N17/6,IF(AND(N23="SEMESTRAL",J23="TRIMESTRAL"),N17/2,IF(AND(N23="SEMESTRAL",J23="SEMESTRAL"),N17,IF(AND(N23="SEMESTRAL",J23="ANUAL"),"REVISAR FRECUENCIAS",IF(AND(N23="TRIMESTRAL",J23="MENSUAL"),N17/3,IF(AND(N23="TRIMESTRAL",J23="TRIMESTRAL"),N17,IF(AND(N23="TRIMESTRAL",J23="SEMESTRAL"),"REVISAR FRECUENCIAS",IF(AND(N23="TRIMESTRAL",J23="ANUAL"),"REVISAR FRECUENCIAS",IF(AND(N23="MENSUAL",J23="MENSUAL"),N17,IF(AND(N23="MENSUAL",J23="TRIMESTRAL"),"REVISAR FRECUENCIAS",IF(AND(N23="MENSUAL",J23="SEMESTRAL"),"REVISAR FRECUENCIAS",IF(AND(N23="MENSUAL",J23="ANUAL"),"REVISAR FRECUENCIAS","")))))))))))))))) -> 0.25 | E50: =IF(AND(N23="ANUAL",J23="MENSUAL"),N17/12+D50,IF(AND(N23="ANUAL",J23="TRIMESTRAL"),N17/4+D50,IF(AND(N23="ANUAL",J23="SEMESTRAL"),N17/2+D50,IF(AND(N23="SEMESTRAL",J23="MENSUAL"),N17/6+D50,IF(AND(N23="SEMESTRAL",J23="TRIMESTRAL"),N17/2+D50,IF(AND(N23="SEMESTRAL",J23="SEMESTRAL"),N17,IF(AND(N23="TRIMESTRAL",J23="MENSUAL"),N17/3+D50,IF(AND(N23="TRIMESTRAL",J23="TRIMESTRAL"),N17,IF(AND(N23="MENSUAL",J23="MENSUAL"),N17,""))))))))) -> 0.5 | F50: =IF(AND(N23="ANUAL",J23="MENSUAL"),N17/12+E50,IF(AND(N23="ANUAL",J23="TRIMESTRAL"),N17/4+E50,IF(AND(N23="SEMESTRAL",J23="MENSUAL"),N17/6+E50,IF(AND(N23="SEMESTRAL",J23="TRIMESTRAL"),N17/2,IF(AND(N23="TRIMESTRAL",J23="MENSUAL"),N17/3+E50,IF(AND(N23="TRIMESTRAL",J23="TRIMESTRAL"),N17,IF(AND(N23="MENSUAL",J23="MENSUAL"),N17,""))))))) -> 0.75 | G50: =IF(AND(N23="ANUAL",J23="MENSUAL"),N17/12+F50,IF(AND(N23="ANUAL",J23="TRIMESTRAL"),N17/4+F50,IF(AND(N23="SEMESTRAL",J23="MENSUAL"),N17/6+F50,IF(AND(N23="SEMESTRAL",J23="TRIMESTRAL"),N17/2+F50,IF(AND(N23="TRIMESTRAL",J23="MENSUAL"),N17/3,IF(AND(N23="TRIMESTRAL",J23="TRIMESTRAL"),N17,IF(AND(N23="MENSUAL",J23="MENSUAL"),N17,""))))))) -> 1 | H50: =IF(AND($N$23="ANUAL",$J$23="MENSUAL"),$N$17/12+G50,IF(AND(N23="SEMESTRAL",J23="MENSUAL"),N17/6+G50,IF(AND(N23="TRIMESTRAL",J23="MENSUAL"),N17/3+G50,IF(AND(N23="MENSUAL",J23="MENSUAL"),N17,"")))) ->  | I50: =IF(AND($N$23="ANUAL",$J$23="MENSUAL"),$N$17/12+H50,IF(AND(N23="SEMESTRAL",J23="MENSUAL"),N17/6+H50,IF(AND(N23="TRIMESTRAL",J23="MENSUAL"),N17/3+H50,IF(AND(N23="MENSUAL",J23="MENSUAL"),N17,"")))) ->  | J50: =IF(AND($N$23="ANUAL",$J$23="MENSUAL"),$N$17/12+I50,IF(AND(N23="SEMESTRAL",J23="MENSUAL"),N17/6,IF(AND(N23="TRIMESTRAL",J23="MENSUAL"),N17/3,IF(AND(N23="MENSUAL",J23="MENSUAL"),N17,"")))) ->  | K50: =IF(AND($N$23="ANUAL",$J$23="MENSUAL"),$N$17/12+J50,IF(AND(N23="SEMESTRAL",J23="MENSUAL"),N17/6+J50,IF(AND(N23="TRIMESTRAL",J23="MENSUAL"),N17/3+J50,IF(AND(N23="MENSUAL",J23="MENSUAL"),N17,"")))) ->  | L50: =IF(AND($N$23="ANUAL",$J$23="MENSUAL"),$N$17/12+K50,IF(AND(N23="SEMESTRAL",J23="MENSUAL"),N17/6+K50,IF(AND(N23="TRIMESTRAL",J23="MENSUAL"),N17/3+K50,IF(AND(N23="MENSUAL",J23="MENSUAL"),N17,"")))) ->  | M50: =IF(AND($N$23="ANUAL",$J$23="MENSUAL"),$N$17/12+L50,IF(AND(N23="SEMESTRAL",J23="MENSUAL"),N17/6+L50,IF(AND(N23="TRIMESTRAL",J23="MENSUAL"),N17/3,IF(AND(N23="MENSUAL",J23="MENSUAL"),N17,"")))) ->  | N50: =IF(AND($N$23="ANUAL",$J$23="MENSUAL"),$N$17/12+M50,IF(AND(N23="SEMESTRAL",J23="MENSUAL"),N17/6+M50,IF(AND(N23="TRIMESTRAL",J23="MENSUAL"),N17/3+M50,IF(AND(N23="MENSUAL",J23="MENSUAL"),N17,"")))) ->  | O50: =IF(AND($N$23="ANUAL",$J$23="MENSUAL"),$N$17/12+N50,IF(AND(N23="SEMESTRAL",J23="MENSUAL"),N17/6+N50,IF(AND(N23="TRIMESTRAL",J23="MENSUAL"),N17/3+N50,IF(AND(N23="MENSUAL",J23="MENSUAL"),N17,"")))) -> 
C52: NIVEL DE SEGREGACIÓN *
C53: UNIDAD SEGREGADA (Ej. Facultad, Programa Académico, Área) | G53: RESULTADO | K53: ANÁLISIS DE DATOS SEGREGADO
C54: Lic. En Educación Básica con énfasis en Educación Física, Recreación y Deportes | G54: 0.5714285714 | K54: El programa académico en cumplimiento del cronograma planteado en su Plan de Contingencia a ejecutado oportunamente las siguientes actividades: 1. Participar en eventos académicos nacionales e internacionales, producción de artículos científicos sometidos en revistas indexadas; 2. Presentar convocatoria de Colciencias para categorizar un docente como par evaluador e investigador Junior por Colciencias, categorizar un grupo de investigación en Colciencias; 3. Participar como docentes en proyectos de investigación interdisciplinaria en la convocatoria de investigación institucional; 4. Participar como docentes en proyectos de investigación interdisciplinaria en la convocatoria de investigación institucional; 5. Participar como docentes en la convocatoria institucional de macroproyectos; 6. Participar en las convocatorias interinstitucionales de la Universidad; 7. Programar y desarrollar el primer seminario internacional de actualización en educación física recreación y deporte; 8. Programar y desarrollar el cuarto congreso internacional del movimiento humano; 9. Programar y desarrollar eventos internos de investigación organizados por el campo de formación investigativa; 10. Articulación misional (investigación docencia e interacción universitaria) en los programas Recreoteca Itinerante y CARD (trabajos de grado modalidad auxiliares de investigación); 11. Socializar gestionar participar y proponer en eventos académicos nacionales por parte de los semilleros; 12. Ajustar la reglamentación.
C55: Lic. en educación básica con énfasis en lengua castellana e Ingles | G55: 0.6666666667 | K55: El programa académico en cumplimiento del cronograma planteado en su Plan de Contingencia a ejecutado oportunamente las siguientes actividades: 1. Mejora de las estrategias de seguimiento académico administrativo de los productos de investigación asignados a los docentes investigadores; 2. Acompañar al grupo de investigación del programa en la categoría de categorización promovida por Colciencias; 3. Dinamizar los convenios para las publicaciones a nivel nacional e internacional; 4. Actualizar el diagnóstico de deserción en el programa para ajustar estrategias; 5. Seguimiento a las cohortes y aplicaciones de normatividad correspondiente; 6. Seguimiento al desarrollo a las opciones de grado; 7. Planeación y asignación del requerimiento de asignación docente; 8. Aplicación de la normatividad vigente relacionada con la contratación docente; 9. Aplicación de las política de graduados; 10. Fortalecer los encuentros anuales con graduados del programa.
C56: Lic. en Matemáticas | G56: 0.6 | K56: El programa académico en cumplimiento del cronograma planteado en su Plan de Contingencia a ejecutado oportunamente las siguientes actividades: 1. Mejorar estrategias de seguimiento académico administrativos de los productos de investigación asignados a los docentes investigadores; 2. Divulgación y socialización de los proyectos de investigación; 3. Acompañar al grupo de investigación del programa en la convocatoria de categorización promovida por Colciencias; 4. Consolidar el estudio e implementar estrategias de mejoramiento de corto plazo; 5. Fortalecer la productividad académica para garantizar la visibilidad nacional e internacional del programa; 6. Gestionar la vinculación de los actores del programa a los convenios.
G68: Estratégico | J68: Eficacia
G69: Misional | J69: Eficiencia
G70: Apoyo | J70: Acreditación
G71: Seguimiento, Medición, Análisis y Evaluación | J71: Positiva
G72: Direccionamiento Estratégico | J72: Negativa
G73: Planeación Institucional | J73: Por Unidad Regional
G74: Proyectos Especiales y Relaciones Interinstitucionales | J74: Por Facultad
G75: Sistemas Integrados | J75: Por Programa Académico
G76: Autoevaluación y Acreditación | J76: Por área
G77: Comunicaciones | J77: Por Laboratorio
G78: Formación y Aprendizaje | J78: Otros
G79: Ciencia, Tecnología e Innovación | J79: No Aplica
G80: Interacción Social Universitaria
G81: Bienestar Universitario
G82: Admisiones y Registro
G83: Graduados
G84: Dialogando con el Mundo
G85: Talento Humano
G86: Jurídica
G87: Financiera
G88: Sistemas y Tecnología
G89: Bienes y Servicios
G90: Documental
G91: Apoyo Académico
G92: Control Interno
G93: Control Disciplinario
G94: Servicio de Atención al Ciudadano

Sheet ECO-1
B2: REGRESAR
E5: MACROPROCESO ESTRATÉGICO | M5: CÓDIGO: ESGr027
E6: PROCESO GESTIÓN SISTEMAS INTEGRADOS | M6: VERSIÓN: 7
E7: MATRIZ DE MEDICIÓN Y SEGUIMIENTO A LOS PROCESOS DE GESTIÓN | M7: VIGENCIA: 2020-03-20
M8: PÁGINA: 1 de 1
C10: FICHA DE INDICADOR
C12: MACROPROCESO | E12: Estratégico | I12: NOMBRE DEL INDICADOR | K12: Oportunidad de atención a solicitudes (análisis según tipología)
C13: PROCESO GESTIÓN | E13: Comunicaciones
C14: RESPONSABLE DE MEDICIÓN | E14: Jefe de la Oficina Asesora de Comunicaciones
C16: 1. COMPORTAMIENTO DE INDICADOR
C17: CLASIFICACIÓN DE LA MEDICIÓN | E17: 1 | H17: TIPO DE INDICADOR | J17: Eficiencia | L17: META ANUAL | N17: 0.8
C18: FORMULA | E18: NUMERADOR | G18: Total de solicitudes atendidas oportunamente *100 | L18: UNIDAD DE MEDIDA | N18: Porcentual
E19: DENOMINADOR | G19: Total de solicitudes
C20: TENDENCIA | E20: Positiva | H20: NIVEL DE SEGREGACIÓN * | J20: No Aplica | L20: ESCALA
L21: Deficiente | M21: Aceptable | N21: Bueno | O21: Excelente
L22: 0% - 60% | M22: 61% - 70% | N22: 71% - 80% | O22: 81% - 100%
C23: ORIGEN DE DATOS NUMERADOR | E23: Base de datos del módulo SIS | H23: FRECUENCIA DE LA MEDICIÓN | J23: TRIMESTRAL | L23: FRECUENCIA DE RESULTADO | N23: TRIMESTRAL
C24: ORIGEN DE DATOS DENOMINADOR | E24: Base de datos del módulo SIS
C26: RESULTADOS
J27: ANÁLISIS DE DATOS
J28: I TRIMESTRE 2020: Para el primer trimestre se respondieron 401 solicitudes de las cuales 364 solicitudes fueron resultas a tiempo, logrando cumplir el indicador, algunas solicitudes es difícil responderlas oportunamente debido a que el proceso se retrasa porque el solicitante no adjunta la información y documentos necesarios de una forma completa, clara y detallada.
J34: ACCIÓN FORMULADA
J35: I TRIMESTRE 2020: Las acciones están encaminadas a tener mayor control en las respuestas; que las solicitudes se hagan de forma individual, no en una misma solicitud varios servicios, ya que cada servicio tiene sus tiempos establecidos, ejemplo se solicita un diseño grafico para publicar en la web, diseño tiene mas días para realizar la pieza y mientras se diseña y aprueba, la publicación web se retrasa quedando esta a destiempo. lo otro es crear conciencia de los tiempos que se manejan según manual de comunicaciones, para que los solicitantes los respeten y aprueben oportunamente ya que esperan hasta ultimo momento para hacer correcciones afectando nuestro trabajo oportuno.
J41: RESPONSABLE
J42: =E14 -> Jefe de la Oficina Asesora de Comunicaciones
C45: PERIODO DE EVALUACIÓN
C46: MES | D46: =IF(J23="MENSUAL","ENERO",IF(J23="TRIMESTRAL","MARZO",IF(J23="SEMESTRAL","JUNIO",IF(J23="ANUAL",YEAR(TODAY()),"")))) -> MARZO | E46: =IF(J23="MENSUAL","FEBRERO",IF(J23="TRIMESTRAL","JUNIO",IF(J23="SEMESTRAL","DICIEMBRE",""))) -> JUNIO | F46: =IF(J23="MENSUAL","MARZO",IF(J23="TRIMESTRAL","SEPTIEMBRE","")) -> SEPTIEMBRE | G46: =IF(J23="MENSUAL","ABRIL",IF(J23="TRIMESTRAL","DICIEMBRE","")) -> DICIEMBRE | H46: =IF(J23="MENSUAL","MAYO","") ->  | I46: =IF(J23="MENSUAL","JUNIO","") ->  | J46: =IF(J23="MENSUAL","JULIO","") ->  | K46: =IF(J23="MENSUAL","AGOSTO","") ->  | L46: =IF(J23="MENSUAL","SEPTIEMBRE","") ->  | M46: =IF(J23="MENSUAL","OCTUBRE","") ->  | N46: =IF(J23="MENSUAL","NOVIEMBRE","") ->  | O46: =IF(J23="MENSUAL","DICIEMBRE","") -> 
C47: =G18 -> Total de solicitudes atendidas oportunamente *100 | D47: 364
C48: =G19 -> Total de solicitudes | D48: 401
C49: VALOR | D49: =IFERROR(IF($E$17=1,D47/D48,IF($E$17=2,D47,"")),"") -> 0.9077306733 | E49: =IFERROR(IF($E$17=1,E47/E48,IF($E$17=2,E47,"")),"") -> 
C50: META PONDERADA | D50: =IF(AND(N23="ANUAL",J23="MENSUAL"),N17/12,IF(AND(N23="ANUAL",J23="TRIMESTRAL"),N17/4,IF(AND(N23="ANUAL",J23="SEMESTRAL"),N17/2,IF(AND(N23="ANUAL",J23="ANUAL"),N17,IF(AND(N23="SEMESTRAL",J23="MENSUAL"),N17/6,IF(AND(N23="SEMESTRAL",J23="TRIMESTRAL"),N17/2,IF(AND(N23="SEMESTRAL",J23="SEMESTRAL"),N17,IF(AND(N23="SEMESTRAL",J23="ANUAL"),"REVISAR FRECUENCIAS",IF(AND(N23="TRIMESTRAL",J23="MENSUAL"),N17/3,IF(AND(N23="TRIMESTRAL",J23="TRIMESTRAL"),N17,IF(AND(N23="TRIMESTRAL",J23="SEMESTRAL"),"REVISAR FRECUENCIAS",IF(AND(N23="TRIMESTRAL",J23="ANUAL"),"REVISAR FRECUENCIAS",IF(AND(N23="MENSUAL",J23="MENSUAL"),N17,IF(AND(N23="MENSUAL",J23="TRIMESTRAL"),"REVISAR FRECUENCIAS",IF(AND(N23="MENSUAL",J23="SEMESTRAL"),"REVISAR FRECUENCIAS",IF(AND(N23="MENSUAL",J23="ANUAL"),"REVISAR FRECUENCIAS","")))))))))))))))) -> 0.8 | E50: =IF(AND(N23="ANUAL",J23="MENSUAL"),N17/12+D50,IF(AND(N23="ANUAL",J23="TRIMESTRAL"),N17/4+D50,IF(AND(N23="ANUAL",J23="SEMESTRAL"),N17/2+D50,IF(AND(N23="SEMESTRAL",J23="MENSUAL"),N17/6+D50,IF(AND(N23="SEMESTRAL",J23="TRIMESTRAL"),N17/2+D50,IF(AND(N23="SEMESTRAL",J23="SEMESTRAL"),N17,IF(AND(N23="TRIMESTRAL",J23="MENSUAL"),N17/3+D50,IF(AND(N23="TRIMESTRAL",J23="TRIMESTRAL"),N17,IF(AND(N23="MENSUAL",J23="MENSUAL"),N17,""))))))))) -> 0.8 | F50: =IF(AND(N23="ANUAL",J23="MENSUAL"),N17/12+E50,IF(AND(N23="ANUAL",J23="TRIMESTRAL"),N17/4+E50,IF(AND(N23="SEMESTRAL",J23="MENSUAL"),N17/6+E50,IF(AND(N23="SEMESTRAL",J23="TRIMESTRAL"),N17/2,IF(AND(N23="TRIMESTRAL",J23="MENSUAL"),N17/3+E50,IF(AND(N23="TRIMESTRAL",J23="TRIMESTRAL"),N17,IF(AND(N23="MENSUAL",J23="MENSUAL"),N17,""))))))) -> 0.8 | G50: =IF(AND(N23="ANUAL",J23="MENSUAL"),N17/12+F50,IF(AND(N23="ANUAL",J23="TRIMESTRAL"),N17/4+F50,IF(AND(N23="SEMESTRAL",J23="MENSUAL"),N17/6+F50,IF(AND(N23="SEMESTRAL",J23="TRIMESTRAL"),N17/2+F50,IF(AND(N23="TRIMESTRAL",J23="MENSUAL"),N17/3,IF(AND(N23="TRIMESTRAL",J23="TRIMESTRAL"),N17,IF(AND(N23="MENSUAL",J23="MENSUAL"),N17,""))))))) -> 0.8 | H50: =IF(AND($N$23="ANUAL",$J$23="MENSUAL"),$N$17/12+G50,IF(AND(N23="SEMESTRAL",J23="MENSUAL"),N17/6+G50,IF(AND(N23="TRIMESTRAL",J23="MENSUAL"),N17/3+G50,IF(AND(N23="MENSUAL",J23="MENSUAL"),N17,"")))) ->  | I50: =IF(AND($N$23="ANUAL",$J$23="MENSUAL"),$N$17/12+H50,IF(AND(N23="SEMESTRAL",J23="MENSUAL"),N17/6+H50,IF(AND(N23="TRIMESTRAL",J23="MENSUAL"),N17/3+H50,IF(AND(N23="MENSUAL",J23="MENSUAL"),N17,"")))) ->  | J50: =IF(AND($N$23="ANUAL",$J$23="MENSUAL"),$N$17/12+I50,IF(AND(N23="SEMESTRAL",J23="MENSUAL"),N17/6,IF(AND(N23="TRIMESTRAL",J23="MENSUAL"),N17/3,IF(AND(N23="MENSUAL",J23="MENSUAL"),N17,"")))) ->  | K50: =IF(AND($N$23="ANUAL",$J$23="MENSUAL"),$N$17/12+J50,IF(AND(N23="SEMESTRAL",J23="MENSUAL"),N17/6+J50,IF(AND(N23="TRIMESTRAL",J23="MENSUAL"),N17/3+J50,IF(AND(N23="MENSUAL",J23="MENSUAL"),N17,"")))) ->  | L50: =IF(AND($N$23="ANUAL",$J$23="MENSUAL"),$N$17/12+K50,IF(AND(N23="SEMESTRAL",J23="MENSUAL"),N17/6+K50,IF(AND(N23="TRIMESTRAL",J23="MENSUAL"),N17/3+K50,IF(AND(N23="MENSUAL",J23="MENSUAL"),N17,"")))) ->  | M50: =IF(AND($N$23="ANUAL",$J$23="MENSUAL"),$N$17/12+L50,IF(AND(N23="SEMESTRAL",J23="MENSUAL"),N17/6+L50,IF(AND(N23="TRIMESTRAL",J23="MENSUAL"),N17/3,IF(AND(N23="MENSUAL",J23="MENSUAL"),N17,"")))) ->  | N50: =IF(AND($N$23="ANUAL",$J$23="MENSUAL"),$N$17/12+M50,IF(AND(N23="SEMESTRAL",J23="MENSUAL"),N17/6+M50,IF(AND(N23="TRIMESTRAL",J23="MENSUAL"),N17/3+M50,IF(AND(N23="MENSUAL",J23="MENSUAL"),N17,"")))) ->  | O50: =IF(AND($N$23="ANUAL",$J$23="MENSUAL"),$N$17/12+N50,IF(AND(N23="SEMESTRAL",J23="MENSUAL"),N17/6+N50,IF(AND(N23="TRIMESTRAL",J23="MENSUAL"),N17/3+N50,IF(AND(N23="MENSUAL",J23="MENSUAL"),N17,"")))) -> 
C52: NIVEL DE SEGREGACIÓN *
C53: UNIDAD SEGREGADA (Ej. Facultad, Programa Académico, Área) | G53: RESULTADO | K53: ANÁLISIS DE DATOS SEGREGADO
G72: Estratégico | J72: Eficacia
G73: Misional | J73: Eficiencia
G74: Apoyo | J74: Acreditación
G75: Seguimiento, Medición, Análisis y Evaluación | J75: Positiva
G76: Direccionamiento Estratégico | J76: Negativa
G77: Planeación Institucional | J77: Por Unidad Regional
G78: Proyectos Especiales y Relaciones Interinstitucionales | J78: Por Facultad
G79: Sistemas Integrados | J79: Por Programa Académico
G80: Autoevaluación y Acreditación | J80: Por área
G81: Comunicaciones | J81: Por Laboratorio
G82: Formación y Aprendizaje | J82: Otros
G83: Ciencia, Tecnología e Innovación | J83: No Aplica
G84: Interacción Social Universitaria
G85: Bienestar Universitario
G86: Admisiones y Registro
G87: Graduados
G88: Dialogando con el Mundo
G89: Talento Humano
G90: Jurídica
G91: Financiera
G92: Sistemas y Tecnología
G93: Bienes y Servicios
G94: Documental
G95: Apoyo Académico
G96: Control Interno
G97: Control Disciplinario
G98: Servicio de Atención al Ciudadano

Sheet ECO-2
B2: REGRESAR
E5: MACROPROCESO ESTRATÉGICO | M5: CÓDIGO: ESGr027
E6: PROCESO GESTIÓN SISTEMAS INTEGRADOS | M6: VERSIÓN: 7
E7: MATRIZ DE MEDICIÓN Y SEGUIMIENTO A LOS PROCESOS DE GESTIÓN | M7: VIGENCIA: 2020-03-20
M8: PÁGINA: 1 de 1
C10: FICHA DE INDICADOR
C12: MACROPROCESO | E12: Estratégico | I12: NOMBRE DEL INDICADOR | K12: Nivel de satisfacción del usuario
C13: PROCESO GESTIÓN | E13: Comunicaciones
C14: RESPONSABLE DE MEDICIÓN | E14: Jefe de la Oficina Asesora de Comunicaciones
C16: 1. COMPORTAMIENTO DE INDICADOR
C17: CLASIFICACIÓN DE LA MEDICIÓN | E17: 1 | H17: TIPO DE INDICADOR | J17: Eficiencia | L17: META ANUAL | N17: 0.88
C18: FORMULA | E18: NUMERADOR | G18: Número de solicitudes con calificación buenas y/o excelentes *100 | L18: UNIDAD DE MEDIDA | N18: Porcentual
E19: DENOMINADOR | G19: Número de solicitudes calificadas
C20: TENDENCIA | E20: Positiva | H20: NIVEL DE SEGREGACIÓN * | J20: No Aplica | L20: ESCALA
L21: Deficiente | M21: Aceptable | N21: Bueno | O21: Excelente
L22: 0% - 60% | M22: 61% - 75% | N22: 76 %- 88% | O22: 89% - 100%
C23: ORIGEN DE DATOS NUMERADOR | E23: Base de datos del módulo SIS | H23: FRECUENCIA DE LA MEDICIÓN | J23: TRIMESTRAL | L23: FRECUENCIA DE RESULTADO | N23: TRIMESTRAL
C24: ORIGEN DE DATOS DENOMINADOR | E24: Base de datos del módulo SIS
C26: RESULTADOS
J27: ANÁLISIS DE DATOS
J28: I TRIMESTRE 2020: En el primer trimestre se recibieron 414 solicitudes entre 01 de enero y 31 de marzo de 2020, 364 recibieron calificación, teniendo en cuenta las recomendaciones de la auditoria se omiten las solicitudes sin calificación debido a que estas se respondieron en los tiempos establecidos para cada servicio, pero el solicitante no ingreso para dar su calificación y por eso mismo se veía afectado el resultado de nuestro indicador, al aplicar la recomendación se omitieron 37 solicitudes sin calificación dando por resultado un 99% en el nivel de satisfacción del usuario.
J34: ACCIÓN FORMULADA
J35: I TRIMESTRE 2020: Se evidencia como el porcentaje se incremento notoriamente al suprimir las solicitudes sin calificación gracias a la acción propuesta por el auditor y al plan de mejoramiento al incrementar el porcentaje en la meta según el promedio obtenido en el año 2019, en vista que el trabajo de la oficina asesora de comunicaciones esta siendo bien visto y valorado, en busca de la mejora constante y optimización de nuestro servicios. Aunque se supero la meta establecida se requiere realizar seguimiento a las solicitudes que están sin calificación y llevar a cabo actividades para que estas sean valoradas y así poder mantener la satisfacción del usuario e incrementar el resultado en miras a obtener un 100%
J41: RESPONSABLE
J42: =E14 -> Jefe de la Oficina Asesora de Comunicaciones
C45: PERIODO DE EVALUACIÓN
C46: MES | D46: =IF(J23="MENSUAL","ENERO",IF(J23="TRIMESTRAL","MARZO",IF(J23="SEMESTRAL","JUNIO",IF(J23="ANUAL",YEAR(TODAY()),"")))) -> MARZO | E46: =IF(J23="MENSUAL","FEBRERO",IF(J23="TRIMESTRAL","JUNIO",IF(J23="SEMESTRAL","DICIEMBRE",""))) -> JUNIO | F46: =IF(J23="MENSUAL","MARZO",IF(J23="TRIMESTRAL","SEPTIEMBRE","")) -> SEPTIEMBRE | G46: =IF(J23="MENSUAL","ABRIL",IF(J23="TRIMESTRAL","DICIEMBRE","")) -> DICIEMBRE | H46: =IF(J23="MENSUAL","MAYO","") ->  | I46: =IF(J23="MENSUAL","JUNIO","") ->  | J46: =IF(J23="MENSUAL","JULIO","") ->  | K46: =IF(J23="MENSUAL","AGOSTO","") ->  | L46: =IF(J23="MENSUAL","SEPTIEMBRE","") ->  | M46: =IF(J23="MENSUAL","OCTUBRE","") ->  | N46: =IF(J23="MENSUAL","NOVIEMBRE","") ->  | O46: =IF(J23="MENSUAL","DICIEMBRE","") -> 
C47: =G18 -> Número de solicitudes con calificación buenas y/o excelentes *100 | D47: 361
C48: =G19 -> Número de solicitudes calificadas | D48: 364
C49: VALOR | D49: =IFERROR(IF($E$17=1,D47/D48,IF($E$17=2,D47,"")),"") -> 0.9917582418 | E49: =IFERROR(IF($E$17=1,E47/E48,IF($E$17=2,E47,"")),"") -> 
C50: META PONDERADA | D50: =IF(AND(N23="ANUAL",J23="MENSUAL"),N17/12,IF(AND(N23="ANUAL",J23="TRIMESTRAL"),N17/4,IF(AND(N23="ANUAL",J23="SEMESTRAL"),N17/2,IF(AND(N23="ANUAL",J23="ANUAL"),N17,IF(AND(N23="SEMESTRAL",J23="MENSUAL"),N17/6,IF(AND(N23="SEMESTRAL",J23="TRIMESTRAL"),N17/2,IF(AND(N23="SEMESTRAL",J23="SEMESTRAL"),N17,IF(AND(N23="SEMESTRAL",J23="ANUAL"),"REVISAR FRECUENCIAS",IF(AND(N23="TRIMESTRAL",J23="MENSUAL"),N17/3,IF(AND(N23="TRIMESTRAL",J23="TRIMESTRAL"),N17,IF(AND(N23="TRIMESTRAL",J23="SEMESTRAL"),"REVISAR FRECUENCIAS",IF(AND(N23="TRIMESTRAL",J23="ANUAL"),"REVISAR FRECUENCIAS",IF(AND(N23="MENSUAL",J23="MENSUAL"),N17,IF(AND(N23="MENSUAL",J23="TRIMESTRAL"),"REVISAR FRECUENCIAS",IF(AND(N23="MENSUAL",J23="SEMESTRAL"),"REVISAR FRECUENCIAS",IF(AND(N23="MENSUAL",J23="ANUAL"),"REVISAR FRECUENCIAS","")))))))))))))))) -> 0.88 | E50: =IF(AND(N23="ANUAL",J23="MENSUAL"),N17/12+D50,IF(AND(N23="ANUAL",J23="TRIMESTRAL"),N17/4+D50,IF(AND(N23="ANUAL",J23="SEMESTRAL"),N17/2+D50,IF(AND(N23="SEMESTRAL",J23="MENSUAL"),N17/6+D50,IF(AND(N23="SEMESTRAL",J23="TRIMESTRAL"),N17/2+D50,IF(AND(N23="SEMESTRAL",J23="SEMESTRAL"),N17,IF(AND(N23="TRIMESTRAL",J23="MENSUAL"),N17/3+D50,IF(AND(N23="TRIMESTRAL",J23="TRIMESTRAL"),N17,IF(AND(N23="MENSUAL",J23="MENSUAL"),N17,""))))))))) -> 0.88 | F50: =IF(AND(N23="ANUAL",J23="MENSUAL"),N17/12+E50,IF(AND(N23="ANUAL",J23="TRIMESTRAL"),N17/4+E50,IF(AND(N23="SEMESTRAL",J23="MENSUAL"),N17/6+E50,IF(AND(N23="SEMESTRAL",J23="TRIMESTRAL"),N17/2,IF(AND(N23="TRIMESTRAL",J23="MENSUAL"),N17/3+E50,IF(AND(N23="TRIMESTRAL",J23="TRIMESTRAL"),N17,IF(AND(N23="MENSUAL",J23="MENSUAL"),N17,""))))))) -> 0.88 | G50: =IF(AND(N23="ANUAL",J23="MENSUAL"),N17/12+F50,IF(AND(N23="ANUAL",J23="TRIMESTRAL"),N17/4+F50,IF(AND(N23="SEMESTRAL",J23="MENSUAL"),N17/6+F50,IF(AND(N23="SEMESTRAL",J23="TRIMESTRAL"),N17/2+F50,IF(AND(N23="TRIMESTRAL",J23="MENSUAL"),N17/3,IF(AND(N23="TRIMESTRAL",J23="TRIMESTRAL"),N17,IF(AND(N23="MENSUAL",J23="MENSUAL"),N17,""))))))) -> 0.88 | H50: =IF(AND($N$23="ANUAL",$J$23="MENSUAL"),$N$17/12+G50,IF(AND(N23="SEMESTRAL",J23="MENSUAL"),N17/6+G50,IF(AND(N23="TRIMESTRAL",J23="MENSUAL"),N17/3+G50,IF(AND(N23="MENSUAL",J23="MENSUAL"),N17,"")))) ->  | I50: =IF(AND($N$23="ANUAL",$J$23="MENSUAL"),$N$17/12+H50,IF(AND(N23="SEMESTRAL",J23="MENSUAL"),N17/6+H50,IF(AND(N23="TRIMESTRAL",J23="MENSUAL"),N17/3+H50,IF(AND(N23="MENSUAL",J23="MENSUAL"),N17,"")))) ->  | J50: =IF(AND($N$23="ANUAL",$J$23="MENSUAL"),$N$17/12+I50,IF(AND(N23="SEMESTRAL",J23="MENSUAL"),N17/6,IF(AND(N23="TRIMESTRAL",J23="MENSUAL"),N17/3,IF(AND(N23="MENSUAL",J23="MENSUAL"),N17,"")))) ->  | K50: =IF(AND($N$23="ANUAL",$J$23="MENSUAL"),$N$17/12+J50,IF(AND(N23="SEMESTRAL",J23="MENSUAL"),N17/6+J50,IF(AND(N23="TRIMESTRAL",J23="MENSUAL"),N17/3+J50,IF(AND(N23="MENSUAL",J23="MENSUAL"),N17,"")))) ->  | L50: =IF(AND($N$23="ANUAL",$J$23="MENSUAL"),$N$17/12+K50,IF(AND(N23="SEMESTRAL",J23="MENSUAL"),N17/6+K50,IF(AND(N23="TRIMESTRAL",J23="MENSUAL"),N17/3+K50,IF(AND(N23="MENSUAL",J23="MENSUAL"),N17,"")))) ->  | M50: =IF(AND($N$23="ANUAL",$J$23="MENSUAL"),$N$17/12+L50,IF(AND(N23="SEMESTRAL",J23="MENSUAL"),N17/6+L50,IF(AND(N23="TRIMESTRAL",J23="MENSUAL"),N17/3,IF(AND(N23="MENSUAL",J23="MENSUAL"),N17,"")))) ->  | N50: =IF(AND($N$23="ANUAL",$J$23="MENSUAL"),$N$17/12+M50,IF(AND(N23="SEMESTRAL",J23="MENSUAL"),N17/6+M50,IF(AND(N23="TRIMESTRAL",J23="MENSUAL"),N17/3+M50,IF(AND(N23="MENSUAL",J23="MENSUAL"),N17,"")))) ->  | O50: =IF(AND($N$23="ANUAL",$J$23="MENSUAL"),$N$17/12+N50,IF(AND(N23="SEMESTRAL",J23="MENSUAL"),N17/6+N50,IF(AND(N23="TRIMESTRAL",J23="MENSUAL"),N17/3+N50,IF(AND(N23="MENSUAL",J23="MENSUAL"),N17,"")))) -> 
C52: NIVEL DE SEGREGACIÓN *
C53: UNIDAD SEGREGADA (Ej. Facultad, Programa Académico, Área) | G53: RESULTADO | K53: ANÁLISIS DE DATOS SEGREGADO
G72: Estratégico | J72: Eficacia
G73: Misional | J73: Eficiencia
G74: Apoyo | J74: Acreditación
G75: Seguimiento, Medición, Análisis y Evaluación | J75: Positiva
G76: Direccionamiento Estratégico | J76: Negativa
G77: Planeación Institucional | J77: Por Unidad Regional
G78: Proyectos Especiales y Relaciones Interinstitucionales | J78: Por Facultad
G79: Sistemas Integrados | J79: Por Programa Académico
G80: Autoevaluación y Acreditación | J80: Por área
G81: Comunicaciones | J81: Por Laboratorio
G82: Formación y Aprendizaje | J82: Otros
G83: Ciencia, Tecnología e Innovación | J83: No Aplica
G84: Interacción Social Universitaria
G85: Bienestar Universitario
G86: Admisiones y Registro
G87: Graduados
G88: Dialogando con el Mundo
G89: Talento Humano
G90: Jurídica
G91: Financiera
G92: Sistemas y Tecnología
G93: Bienes y Servicios
G94: Documental
G95: Apoyo Académico
G96: Control Interno
G97: Control Disciplinario
G98: Servicio de Atención al Ciudadano

Sheet MAR-2
B2: REGRESAR
E5: MACROPROCESO ESTRATÉGICO | M5: CÓDIGO: ESGr027
E6: PROCESO GESTIÓN SISTEMAS INTEGRADOS | M6: VERSIÓN: 7
E7: MATRIZ DE MEDICIÓN Y SEGUIMIENTO A LOS PROCESOS DE GESTIÓN | M7: VIGENCIA: 2020-03-20
M8: PÁGINA: 1 de 1
C10: FICHA DE INDICADOR
C12: MACROPROCESO | E12: Misional | I12: NOMBRE DEL INDICADOR | K12: Inscripciones efectivas
C13: PROCESO GESTIÓN | E13: Admisiones y Registro
C14: RESPONSABLE DE MEDICIÓN | E14: Jefe de la Oficina de Admisiones y Registro
C16: 1. COMPORTAMIENTO DE INDICADOR
C17: CLASIFICACIÓN DE LA MEDICIÓN | E17: 1 | H17: TIPO DE INDICADOR | J17: Acreditación | L17: META ANUAL | N17: 0.95
C18: FORMULA | E18: NUMERADOR | G18: Inscritos efectivos *100 | L18: UNIDAD DE MEDIDA | N18: Porcentual
E19: DENOMINADOR | G19: total de aspirantes inscritos por seccional y extensión
C20: TENDENCIA | E20: Positiva | H20: NIVEL DE SEGREGACIÓN * | J20: Por Unidad Regional | L20: ESCALA
L21: Deficiente | M21: Aceptable | N21: Bueno | O21: Excelente
L22: 0 - 60% | M22: 61% - 80% | N22: 81% - 100% | O22: N/A
C23: ORIGEN DE DATOS NUMERADOR | E23: Base de datos procedimiento Inscripción y Selección de Aspirantes | H23: FRECUENCIA DE LA MEDICIÓN | J23: SEMESTRAL | L23: FRECUENCIA DE RESULTADO | N23: SEMESTRAL
C24: ORIGEN DE DATOS DENOMINADOR | E24: Base de datos procedimiento Inscripción y Selección de Aspirantes
C26: RESULTADOS
J27: ANÁLISIS DE DATOS
J34: ACCIÓN FORMULADA
J41: RESPONSABLE
J42: =E14 -> Jefe de la Oficina de Admisiones y Registro
C45: PERIODO DE EVALUACIÓN
C46: MES | D46: =IF(J23="MENSUAL","ENERO",IF(J23="TRIMESTRAL","MARZO",IF(J23="SEMESTRAL","JUNIO",IF(J23="ANUAL",YEAR(TODAY()),"")))) -> JUNIO | E46: =IF(J23="MENSUAL","FEBRERO",IF(J23="TRIMESTRAL","JUNIO",IF(J23="SEMESTRAL","DICIEMBRE",""))) -> DICIEMBRE | F46: =IF(J23="MENSUAL","MARZO",IF(J23="TRIMESTRAL","SEPTIEMBRE","")) ->  | G46: =IF(J23="MENSUAL","ABRIL",IF(J23="TRIMESTRAL","DICIEMBRE","")) ->  | H46: =IF(J23="MENSUAL","MAYO","") ->  | I46: =IF(J23="MENSUAL","JUNIO","") ->  | J46: =IF(J23="MENSUAL","JULIO","") ->  | K46: =IF(J23="MENSUAL","AGOSTO","") ->  | L46: =IF(J23="MENSUAL","SEPTIEMBRE","") ->  | M46: =IF(J23="MENSUAL","OCTUBRE","") ->  | N46: =IF(J23="MENSUAL","NOVIEMBRE","") ->  | O46: =IF(J23="MENSUAL","DICIEMBRE","") -> 
C47: =G18 -> Inscritos efectivos *100
C48: =G19 -> total de aspirantes inscritos por seccional y extensión
C49: VALOR | D49: =IFERROR(IF($E$17=1,D47/D48,IF($E$17=2,D47,"")),"") ->  | E49: =IFERROR(IF($E$17=1,E47/E48,IF($E$17=2,E47,"")),"") -> 
C50: META PONDERADA | D50: =IF(AND(N23="ANUAL",J23="MENSUAL"),N17/12,IF(AND(N23="ANUAL",J23="TRIMESTRAL"),N17/4,IF(AND(N23="ANUAL",J23="SEMESTRAL"),N17/2,IF(AND(N23="ANUAL",J23="ANUAL"),N17,IF(AND(N23="SEMESTRAL",J23="MENSUAL"),N17/6,IF(AND(N23="SEMESTRAL",J23="TRIMESTRAL"),N17/2,IF(AND(N23="SEMESTRAL",J23="SEMESTRAL"),N17,IF(AND(N23="SEMESTRAL",J23="ANUAL"),"REVISAR FRECUENCIAS",IF(AND(N23="TRIMESTRAL",J23="MENSUAL"),N17/3,IF(AND(N23="TRIMESTRAL",J23="TRIMESTRAL"),N17,IF(AND(N23="TRIMESTRAL",J23="SEMESTRAL"),"REVISAR FRECUENCIAS",IF(AND(N23="TRIMESTRAL",J23="ANUAL"),"REVISAR FRECUENCIAS",IF(AND(N23="MENSUAL",J23="MENSUAL"),N17,IF(AND(N23="MENSUAL",J23="TRIMESTRAL"),"REVISAR FRECUENCIAS",IF(AND(N23="MENSUAL",J23="SEMESTRAL"),"REVISAR FRECUENCIAS",IF(AND(N23="MENSUAL",J23="ANUAL"),"REVISAR FRECUENCIAS","")))))))))))))))) -> 0.95 | E50: =IF(AND(N23="ANUAL",J23="MENSUAL"),N17/12+D50,IF(AND(N23="ANUAL",J23="TRIMESTRAL"),N17/4+D50,IF(AND(N23="ANUAL",J23="SEMESTRAL"),N17/2+D50,IF(AND(N23="SEMESTRAL",J23="MENSUAL"),N17/6+D50,IF(AND(N23="SEMESTRAL",J23="TRIMESTRAL"),N17/2+D50,IF(AND(N23="SEMESTRAL",J23="SEMESTRAL"),N17,IF(AND(N23="TRIMESTRAL",J23="MENSUAL"),N17/3+D50,IF(AND(N23="TRIMESTRAL",J23="TRIMESTRAL"),N17,IF(AND(N23="MENSUAL",J23="MENSUAL"),N17,""))))))))) -> 0.95 | F50: =IF(AND(N23="ANUAL",J23="MENSUAL"),N17/12+E50,IF(AND(N23="ANUAL",J23="TRIMESTRAL"),N17/4+E50,IF(AND(N23="SEMESTRAL",J23="MENSUAL"),N17/6+E50,IF(AND(N23="SEMESTRAL",J23="TRIMESTRAL"),N17/2,IF(AND(N23="TRIMESTRAL",J23="MENSUAL"),N17/3+E50,IF(AND(N23="TRIMESTRAL",J23="TRIMESTRAL"),N17,IF(AND(N23="MENSUAL",J23="MENSUAL"),N17,""))))))) ->  | G50: =IF(AND(N23="ANUAL",J23="MENSUAL"),N17/12+F50,IF(AND(N23="ANUAL",J23="TRIMESTRAL"),N17/4+F50,IF(AND(N23="SEMESTRAL",J23="MENSUAL"),N17/6+F50,IF(AND(N23="SEMESTRAL",J23="TRIMESTRAL"),N17/2+F50,IF(AND(N23="TRIMESTRAL",J23="MENSUAL"),N17/3,IF(AND(N23="TRIMESTRAL",J23="TRIMESTRAL"),N17,IF(AND(N23="MENSUAL",J23="MENSUAL"),N17,""))))))) ->  | H50: =IF(AND($N$23="ANUAL",$J$23="MENSUAL"),$N$17/12+G50,IF(AND(N23="SEMESTRAL",J23="MENSUAL"),N17/6+G50,IF(AND(N23="TRIMESTRAL",J23="MENSUAL"),N17/3+G50,IF(AND(N23="MENSUAL",J23="MENSUAL"),N17,"")))) ->  | I50: =IF(AND($N$23="ANUAL",$J$23="MENSUAL"),$N$17/12+H50,IF(AND(N23="SEMESTRAL",J23="MENSUAL"),N17/6+H50,IF(AND(N23="TRIMESTRAL",J23="MENSUAL"),N17/3+H50,IF(AND(N23="MENSUAL",J23="MENSUAL"),N17,"")))) ->  | J50: =IF(AND($N$23="ANUAL",$J$23="MENSUAL"),$N$17/12+I50,IF(AND(N23="SEMESTRAL",J23="MENSUAL"),N17/6,IF(AND(N23="TRIMESTRAL",J23="MENSUAL"),N17/3,IF(AND(N23="MENSUAL",J23="MENSUAL"),N17,"")))) ->  | K50: =IF(AND($N$23="ANUAL",$J$23="MENSUAL"),$N$17/12+J50,IF(AND(N23="SEMESTRAL",J23="MENSUAL"),N17/6+J50,IF(AND(N23="TRIMESTRAL",J23="MENSUAL"),N17/3+J50,IF(AND(N23="MENSUAL",J23="MENSUAL"),N17,"")))) ->  | L50: =IF(AND($N$23="ANUAL",$J$23="MENSUAL"),$N$17/12+K50,IF(AND(N23="SEMESTRAL",J23="MENSUAL"),N17/6+K50,IF(AND(N23="TRIMESTRAL",J23="MENSUAL"),N17/3+K50,IF(AND(N23="MENSUAL",J23="MENSUAL"),N17,"")))) ->  | M50: =IF(AND($N$23="ANUAL",$J$23="MENSUAL"),$N$17/12+L50,IF(AND(N23="SEMESTRAL",J23="MENSUAL"),N17/6+L50,IF(AND(N23="TRIMESTRAL",J23="MENSUAL"),N17/3,IF(AND(N23="MENSUAL",J23="MENSUAL"),N17,"")))) ->  | N50: =IF(AND($N$23="ANUAL",$J$23="MENSUAL"),$N$17/12+M50,IF(AND(N23="SEMESTRAL",J23="MENSUAL"),N17/6+M50,IF(AND(N23="TRIMESTRAL",J23="MENSUAL"),N17/3+M50,IF(AND(N23="MENSUAL",J23="MENSUAL"),N17,"")))) ->  | O50: =IF(AND($N$23="ANUAL",$J$23="MENSUAL"),$N$17/12+N50,IF(AND(N23="SEMESTRAL",J23="MENSUAL"),N17/6+N50,IF(AND(N23="TRIMESTRAL",J23="MENSUAL"),N17/3+N50,IF(AND(N23="MENSUAL",J23="MENSUAL"),N17,"")))) -> 
C52: NIVEL DE SEGREGACIÓN *
C53: UNIDAD SEGREGADA (Ej. Facultad, Programa Académico, Área) | G53: RESULTADO | K53: ANALISIS DE DATOS SEGREGADO
G72: Estratégico | J72: Eficacia
G73: Misional | J73: Eficiencia
G74: Apoyo | J74: Acreditación
G75: Seguimiento, Medición, Análisis y Evaluación | J75: Positiva
G76: Direccionamiento Estratégico | J76: Negativa
G77: Planeación Institucional | J77: Por Unidad Regional
G78: Proyectos Especiales y Relaciones Interinstitucionales | J78: Por Facultad
G79: Sistemas Integrados | J79: Por Programa Académico
G80: Autoevaluación y Acreditación | J80: Por área
G81: Comunicaciones | J81: Por Laboratorio
G82: Formación y Aprendizaje | J82: Otros
G83: Ciencia, Tecnología e Innovación | J83: No Aplica
G84: Interacción Social Universitaria
G85: Bienestar Universitario
G86: Admisiones y Registro
G87: Graduados
G88: Dialogando con el Mundo
G89: Talento Humano
G90: Jurídica
G91: Financiera
G92: Sistemas y Tecnología
G93: Bienes y Servicios
G94: Documental
G95: Apoyo Académico
G96: Control Interno
G97: Control Disciplinario
G98: Servicio de Atención al Ciudadano

Sheet MAR-4
B2: REGRESAR
E5: MACROPROCESO ESTRATÉGICO | M5: CÓDIGO: ESGr027
E6: PROCESO GESTIÓN SISTEMAS INTEGRADOS | M6: VERSIÓN: 7
E7: MATRIZ DE MEDICIÓN Y SEGUIMIENTO A LOS PROCESOS DE GESTIÓN | M7: VIGENCIA: 2020-03-20
M8: PÁGINA: 1 de 1
C10: FICHA DE INDICADOR
C12: MACROPROCESO | E12: Misional | I12: NOMBRE DEL INDICADOR | K12: Índice de selectividad
C13: PROCESO GESTIÓN | E13: Admisiones y Registro
C14: RESPONSABLE DE MEDICIÓN | E14: Jefe de la Oficina de Admisiones y Registro
C16: 1. COMPORTAMIENTO DE INDICADOR
C17: CLASIFICACIÓN DE LA MEDICIÓN | E17: 1 | H17: TIPO DE INDICADOR | J17: Acreditación | L17: META ANUAL | N17: 0.5
C18: FORMULA | E18: NUMERADOR | G18: Número de admitidos * 100 | L18: UNIDAD DE MEDIDA | N18: Porcentual
E19: DENOMINADOR | G19: número de inscritos
C20: TENDENCIA | E20: Positiva | H20: NIVEL DE SEGREGACIÓN * | J20: Por Unidad Regional | L20: ESCALA
L21: Deficiente | M21: Aceptable | N21: Bueno | O21: Excelente
L22: 0 - 30% | M22: 31% - 40% | N22: 41% - 50% | O22: 51% - 100%
C23: ORIGEN DE DATOS NUMERADOR | E23: Base de datos procedimiento Inscripción y Selección de Aspirantes | H23: FRECUENCIA DE LA MEDICIÓN | J23: SEMESTRAL | L23: FRECUENCIA DE RESULTADO | N23: SEMESTRAL
C24: ORIGEN DE DATOS DENOMINADOR | E24: Base de datos procedimiento Inscripción y Selección de Aspirantes
C26: RESULTADOS
J27: ANÁLISIS DE DATOS
J34: ACCIÓN FORMULADA
J41: RESPONSABLE
J42: =E14 -> Jefe de la Oficina de Admisiones y Registro
C45: PERIODO DE EVALUACIÓN
C46: MES | D46: =IF(J23="MENSUAL","ENERO",IF(J23="TRIMESTRAL","MARZO",IF(J23="SEMESTRAL","JUNIO",IF(J23="ANUAL",YEAR(TODAY()),"")))) -> JUNIO | E46: =IF(J23="MENSUAL","FEBRERO",IF(J23="TRIMESTRAL","JUNIO",IF(J23="SEMESTRAL","DICIEMBRE",""))) -> DICIEMBRE | F46: =IF(J23="MENSUAL","MARZO",IF(J23="TRIMESTRAL","SEPTIEMBRE","")) ->  | G46: =IF(J23="MENSUAL","ABRIL",IF(J23="TRIMESTRAL","DICIEMBRE","")) ->  | H46: =IF(J23="MENSUAL","MAYO","") ->  | I46: =IF(J23="MENSUAL","JUNIO","") ->  | J46: =IF(J23="MENSUAL","JULIO","") ->  | K46: =IF(J23="MENSUAL","AGOSTO","") ->  | L46: =IF(J23="MENSUAL","SEPTIEMBRE","") ->  | M46: =IF(J23="MENSUAL","OCTUBRE","") ->  | N46: =IF(J23="MENSUAL","NOVIEMBRE","") ->  | O46: =IF(J23="MENSUAL","DICIEMBRE","") -> 
C47: =G18 -> Número de admitidos * 100
C48: =G19 -> número de inscritos
C49: VALOR | D49: =IFERROR(IF($E$17=1,D47/D48,IF($E$17=2,D47,"")),"") ->  | E49: =IFERROR(IF($E$17=1,E47/E48,IF($E$17=2,E47,"")),"") -> 
C50: META PONDERADA | D50: =IF(AND(N23="ANUAL",J23="MENSUAL"),N17/12,IF(AND(N23="ANUAL",J23="TRIMESTRAL"),N17/4,IF(AND(N23="ANUAL",J23="SEMESTRAL"),N17/2,IF(AND(N23="ANUAL",J23="ANUAL"),N17,IF(AND(N23="SEMESTRAL",J23="MENSUAL"),N17/6,IF(AND(N23="SEMESTRAL",J23="TRIMESTRAL"),N17/2,IF(AND(N23="SEMESTRAL",J23="SEMESTRAL"),N17,IF(AND(N23="SEMESTRAL",J23="ANUAL"),"REVISAR FRECUENCIAS",IF(AND(N23="TRIMESTRAL",J23="MENSUAL"),N17/3,IF(AND(N23="TRIMESTRAL",J23="TRIMESTRAL"),N17,IF(AND(N23="TRIMESTRAL",J23="SEMESTRAL"),"REVISAR FRECUENCIAS",IF(AND(N23="TRIMESTRAL",J23="ANUAL"),"REVISAR FRECUENCIAS",IF(AND(N23="MENSUAL",J23="MENSUAL"),N17,IF(AND(N23="MENSUAL",J23="TRIMESTRAL"),"REVISAR FRECUENCIAS",IF(AND(N23="MENSUAL",J23="SEMESTRAL"),"REVISAR FRECUENCIAS",IF(AND(N23="MENSUAL",J23="ANUAL"),"REVISAR FRECUENCIAS","")))))))))))))))) -> 0.5 | E50: =IF(AND(N23="ANUAL",J23="MENSUAL"),N17/12+D50,IF(AND(N23="ANUAL",J23="TRIMESTRAL"),N17/4+D50,IF(AND(N23="ANUAL",J23="SEMESTRAL"),N17/2+D50,IF(AND(N23="SEMESTRAL",J23="MENSUAL"),N17/6+D50,IF(AND(N23="SEMESTRAL",J23="TRIMESTRAL"),N17/2+D50,IF(AND(N23="SEMESTRAL",J23="SEMESTRAL"),N17,IF(AND(N23="TRIMESTRAL",J23="MENSUAL"),N17/3+D50,IF(AND(N23="TRIMESTRAL",J23="TRIMESTRAL"),N17,IF(AND(N23="MENSUAL",J23="MENSUAL"),N17,""))))))))) -> 0.5 | F50: =IF(AND(N23="ANUAL",J23="MENSUAL"),N17/12+E50,IF(AND(N23="ANUAL",J23="TRIMESTRAL"),N17/4+E50,IF(AND(N23="SEMESTRAL",J23="MENSUAL"),N17/6+E50,IF(AND(N23="SEMESTRAL",J23="TRIMESTRAL"),N17/2,IF(AND(N23="TRIMESTRAL",J23="MENSUAL"),N17/3+E50,IF(AND(N23="TRIMESTRAL",J23="TRIMESTRAL"),N17,IF(AND(N23="MENSUAL",J23="MENSUAL"),N17,""))))))) ->  | G50: =IF(AND(N23="ANUAL",J23="MENSUAL"),N17/12+F50,IF(AND(N23="ANUAL",J23="TRIMESTRAL"),N17/4+F50,IF(AND(N23="SEMESTRAL",J23="MENSUAL"),N17/6+F50,IF(AND(N23="SEMESTRAL",J23="TRIMESTRAL"),N17/2+F50,IF(AND(N23="TRIMESTRAL",J23="MENSUAL"),N17/3,IF(AND(N23="TRIMESTRAL",J23="TRIMESTRAL"),N17,IF(AND(N23="MENSUAL",J23="MENSUAL"),N17,""))))))) ->  | H50: =IF(AND($N$23="ANUAL",$J$23="MENSUAL"),$N$17/12+G50,IF(AND(N23="SEMESTRAL",J23="MENSUAL"),N17/6+G50,IF(AND(N23="TRIMESTRAL",J23="MENSUAL"),N17/3+G50,IF(AND(N23="MENSUAL",J23="MENSUAL"),N17,"")))) ->  | I50: =IF(AND($N$23="ANUAL",$J$23="MENSUAL"),$N$17/12+H50,IF(AND(N23="SEMESTRAL",J23="MENSUAL"),N17/6+H50,IF(AND(N23="TRIMESTRAL",J23="MENSUAL"),N17/3+H50,IF(AND(N23="MENSUAL",J23="MENSUAL"),N17,"")))) ->  | J50: =IF(AND($N$23="ANUAL",$J$23="MENSUAL"),$N$17/12+I50,IF(AND(N23="SEMESTRAL",J23="MENSUAL"),N17/6,IF(AND(N23="TRIMESTRAL",J23="MENSUAL"),N17/3,IF(AND(N23="MENSUAL",J23="MENSUAL"),N17,"")))) ->  | K50: =IF(AND($N$23="ANUAL",$J$23="MENSUAL"),$N$17/12+J50,IF(AND(N23="SEMESTRAL",J23="MENSUAL"),N17/6+J50,IF(AND(N23="TRIMESTRAL",J23="MENSUAL"),N17/3+J50,IF(AND(N23="MENSUAL",J23="MENSUAL"),N17,"")))) ->  | L50: =IF(AND($N$23="ANUAL",$J$23="MENSUAL"),$N$17/12+K50,IF(AND(N23="SEMESTRAL",J23="MENSUAL"),N17/6+K50,IF(AND(N23="TRIMESTRAL",J23="MENSUAL"),N17/3+K50,IF(AND(N23="MENSUAL",J23="MENSUAL"),N17,"")))) ->  | M50: =IF(AND($N$23="ANUAL",$J$23="MENSUAL"),$N$17/12+L50,IF(AND(N23="SEMESTRAL",J23="MENSUAL"),N17/6+L50,IF(AND(N23="TRIMESTRAL",J23="MENSUAL"),N17/3,IF(AND(N23="MENSUAL",J23="MENSUAL"),N17,"")))) ->  | N50: =IF(AND($N$23="ANUAL",$J$23="MENSUAL"),$N$17/12+M50,IF(AND(N23="SEMESTRAL",J23="MENSUAL"),N17/6+M50,IF(AND(N23="TRIMESTRAL",J23="MENSUAL"),N17/3+M50,IF(AND(N23="MENSUAL",J23="MENSUAL"),N17,"")))) ->  | O50: =IF(AND($N$23="ANUAL",$J$23="MENSUAL"),$N$17/12+N50,IF(AND(N23="SEMESTRAL",J23="MENSUAL"),N17/6+N50,IF(AND(N23="TRIMESTRAL",J23="MENSUAL"),N17/3+N50,IF(AND(N23="MENSUAL",J23="MENSUAL"),N17,"")))) -> 
C52: NIVEL DE SEGREGACIÓN *
C53: UNIDAD SEGREGADA (Ej. Facultad, Programa Académico, Área) | G53: RESULTADO | K53: ANALISIS DE DATOS SEGREGADO
G72: Estratégico | J72: Eficacia
G73: Misional | J73: Eficiencia
G74: Apoyo | J74: Acreditación
G75: Seguimiento, Medición, Análisis y Evaluación | J75: Positiva
G76: Direccionamiento Estratégico | J76: Negativa
G77: Planeación Institucional | J77: Por Unidad Regional
G78: Proyectos Especiales y Relaciones Interinstitucionales | J78: Por Facultad
G79: Sistemas Integrados | J79: Por Programa Académico
G80: Autoevaluación y Acreditación | J80: Por área
G81: Comunicaciones | J81: Por Laboratorio
G82: Formación y Aprendizaje | J82: Otros
G83: Ciencia, Tecnología e Innovación | J83: No Aplica
G84: Interacción Social Universitaria
G85: Bienestar Universitario
G86: Admisiones y Registro
G87: Graduados
G88: Dialogando con el Mundo
G89: Talento Humano
G90: Jurídica
G91: Financiera
G92: Sistemas y Tecnología
G93: Bienes y Servicios
G94: Documental
G95: Apoyo Académico
G96: Control Interno
G97: Control Disciplinario
G98: Servicio de Atención al Ciudadano

Sheet MAR-5
B2: REGRESAR
E5: MACROPROCESO ESTRATÉGICO | M5: CÓDIGO: ESGr027
E6: PROCESO GESTIÓN SISTEMAS INTEGRADOS | M6: VERSIÓN: 7
E7: MATRIZ DE MEDICIÓN Y SEGUIMIENTO A LOS PROCESOS DE GESTIÓN | M7: VIGENCIA: 2020-03-20
M8: PÁGINA: 1 de 1
C10: FICHA DE INDICADOR
C12: MACROPROCESO | E12: Misional | I12: NOMBRE DEL INDICADOR | K12: Requisitos de matricula
C13: PROCESO GESTIÓN | E13: Admisiones y Registro
C14: RESPONSABLE DE MEDICIÓN | E14: Jefe de la Oficina de Admisiones y Registro
C16: 1. COMPORTAMIENTO DE INDICADOR
C17: CLASIFICACIÓN DE LA MEDICIÓN | E17: 1 | H17: TIPO DE INDICADOR | J17: Acreditación | L17: META ANUAL | N17: 0.9
C18: FORMULA | E18: NUMERADOR | G18: Número de matriculados efectivos * 100 | L18: UNIDAD DE MEDIDA | N18: Porcentual
E19: DENOMINADOR | G19: total de número de admitidos
C20: TENDENCIA | E20: Positiva | H20: NIVEL DE SEGREGACIÓN * | J20: Por Programa Académico | L20: ESCALA
L21: Deficiente | M21: Aceptable | N21: Bueno | O21: Excelente
L22: 0 - 70% | M22: 71% - 80% | N22: 81% - 90% | O22: 91% - 100%
C23: ORIGEN DE DATOS NUMERADOR | E23: Aplicativo academusoft | H23: FRECUENCIA DE LA MEDICIÓN | J23: SEMESTRAL | L23: FRECUENCIA DE RESULTADO | N23: SEMESTRAL
C24: ORIGEN DE DATOS DENOMINADOR | E24: Aplicativo academusoft
C26: RESULTADOS
J27: ANÁLISIS DE DATOS
J34: ACCIÓN FORMULADA
J41: RESPONSABLE
J42: =E14 -> Jefe de la Oficina de Admisiones y Registro
C45: PERIODO DE EVALUACIÓN
C46: MES | D46: =IF(J23="MENSUAL","ENERO",IF(J23="TRIMESTRAL","MARZO",IF(J23="SEMESTRAL","JUNIO",IF(J23="ANUAL",YEAR(TODAY()),"")))) -> JUNIO | E46: =IF(J23="MENSUAL","FEBRERO",IF(J23="TRIMESTRAL","JUNIO",IF(J23="SEMESTRAL","DICIEMBRE",""))) -> DICIEMBRE | F46: =IF(J23="MENSUAL","MARZO",IF(J23="TRIMESTRAL","SEPTIEMBRE","")) ->  | G46: =IF(J23="MENSUAL","ABRIL",IF(J23="TRIMESTRAL","DICIEMBRE","")) ->  | H46: =IF(J23="MENSUAL","MAYO","") ->  | I46: =IF(J23="MENSUAL","JUNIO","") ->  | J46: =IF(J23="MENSUAL","JULIO","") ->  | K46: =IF(J23="MENSUAL","AGOSTO","") ->  | L46: =IF(J23="MENSUAL","SEPTIEMBRE","") ->  | M46: =IF(J23="MENSUAL","OCTUBRE","") ->  | N46: =IF(J23="MENSUAL","NOVIEMBRE","") ->  | O46: =IF(J23="MENSUAL","DICIEMBRE","") -> 
C47: =G18 -> Número de matriculados efectivos * 100
C48: =G19 -> total de número de admitidos
C49: VALOR | D49: =IFERROR(IF($E$17=1,D47/D48,IF($E$17=2,D47,"")),"") ->  | E49: =IFERROR(IF($E$17=1,E47/E48,IF($E$17=2,E47,"")),"") -> 
C50: META PONDERADA | D50: =IF(AND(N23="ANUAL",J23="MENSUAL"),N17/12,IF(AND(N23="ANUAL",J23="TRIMESTRAL"),N17/4,IF(AND(N23="ANUAL",J23="SEMESTRAL"),N17/2,IF(AND(N23="ANUAL",J23="ANUAL"),N17,IF(AND(N23="SEMESTRAL",J23="MENSUAL"),N17/6,IF(AND(N23="SEMESTRAL",J23="TRIMESTRAL"),N17/2,IF(AND(N23="SEMESTRAL",J23="SEMESTRAL"),N17,IF(AND(N23="SEMESTRAL",J23="ANUAL"),"REVISAR FRECUENCIAS",IF(AND(N23="TRIMESTRAL",J23="MENSUAL"),N17/3,IF(AND(N23="TRIMESTRAL",J23="TRIMESTRAL"),N17,IF(AND(N23="TRIMESTRAL",J23="SEMESTRAL"),"REVISAR FRECUENCIAS",IF(AND(N23="TRIMESTRAL",J23="ANUAL"),"REVISAR FRECUENCIAS",IF(AND(N23="MENSUAL",J23="MENSUAL"),N17,IF(AND(N23="MENSUAL",J23="TRIMESTRAL"),"REVISAR FRECUENCIAS",IF(AND(N23="MENSUAL",J23="SEMESTRAL"),"REVISAR FRECUENCIAS",IF(AND(N23="MENSUAL",J23="ANUAL"),"REVISAR FRECUENCIAS","")))))))))))))))) -> 0.9 | E50: =IF(AND(N23="ANUAL",J23="MENSUAL"),N17/12+D50,IF(AND(N23="ANUAL",J23="TRIMESTRAL"),N17/4+D50,IF(AND(N23="ANUAL",J23="SEMESTRAL"),N17/2+D50,IF(AND(N23="SEMESTRAL",J23="MENSUAL"),N17/6+D50,IF(AND(N23="SEMESTRAL",J23="TRIMESTRAL"),N17/2+D50,IF(AND(N23="SEMESTRAL",J23="SEMESTRAL"),N17,IF(AND(N23="TRIMESTRAL",J23="MENSUAL"),N17/3+D50,IF(AND(N23="TRIMESTRAL",J23="TRIMESTRAL"),N17,IF(AND(N23="MENSUAL",J23="MENSUAL"),N17,""))))))))) -> 0.9 | F50: =IF(AND(N23="ANUAL",J23="MENSUAL"),N17/12+E50,IF(AND(N23="ANUAL",J23="TRIMESTRAL"),N17/4+E50,IF(AND(N23="SEMESTRAL",J23="MENSUAL"),N17/6+E50,IF(AND(N23="SEMESTRAL",J23="TRIMESTRAL"),N17/2,IF(AND(N23="TRIMESTRAL",J23="MENSUAL"),N17/3+E50,IF(AND(N23="TRIMESTRAL",J23="TRIMESTRAL"),N17,IF(AND(N23="MENSUAL",J23="MENSUAL"),N17,""))))))) ->  | G50: =IF(AND(N23="ANUAL",J23="MENSUAL"),N17/12+F50,IF(AND(N23="ANUAL",J23="TRIMESTRAL"),N17/4+F50,IF(AND(N23="SEMESTRAL",J23="MENSUAL"),N17/6+F50,IF(AND(N23="SEMESTRAL",J23="TRIMESTRAL"),N17/2+F50,IF(AND(N23="TRIMESTRAL",J23="MENSUAL"),N17/3,IF(AND(N23="TRIMESTRAL",J23="TRIMESTRAL"),N17,IF(AND(N23="MENSUAL",J23="MENSUAL"),N17,""))))))) ->  | H50: =IF(AND($N$23="ANUAL",$J$23="MENSUAL"),$N$17/12+G50,IF(AND(N23="SEMESTRAL",J23="MENSUAL"),N17/6+G50,IF(AND(N23="TRIMESTRAL",J23="MENSUAL"),N17/3+G50,IF(AND(N23="MENSUAL",J23="MENSUAL"),N17,"")))) ->  | I50: =IF(AND($N$23="ANUAL",$J$23="MENSUAL"),$N$17/12+H50,IF(AND(N23="SEMESTRAL",J23="MENSUAL"),N17/6+H50,IF(AND(N23="TRIMESTRAL",J23="MENSUAL"),N17/3+H50,IF(AND(N23="MENSUAL",J23="MENSUAL"),N17,"")))) ->  | J50: =IF(AND($N$23="ANUAL",$J$23="MENSUAL"),$N$17/12+I50,IF(AND(N23="SEMESTRAL",J23="MENSUAL"),N17/6,IF(AND(N23="TRIMESTRAL",J23="MENSUAL"),N17/3,IF(AND(N23="MENSUAL",J23="MENSUAL"),N17,"")))) ->  | K50: =IF(AND($N$23="ANUAL",$J$23="MENSUAL"),$N$17/12+J50,IF(AND(N23="SEMESTRAL",J23="MENSUAL"),N17/6+J50,IF(AND(N23="TRIMESTRAL",J23="MENSUAL"),N17/3+J50,IF(AND(N23="MENSUAL",J23="MENSUAL"),N17,"")))) ->  | L50: =IF(AND($N$23="ANUAL",$J$23="MENSUAL"),$N$17/12+K50,IF(AND(N23="SEMESTRAL",J23="MENSUAL"),N17/6+K50,IF(AND(N23="TRIMESTRAL",J23="MENSUAL"),N17/3+K50,IF(AND(N23="MENSUAL",J23="MENSUAL"),N17,"")))) ->  | M50: =IF(AND($N$23="ANUAL",$J$23="MENSUAL"),$N$17/12+L50,IF(AND(N23="SEMESTRAL",J23="MENSUAL"),N17/6+L50,IF(AND(N23="TRIMESTRAL",J23="MENSUAL"),N17/3,IF(AND(N23="MENSUAL",J23="MENSUAL"),N17,"")))) ->  | N50: =IF(AND($N$23="ANUAL",$J$23="MENSUAL"),$N$17/12+M50,IF(AND(N23="SEMESTRAL",J23="MENSUAL"),N17/6+M50,IF(AND(N23="TRIMESTRAL",J23="MENSUAL"),N17/3+M50,IF(AND(N23="MENSUAL",J23="MENSUAL"),N17,"")))) ->  | O50: =IF(AND($N$23="ANUAL",$J$23="MENSUAL"),$N$17/12+N50,IF(AND(N23="SEMESTRAL",J23="MENSUAL"),N17/6+N50,IF(AND(N23="TRIMESTRAL",J23="MENSUAL"),N17/3+N50,IF(AND(N23="MENSUAL",J23="MENSUAL"),N17,"")))) -> 
C52: NIVEL DE SEGREGACIÓN *
C53: UNIDAD SEGREGADA (Ej. Facultad, Programa Académico, Área) | G53: RESULTADO | K53: ANALISIS DE DATOS SEGREGADO
G72: Estratégico | J72: Eficacia
G73: Misional | J73: Eficiencia
G74: Apoyo | J74: Acreditación
G75: Seguimiento, Medición, Análisis y Evaluación | J75: Positiva
G76: Direccionamiento Estratégico | J76: Negativa
G77: Planeación Institucional | J77: Por Unidad Regional
G78: Proyectos Especiales y Relaciones Interinstitucionales | J78: Por Facultad
G79: Sistemas Integrados | J79: Por Programa Académico
G80: Autoevaluación y Acreditación | J80: Por área
G81: Comunicaciones | J81: Por Laboratorio
G82: Formación y Aprendizaje | J82: Otros
G83: Ciencia, Tecnología e Innovación | J83: No Aplica
G84: Interacción Social Universitaria
G85: Bienestar Universitario
G86: Admisiones y Registro
G87: Graduados
G88: Dialogando con el Mundo
G89: Talento Humano
G90: Jurídica
G91: Financiera
G92: Sistemas y Tecnología
G93: Bienes y Servicios
G94: Documental
G95: Apoyo Académico
G96: Control Interno
G97: Control Disciplinario
G98: Servicio de Atención al Ciudadano

Sheet MAR-6
B2: REGRESAR
E5: MACROPROCESO ESTRATÉGICO | M5: CÓDIGO: ESGr027
E6: PROCESO GESTIÓN SISTEMAS INTEGRADOS | M6: VERSIÓN: 7
E7: MATRIZ DE MEDICIÓN Y SEGUIMIENTO A LOS PROCESOS DE GESTIÓN | M7: VIGENCIA: 2020-03-20
M8: PÁGINA: 1 de 1
C10: FICHA DE INDICADOR
C12: MACROPROCESO | E12: Misional | I12: NOMBRE DEL INDICADOR | K12: Tasa de graduación efectiva
C13: PROCESO GESTIÓN | E13: Admisiones y Registro
C14: RESPONSABLE DE MEDICIÓN | E14: Jefe de la Oficina de Admisiones y Registro
C16: 1. COMPORTAMIENTO DE INDICADOR
C17: CLASIFICACIÓN DE LA MEDICIÓN | E17: 1 | H17: TIPO DE INDICADOR | J17: Acreditación | L17: META ANUAL | N17: 0.9
C18: FORMULA | E18: NUMERADOR | G18: Número de graduados oportunos (plan de estudios + 1 semestre) * 100 | L18: UNIDAD DE MEDIDA | N18: Porcentual
E19: DENOMINADOR | G19: total de estudiantes inscritos de cada programa académico
C20: TENDENCIA | E20: Positiva | H20: NIVEL DE SEGREGACIÓN * | J20: Por Programa Académico | L20: ESCALA
L21: Deficiente | M21: Aceptable | N21: Bueno | O21: Excelente
L22: 0 - 60% | M22: 61% - 80% | N22: 81% - 90% | O22: 91% - 100%
C23: ORIGEN DE DATOS NUMERADOR | E23: Aplicativo academusoft | H23: FRECUENCIA DE LA MEDICIÓN | J23: SEMESTRAL | L23: FRECUENCIA DE RESULTADO | N23: SEMESTRAL
C24: ORIGEN DE DATOS DENOMINADOR | E24: Aplicativo academusoft
C26: RESULTADOS
J27: ANÁLISIS DE DATOS
J34: ACCIÓN FORMULADA
J41: RESPONSABLE
J42: =E14 -> Jefe de la Oficina de Admisiones y Registro
C45: PERIODO DE EVALUACIÓN
C46: MES | D46: =IF(J23="MENSUAL","ENERO",IF(J23="TRIMESTRAL","MARZO",IF(J23="SEMESTRAL","JUNIO",IF(J23="ANUAL",YEAR(TODAY()),"")))) -> JUNIO | E46: =IF(J23="MENSUAL","FEBRERO",IF(J23="TRIMESTRAL","JUNIO",IF(J23="SEMESTRAL","DICIEMBRE",""))) -> DICIEMBRE | F46: =IF(J23="MENSUAL","MARZO",IF(J23="TRIMESTRAL","SEPTIEMBRE","")) ->  | G46: =IF(J23="MENSUAL","ABRIL",IF(J23="TRIMESTRAL","DICIEMBRE","")) ->  | H46: =IF(J23="MENSUAL","MAYO","") ->  | I46: =IF(J23="MENSUAL","JUNIO","") ->  | J46: =IF(J23="MENSUAL","JULIO","") ->  | K46: =IF(J23="MENSUAL","AGOSTO","") ->  | L46: =IF(J23="MENSUAL","SEPTIEMBRE","") ->  | M46: =IF(J23="MENSUAL","OCTUBRE","") ->  | N46: =IF(J23="MENSUAL","NOVIEMBRE","") ->  | O46: =IF(J23="MENSUAL","DICIEMBRE","") -> 
C47: =G18 -> Número de graduados oportunos (plan de estudios + 1 semestre) * 100
C48: =G19 -> total de estudiantes inscritos de cada programa académico
C49: VALOR | D49: =IFERROR(IF($E$17=1,D47/D48,IF($E$17=2,D47,"")),"") ->  | E49: =IFERROR(IF($E$17=1,E47/E48,IF($E$17=2,E47,"")),"") -> 
C50: META PONDERADA | D50: =IF(AND(N23="ANUAL",J23="MENSUAL"),N17/12,IF(AND(N23="ANUAL",J23="TRIMESTRAL"),N17/4,IF(AND(N23="ANUAL",J23="SEMESTRAL"),N17/2,IF(AND(N23="ANUAL",J23="ANUAL"),N17,IF(AND(N23="SEMESTRAL",J23="MENSUAL"),N17/6,IF(AND(N23="SEMESTRAL",J23="TRIMESTRAL"),N17/2,IF(AND(N23="SEMESTRAL",J23="SEMESTRAL"),N17,IF(AND(N23="SEMESTRAL",J23="ANUAL"),"REVISAR FRECUENCIAS",IF(AND(N23="TRIMESTRAL",J23="MENSUAL"),N17/3,IF(AND(N23="TRIMESTRAL",J23="TRIMESTRAL"),N17,IF(AND(N23="TRIMESTRAL",J23="SEMESTRAL"),"REVISAR FRECUENCIAS",IF(AND(N23="TRIMESTRAL",J23="ANUAL"),"REVISAR FRECUENCIAS",IF(AND(N23="MENSUAL",J23="MENSUAL"),N17,IF(AND(N23="MENSUAL",J23="TRIMESTRAL"),"REVISAR FRECUENCIAS",IF(AND(N23="MENSUAL",J23="SEMESTRAL"),"REVISAR FRECUENCIAS",IF(AND(N23="MENSUAL",J23="ANUAL"),"REVISAR FRECUENCIAS","")))))))))))))))) -> 0.9 | E50: =IF(AND(N23="ANUAL",J23="MENSUAL"),N17/12+D50,IF(AND(N23="ANUAL",J23="TRIMESTRAL"),N17/4+D50,IF(AND(N23="ANUAL",J23="SEMESTRAL"),N17/2+D50,IF(AND(N23="SEMESTRAL",J23="MENSUAL"),N17/6+D50,IF(AND(N23="SEMESTRAL",J23="TRIMESTRAL"),N17/2+D50,IF(AND(N23="SEMESTRAL",J23="SEMESTRAL"),N17,IF(AND(N23="TRIMESTRAL",J23="MENSUAL"),N17/3+D50,IF(AND(N23="TRIMESTRAL",J23="TRIMESTRAL"),N17,IF(AND(N23="MENSUAL",J23="MENSUAL"),N17,""))))))))) -> 0.9 | F50: =IF(AND(N23="ANUAL",J23="MENSUAL"),N17/12+E50,IF(AND(N23="ANUAL",J23="TRIMESTRAL"),N17/4+E50,IF(AND(N23="SEMESTRAL",J23="MENSUAL"),N17/6+E50,IF(AND(N23="SEMESTRAL",J23="TRIMESTRAL"),N17/2,IF(AND(N23="TRIMESTRAL",J23="MENSUAL"),N17/3+E50,IF(AND(N23="TRIMESTRAL",J23="TRIMESTRAL"),N17,IF(AND(N23="MENSUAL",J23="MENSUAL"),N17,""))))))) ->  | G50: =IF(AND(N23="ANUAL",J23="MENSUAL"),N17/12+F50,IF(AND(N23="ANUAL",J23="TRIMESTRAL"),N17/4+F50,IF(AND(N23="SEMESTRAL",J23="MENSUAL"),N17/6+F50,IF(AND(N23="SEMESTRAL",J23="TRIMESTRAL"),N17/2+F50,IF(AND(N23="TRIMESTRAL",J23="MENSUAL"),N17/3,IF(AND(N23="TRIMESTRAL",J23="TRIMESTRAL"),N17,IF(AND(N23="MENSUAL",J23="MENSUAL"),N17,""))))))) ->  | H50: =IF(AND($N$23="ANUAL",$J$23="MENSUAL"),$N$17/12+G50,IF(AND(N23="SEMESTRAL",J23="MENSUAL"),N17/6+G50,IF(AND(N23="TRIMESTRAL",J23="MENSUAL"),N17/3+G50,IF(AND(N23="MENSUAL",J23="MENSUAL"),N17,"")))) ->  | I50: =IF(AND($N$23="ANUAL",$J$23="MENSUAL"),$N$17/12+H50,IF(AND(N23="SEMESTRAL",J23="MENSUAL"),N17/6+H50,IF(AND(N23="TRIMESTRAL",J23="MENSUAL"),N17/3+H50,IF(AND(N23="MENSUAL",J23="MENSUAL"),N17,"")))) ->  | J50: =IF(AND($N$23="ANUAL",$J$23="MENSUAL"),$N$17/12+I50,IF(AND(N23="SEMESTRAL",J23="MENSUAL"),N17/6,IF(AND(N23="TRIMESTRAL",J23="MENSUAL"),N17/3,IF(AND(N23="MENSUAL",J23="MENSUAL"),N17,"")))) ->  | K50: =IF(AND($N$23="ANUAL",$J$23="MENSUAL"),$N$17/12+J50,IF(AND(N23="SEMESTRAL",J23="MENSUAL"),N17/6+J50,IF(AND(N23="TRIMESTRAL",J23="MENSUAL"),N17/3+J50,IF(AND(N23="MENSUAL",J23="MENSUAL"),N17,"")))) ->  | L50: =IF(AND($N$23="ANUAL",$J$23="MENSUAL"),$N$17/12+K50,IF(AND(N23="SEMESTRAL",J23="MENSUAL"),N17/6+K50,IF(AND(N23="TRIMESTRAL",J23="MENSUAL"),N17/3+K50,IF(AND(N23="MENSUAL",J23="MENSUAL"),N17,"")))) ->  | M50: =IF(AND($N$23="ANUAL",$J$23="MENSUAL"),$N$17/12+L50,IF(AND(N23="SEMESTRAL",J23="MENSUAL"),N17/6+L50,IF(AND(N23="TRIMESTRAL",J23="MENSUAL"),N17/3,IF(AND(N23="MENSUAL",J23="MENSUAL"),N17,"")))) ->  | N50: =IF(AND($N$23="ANUAL",$J$23="MENSUAL"),$N$17/12+M50,IF(AND(N23="SEMESTRAL",J23="MENSUAL"),N17/6+M50,IF(AND(N23="TRIMESTRAL",J23="MENSUAL"),N17/3+M50,IF(AND(N23="MENSUAL",J23="MENSUAL"),N17,"")))) ->  | O50: =IF(AND($N$23="ANUAL",$J$23="MENSUAL"),$N$17/12+N50,IF(AND(N23="SEMESTRAL",J23="MENSUAL"),N17/6+N50,IF(AND(N23="TRIMESTRAL",J23="MENSUAL"),N17/3+N50,IF(AND(N23="MENSUAL",J23="MENSUAL"),N17,"")))) -> 
C52: NIVEL DE SEGREGACIÓN *
C53: UNIDAD SEGREGADA (Ej. Facultad, Programa Académico, Área) | G53: RESULTADO | K53: ANALISIS DE DATOS SEGREGADO
G72: Estratégico | J72: Eficacia
G73: Misional | J73: Eficiencia
G74: Apoyo | J74: Acreditación
G75: Seguimiento, Medición, Análisis y Evaluación | J75: Positiva
G76: Direccionamiento Estratégico | J76: Negativa
G77: Planeación Institucional | J77: Por Unidad Regional
G78: Proyectos Especiales y Relaciones Interinstitucionales | J78: Por Facultad
G79: Sistemas Integrados | J79: Por Programa Académico
G80: Autoevaluación y Acreditación | J80: Por área
G81: Comunicaciones | J81: Por Laboratorio
G82: Formación y Aprendizaje | J82: Otros
G83: Ciencia, Tecnología e Innovación | J83: No Aplica
G84: Interacción Social Universitaria
G85: Bienestar Universitario
G86: Admisiones y Registro
G87: Graduados
G88: Dialogando con el Mundo
G89: Talento Humano
G90: Jurídica
G91: Financiera
G92: Sistemas y Tecnología
G93: Bienes y Servicios
G94: Documental
G95: Apoyo Académico
G96: Control Interno
G97: Control Disciplinario
G98: Servicio de Atención al Ciudadano

Sheet MAR-7
B2: REGRESAR
E5: MACROPROCESO ESTRATÉGICO | M5: CÓDIGO: ESGr027
E6: PROCESO GESTIÓN SISTEMAS INTEGRADOS | M6: VERSIÓN: 7
E7: MATRIZ DE MEDICIÓN Y SEGUIMIENTO A LOS PROCESOS DE GESTIÓN | M7: VIGENCIA: 2020-03-20
M8: PÁGINA: 1 de 1
C10: FICHA DE INDICADOR
C12: MACROPROCESO | E12: Misional | I12: NOMBRE DEL INDICADOR | K12: Perdida Calidad de estudiante (no renovación de matricula, sanciones académicas y disciplinarias, motivos graves de salud, promedio acumulado inferior 3.0)
C13: PROCESO GESTIÓN | E13: Admisiones y Registro
C14: RESPONSABLE DE MEDICIÓN | E14: Jefe de la Oficina de Admisiones y Registro
C16: 1. COMPORTAMIENTO DE INDICADOR
C17: CLASIFICACIÓN DE LA MEDICIÓN | E17: 1 | H17: TIPO DE INDICADOR | J17: Acreditación | L17: META ANUAL | N17: 0.3
C18: FORMULA | E18: NUMERADOR | G18: Número de estudiantes que pierden calidad de estudiante * 100 | L18: UNIDAD DE MEDIDA | N18: Porcentual
E19: DENOMINADOR | G19: total de estudiantes
C20: TENDENCIA | E20: Negativa | H20: NIVEL DE SEGREGACIÓN * | J20: Por Programa Académico | L20: ESCALA
L21: Deficiente | M21: Aceptable | N21: Bueno | O21: Excelente
L22: ≥37% | M22: 31% - 36% | N22: 25% - 30% | O22: ≤24%
C23: ORIGEN DE DATOS NUMERADOR | E23: Aplicativo academusoft - Información facultades | H23: FRECUENCIA DE LA MEDICIÓN | J23: SEMESTRAL | L23: FRECUENCIA DE RESULTADO | N23: SEMESTRAL
C24: ORIGEN DE DATOS DENOMINADOR | E24: Aplicativo academusoft - Información facultades
C26: RESULTADOS
J27: ANÁLISIS DE DATOS
J34: ACCIÓN FORMULADA
J41: RESPONSABLE
J42: =E14 -> Jefe de la Oficina de Admisiones y Registro
C45: PERIODO DE EVALUACIÓN
C46: MES | D46: =IF(J23="MENSUAL","ENERO",IF(J23="TRIMESTRAL","MARZO",IF(J23="SEMESTRAL","JUNIO",IF(J23="ANUAL",YEAR(TODAY()),"")))) -> JUNIO | E46: =IF(J23="MENSUAL","FEBRERO",IF(J23="TRIMESTRAL","JUNIO",IF(J23="SEMESTRAL","DICIEMBRE",""))) -> DICIEMBRE | F46: =IF(J23="MENSUAL","MARZO",IF(J23="TRIMESTRAL","SEPTIEMBRE","")) ->  | G46: =IF(J23="MENSUAL","ABRIL",IF(J23="TRIMESTRAL","DICIEMBRE","")) ->  | H46: =IF(J23="MENSUAL","MAYO","") ->  | I46: =IF(J23="MENSUAL","JUNIO","") ->  | J46: =IF(J23="MENSUAL","JULIO","") ->  | K46: =IF(J23="MENSUAL","AGOSTO","") ->  | L46: =IF(J23="MENSUAL","SEPTIEMBRE","") ->  | M46: =IF(J23="MENSUAL","OCTUBRE","") ->  | N46: =IF(J23="MENSUAL","NOVIEMBRE","") ->  | O46: =IF(J23="MENSUAL","DICIEMBRE","") -> 
C47: =G18 -> Número de estudiantes que pierden calidad de estudiante * 100
C48: =G19 -> total de estudiantes
C49: VALOR | D49: =IFERROR(IF($E$17=1,D47/D48,IF($E$17=2,D47,"")),"") ->  | E49: =IFERROR(IF($E$17=1,E47/E48,IF($E$17=2,E47,"")),"") -> 
C50: META PONDERADA | D50: =IF(AND(N23="ANUAL",J23="MENSUAL"),N17/12,IF(AND(N23="ANUAL",J23="TRIMESTRAL"),N17/4,IF(AND(N23="ANUAL",J23="SEMESTRAL"),N17/2,IF(AND(N23="ANUAL",J23="ANUAL"),N17,IF(AND(N23="SEMESTRAL",J23="MENSUAL"),N17/6,IF(AND(N23="SEMESTRAL",J23="TRIMESTRAL"),N17/2,IF(AND(N23="SEMESTRAL",J23="SEMESTRAL"),N17,IF(AND(N23="SEMESTRAL",J23="ANUAL"),"REVISAR FRECUENCIAS",IF(AND(N23="TRIMESTRAL",J23="MENSUAL"),N17/3,IF(AND(N23="TRIMESTRAL",J23="TRIMESTRAL"),N17,IF(AND(N23="TRIMESTRAL",J23="SEMESTRAL"),"REVISAR FRECUENCIAS",IF(AND(N23="TRIMESTRAL",J23="ANUAL"),"REVISAR FRECUENCIAS",IF(AND(N23="MENSUAL",J23="MENSUAL"),N17,IF(AND(N23="MENSUAL",J23="TRIMESTRAL"),"REVISAR FRECUENCIAS",IF(AND(N23="MENSUAL",J23="SEMESTRAL"),"REVISAR FRECUENCIAS",IF(AND(N23="MENSUAL",J23="ANUAL"),"REVISAR FRECUENCIAS","")))))))))))))))) -> 0.3 | E50: =IF(AND(N23="ANUAL",J23="MENSUAL"),N17/12+D50,IF(AND(N23="ANUAL",J23="TRIMESTRAL"),N17/4+D50,IF(AND(N23="ANUAL",J23="SEMESTRAL"),N17/2+D50,IF(AND(N23="SEMESTRAL",J23="MENSUAL"),N17/6+D50,IF(AND(N23="SEMESTRAL",J23="TRIMESTRAL"),N17/2+D50,IF(AND(N23="SEMESTRAL",J23="SEMESTRAL"),N17,IF(AND(N23="TRIMESTRAL",J23="MENSUAL"),N17/3+D50,IF(AND(N23="TRIMESTRAL",J23="TRIMESTRAL"),N17,IF(AND(N23="MENSUAL",J23="MENSUAL"),N17,""))))))))) -> 0.3 | F50: =IF(AND(N23="ANUAL",J23="MENSUAL"),N17/12+E50,IF(AND(N23="ANUAL",J23="TRIMESTRAL"),N17/4+E50,IF(AND(N23="SEMESTRAL",J23="MENSUAL"),N17/6+E50,IF(AND(N23="SEMESTRAL",J23="TRIMESTRAL"),N17/2,IF(AND(N23="TRIMESTRAL",J23="MENSUAL"),N17/3+E50,IF(AND(N23="TRIMESTRAL",J23="TRIMESTRAL"),N17,IF(AND(N23="MENSUAL",J23="MENSUAL"),N17,""))))))) ->  | G50: =IF(AND(N23="ANUAL",J23="MENSUAL"),N17/12+F50,IF(AND(N23="ANUAL",J23="TRIMESTRAL"),N17/4+F50,IF(AND(N23="SEMESTRAL",J23="MENSUAL"),N17/6+F50,IF(AND(N23="SEMESTRAL",J23="TRIMESTRAL"),N17/2+F50,IF(AND(N23="TRIMESTRAL",J23="MENSUAL"),N17/3,IF(AND(N23="TRIMESTRAL",J23="TRIMESTRAL"),N17,IF(AND(N23="MENSUAL",J23="MENSUAL"),N17,""))))))) ->  | H50: =IF(AND($N$23="ANUAL",$J$23="MENSUAL"),$N$17/12+G50,IF(AND(N23="SEMESTRAL",J23="MENSUAL"),N17/6+G50,IF(AND(N23="TRIMESTRAL",J23="MENSUAL"),N17/3+G50,IF(AND(N23="MENSUAL",J23="MENSUAL"),N17,"")))) ->  | I50: =IF(AND($N$23="ANUAL",$J$23="MENSUAL"),$N$17/12+H50,IF(AND(N23="SEMESTRAL",J23="MENSUAL"),N17/6+H50,IF(AND(N23="TRIMESTRAL",J23="MENSUAL"),N17/3+H50,IF(AND(N23="MENSUAL",J23="MENSUAL"),N17,"")))) ->  | J50: =IF(AND($N$23="ANUAL",$J$23="MENSUAL"),$N$17/12+I50,IF(AND(N23="SEMESTRAL",J23="MENSUAL"),N17/6,IF(AND(N23="TRIMESTRAL",J23="MENSUAL"),N17/3,IF(AND(N23="MENSUAL",J23="MENSUAL"),N17,"")))) ->  | K50: =IF(AND($N$23="ANUAL",$J$23="MENSUAL"),$N$17/12+J50,IF(AND(N23="SEMESTRAL",J23="MENSUAL"),N17/6+J50,IF(AND(N23="TRIMESTRAL",J23="MENSUAL"),N17/3+J50,IF(AND(N23="MENSUAL",J23="MENSUAL"),N17,"")))) ->  | L50: =IF(AND($N$23="ANUAL",$J$23="MENSUAL"),$N$17/12+K50,IF(AND(N23="SEMESTRAL",J23="MENSUAL"),N17/6+K50,IF(AND(N23="TRIMESTRAL",J23="MENSUAL"),N17/3+K50,IF(AND(N23="MENSUAL",J23="MENSUAL"),N17,"")))) ->  | M50: =IF(AND($N$23="ANUAL",$J$23="MENSUAL"),$N$17/12+L50,IF(AND(N23="SEMESTRAL",J23="MENSUAL"),N17/6+L50,IF(AND(N23="TRIMESTRAL",J23="MENSUAL"),N17/3,IF(AND(N23="MENSUAL",J23="MENSUAL"),N17,"")))) ->  | N50: =IF(AND($N$23="ANUAL",$J$23="MENSUAL"),$N$17/12+M50,IF(AND(N23="SEMESTRAL",J23="MENSUAL"),N17/6+M50,IF(AND(N23="TRIMESTRAL",J23="MENSUAL"),N17/3+M50,IF(AND(N23="MENSUAL",J23="MENSUAL"),N17,"")))) ->  | O50: =IF(AND($N$23="ANUAL",$J$23="MENSUAL"),$N$17/12+N50,IF(AND(N23="SEMESTRAL",J23="MENSUAL"),N17/6+N50,IF(AND(N23="TRIMESTRAL",J23="MENSUAL"),N17/3+N50,IF(AND(N23="MENSUAL",J23="MENSUAL"),N17,"")))) -> 
C52: NIVEL DE SEGREGACIÓN *
C53: UNIDAD SEGREGADA (Ej. Facultad, Programa Académico, Área) | G53: RESULTADO | K53: ANALISIS DE DATOS SEGREGADO
G72: Estratégico | J72: Eficacia
G73: Misional | J73: Eficiencia
G74: Apoyo | J74: Acreditación
G75: Seguimiento, Medición, Análisis y Evaluación | J75: Positiva
G76: Direccionamiento Estratégico | J76: Negativa
G77: Planeación Institucional | J77: Por Unidad Regional
G78: Proyectos Especiales y Relaciones Interinstitucionales | J78: Por Facultad
G79: Sistemas Integrados | J79: Por Programa Académico
G80: Autoevaluación y Acreditación | J80: Por área
G81: Comunicaciones | J81: Por Laboratorio
G82: Formación y Aprendizaje | J82: Otros
G83: Ciencia, Tecnología e Innovación | J83: No Aplica
G84: Interacción Social Universitaria
G85: Bienestar Universitario
G86: Admisiones y Registro
G87: Graduados
G88: Dialogando con el Mundo
G89: Talento Humano
G90: Jurídica
G91: Financiera
G92: Sistemas y Tecnología
G93: Bienes y Servicios
G94: Documental
G95: Apoyo Académico
G96: Control Interno
G97: Control Disciplinario
G98: Servicio de Atención al Ciudadano

Sheet MAR-8
B2: REGRESAR
E5: MACROPROCESO ESTRATÉGICO | M5: CÓDIGO: ESGr027
E6: PROCESO GESTIÓN SISTEMAS INTEGRADOS | M6: VERSIÓN: 7
E7: MATRIZ DE MEDICIÓN Y SEGUIMIENTO A LOS PROCESOS DE GESTIÓN | M7: VIGENCIA: 2020-03-20
M8: PÁGINA: 1 de 1
C10: FICHA DE INDICADOR
C12: MACROPROCESO | E12: Misional | I12: NOMBRE DEL INDICADOR | K12: Condiciones de accesibilidad (inclusión)
C13: PROCESO GESTIÓN | E13: Admisiones y Registro
C14: RESPONSABLE DE MEDICIÓN | E14: Jefe de la Oficina de Admisiones y Registro
C16: 1. COMPORTAMIENTO DE INDICADOR
C17: CLASIFICACIÓN DE LA MEDICIÓN | E17: 1 | H17: TIPO DE INDICADOR | J17: Acreditación | L17: META ANUAL | N17: 0.9
C18: FORMULA | E18: NUMERADOR | G18: Número de aspirantes (condiciones de discapacidad y vulneración) matriculados efectivos * 100 | L18: UNIDAD DE MEDIDA | N18: Porcentual
E19: DENOMINADOR | G19: total de numero inscritos efectivos (condiciones de discapacidad y vulneración)
C20: TENDENCIA | E20: Positiva | H20: NIVEL DE SEGREGACIÓN * | J20: Por Unidad Regional | L20: ESCALA
L21: Deficiente | M21: Aceptable | N21: Bueno | O21: Excelente
L22: 0 - 70% | M22: 71% - 80% | N22: 81% - 90% | O22: 91% - 100%
C23: ORIGEN DE DATOS NUMERADOR | E23: Aplicativo academusoft | H23: FRECUENCIA DE LA MEDICIÓN | J23: SEMESTRAL | L23: FRECUENCIA DE RESULTADO | N23: SEMESTRAL
C24: ORIGEN DE DATOS DENOMINADOR | E24: Aplicativo academusoft
C26: RESULTADOS
J27: ANÁLISIS DE DATOS
J34: ACCIÓN FORMULADA
J41: RESPONSABLE
J42: =E14 -> Jefe de la Oficina de Admisiones y Registro
C45: PERIODO DE EVALUACIÓN
C46: MES | D46: =IF(J23="MENSUAL","ENERO",IF(J23="TRIMESTRAL","MARZO",IF(J23="SEMESTRAL","JUNIO",IF(J23="ANUAL",YEAR(TODAY()),"")))) -> JUNIO | E46: =IF(J23="MENSUAL","FEBRERO",IF(J23="TRIMESTRAL","JUNIO",IF(J23="SEMESTRAL","DICIEMBRE",""))) -> DICIEMBRE | F46: =IF(J23="MENSUAL","MARZO",IF(J23="TRIMESTRAL","SEPTIEMBRE","")) ->  | G46: =IF(J23="MENSUAL","ABRIL",IF(J23="TRIMESTRAL","DICIEMBRE","")) ->  | H46: =IF(J23="MENSUAL","MAYO","") ->  | I46: =IF(J23="MENSUAL","JUNIO","") ->  | J46: =IF(J23="MENSUAL","JULIO","") ->  | K46: =IF(J23="MENSUAL","AGOSTO","") ->  | L46: =IF(J23="MENSUAL","SEPTIEMBRE","") ->  | M46: =IF(J23="MENSUAL","OCTUBRE","") ->  | N46: =IF(J23="MENSUAL","NOVIEMBRE","") ->  | O46: =IF(J23="MENSUAL","DICIEMBRE","") -> 
C47: =G18 -> Número de aspirantes (condiciones de discapacidad y vulneración) matriculados efectivos * 100
C48: =G19 -> total de numero inscritos efectivos (condiciones de discapacidad y vulneración)
C49: VALOR | D49: =IFERROR(IF($E$17=1,D47/D48,IF($E$17=2,D47,"")),"") ->  | E49: =IFERROR(IF($E$17=1,E47/E48,IF($E$17=2,E47,"")),"") -> 
C50: META PONDERADA | D50: =IF(AND(N23="ANUAL",J23="MENSUAL"),N17/12,IF(AND(N23="ANUAL",J23="TRIMESTRAL"),N17/4,IF(AND(N23="ANUAL",J23="SEMESTRAL"),N17/2,IF(AND(N23="ANUAL",J23="ANUAL"),N17,IF(AND(N23="SEMESTRAL",J23="MENSUAL"),N17/6,IF(AND(N23="SEMESTRAL",J23="TRIMESTRAL"),N17/2,IF(AND(N23="SEMESTRAL",J23="SEMESTRAL"),N17,IF(AND(N23="SEMESTRAL",J23="ANUAL"),"REVISAR FRECUENCIAS",IF(AND(N23="TRIMESTRAL",J23="MENSUAL"),N17/3,IF(AND(N23="TRIMESTRAL",J23="TRIMESTRAL"),N17,IF(AND(N23="TRIMESTRAL",J23="SEMESTRAL"),"REVISAR FRECUENCIAS",IF(AND(N23="TRIMESTRAL",J23="ANUAL"),"REVISAR FRECUENCIAS",IF(AND(N23="MENSUAL",J23="MENSUAL"),N17,IF(AND(N23="MENSUAL",J23="TRIMESTRAL"),"REVISAR FRECUENCIAS",IF(AND(N23="MENSUAL",J23="SEMESTRAL"),"REVISAR FRECUENCIAS",IF(AND(N23="MENSUAL",J23="ANUAL"),"REVISAR FRECUENCIAS","")))))))))))))))) -> 0.9 | E50: =IF(AND(N23="ANUAL",J23="MENSUAL"),N17/12+D50,IF(AND(N23="ANUAL",J23="TRIMESTRAL"),N17/4+D50,IF(AND(N23="ANUAL",J23="SEMESTRAL"),N17/2+D50,IF(AND(N23="SEMESTRAL",J23="MENSUAL"),N17/6+D50,IF(AND(N23="SEMESTRAL",J23="TRIMESTRAL"),N17/2+D50,IF(AND(N23="SEMESTRAL",J23="SEMESTRAL"),N17,IF(AND(N23="TRIMESTRAL",J23="MENSUAL"),N17/3+D50,IF(AND(N23="TRIMESTRAL",J23="TRIMESTRAL"),N17,IF(AND(N23="MENSUAL",J23="MENSUAL"),N17,""))))))))) -> 0.9 | F50: =IF(AND(N23="ANUAL",J23="MENSUAL"),N17/12+E50,IF(AND(N23="ANUAL",J23="TRIMESTRAL"),N17/4+E50,IF(AND(N23="SEMESTRAL",J23="MENSUAL"),N17/6+E50,IF(AND(N23="SEMESTRAL",J23="TRIMESTRAL"),N17/2,IF(AND(N23="TRIMESTRAL",J23="MENSUAL"),N17/3+E50,IF(AND(N23="TRIMESTRAL",J23="TRIMESTRAL"),N17,IF(AND(N23="MENSUAL",J23="MENSUAL"),N17,""))))))) ->  | G50: =IF(AND(N23="ANUAL",J23="MENSUAL"),N17/12+F50,IF(AND(N23="ANUAL",J23="TRIMESTRAL"),N17/4+F50,IF(AND(N23="SEMESTRAL",J23="MENSUAL"),N17/6+F50,IF(AND(N23="SEMESTRAL",J23="TRIMESTRAL"),N17/2+F50,IF(AND(N23="TRIMESTRAL",J23="MENSUAL"),N17/3,IF(AND(N23="TRIMESTRAL",J23="TRIMESTRAL"),N17,IF(AND(N23="MENSUAL",J23="MENSUAL"),N17,""))))))) ->  | H50: =IF(AND($N$23="ANUAL",$J$23="MENSUAL"),$N$17/12+G50,IF(AND(N23="SEMESTRAL",J23="MENSUAL"),N17/6+G50,IF(AND(N23="TRIMESTRAL",J23="MENSUAL"),N17/3+G50,IF(AND(N23="MENSUAL",J23="MENSUAL"),N17,"")))) ->  | I50: =IF(AND($N$23="ANUAL",$J$23="MENSUAL"),$N$17/12+H50,IF(AND(N23="SEMESTRAL",J23="MENSUAL"),N17/6+H50,IF(AND(N23="TRIMESTRAL",J23="MENSUAL"),N17/3+H50,IF(AND(N23="MENSUAL",J23="MENSUAL"),N17,"")))) ->  | J50: =IF(AND($N$23="ANUAL",$J$23="MENSUAL"),$N$17/12+I50,IF(AND(N23="SEMESTRAL",J23="MENSUAL"),N17/6,IF(AND(N23="TRIMESTRAL",J23="MENSUAL"),N17/3,IF(AND(N23="MENSUAL",J23="MENSUAL"),N17,"")))) ->  | K50: =IF(AND($N$23="ANUAL",$J$23="MENSUAL"),$N$17/12+J50,IF(AND(N23="SEMESTRAL",J23="MENSUAL"),N17/6+J50,IF(AND(N23="TRIMESTRAL",J23="MENSUAL"),N17/3+J50,IF(AND(N23="MENSUAL",J23="MENSUAL"),N17,"")))) ->  | L50: =IF(AND($N$23="ANUAL",$J$23="MENSUAL"),$N$17/12+K50,IF(AND(N23="SEMESTRAL",J23="MENSUAL"),N17/6+K50,IF(AND(N23="TRIMESTRAL",J23="MENSUAL"),N17/3+K50,IF(AND(N23="MENSUAL",J23="MENSUAL"),N17,"")))) ->  | M50: =IF(AND($N$23="ANUAL",$J$23="MENSUAL"),$N$17/12+L50,IF(AND(N23="SEMESTRAL",J23="MENSUAL"),N17/6+L50,IF(AND(N23="TRIMESTRAL",J23="MENSUAL"),N17/3,IF(AND(N23="MENSUAL",J23="MENSUAL"),N17,"")))) ->  | N50: =IF(AND($N$23="ANUAL",$J$23="MENSUAL"),$N$17/12+M50,IF(AND(N23="SEMESTRAL",J23="MENSUAL"),N17/6+M50,IF(AND(N23="TRIMESTRAL",J23="MENSUAL"),N17/3+M50,IF(AND(N23="MENSUAL",J23="MENSUAL"),N17,"")))) ->  | O50: =IF(AND($N$23="ANUAL",$J$23="MENSUAL"),$N$17/12+N50,IF(AND(N23="SEMESTRAL",J23="MENSUAL"),N17/6+N50,IF(AND(N23="TRIMESTRAL",J23="MENSUAL"),N17/3+N50,IF(AND(N23="MENSUAL",J23="MENSUAL"),N17,"")))) -> 
C52: NIVEL DE SEGREGACIÓN *
C53: UNIDAD SEGREGADA (Ej. Facultad, Programa Académico, Área) | G53: RESULTADO | K53: ANALISIS DE DATOS SEGREGADO
G72: Estratégico | J72: Eficacia
G73: Misional | J73: Eficiencia
G74: Apoyo | J74: Acreditación
G75: Seguimiento, Medición, Análisis y Evaluación | J75: Positiva
G76: Direccionamiento Estratégico | J76: Negativa
G77: Planeación Institucional | J77: Por Unidad Regional
G78: Proyectos Especiales y Relaciones Interinstitucionales | J78: Por Facultad
G79: Sistemas Integrados | J79: Por Programa Académico
G80: Autoevaluación y Acreditación | J80: Por área
G81: Comunicaciones | J81: Por Laboratorio
G82: Formación y Aprendizaje | J82: Otros
G83: Ciencia, Tecnología e Innovación | J83: No Aplica
G84: Interacción Social Universitaria
G85: Bienestar Universitario
G86: Admisiones y Registro
G87: Graduados
G88: Dialogando con el Mundo
G89: Talento Humano
G90: Jurídica
G91: Financiera
G92: Sistemas y Tecnología
G93: Bienes y Servicios
G94: Documental
G95: Apoyo Académico
G96: Control Interno
G97: Control Disciplinario
G98: Servicio de Atención al Ciudadano

Sheet MCT-2
B2: REGRESAR
E5: MACROPROCESO ESTRATÉGICO | M5: CÓDIGO: ESGr027
E6: PROCESO GESTIÓN SISTEMAS INTEGRADOS | M6: VERSIÓN: 7
E7: MATRIZ DE MEDICIÓN Y SEGUIMIENTO A LOS PROCESOS DE GESTIÓN | M7: VIGENCIA: 2020-03-20
M8: PÁGINA: 1 de 1
C10: FICHA DE INDICADOR
C12: MACROPROCESO | E12: Misional | I12: NOMBRE DEL INDICADOR | K12: Investigadores de la Universidad, reconocidos ante Colciencias.
C13: PROCESO GESTIÓN | E13: Ciencia, Tecnología e Innovación
C14: RESPONSABLE DE MEDICIÓN | E14: Director(a) de Investigación Universitaria
C16: 1. COMPORTAMIENTO DE INDICADOR
C17: CLASIFICACIÓN DE LA MEDICIÓN | E17: 2 | H17: TIPO DE INDICADOR | J17: Eficiencia | L17: META | N17: 55
C18: FORMULA | E18: Número Ponderado de investigadores de la Universidad sujeto a convocatoria de Colciencias | L18: UNIDAD DE MEDIDA | N18: Numero de investigadores
C20: TENDENCIA | E20: Positiva | H20: NIVEL DE SEGREGACIÓN * | J20: No Aplica | L20: ESCALA
L21: Deficiente | M21: Aceptable | N21: Bueno | O21: Excelente
L22: 0 - 28 | M22: 29 - 43 | N22: 44 - 55 | O22: >55
C23: ORIGEN DE DATOS | E23: Pagina Colciencias, CvLAC y Nomina de la Universidad de Cundinamarca | H23: FRECUENCIA DE LA MEDICIÓN | J23: SEMESTRAL | L23: FRECUENCIA DE RESULTADO | N23: ANUAL
C26: RESULTADOS
J27: ANÁLISIS DE DATOS Los datos indican un crecimiento en los acompañamientos entre el primer trimestre y el segundo trimestre de mas del 100%, por la contratación del personal de la oficina En el tercer trimestre se muestra un decrecimiento con respecto al periodo anterior por las vacaciones a mitad de año, las personas se reintegraron entre julio y agosto.
J34: ACCIÓN FORMULADA Reformular la meta para el próximo año dependiendo de los recursos asignados.
J41: RESPONSABLE
J42: =E14 -> Director(a) de Investigación Universitaria
C45: PERIODO DE EVALUACIÓN
C46: MES | D46: =IF(J23="MENSUAL","ENERO",IF(J23="TRIMESTRAL","MARZO",IF(J23="SEMESTRAL","JUNIO",IF(J23="ANUAL",YEAR(TODAY()),"")))) -> JUNIO | E46: =IF(J23="MENSUAL","FEBRERO",IF(J23="TRIMESTRAL","JUNIO",IF(J23="SEMESTRAL","DICIEMBRE",""))) -> DICIEMBRE | F46: =IF(J23="MENSUAL","MARZO",IF(J23="TRIMESTRAL","SEPTIEMBRE","")) ->  | G46: =IF(J23="MENSUAL","ABRIL",IF(J23="TRIMESTRAL","DICIEMBRE","")) ->  | H46: =IF(J23="MENSUAL","MAYO","") ->  | I46: =IF(J23="MENSUAL","JUNIO","") ->  | J46: =IF(J23="MENSUAL","JULIO","") ->  | K46: =IF(J23="MENSUAL","AGOSTO","") ->  | L46: =IF(J23="MENSUAL","SEPTIEMBRE","") ->  | M46: =IF(J23="MENSUAL","OCTUBRE","") ->  | N46: =IF(J23="MENSUAL","NOVIEMBRE","") ->  | O46: =IF(J23="MENSUAL","DICIEMBRE","") -> 
C47: =E18 -> Número Ponderado de investigadores de la Universidad sujeto a convocatoria de Colciencias
C48: =G19 -> 0
C49: VALOR | D49: =IFERROR(IF($E$17=1,D47/D48,IF($E$17=2,D47,"")),"") -> 0 | E49: =IFERROR(IF($E$17=1,E47/E48,IF($E$17=2,E47,"")),"") -> 0 | F49: 0 | G49: 0 | H49: 0 | I49: 0 | J49: 0 | K49: 0 | L49: 0 | M49: 0 | N49: 0 | O49: 0
C50: META PONDERADA | D50: =IF(AND(N23="ANUAL",J23="MENSUAL"),N17/12,IF(AND(N23="ANUAL",J23="TRIMESTRAL"),N17/4,IF(AND(N23="ANUAL",J23="SEMESTRAL"),N17/2,IF(AND(N23="ANUAL",J23="ANUAL"),N17,IF(AND(N23="SEMESTRAL",J23="MENSUAL"),N17/6,IF(AND(N23="SEMESTRAL",J23="TRIMESTRAL"),N17/2,IF(AND(N23="SEMESTRAL",J23="SEMESTRAL"),N17,IF(AND(N23="SEMESTRAL",J23="ANUAL"),"REVISAR FRECUENCIAS",IF(AND(N23="TRIMESTRAL",J23="MENSUAL"),N17/3,IF(AND(N23="TRIMESTRAL",J23="TRIMESTRAL"),N17,IF(AND(N23="TRIMESTRAL",J23="SEMESTRAL"),"REVISAR FRECUENCIAS",IF(AND(N23="TRIMESTRAL",J23="ANUAL"),"REVISAR FRECUENCIAS",IF(AND(N23="MENSUAL",J23="MENSUAL"),N17,IF(AND(N23="MENSUAL",J23="TRIMESTRAL"),"REVISAR FRECUENCIAS",IF(AND(N23="MENSUAL",J23="SEMESTRAL"),"REVISAR FRECUENCIAS",IF(AND(N23="MENSUAL",J23="ANUAL"),"REVISAR FRECUENCIAS","")))))))))))))))) -> 27.5 | E50: =IF(AND(N23="ANUAL",J23="MENSUAL"),N17/12+D50,IF(AND(N23="ANUAL",J23="TRIMESTRAL"),N17/4+D50,IF(AND(N23="ANUAL",J23="SEMESTRAL"),N17/2+D50,IF(AND(N23="SEMESTRAL",J23="MENSUAL"),N17/6+D50,IF(AND(N23="SEMESTRAL",J23="TRIMESTRAL"),N17/2+D50,IF(AND(N23="SEMESTRAL",J23="SEMESTRAL"),N17,IF(AND(N23="TRIMESTRAL",J23="MENSUAL"),N17/3+D50,IF(AND(N23="TRIMESTRAL",J23="TRIMESTRAL"),N17,IF(AND(N23="MENSUAL",J23="MENSUAL"),N17,""))))))))) -> 55 | F50: =IF(AND(N23="ANUAL",J23="MENSUAL"),N17/12+E50,IF(AND(N23="ANUAL",J23="TRIMESTRAL"),N17/4+E50,IF(AND(N23="SEMESTRAL",J23="MENSUAL"),N17/6+E50,IF(AND(N23="SEMESTRAL",J23="TRIMESTRAL"),N17/2,IF(AND(N23="TRIMESTRAL",J23="MENSUAL"),N17/3+E50,IF(AND(N23="TRIMESTRAL",J23="TRIMESTRAL"),N17,IF(AND(N23="MENSUAL",J23="MENSUAL"),N17,""))))))) ->  | G50: =IF(AND(N23="ANUAL",J23="MENSUAL"),N17/12+F50,IF(AND(N23="ANUAL",J23="TRIMESTRAL"),N17/4+F50,IF(AND(N23="SEMESTRAL",J23="MENSUAL"),N17/6+F50,IF(AND(N23="SEMESTRAL",J23="TRIMESTRAL"),N17/2+F50,IF(AND(N23="TRIMESTRAL",J23="MENSUAL"),N17/3,IF(AND(N23="TRIMESTRAL",J23="TRIMESTRAL"),N17,IF(AND(N23="MENSUAL",J23="MENSUAL"),N17,""))))))) ->  | H50: =IF(AND($N$23="ANUAL",$J$23="MENSUAL"),$N$17/12+G50,IF(AND(N23="SEMESTRAL",J23="MENSUAL"),N17/6+G50,IF(AND(N23="TRIMESTRAL",J23="MENSUAL"),N17/3+G50,IF(AND(N23="MENSUAL",J23="MENSUAL"),N17,"")))) ->  | I50: =IF(AND($N$23="ANUAL",$J$23="MENSUAL"),$N$17/12+H50,IF(AND(N23="SEMESTRAL",J23="MENSUAL"),N17/6+H50,IF(AND(N23="TRIMESTRAL",J23="MENSUAL"),N17/3+H50,IF(AND(N23="MENSUAL",J23="MENSUAL"),N17,"")))) ->  | J50: =IF(AND($N$23="ANUAL",$J$23="MENSUAL"),$N$17/12+I50,IF(AND(N23="SEMESTRAL",J23="MENSUAL"),N17/6,IF(AND(N23="TRIMESTRAL",J23="MENSUAL"),N17/3,IF(AND(N23="MENSUAL",J23="MENSUAL"),N17,"")))) ->  | K50: =IF(AND($N$23="ANUAL",$J$23="MENSUAL"),$N$17/12+J50,IF(AND(N23="SEMESTRAL",J23="MENSUAL"),N17/6+J50,IF(AND(N23="TRIMESTRAL",J23="MENSUAL"),N17/3+J50,IF(AND(N23="MENSUAL",J23="MENSUAL"),N17,"")))) ->  | L50: =IF(AND($N$23="ANUAL",$J$23="MENSUAL"),$N$17/12+K50,IF(AND(N23="SEMESTRAL",J23="MENSUAL"),N17/6+K50,IF(AND(N23="TRIMESTRAL",J23="MENSUAL"),N17/3+K50,IF(AND(N23="MENSUAL",J23="MENSUAL"),N17,"")))) ->  | M50: =IF(AND($N$23="ANUAL",$J$23="MENSUAL"),$N$17/12+L50,IF(AND(N23="SEMESTRAL",J23="MENSUAL"),N17/6+L50,IF(AND(N23="TRIMESTRAL",J23="MENSUAL"),N17/3,IF(AND(N23="MENSUAL",J23="MENSUAL"),N17,"")))) ->  | N50: =IF(AND($N$23="ANUAL",$J$23="MENSUAL"),$N$17/12+M50,IF(AND(N23="SEMESTRAL",J23="MENSUAL"),N17/6+M50,IF(AND(N23="TRIMESTRAL",J23="MENSUAL"),N17/3+M50,IF(AND(N23="MENSUAL",J23="MENSUAL"),N17,"")))) ->  | O50: =IF(AND($N$23="ANUAL",$J$23="MENSUAL"),$N$17/12+N50,IF(AND(N23="SEMESTRAL",J23="MENSUAL"),N17/6+N50,IF(AND(N23="TRIMESTRAL",J23="MENSUAL"),N17/3+N50,IF(AND(N23="MENSUAL",J23="MENSUAL"),N17,"")))) -> 
C52: NIVEL DE SEGREGACIÓN *
C53: UNIDAD SEGREGADA (Ej. Facultad, Programa Académico, Área) | G53: RESULTADO | K53: ANALISIS DE DATOS SEGREGADO
G73: Estratégico | J73: Eficacia
G74: Misional | J74: Eficiencia
G75: Apoyo | J75: Acreditación
G76: Seguimiento, Medición, Análisis y Evaluación | J76: Positiva
G77: Direccionamiento Estratégico | J77: Negativa
G78: Planeación Institucional | J78: Por Unidad Regional
G79: Proyectos Especiales y Relaciones Interinstitucionales | J79: Por Facultad
G80: Sistemas Integrados | J80: Por Programa Académico
G81: Autoevaluación y Acreditación | J81: Por área
G82: Comunicaciones | J82: Por Laboratorio
G83: Formación y Aprendizaje | J83: Otros
G84: Ciencia, Tecnología e Innovación | J84: No Aplica
G85: Interacción Social Universitaria
G86: Bienestar Universitario
G87: Admisiones y Registro
G88: Graduados
G89: Dialogando con el Mundo
G90: Talento Humano
G91: Jurídica
G92: Financiera
G93: Sistemas y Tecnología
G94: Bienes y Servicios
G95: Documental
G96: Apoyo Académico
G97: Control Interno
G98: Control Disciplinario
G99: Servicio de Atención al Ciudadano

Sheet MCT-3
B2: REGRESAR
E5: MACROPROCESO ESTRATÉGICO | M5: CÓDIGO: ESGr027
E6: PROCESO GESTIÓN SISTEMAS INTEGRADOS | M6: VERSIÓN: 7
E7: MATRIZ DE MEDICIÓN Y SEGUIMIENTO A LOS PROCESOS DE GESTIÓN | M7: VIGENCIA: 2020-03-20
M8: PÁGINA: 1 de 1
C10: FICHA DE INDICADOR
C12: MACROPROCESO | E12: Misional | I12: NOMBRE DEL INDICADOR | K12: Grupos de investigación avalados institucionalmente y registrados ante Colciencias
C13: PROCESO GESTIÓN | E13: Ciencia, Tecnología e Innovación
C14: RESPONSABLE DE MEDICIÓN | E14: Director(a) de Investigación Universitaria
C16: 1. COMPORTAMIENTO DE INDICADOR
C17: CLASIFICACIÓN DE LA MEDICIÓN | E17: 2 | H17: TIPO DE INDICADOR | J17: Eficiencia | L17: META | N17: 30
C18: FORMULA | E18: Número Ponderado de Grupos de la Universidad sujeto a convocatoria de Colciencias | L18: UNIDAD DE MEDIDA | N18: Numero de grupos
C20: TENDENCIA | E20: Positiva | H20: NIVEL DE SEGREGACIÓN * | J20: No Aplica | L20: ESCALA
L21: Deficiente | M21: Aceptable | N21: Bueno | O21: Excelente
L22: 0 - 15 | M22: 16 - 22 | N22: 23 - 30 | O22: >30
C23: ORIGEN DE DATOS | E23: Pagina Colciencias, GrupLAC | H23: FRECUENCIA DE LA MEDICIÓN | J23: SEMESTRAL | L23: FRECUENCIA DE RESULTADO | N23: ANUAL
C26: RESULTADOS
J27: ANÁLISIS DE DATOS Los datos indican un crecimiento en los acompañamientos entre el primer trimestre y el segundo trimestre de mas del 100%, por la contratación del personal de la oficina En el tercer trimestre se muestra un decrecimiento con respecto al periodo anterior por las vacaciones a mitad de año, las personas se reintegraron entre julio y agosto.
J34: ACCIÓN FORMULADA Reformular la meta para el próximo año dependiendo de los recursos asignados.
J41: RESPONSABLE
J42: =E14 -> Director(a) de Investigación Universitaria
C45: PERIODO DE EVALUACIÓN
C46: MES | D46: =IF(J23="MENSUAL","ENERO",IF(J23="TRIMESTRAL","MARZO",IF(J23="SEMESTRAL","JUNIO",IF(J23="ANUAL",YEAR(TODAY()),"")))) -> JUNIO | E46: =IF(J23="MENSUAL","FEBRERO",IF(J23="TRIMESTRAL","JUNIO",IF(J23="SEMESTRAL","DICIEMBRE",""))) -> DICIEMBRE | F46: =IF(J23="MENSUAL","MARZO",IF(J23="TRIMESTRAL","SEPTIEMBRE","")) ->  | G46: =IF(J23="MENSUAL","ABRIL",IF(J23="TRIMESTRAL","DICIEMBRE","")) ->  | H46: =IF(J23="MENSUAL","MAYO","") ->  | I46: =IF(J23="MENSUAL","JUNIO","") ->  | J46: =IF(J23="MENSUAL","JULIO","") ->  | K46: =IF(J23="MENSUAL","AGOSTO","") ->  | L46: =IF(J23="MENSUAL","SEPTIEMBRE","") ->  | M46: =IF(J23="MENSUAL","OCTUBRE","") ->  | N46: =IF(J23="MENSUAL","NOVIEMBRE","") ->  | O46: =IF(J23="MENSUAL","DICIEMBRE","") -> 
C47: =E18 -> Número Ponderado de Grupos de la Universidad sujeto a convocatoria de Colciencias
C48: =G19 -> 0
C49: VALOR | D49: =IFERROR(IF($E$17=1,D47/D48,IF($E$17=2,D47,"")),"") -> 0 | E49: =IFERROR(IF($E$17=1,E47/E48,IF($E$17=2,E47,"")),"") -> 0 | F49: 0 | G49: 0 | H49: 0 | I49: 0 | J49: 0 | K49: 0 | L49: 0 | M49: 0 | N49: 0 | O49: 0
C50: META PONDERADA | D50: =IF(AND(N23="ANUAL",J23="MENSUAL"),N17/12,IF(AND(N23="ANUAL",J23="TRIMESTRAL"),N17/4,IF(AND(N23="ANUAL",J23="SEMESTRAL"),N17/2,IF(AND(N23="ANUAL",J23="ANUAL"),N17,IF(AND(N23="SEMESTRAL",J23="MENSUAL"),N17/6,IF(AND(N23="SEMESTRAL",J23="TRIMESTRAL"),N17/2,IF(AND(N23="SEMESTRAL",J23="SEMESTRAL"),N17,IF(AND(N23="SEMESTRAL",J23="ANUAL"),"REVISAR FRECUENCIAS",IF(AND(N23="TRIMESTRAL",J23="MENSUAL"),N17/3,IF(AND(N23="TRIMESTRAL",J23="TRIMESTRAL"),N17,IF(AND(N23="TRIMESTRAL",J23="SEMESTRAL"),"REVISAR FRECUENCIAS",IF(AND(N23="TRIMESTRAL",J23="ANUAL"),"REVISAR FRECUENCIAS",IF(AND(N23="MENSUAL",J23="MENSUAL"),N17,IF(AND(N23="MENSUAL",J23="TRIMESTRAL"),"REVISAR FRECUENCIAS",IF(AND(N23="MENSUAL",J23="SEMESTRAL"),"REVISAR FRECUENCIAS",IF(AND(N23="MENSUAL",J23="ANUAL"),"REVISAR FRECUENCIAS","")))))))))))))))) -> 15 | E50: =IF(AND(N23="ANUAL",J23="MENSUAL"),N17/12+D50,IF(AND(N23="ANUAL",J23="TRIMESTRAL"),N17/4+D50,IF(AND(N23="ANUAL",J23="SEMESTRAL"),N17/2+D50,IF(AND(N23="SEMESTRAL",J23="MENSUAL"),N17/6+D50,IF(AND(N23="SEMESTRAL",J23="TRIMESTRAL"),N17/2+D50,IF(AND(N23="SEMESTRAL",J23="SEMESTRAL"),N17,IF(AND(N23="TRIMESTRAL",J23="MENSUAL"),N17/3+D50,IF(AND(N23="TRIMESTRAL",J23="TRIMESTRAL"),N17,IF(AND(N23="MENSUAL",J23="MENSUAL"),N17,""))))))))) -> 30 | F50: =IF(AND(N23="ANUAL",J23="MENSUAL"),N17/12+E50,IF(AND(N23="ANUAL",J23="TRIMESTRAL"),N17/4+E50,IF(AND(N23="SEMESTRAL",J23="MENSUAL"),N17/6+E50,IF(AND(N23="SEMESTRAL",J23="TRIMESTRAL"),N17/2,IF(AND(N23="TRIMESTRAL",J23="MENSUAL"),N17/3+E50,IF(AND(N23="TRIMESTRAL",J23="TRIMESTRAL"),N17,IF(AND(N23="MENSUAL",J23="MENSUAL"),N17,""))))))) ->  | G50: =IF(AND(N23="ANUAL",J23="MENSUAL"),N17/12+F50,IF(AND(N23="ANUAL",J23="TRIMESTRAL"),N17/4+F50,IF(AND(N23="SEMESTRAL",J23="MENSUAL"),N17/6+F50,IF(AND(N23="SEMESTRAL",J23="TRIMESTRAL"),N17/2+F50,IF(AND(N23="TRIMESTRAL",J23="MENSUAL"),N17/3,IF(AND(N23="TRIMESTRAL",J23="TRIMESTRAL"),N17,IF(AND(N23="MENSUAL",J23="MENSUAL"),N17,""))))))) ->  | H50: =IF(AND($N$23="ANUAL",$J$23="MENSUAL"),$N$17/12+G50,IF(AND(N23="SEMESTRAL",J23="MENSUAL"),N17/6+G50,IF(AND(N23="TRIMESTRAL",J23="MENSUAL"),N17/3+G50,IF(AND(N23="MENSUAL",J23="MENSUAL"),N17,"")))) ->  | I50: =IF(AND($N$23="ANUAL",$J$23="MENSUAL"),$N$17/12+H50,IF(AND(N23="SEMESTRAL",J23="MENSUAL"),N17/6+H50,IF(AND(N23="TRIMESTRAL",J23="MENSUAL"),N17/3+H50,IF(AND(N23="MENSUAL",J23="MENSUAL"),N17,"")))) ->  | J50: =IF(AND($N$23="ANUAL",$J$23="MENSUAL"),$N$17/12+I50,IF(AND(N23="SEMESTRAL",J23="MENSUAL"),N17/6,IF(AND(N23="TRIMESTRAL",J23="MENSUAL"),N17/3,IF(AND(N23="MENSUAL",J23="MENSUAL"),N17,"")))) ->  | K50: =IF(AND($N$23="ANUAL",$J$23="MENSUAL"),$N$17/12+J50,IF(AND(N23="SEMESTRAL",J23="MENSUAL"),N17/6+J50,IF(AND(N23="TRIMESTRAL",J23="MENSUAL"),N17/3+J50,IF(AND(N23="MENSUAL",J23="MENSUAL"),N17,"")))) ->  | L50: =IF(AND($N$23="ANUAL",$J$23="MENSUAL"),$N$17/12+K50,IF(AND(N23="SEMESTRAL",J23="MENSUAL"),N17/6+K50,IF(AND(N23="TRIMESTRAL",J23="MENSUAL"),N17/3+K50,IF(AND(N23="MENSUAL",J23="MENSUAL"),N17,"")))) ->  | M50: =IF(AND($N$23="ANUAL",$J$23="MENSUAL"),$N$17/12+L50,IF(AND(N23="SEMESTRAL",J23="MENSUAL"),N17/6+L50,IF(AND(N23="TRIMESTRAL",J23="MENSUAL"),N17/3,IF(AND(N23="MENSUAL",J23="MENSUAL"),N17,"")))) ->  | N50: =IF(AND($N$23="ANUAL",$J$23="MENSUAL"),$N$17/12+M50,IF(AND(N23="SEMESTRAL",J23="MENSUAL"),N17/6+M50,IF(AND(N23="TRIMESTRAL",J23="MENSUAL"),N17/3+M50,IF(AND(N23="MENSUAL",J23="MENSUAL"),N17,"")))) ->  | O50: =IF(AND($N$23="ANUAL",$J$23="MENSUAL"),$N$17/12+N50,IF(AND(N23="SEMESTRAL",J23="MENSUAL"),N17/6+N50,IF(AND(N23="TRIMESTRAL",J23="MENSUAL"),N17/3+N50,IF(AND(N23="MENSUAL",J23="MENSUAL"),N17,"")))) -> 
C52: NIVEL DE SEGREGACIÓN *
C53: UNIDAD SEGREGADA (Ej. Facultad, Programa Académico, Área) | G53: RESULTADO | K53: ANALISIS DE DATOS SEGREGADO
G73: Estratégico | J73: Eficacia
G74: Misional | J74: Eficiencia
G75: Apoyo | J75: Acreditación
G76: Seguimiento, Medición, Análisis y Evaluación | J76: Positiva
G77: Direccionamiento Estratégico | J77: Negativa
G78: Planeación Institucional | J78: Por Unidad Regional
G79: Proyectos Especiales y Relaciones Interinstitucionales | J79: Por Facultad
G80: Sistemas Integrados | J80: Por Programa Académico
G81: Autoevaluación y Acreditación | J81: Por área
G82: Comunicaciones | J82: Por Laboratorio
G83: Formación y Aprendizaje | J83: Otros
G84: Ciencia, Tecnología e Innovación | J84: No Aplica
G85: Interacción Social Universitaria
G86: Bienestar Universitario
G87: Admisiones y Registro
G88: Graduados
G89: Dialogando con el Mundo
G90: Talento Humano
G91: Jurídica
G92: Financiera
G93: Sistemas y Tecnología
G94: Bienes y Servicios
G95: Documental
G96: Apoyo Académico
G97: Control Interno
G98: Control Disciplinario
G99: Servicio de Atención al Ciudadano

Sheet MCT-4
B2: REGRESAR
E5: MACROPROCESO ESTRATÉGICO | M5: CÓDIGO: ESGr027
E6: PROCESO GESTIÓN SISTEMAS INTEGRADOS | M6: VERSIÓN: 7
E7: MATRIZ DE MEDICIÓN Y SEGUIMIENTO A LOS PROCESOS DE GESTIÓN | M7: VIGENCIA: 2020-03-20
M8: PÁGINA: 1 de 1
C10: FICHA DE INDICADOR
C12: MACROPROCESO | E12: Misional | I12: NOMBRE DEL INDICADOR | K12: Publicación de Capítulos de libro
C13: PROCESO GESTIÓN | E13: Ciencia, Tecnología e Innovación
C14: RESPONSABLE DE MEDICIÓN | E14: Director(a) de Investigación Universitaria
C16: 1. COMPORTAMIENTO DE INDICADOR
C17: CLASIFICACIÓN DE LA MEDICIÓN | E17: 2 | H17: TIPO DE INDICADOR | J17: Eficiencia | L17: META | N17: 35
C18: FORMULA | E18: Número de capítulos de libros publicados en el periodo | L18: UNIDAD DE MEDIDA | N18: Numero capítulos de libro
C20: TENDENCIA | E20: Positiva | H20: NIVEL DE SEGREGACIÓN * | J20: No Aplica | L20: ESCALA
L21: Deficiente | M21: Aceptable | N21: Bueno | O21: Excelente
L22: 0 - 20 | M22: 21 - 29 | N22: 30 - 35 | O22: >35
C23: ORIGEN DE DATOS | E23: GrupLAC Verificador InstituLAC | H23: FRECUENCIA DE LA MEDICIÓN | J23: SEMESTRAL | L23: FRECUENCIA DE RESULTADO | N23: ANUAL
C26: RESULTADOS
J27: ANÁLISIS DE DATOS Los datos indican un crecimiento en los acompañamientos entre el primer trimestre y el segundo trimestre de mas del 100%, por la contratación del personal de la oficina En el tercer trimestre se muestra un decrecimiento con respecto al periodo anterior por las vacaciones a mitad de año, las personas se reintegraron entre julio y agosto.
J34: ACCIÓN FORMULADA Reformular la meta para el próximo año dependiendo de los recursos asignados.
J41: RESPONSABLE
J42: =E14 -> Director(a) de Investigación Universitaria
C45: PERIODO DE EVALUACIÓN
C46: MES | D46: =IF(J23="MENSUAL","ENERO",IF(J23="TRIMESTRAL","MARZO",IF(J23="SEMESTRAL","JUNIO",IF(J23="ANUAL",YEAR(TODAY()),"")))) -> JUNIO | E46: =IF(J23="MENSUAL","FEBRERO",IF(J23="TRIMESTRAL","JUNIO",IF(J23="SEMESTRAL","DICIEMBRE",""))) -> DICIEMBRE | F46: =IF(J23="MENSUAL","MARZO",IF(J23="TRIMESTRAL","SEPTIEMBRE","")) ->  | G46: =IF(J23="MENSUAL","ABRIL",IF(J23="TRIMESTRAL","DICIEMBRE","")) ->  | H46: =IF(J23="MENSUAL","MAYO","") ->  | I46: =IF(J23="MENSUAL","JUNIO","") ->  | J46: =IF(J23="MENSUAL","JULIO","") ->  | K46: =IF(J23="MENSUAL","AGOSTO","") ->  | L46: =IF(J23="MENSUAL","SEPTIEMBRE","") ->  | M46: =IF(J23="MENSUAL","OCTUBRE","") ->  | N46: =IF(J23="MENSUAL","NOVIEMBRE","") ->  | O46: =IF(J23="MENSUAL","DICIEMBRE","") -> 
C47: =E18 -> Número de capítulos de libros publicados en el periodo
C48: =G19 -> 0
C49: VALOR | D49: =IFERROR(IF($E$17=1,D47/D48,IF($E$17=2,D47,"")),"") -> 0 | E49: =IFERROR(IF($E$17=1,E47/E48,IF($E$17=2,E47,"")),"") -> 0 | F49: 0 | G49: 0 | H49: 0 | I49: 0 | J49: 0 | K49: 0 | L49: 0 | M49: 0 | N49: 0 | O49: 0
C50: META PONDERADA | D50: =IF(AND(N23="ANUAL",J23="MENSUAL"),N17/12,IF(AND(N23="ANUAL",J23="TRIMESTRAL"),N17/4,IF(AND(N23="ANUAL",J23="SEMESTRAL"),N17/2,IF(AND(N23="ANUAL",J23="ANUAL"),N17,IF(AND(N23="SEMESTRAL",J23="MENSUAL"),N17/6,IF(AND(N23="SEMESTRAL",J23="TRIMESTRAL"),N17/2,IF(AND(N23="SEMESTRAL",J23="SEMESTRAL"),N17,IF(AND(N23="SEMESTRAL",J23="ANUAL"),"REVISAR FRECUENCIAS",IF(AND(N23="TRIMESTRAL",J23="MENSUAL"),N17/3,IF(AND(N23="TRIMESTRAL",J23="TRIMESTRAL"),N17,IF(AND(N23="TRIMESTRAL",J23="SEMESTRAL"),"REVISAR FRECUENCIAS",IF(AND(N23="TRIMESTRAL",J23="ANUAL"),"REVISAR FRECUENCIAS",IF(AND(N23="MENSUAL",J23="MENSUAL"),N17,IF(AND(N23="MENSUAL",J23="TRIMESTRAL"),"REVISAR FRECUENCIAS",IF(AND(N23="MENSUAL",J23="SEMESTRAL"),"REVISAR FRECUENCIAS",IF(AND(N23="MENSUAL",J23="ANUAL"),"REVISAR FRECUENCIAS","")))))))))))))))) -> 17.5 | E50: =IF(AND(N23="ANUAL",J23="MENSUAL"),N17/12+D50,IF(AND(N23="ANUAL",J23="TRIMESTRAL"),N17/4+D50,IF(AND(N23="ANUAL",J23="SEMESTRAL"),N17/2+D50,IF(AND(N23="SEMESTRAL",J23="MENSUAL"),N17/6+D50,IF(AND(N23="SEMESTRAL",J23="TRIMESTRAL"),N17/2+D50,IF(AND(N23="SEMESTRAL",J23="SEMESTRAL"),N17,IF(AND(N23="TRIMESTRAL",J23="MENSUAL"),N17/3+D50,IF(AND(N23="TRIMESTRAL",J23="TRIMESTRAL"),N17,IF(AND(N23="MENSUAL",J23="MENSUAL"),N17,""))))))))) -> 35 | F50: =IF(AND(N23="ANUAL",J23="MENSUAL"),N17/12+E50,IF(AND(N23="ANUAL",J23="TRIMESTRAL"),N17/4+E50,IF(AND(N23="SEMESTRAL",J23="MENSUAL"),N17/6+E50,IF(AND(N23="SEMESTRAL",J23="TRIMESTRAL"),N17/2,IF(AND(N23="TRIMESTRAL",J23="MENSUAL"),N17/3+E50,IF(AND(N23="TRIMESTRAL",J23="TRIMESTRAL"),N17,IF(AND(N23="MENSUAL",J23="MENSUAL"),N17,""))))))) ->  | G50: =IF(AND(N23="ANUAL",J23="MENSUAL"),N17/12+F50,IF(AND(N23="ANUAL",J23="TRIMESTRAL"),N17/4+F50,IF(AND(N23="SEMESTRAL",J23="MENSUAL"),N17/6+F50,IF(AND(N23="SEMESTRAL",J23="TRIMESTRAL"),N17/2+F50,IF(AND(N23="TRIMESTRAL",J23="MENSUAL"),N17/3,IF(AND(N23="TRIMESTRAL",J23="TRIMESTRAL"),N17,IF(AND(N23="MENSUAL",J23="MENSUAL"),N17,""))))))) ->  | H50: =IF(AND($N$23="ANUAL",$J$23="MENSUAL"),$N$17/12+G50,IF(AND(N23="SEMESTRAL",J23="MENSUAL"),N17/6+G50,IF(AND(N23="TRIMESTRAL",J23="MENSUAL"),N17/3+G50,IF(AND(N23="MENSUAL",J23="MENSUAL"),N17,"")))) ->  | I50: =IF(AND($N$23="ANUAL",$J$23="MENSUAL"),$N$17/12+H50,IF(AND(N23="SEMESTRAL",J23="MENSUAL"),N17/6+H50,IF(AND(N23="TRIMESTRAL",J23="MENSUAL"),N17/3+H50,IF(AND(N23="MENSUAL",J23="MENSUAL"),N17,"")))) ->  | J50: =IF(AND($N$23="ANUAL",$J$23="MENSUAL"),$N$17/12+I50,IF(AND(N23="SEMESTRAL",J23="MENSUAL"),N17/6,IF(AND(N23="TRIMESTRAL",J23="MENSUAL"),N17/3,IF(AND(N23="MENSUAL",J23="MENSUAL"),N17,"")))) ->  | K50: =IF(AND($N$23="ANUAL",$J$23="MENSUAL"),$N$17/12+J50,IF(AND(N23="SEMESTRAL",J23="MENSUAL"),N17/6+J50,IF(AND(N23="TRIMESTRAL",J23="MENSUAL"),N17/3+J50,IF(AND(N23="MENSUAL",J23="MENSUAL"),N17,"")))) ->  | L50: =IF(AND($N$23="ANUAL",$J$23="MENSUAL"),$N$17/12+K50,IF(AND(N23="SEMESTRAL",J23="MENSUAL"),N17/6+K50,IF(AND(N23="TRIMESTRAL",J23="MENSUAL"),N17/3+K50,IF(AND(N23="MENSUAL",J23="MENSUAL"),N17,"")))) ->  | M50: =IF(AND($N$23="ANUAL",$J$23="MENSUAL"),$N$17/12+L50,IF(AND(N23="SEMESTRAL",J23="MENSUAL"),N17/6+L50,IF(AND(N23="TRIMESTRAL",J23="MENSUAL"),N17/3,IF(AND(N23="MENSUAL",J23="MENSUAL"),N17,"")))) ->  | N50: =IF(AND($N$23="ANUAL",$J$23="MENSUAL"),$N$17/12+M50,IF(AND(N23="SEMESTRAL",J23="MENSUAL"),N17/6+M50,IF(AND(N23="TRIMESTRAL",J23="MENSUAL"),N17/3+M50,IF(AND(N23="MENSUAL",J23="MENSUAL"),N17,"")))) ->  | O50: =IF(AND($N$23="ANUAL",$J$23="MENSUAL"),$N$17/12+N50,IF(AND(N23="SEMESTRAL",J23="MENSUAL"),N17/6+N50,IF(AND(N23="TRIMESTRAL",J23="MENSUAL"),N17/3+N50,IF(AND(N23="MENSUAL",J23="MENSUAL"),N17,"")))) -> 
C52: NIVEL DE SEGREGACIÓN *
C53: UNIDAD SEGREGADA (Ej. Facultad, Programa Académico, Área) | G53: RESULTADO | K53: ANALISIS DE DATOS SEGREGADO
G73: Estratégico | J73: Eficacia
G74: Misional | J74: Eficiencia
G75: Apoyo | J75: Acreditación
G76: Seguimiento, Medición, Análisis y Evaluación | J76: Positiva
G77: Direccionamiento Estratégico | J77: Negativa
G78: Planeación Institucional | J78: Por Unidad Regional
G79: Proyectos Especiales y Relaciones Interinstitucionales | J79: Por Facultad
G80: Sistemas Integrados | J80: Por Programa Académico
G81: Autoevaluación y Acreditación | J81: Por área
G82: Comunicaciones | J82: Por Laboratorio
G83: Formación y Aprendizaje | J83: Otros
G84: Ciencia, Tecnología e Innovación | J84: No Aplica
G85: Interacción Social Universitaria
G86: Bienestar Universitario
G87: Admisiones y Registro
G88: Graduados
G89: Dialogando con el Mundo
G90: Talento Humano
G91: Jurídica
G92: Financiera
G93: Sistemas y Tecnología
G94: Bienes y Servicios
G95: Documental
G96: Apoyo Académico
G97: Control Interno
G98: Control Disciplinario
G99: Servicio de Atención al Ciudadano

Sheet MCT-5
B2: REGRESAR
E5: MACROPROCESO ESTRATÉGICO | M5: CÓDIGO: ESGr027
E6: PROCESO GESTIÓN SISTEMAS INTEGRADOS | M6: VERSIÓN: 7
E7: MATRIZ DE MEDICIÓN Y SEGUIMIENTO A LOS PROCESOS DE GESTIÓN | M7: VIGENCIA: 2020-03-20
M8: PÁGINA: 1 de 1
C10: FICHA DE INDICADOR
C12: MACROPROCESO | E12: Misional | I12: NOMBRE DEL INDICADOR | K12: Resultados de investigación del programa
C13: PROCESO GESTIÓN | E13: Ciencia, Tecnología e Innovación
C14: RESPONSABLE DE MEDICIÓN | E14: Director(a) de Investigación Universitaria
C16: 1. COMPORTAMIENTO DE INDICADOR
C17: CLASIFICACIÓN DE LA MEDICIÓN | E17: 1 | H17: TIPO DE INDICADOR | J17: Eficacia | L17: META ANUAL | N17: 1
C18: FORMULA | E18: NUMERADOR | G18: Resultados de investigación del programa * 100 | L18: UNIDAD DE MEDIDA | N18: Porcentual
E19: DENOMINADOR | G19: Total de Resultados de investigación propuestos
C20: TENDENCIA | E20: Positiva | H20: NIVEL DE SEGREGACIÓN * | J20: Por Programa Académico | L20: ESCALA
L21: Deficiente | M21: Aceptable | N21: Bueno | O21: Excelente
L22: 0% - 70% | M22: 71% - 89% | N22: 90% - 100% | O22: N/A
C23: ORIGEN DE DATOS NUMERADOR | E23: Vinculación de estudiantes a la investigación | H23: FRECUENCIA DE LA MEDICIÓN | J23: SEMESTRAL | L23: FRECUENCIA DE RESULTADO | N23: ANUAL
C24: ORIGEN DE DATOS DENOMINADOR | E24: Base de datos de estudiantes
C26: RESULTADOS
J27: ANÁLISIS DE DATOS
J34: ACCIÓN FORMULADA
J41: RESPONSABLE
J42: =E14 -> Director(a) de Investigación Universitaria
C45: PERIODO DE EVALUACIÓN
C46: MES | D46: =IF(J23="MENSUAL","ENERO",IF(J23="TRIMESTRAL","MARZO",IF(J23="SEMESTRAL","JUNIO",IF(J23="ANUAL",YEAR(TODAY()),"")))) -> JUNIO | E46: =IF(J23="MENSUAL","FEBRERO",IF(J23="TRIMESTRAL","JUNIO",IF(J23="SEMESTRAL","DICIEMBRE",""))) -> DICIEMBRE | F46: =IF(J23="MENSUAL","MARZO",IF(J23="TRIMESTRAL","SEPTIEMBRE","")) ->  | G46: =IF(J23="MENSUAL","ABRIL",IF(J23="TRIMESTRAL","DICIEMBRE","")) ->  | H46: =IF(J23="MENSUAL","MAYO","") ->  | I46: =IF(J23="MENSUAL","JUNIO","") ->  | J46: =IF(J23="MENSUAL","JULIO","") ->  | K46: =IF(J23="MENSUAL","AGOSTO","") ->  | L46: =IF(J23="MENSUAL","SEPTIEMBRE","") ->  | M46: =IF(J23="MENSUAL","OCTUBRE","") ->  | N46: =IF(J23="MENSUAL","NOVIEMBRE","") ->  | O46: =IF(J23="MENSUAL","DICIEMBRE","") -> 
C47: =G18 -> Resultados de investigación del programa * 100
C48: =G19 -> Total de Resultados de investigación propuestos
C49: VALOR | D49: =IFERROR(IF($E$17=1,D47/D48,IF($E$17=2,D47,"")),"") ->  | E49: =IFERROR(IF($E$17=1,E47/E48,IF($E$17=2,E47,"")),"") -> 
C50: META PONDERADA | D50: =IF(AND(N23="ANUAL",J23="MENSUAL"),N17/12,IF(AND(N23="ANUAL",J23="TRIMESTRAL"),N17/4,IF(AND(N23="ANUAL",J23="SEMESTRAL"),N17/2,IF(AND(N23="ANUAL",J23="ANUAL"),N17,IF(AND(N23="SEMESTRAL",J23="MENSUAL"),N17/6,IF(AND(N23="SEMESTRAL",J23="TRIMESTRAL"),N17/2,IF(AND(N23="SEMESTRAL",J23="SEMESTRAL"),N17,IF(AND(N23="SEMESTRAL",J23="ANUAL"),"REVISAR FRECUENCIAS",IF(AND(N23="TRIMESTRAL",J23="MENSUAL"),N17/3,IF(AND(N23="TRIMESTRAL",J23="TRIMESTRAL"),N17,IF(AND(N23="TRIMESTRAL",J23="SEMESTRAL"),"REVISAR FRECUENCIAS",IF(AND(N23="TRIMESTRAL",J23="ANUAL"),"REVISAR FRECUENCIAS",IF(AND(N23="MENSUAL",J23="MENSUAL"),N17,IF(AND(N23="MENSUAL",J23="TRIMESTRAL"),"REVISAR FRECUENCIAS",IF(AND(N23="MENSUAL",J23="SEMESTRAL"),"REVISAR FRECUENCIAS",IF(AND(N23="MENSUAL",J23="ANUAL"),"REVISAR FRECUENCIAS","")))))))))))))))) -> 0.5 | E50: =IF(AND(N23="ANUAL",J23="MENSUAL"),N17/12+D50,IF(AND(N23="ANUAL",J23="TRIMESTRAL"),N17/4+D50,IF(AND(N23="ANUAL",J23="SEMESTRAL"),N17/2+D50,IF(AND(N23="SEMESTRAL",J23="MENSUAL"),N17/6+D50,IF(AND(N23="SEMESTRAL",J23="TRIMESTRAL"),N17/2+D50,IF(AND(N23="SEMESTRAL",J23="SEMESTRAL"),N17,IF(AND(N23="TRIMESTRAL",J23="MENSUAL"),N17/3+D50,IF(AND(N23="TRIMESTRAL",J23="TRIMESTRAL"),N17,IF(AND(N23="MENSUAL",J23="MENSUAL"),N17,""))))))))) -> 1 | F50: =IF(AND(N23="ANUAL",J23="MENSUAL"),N17/12+E50,IF(AND(N23="ANUAL",J23="TRIMESTRAL"),N17/4+E50,IF(AND(N23="SEMESTRAL",J23="MENSUAL"),N17/6+E50,IF(AND(N23="SEMESTRAL",J23="TRIMESTRAL"),N17/2,IF(AND(N23="TRIMESTRAL",J23="MENSUAL"),N17/3+E50,IF(AND(N23="TRIMESTRAL",J23="TRIMESTRAL"),N17,IF(AND(N23="MENSUAL",J23="MENSUAL"),N17,""))))))) ->  | G50: =IF(AND(N23="ANUAL",J23="MENSUAL"),N17/12+F50,IF(AND(N23="ANUAL",J23="TRIMESTRAL"),N17/4+F50,IF(AND(N23="SEMESTRAL",J23="MENSUAL"),N17/6+F50,IF(AND(N23="SEMESTRAL",J23="TRIMESTRAL"),N17/2+F50,IF(AND(N23="TRIMESTRAL",J23="MENSUAL"),N17/3,IF(AND(N23="TRIMESTRAL",J23="TRIMESTRAL"),N17,IF(AND(N23="MENSUAL",J23="MENSUAL"),N17,""))))))) ->  | H50: =IF(AND($N$23="ANUAL",$J$23="MENSUAL"),$N$17/12+G50,IF(AND(N23="SEMESTRAL",J23="MENSUAL"),N17/6+G50,IF(AND(N23="TRIMESTRAL",J23="MENSUAL"),N17/3+G50,IF(AND(N23="MENSUAL",J23="MENSUAL"),N17,"")))) ->  | I50: =IF(AND($N$23="ANUAL",$J$23="MENSUAL"),$N$17/12+H50,IF(AND(N23="SEMESTRAL",J23="MENSUAL"),N17/6+H50,IF(AND(N23="TRIMESTRAL",J23="MENSUAL"),N17/3+H50,IF(AND(N23="MENSUAL",J23="MENSUAL"),N17,"")))) ->  | J50: =IF(AND($N$23="ANUAL",$J$23="MENSUAL"),$N$17/12+I50,IF(AND(N23="SEMESTRAL",J23="MENSUAL"),N17/6,IF(AND(N23="TRIMESTRAL",J23="MENSUAL"),N17/3,IF(AND(N23="MENSUAL",J23="MENSUAL"),N17,"")))) ->  | K50: =IF(AND($N$23="ANUAL",$J$23="MENSUAL"),$N$17/12+J50,IF(AND(N23="SEMESTRAL",J23="MENSUAL"),N17/6+J50,IF(AND(N23="TRIMESTRAL",J23="MENSUAL"),N17/3+J50,IF(AND(N23="MENSUAL",J23="MENSUAL"),N17,"")))) ->  | L50: =IF(AND($N$23="ANUAL",$J$23="MENSUAL"),$N$17/12+K50,IF(AND(N23="SEMESTRAL",J23="MENSUAL"),N17/6+K50,IF(AND(N23="TRIMESTRAL",J23="MENSUAL"),N17/3+K50,IF(AND(N23="MENSUAL",J23="MENSUAL"),N17,"")))) ->  | M50: =IF(AND($N$23="ANUAL",$J$23="MENSUAL"),$N$17/12+L50,IF(AND(N23="SEMESTRAL",J23="MENSUAL"),N17/6+L50,IF(AND(N23="TRIMESTRAL",J23="MENSUAL"),N17/3,IF(AND(N23="MENSUAL",J23="MENSUAL"),N17,"")))) ->  | N50: =IF(AND($N$23="ANUAL",$J$23="MENSUAL"),$N$17/12+M50,IF(AND(N23="SEMESTRAL",J23="MENSUAL"),N17/6+M50,IF(AND(N23="TRIMESTRAL",J23="MENSUAL"),N17/3+M50,IF(AND(N23="MENSUAL",J23="MENSUAL"),N17,"")))) ->  | O50: =IF(AND($N$23="ANUAL",$J$23="MENSUAL"),$N$17/12+N50,IF(AND(N23="SEMESTRAL",J23="MENSUAL"),N17/6+N50,IF(AND(N23="TRIMESTRAL",J23="MENSUAL"),N17/3+N50,IF(AND(N23="MENSUAL",J23="MENSUAL"),N17,"")))) -> 
C52: NIVEL DE SEGREGACIÓN *
C53: UNIDAD SEGREGADA (Ej. Facultad, Programa Académico, Área) | G53: RESULTADO | K53: ANALISIS DE DATOS SEGREGADO
G72: Estratégico | J72: Eficacia
G73: Misional | J73: Eficiencia
G74: Apoyo | J74: Acreditación
G75: Seguimiento, Medición, Análisis y Evaluación | J75: Positiva
G76: Direccionamiento Estratégico | J76: Negativa
G77: Planeación Institucional | J77: Por Unidad Regional
G78: Proyectos Especiales y Relaciones Interinstitucionales | J78: Por Facultad
G79: Sistemas Integrados | J79: Por Programa Académico
G80: Autoevaluación y Acreditación | J80: Por área
G81: Comunicaciones | J81: Por Laboratorio
